Workbook

Sheet Paràmetres (hidden)
A1: COMPONENTS | B1: POSICIÓ | C1: PARÀMETRES DE CÀLCUL
A2: ='Tabla Forrajes'!B$1 -> MS % | B2: 1 | C2: 2
A3: ='Tabla Forrajes'!C$1 -> UFL | B3: =1+B2 -> 2 | C3: 1
A4: ='Tabla Forrajes'!D$1 -> UFV | B4: 3 | C4: 1
A5: ='Tabla Forrajes'!E1 -> MNT_PB | B5: 4 | C5: 1
A6: ='Tabla Forrajes'!F1 -> PDIA | B6: 5 | C6: 1
A7: ='Tabla Forrajes'!G1 -> PDI | B7: 6 | C7: 1
A8: ='Tabla Forrajes'!H1 -> BPR | B8: 7 | C8: 1
A9: ='Tabla Forrajes'!I1 -> UEL | B9: 8 | C9: 1
A10: ='Tabla Forrajes'!J1 -> UEB | B10: 9 | C10: 1
A11: ='Tabla Forrajes'!K1 -> UEM | B11: 10 | C11: 1
A12: ='Tabla Forrajes'!L1 -> NI ref | B12: 11 | C12: 1
A13: ='Tabla Forrajes'!M1 -> dMO | B13: 12 | C13: 1
A14: ='Tabla Forrajes'!N1 -> MOD | B14: 13 | C14: 1
A15: ='Tabla Forrajes'!O1 -> EE | B15: 14 | C15: 1
A16: ='Tabla Forrajes'!P1 -> FB | B16: 15 | C16: 1
A17: ='Tabla Forrajes'!Q1 -> NDF | B17: 16 | C17: 1
A18: ='Tabla Forrajes'!R1 -> ADF | B18: 17 | C18: 1
A19: ='Tabla Forrajes'!S1 -> Lignina | B19: 18 | C19: 1
A20: ='Tabla Forrajes'!T1 -> Cenizas | B20: 19 | C20: 1
A21: ='Tabla Forrajes'!U1 -> Ca | B21: 20 | C21: 1
A22: ='Tabla Forrajes'!V1 -> P | B22: 21 | C22: 1
A23: ='Tabla Forrajes'!W1 -> Mg | B23: 22 | C23: 1
A24: ='Tabla Forrajes'!X1 -> Cl | B24: 23 | C24: 1
A25: ='Tabla Forrajes'!Y1 -> K | B25: 24 | C25: 1
A26: ='Tabla Forrajes'!Z1 -> Na | B26: 25 | C26: 1
A27: ='Tabla Forrajes'!AA1 -> S | B27: 26 | C27: 1
A28: ='Tabla Forrajes'!AB1 -> Co | B28: 27 | C28: 1
A29: ='Tabla Forrajes'!AC1 -> Cu | B29: 28 | C29: 1
A30: ='Tabla Forrajes'!AD1 -> Mo | B30: 29 | C30: 1
A31: ='Tabla Forrajes'!AE1 -> Yodo | B31: 30 | C31: 1
A32: ='Tabla Forrajes'!AF1 -> Fe | B32: 31 | C32: 1
A33: ='Tabla Forrajes'!AG1 -> Mn | B33: 32 | C33: 1
A34: ='Tabla Forrajes'!AH1 -> Se | B34: 33 | C34: 1
A35: ='Tabla Forrajes'!AI1 -> Zn | B35: 34 | C35: 1
A36: ='Tabla Forrajes'!AJ1 -> Vit A | B36: 35 | C36: 1
A37: ='Tabla Forrajes'!AK1 -> Vit D | B37: 36 | C37: 1
A38: ='Tabla Forrajes'!AL1 -> Vit E | B38: 37 | C38: 1
A39: ='Tabla Forrajes'!AM1 -> AG | B39: 38 | C39: 1
A40: ='Tabla Forrajes'!AN1 -> DT_N | B40: 39 | C40: 1
A41: ='Tabla Forrajes'!AO1 -> PF | B41: 40 | C41: 1
A42: ='Tabla Forrajes'!AP1 -> MOF | B42: 41 | C42: 1

Sheet Tabla Forrajes
A1: Nombre | B1: MS % | C1: UFL | D1: UFV | E1: MNT_PB | F1: PDIA | G1: PDI | H1: BPR | I1: UEL | J1: UEB | K1: UEM | L1: NI ref | M1: dMO | N1: MOD | O1: EE | P1: FB | Q1: NDF | R1: ADF | S1: Lignina | T1: Cenizas | U1: Ca | V1: P | W1: Mg | X1: Cl | Y1: K | Z1: Na | AA1: S | AB1: Co | AC1: Cu | AD1: Mo | AE1: Yodo | AF1: Fe | AG1: Mn | AH1: Se | AI1: Zn | AJ1: Vit A | AK1: Vit D | AL1: Vit E | AM1: AG | AN1: DT_N | AO1: PF | AP1: MOF
A3: VERDE raigrás italiano Hoja otoño / invierno | B3: 16.6 | C3: 0.987525423 | D3: 0.968623439 | E3: 190 | F3: 37.05 | G3: 83.72930525 | H3: 43.99629972 | I3: 0.9908485486 | J3: 0.9829225231 | K3: 0.9787806617 | L3: 2.753201964 | M3: 0.75792 | N3: 649.53744 | O3: 41 | P3: 238 | Q3: 531.32 | R3: 265 | T3: 143 | U3: 2.28 | V3: 2.58 | AM3: 27.18 | AN3: 0.74 | AP3: 566.5326882
A4: VERDE raigrás italiano Hoja primavera | B4: 15.1 | C4: 1.1 | D4: 1.09899354 | E4: 191 | F4: 34.38 | G4: 86.07504607 | H4: 44.12488481 | I4: 0.9708980146 | J4: 0.9494630462 | K4: 0.9358514742 | L4: 2.879496281 | M4: 0.81287 | N4: 704.75829 | O4: 43 | P4: 178 | Q4: 462.92 | R4: 203 | T4: 133 | U4: 2 | V4: 2.4 | W4: 1.7 | Y4: 30 | Z4: 3 | AC4: 8.1 | AG4: 85.1 | AM4: 27.285 | AN4: 0.76 | AP4: 628.165719
A5: VERDE raigrás italiano Espiga a 10 cm | B5: 15.8 | C5: 1.073514419 | D5: 1.069426873 | E5: 168 | F5: 26.46 | G5: 77.8462145 | H5: 31.10451486 | I5: 0.9910346389 | J5: 0.9832391547 | K5: 0.9791911182 | L5: 2.752047879 | M5: 0.79572 | N5: 705.00792 | O5: 39 | P5: 188 | Q5: 474.32 | R5: 213 | T5: 114 | U5: 1.8 | V5: 2.1 | W5: 1.7 | Y5: 30 | Z5: 3 | AA5: 1 | AC5: 8.1 | AG5: 85.1 | AM5: 24.87 | AN5: 0.79 | AP5: 636.2376237
A6: VERDE raigrás italiano 1 semana antes inicio espigado | B6: 16.4 | C6: 0.9568987067 | D6: 0.9279323027 | E6: 112 | F6: 22.68 | G6: 69.96884231 | H6: -17.0368975 | I6: 1.057101244 | J6: 1.101295022 | K6: 1.137999252 | L6: 2.36799878 | M6: 0.7379 | N6: 663.3721 | O6: 33 | P6: 230 | Q6: 522.2 | R6: 257 | T6: 101 | U6: 1.8 | V6: 1.8 | W6: 1.7 | Y6: 30 | Z6: 3 | AA6: 1 | AC6: 6 | AG6: 80 | AI6: 23 | AJ6: 80000 | AK6: 30 | AL6: 20 | AM6: 18.99 | AN6: 0.73 | AP6: 597.0361265
A7: VERDE raigrás italiano Inicio espigado | B7: 16.5 | C7: 0.9368495611 | D7: 0.9041024886 | E7: 105 | F7: 21.2625 | G7: 67.81242603 | H7: -21.5953848 | I7: 1.067222853 | J7: 1.120433875 | K7: 1.164876603 | L7: 2.313361632 | M7: 0.72817 | N7: 654.62483 | O7: 32 | P7: 238 | Q7: 531.32 | R7: 265 | T7: 101 | U7: 1.8 | V7: 1.8 | W7: 1.7 | Y7: 30 | Z7: 3 | AA7: 1 | AC7: 5 | AG7: 80 | AI7: 23 | AJ7: 80000 | AK7: 30 | AL7: 20 | AM7: 18.255 | AN7: 0.73 | AP7: 589.3655744
A8: VERDE raigrás italiano Espigado | B8: 17.8 | C8: 0.8818407587 | D8: 0.8377966687 | E8: 88 | F8: 19.14 | G8: 63.38289694 | H8: -34.0522143 | I8: 1.091434895 | J8: 1.167439208 | K8: 1.232308365 | L8: 2.186774769 | M8: 0.69765 | N8: 629.97795 | O8: 30 | P8: 265 | Q8: 562.1 | R8: 293 | T8: 97 | U8: 1.8 | V8: 1.5 | AC8: 5 | AG8: 79.6 | AI8: 23.8 | AJ8: 80000 | AK8: 30 | AL8: 20 | AM8: 16.47 | AN8: 0.71 | AP8: 565.5384465
A9: VERDE raigrás italiano Final espigado | B9: 20.4 | C9: 0.8544008851 | D9: 0.8031831803 | E9: 80 | F9: 17.4 | G9: 60.32551195 | H9: -38.91893425 | I9: 1.096771795 | J9: 1.178039486 | K9: 1.247801042 | L9: 2.15962381 | M9: 0.67756 | N9: 617.93472 | O9: 29 | P9: 284 | Q9: 583.76 | R9: 313 | T9: 88 | U9: 1.8 | V9: 1.5 | W9: 2.3 | Y9: 26 | Z9: 1.5 | AJ9: 80000 | AK9: 30 | AL9: 20 | AM9: 15.63 | AN9: 0.71 | AP9: 554.2271801
A10: VERDE raigrás italiano Inicio floración | B10: 24 | C10: 0.8342394507 | D10: 0.7793634604 | E10: 70 | F10: 15.225 | G10: 57.3422064 | H10: -45.48047731 | I10: 1.094099952 | J10: 1.172721579 | K10: 1.240015355 | L10: 2.173183444 | M10: 0.66587 | N10: 608.60518 | O10: 28 | P10: 293 | Q10: 594.02 | R10: 322 | T10: 86 | U10: 1.8 | V10: 1.2 | AJ10: 80000 | AK10: 30 | AL10: 20 | AM10: 14.58 | AN10: 0.71 | AP10: 546.7382102
A11: VERDE raigrás italiano Floración | B11: 27.5 | C11: 0.8068536711 | D11: 0.7469697818 | E11: 60 | F11: 13.5 | G11: 54.39933876 | H11: -52.28407859 | I11: 1.094509341 | J11: 1.173534971 | K11: 1.241204453 | L11: 2.171101492 | M11: 0.64963 | N11: 595.06108 | O11: 27 | P11: 307 | Q11: 609.98 | R11: 337 | T11: 84 | U11: 1.8 | V11: 1.2 | AJ11: 80000 | AK11: 30 | AL11: 20 | AM11: 13.53 | AN11: 0.7 | AP11: 534.2709123
A12: VERDE Maíz Pastoso | B12: 30.7 | C12: 1.336519373 | D12: 1.297656969 | E12: 77.4 | F12: 13.932 | G12: 58.79146932 | H12: -42.36519209 | I12: 1.02870768 | J12: 1.049139944 | K12: 1.066392013 | L12: 1.4 | M12: 0.720464135 | N12: 687.4668776 | O12: 23.8 | P12: 208 | Q12: 454.4 | R12: 243.9 | S12: 29.5 | T12: 45.8 | U12: 0.84 | V12: 1.61 | AA12: 1.1 | AF12: 160 | AJ12: 80000 | AK12: 30 | AL12: 20 | AM12: 15.357 | AN12: 0.76 | AP12: 630.3086521
A13: VERDE Avena Inicio alargamiento tallos | B13: 14.9 | C13: 1.064086631 | D13: 1.064854725 | E13: 120 | F13: 26.1 | G13: 78.54094724 | H13: -13.57775696 | I13: 1.020791557 | J13: 1.034988504 | K13: 1.047364373 | L13: 2.572916273 | M13: 0.8100113766 | N13: 712 | O13: 34 | P13: 230 | Q13: 522.2 | R13: 257 | T13: 121 | U13: 2 | V13: 2.64 | AJ13: 80000 | AK13: 30 | AL13: 20 | AM13: 19.83 | AN13: 0.74 | AP13: 646.839457
A14: VERDE Avena Inicio espigado | B14: 20.6 | C14: 0.9133309306 | D14: 0.8741939522 | E14: 102 | F14: 19.89 | G14: 65.21758227 | H14: -21.9507916 | I14: 1.060258573 | J14: 1.1072336 | K14: 1.146303874 | L14: 2.350843351 | M14: 0.7104972376 | N14: 643 | O14: 32 | P14: 302 | Q14: 604.28 | R14: 331 | T14: 95 | U14: 1.8 | V14: 2.31 | AJ14: 80000 | AK14: 30 | AL14: 20 | AM14: 17.94 | AN14: 0.74 | AP14: 578.0360445
A15: VERDE Avena Floración | B15: 17.7 | C15: 0.8229420319 | D15: 0.7662555366 | E15: 101 | F15: 18.9375 | G15: 59.89304518 | H15: -17.97919135 | I15: 1.102855944 | J15: 1.190232315 | K15: 1.265754423 | L15: 2.128991841 | M15: 0.66 | N15: 594 | O15: 32 | P15: 333 | Q15: 639.62 | R15: 364 | T15: 100 | U15: 1.6 | V15: 1.98 | AJ15: 80000 | AK15: 30 | AL15: 20 | AM15: 17.835 | AN15: 0.75 | AP15: 526.5534262
A16: VERDE Avena Lechoso-pastoso | B16: 31.8 | C16: 0.735658448 | D16: 0.6565506562 | E16: 67 | F16: 12.5625 | G16: 48.69970816 | H16: -40.32371469 | I16: 1.10231487 | J16: 1.18914327 | K16: 1.26414502 | L16: 2.131702295 | M16: 0.5894396552 | N16: 547 | O16: 25 | P16: 270 | Q16: 567.8 | R16: 298 | T16: 72 | U16: 1.4 | V16: 1.65 | AJ16: 80000 | AK16: 30 | AL16: 20 | AM16: 14.265 | AN16: 0.75 | AP16: 482.6664074
A17: VERDE Avena Pastoso | B17: 38.3 | C17: 0.7072537332 | D17: 0.6232506884 | E17: 63 | F17: 12.285 | G17: 46.82400532 | H17: -42.66801408 | I17: 1.085210225 | J17: 1.155186303 | K17: 1.214532939 | L17: 2.218779543 | M17: 0.5698924731 | N17: 530 | O17: 25 | P17: 263 | Q17: 559.82 | R17: 291 | T17: 70 | U17: 1.2 | V17: 1.65 | AJ17: 80000 | AK17: 30 | AL17: 20 | AM17: 13.845 | AN17: 0.74 | AP17: 464.7846187
A18: VERDE Triticale Lechoso-pastoso | B18: 40.51 | C18: 0.7866308836 | D18: 0.7130740068 | E18: 71.9 | F18: 13.48125 | G18: 51.74268223 | H18: -38.67729114 | I18: 1.046395966 | J18: 1.081369429 | K18: 1.110363008 | L18: 2.426936796 | M18: 0.6102620087 | N18: 574.9278384 | O18: 14.8 | P18: 299 | Q18: 618.4 | R18: 350.1 | S18: 43.5 | T18: 57.9 | U18: 1.16 | V18: 0.99 | W18: 2.7 | Y18: 25 | Z18: 1.7 | AA18: 3 | AC18: 8.6 | AD18: 0.44 | AG18: 43.9 | AI18: 24.1 | AJ18: 80000 | AK18: 30 | AL18: 20 | AM18: 14.7795 | AN18: 0.75 | AP18: 510.8802662
A19: VERDE Alfalfa Inicio botones florales | B19: 19.83 | C19: 0.8954507068 | D19: 0.8453932124 | E19: 196.7 | F19: 33.93075 | G19: 74.37573864 | H19: 59.44643611 | I19: 0.9783295072 | J19: 0.9618149826 | K19: 0.9515972519 | L19: 2.83185017 | M19: 0.674826 | N19: 585.2091072 | O19: 22.6 | P19: 277.4 | Q19: 442.1 | R19: 334.4 | S19: 74.3 | T19: 132.8 | U19: 5.43 | V19: 1.75 | AC19: 8.8 | AD19: 1.3 | AG19: 26.7 | AI19: 32.3 | AJ19: 120000 | AK19: 20 | AL19: 100 | AM19: 20.3135 | AN19: 0.77 | AP19: 502.6782183
A20: VERDE Alfalfa Vegetativo 30 cm | B20: 14.4 | C20: 1.057970395 | D20: 1.037917837 | E20: 246 | F20: 40.59 | G20: 87.13790609 | H20: 95.11408255 | I20: 0.9343019937 | J20: 0.8904932233 | K20: 0.8622791436 | L20: 3.125183834 | M20: 0.75199 | N20: 654.98329 | O20: 33 | P20: 201 | Q20: 489.14 | R20: 259 | T20: 129 | U20: 4.95 | V20: 3.15 | AC20: 8.8 | AD20: 1.3 | AG20: 26.7 | AI20: 32.3 | AJ20: 120000 | AK20: 20 | AL20: 100 | AM20: 25.49 | AN20: 0.78 | AP20: 568.7888379
A21: VERDE Zulla hoja, 1º año | B21: 11 | C21: 1.096854529 | D21: 1.092315415 | E21: 233.5 | F21: 47.28375 | G21: 101.4759961 | H21: 71.57961546 | I21: 0.9440674911 | J21: 0.9059343706 | K21: 0.8812924975 | L21: 3.057759878 | M21: 0.789865 | N21: 687.814442 | O21: 27 | P21: 163.5 | Q21: 249.6 | R21: 234.1 | T21: 129.2 | U21: 3.3 | V21: 2.1 | AM21: 24.1775 | AN21: 0.73 | AP21: 598.1277405 | AQ21: 17.00377003 | AR21: 2.8672075 | AS21: 3.72277 | AT21: 18.7616 | AU21: 52.11987442
A22: VERDE Zulla tallo hoja, 1º año | B22: 11.5 | C22: 1.018584209 | D22: 0.9979952283 | E22: 186 | F22: 37.665 | G22: 91.19718606 | H22: 37.93595928 | I22: 0.988232989 | J22: 0.9784811434 | K22: 0.9730315989 | L22: 2.76946899 | M22: 0.754515 | N22: 664.0486515 | O22: 27 | P22: 198.5 | Q22: 280.5 | R22: 269.9 | T22: 119.9 | U22: 3.3 | V22: 2.1 | AM22: 19.19 | AN22: 0.73 | AP22: 583.7835984 | AQ22: 18.1417305 | AR22: 3.00187 | AS22: 3.98212 | AT22: 19.5596 | AU22: 49.1942568
A23: VERDE Zulla yemas florales, 1º año | B23: 11.91 | C23: 0.971662067 | D23: 0.9400058138 | E23: 170.3 | F23: 34.48575 | G23: 87.26725566 | H23: 27.64789741 | I23: 1.00280174 | J23: 1.003435006 | K23: 1.005537317 | L23: 2.679941156 | M23: 0.727447 | N23: 645.6819572 | O23: 27 | P23: 225.3 | Q23: 323.9 | R23: 304.2 | T23: 112.4 | U23: 3.6 | V23: 2.1 | AM23: 17.5415 | AN23: 0.73 | AP23: 567.4701334 | AQ23: 18.57255361 | AR23: 3.0463795 | AS23: 4.067842 | AT23: 19.82336 | AU23: 48.09598983
A24: VERDE Zulla Botones florales, 1º año | B24: 13.77 | C24: 0.9661408557 | D24: 0.9305393291 | E24: 168.9 | F24: 34.20225 | G24: 86.94535264 | H24: 26.68590212 | I24: 1.000730959 | J24: 0.9998558827 | K24: 1.000844288 | L24: 2.692507587 | M24: 0.717953 | N24: 645.1525658 | O24: 27 | P24: 234.7 | Q24: 348.5 | R24: 330.4 | T24: 101.4 | U24: 3.6 | V24: 2.1 | AM24: 17.3945 | AN24: 0.73 | AP24: 566.6355756 | AQ24: 18.61229065 | AR24: 3.0503485 | AS24: 4.075486 | AT24: 19.84688 | AU24: 47.99488794
A25: VERDE Zulla Inicio Floración, 1º año | B25: 14.5 | C25: 0.9196215428 | D25: 0.8756744961 | E25: 167 | F25: 32.565 | G25: 84.17295987 | H25: 28.74256271 | I25: 1.010019035 | J25: 1.015994101 | K25: 1.022087499 | L25: 2.63654613 | M25: 0.695127 | N25: 620.3313348 | O25: 23 | P25: 257.3 | Q25: 366 | R25: 334.1 | T25: 107.6 | U25: 3.6 | V25: 2.1 | AM25: 17.195 | AN25: 0.74 | AP25: 541.967139 | AQ25: 18.66656512 | AR25: 3.055735 | AS25: 4.08586 | AT25: 19.8788 | AU25: 47.8568487
A26: VERDE Zulla Floración, 1º año | B26: 14.92 | C26: 0.8896999035 | D26: 0.8413566291 | E26: 162.4 | F26: 31.668 | G26: 82.56252045 | H26: 26.45331179 | I26: 1.017849675 | J26: 1.029771407 | K26: 1.040391915 | L26: 2.590159344 | M26: 0.682098 | N26: 604.6116672 | O26: 23 | P26: 270.2 | Q26: 390.1 | R26: 346.3 | T26: 113.6 | U26: 2.7 | V26: 3.5 | AM26: 16.712 | AN26: 0.74 | AP26: 526.4629793 | AQ26: 18.79961472 | AR26: 3.068776 | AS26: 4.110976 | AT26: 19.95608 | AU26: 47.51869267
A27: VERDE Zulla Fructificación, 1º año | B27: 18.93 | C27: 0.7740194666 | D27: 0.7050334795 | E27: 130.8 | F27: 25.506 | G27: 74.01316404 | H27: 6.799556184 | I27: 1.056133358 | J27: 1.099480224 | K27: 1.135467666 | L27: 2.373278359 | M27: 0.618165 | N27: 549.4868685 | O27: 21 | P27: 333.5 | Q27: 519.6 | R27: 450.7 | T27: 111.1 | U27: 2.7 | V27: 3.5 | AM27: 13.394 | AN27: 0.74 | AP27: 474.5819724 | AQ27: 19.77666618 | AR27: 3.158362 | AS27: 4.283512 | AT27: 20.48696 | AU27: 45.04436717
A28: VERDE Zulla hoja, 2º año | B28: 11 | C28: 1.099747568 | D28: 1.095573936 | E28: 240.5 | F28: 48.70125 | G28: 102.775997 | H28: 76.87320774 | I28: 0.9385770623 | J28: 0.8972271293 | K28: 0.8705493025 | L28: 3.095494801 | M28: 0.790269 | N28: 686.9808417 | O28: 27 | P28: 163.1 | Q28: 272.8 | R28: 253.3 | T28: 130.7 | U28: 3.3 | V28: 2.1 | AM28: 24.9125 | AN28: 0.73 | AP28: 595.5743013 | AQ28: 16.85710078 | AR28: 2.8473625 | AS28: 3.68455 | AT28: 18.644 | AU28: 52.50054562
A29: VERDE Zulla tallo hoja, 2º año | B29: 10.03 | C29: 1.027185591 | D29: 1.007222315 | E29: 206.5 | F29: 41.81625 | G29: 95.04208597 | H29: 53.3796313 | I29: 0.9734076994 | J29: 0.9536197806 | K29: 0.9411371114 | L29: 2.863324384 | M29: 0.755121 | N29: 662.4676533 | O29: 27 | P29: 197.9 | Q29: 311.2 | R29: 290.4 | T29: 122.7 | U29: 3.3 | V29: 2.1 | AM29: 21.3425 | AN29: 0.73 | AP29: 577.1261293 | AQ29: 17.62009903 | AR29: 2.9437525 | AS29: 3.87019 | AT29: 19.2152 | AU29: 50.53011982
A30: VERDE Zulla yemas florales, 2º año | B30: 12.06 | C30: 0.9414798783 | D30: 0.9030186208 | E30: 177.4 | F30: 35.9235 | G30: 87.76027264 | H30: 34.30704275 | I30: 1.00595395 | J30: 1.008904022 | K30: 1.012728493 | L30: 2.660911447 | M30: 0.709469 | N30: 628.1638526 | O30: 27 | P30: 243.1 | Q30: 360.2 | R30: 330.5 | T30: 114.6 | U30: 3.6 | V30: 2.1 | AM30: 18.287 | AN30: 0.73 | AP30: 546.9396001 | AQ30: 18.37435685 | AR30: 3.026251 | AS30: 4.029076 | AT30: 19.70408 | AU30: 48.60073657
A31: VERDE Zulla Botones Florales, 2º año | B31: 12.51 | C31: 0.8951169505 | D31: 0.8483103437 | E31: 168.9 | F31: 34.20225 | G31: 85.02746379 | H31: 29.68260345 | I31: 1.021257856 | J31: 1.035817512 | K31: 1.048474402 | L31: 2.570192304 | M31: 0.686441 | N31: 605.6468943 | O31: 27 | P31: 265.9 | Q31: 382.3 | R31: 352.4 | T31: 117.7 | U31: 3.6 | V31: 2.1 | AM31: 17.3945 | AN31: 0.73 | AP31: 524.9568365 | AQ31: 18.61229065 | AR31: 3.0503485 | AS31: 4.075486 | AT31: 19.84688 | AU31: 47.99488794
A32: VERDE Zulla Inicio Floración, 2º año | B32: 15.37 | C32: 0.8688196702 | D32: 0.8142223989 | E32: 151.5 | F32: 29.5425 | G32: 80.22335033 | H32: 18.72117137 | I32: 1.03172308 | J32: 1.054574304 | K32: 1.073743818 | L32: 2.50970557 | M32: 0.666039 | N32: 598.4360415 | O32: 23 | P32: 286.1 | Q32: 406 | R32: 371.5 | T32: 101.5 | U32: 3.6 | V32: 2.1 | AM32: 15.5675 | AN32: 0.74 | AP32: 521.8195916 | AQ32: 19.12419778 | AR32: 3.0996775 | AS32: 4.17049 | AT32: 20.1392 | AU32: 46.69505782
A33: VERDE Zulla Floración, 2º año | B33: 17.12 | C33: 0.8321434211 | D33: 0.7722857657 | E33: 141.1 | F33: 27.5145 | G33: 77.40801428 | H33: 12.25538394 | I33: 1.04040746 | J33: 1.070362352 | K33: 1.095245434 | L33: 2.460435584 | M33: 0.64897 | N33: 579.984489 | O33: 23 | P33: 303 | Q33: 452.6 | R33: 406.5 | T33: 106.3 | U33: 2.7 | V33: 3.5 | AM33: 14.4755 | AN33: 0.74 | AP33: 504.7095418 | AQ33: 19.446103 | AR33: 3.1291615 | AS33: 4.227274 | AT33: 20.31392 | AU33: 45.8798973
A34: VERDE Zulla Fructificación, 2º año | B34: 20.03 | C34: 0.7714311913 | D34: 0.6990913505 | E34: 135.4 | F34: 26.403 | G34: 74.79356037 | H34: 10.38574942 | I34: 1.052200861 | J34: 1.092134028 | K34: 1.125249773 | L34: 2.394829046 | M34: 0.609681 | N34: 548.6519319 | O34: 21 | P34: 341.9 | Q34: 491.1 | R34: 452.9 | T34: 100.1 | U34: 2.7 | V34: 3.5 | AM34: 13.877 | AN34: 0.74 | AP34: 472.0479914 | AQ34: 19.62759064 | AR34: 3.145321 | AS34: 4.258396 | AT34: 20.40968 | AU34: 45.42098545
A35: VERDE Zulla Botones | B35: 11 | C35: 0.9871458131 | D35: 0.9668537027 | E35: 199 | F35: 40.2975 | G35: 86.21303252 | H35: 49.55476384 | I35: 0.9828422118 | J35: 0.9693798556 | K35: 0.9612993691 | L35: 2.803269123 | M35: 0.753 | N35: 637.791 | O35: 27 | P35: 200 | Q35: 488 | R35: 230 | T35: 153 | U35: 3.3 | V35: 2.1 | AJ35: 120000 | AK35: 20 | AL35: 100 | AM35: 20.555 | AN35: 0.73 | AP35: 554.1757463
A36: VERDE Zulla Floración | B36: 13.5 | C36: 0.8566351193 | D36: 0.8059033998 | E36: 155 | F36: 30.225 | G36: 70.91503133 | H36: 22.20440079 | I36: 1.033625341 | J36: 1.058015117 | K36: 1.078411657 | L36: 2.498842463 | M36: 0.67321 | N36: 586.36591 | O36: 23 | P36: 279 | Q36: 578.06 | R36: 305.05 | T36: 129 | U36: 3.6 | V36: 2.1 | AJ36: 120000 | AK36: 20 | AL36: 100 | AM36: 15.935 | AN36: 0.74 | AP36: 509.3963728
A37: VERDE Zulla Final floración | B37: 15.3 | C37: 0.8276145297 | D37: 0.7672213764 | E37: 152 | F37: 29.64 | G37: 68.69210074 | H37: 20.9161303 | I37: 1.041416423 | J37: 1.072209943 | K37: 1.097775658 | L37: 2.454764615 | M37: 0.64695 | N37: 574.4916 | O37: 21 | P37: 305 | Q37: 607.7 | R37: 329.75 | T37: 112 | U37: 2.7 | V37: 3.5 | AJ37: 120000 | AK37: 20 | AL37: 100 | AM37: 15.62 | AN37: 0.74 | AP37: 496.437687
A38: ENSILADO prehenificado raigrás italiano 1 semana antes inicio espigado | B38: 33.5 | C38: 0.9154038958 | D38: 0.8723292381 | E38: 123 | F38: 17 | G38: 67 | H38: 5 | I38: 1.05 | J38: 1.07 | K38: 1.35 | L38: 2 | M38: 0.73 | N38: 649.7 | O38: 36 | P38: 246 | Q38: 510 | R38: 275 | T38: 110 | U38: 1.84 | V38: 1.56 | AJ38: 8000 | AK38: 200 | AL38: 5 | AM38: 19 | AN38: 0.79 | AO38: 80 | AP38: 588.49475
A39: ENSILADO prehenificado raigrás italiano Inicio espigado | B39: 33.5 | C39: 0.88 | D39: 0.82 | E39: 117 | F39: 16 | G39: 65 | H39: 1 | I39: 1.06 | J39: 1.08 | K39: 1.39 | L39: 1.9 | M39: 0.706043 | N39: 631.9 | O39: 35 | P39: 254 | Q39: 520 | R39: 283 | T39: 110 | U39: 1.84 | V39: 1.56 | AJ39: 8000 | AK39: 200 | AL39: 5 | AM39: 19 | AN39: 0.79 | AO39: 80 | AP39: 570.0426753
A40: ENSILADO prehenificado raigrás italiano Final espigado | B40: 33.5 | C40: 0.78 | D40: 0.71 | E40: 95 | F40: 12 | G40: 59 | H40: -14 | I40: 1.11 | J40: 1.18 | K40: 1.62 | L40: 1.7 | M40: 0.66 | N40: 594.66 | O40: 33 | P40: 297 | Q40: 571 | R40: 327 | T40: 99 | U40: 1.84 | V40: 1.38 | AJ40: 8000 | AK40: 200 | AL40: 5 | AM40: 17 | AN40: 0.79 | AO40: 80 | AP40: 534.52605
A41: ENSILADO Prat natural plano, gramíneas en gran parte | B41: 48 | C41: 0.9301076693 | D41: 0.8656931921 | E41: 114.3 | F41: 15.0876 | G41: 51.5305866 | H41: -5.252929949 | I41: 1.131789867 | J41: 1.229566374 | K41: 1.638343115 | L41: 1.644820804 | M41: 0.668711 | N41: 599.165056 | O41: 22.2 | P41: 311.3 | Q41: 584.2 | R41: 385 | T41: 104 | U41: 3.48 | V41: 1.82 | AJ41: 8000 | AK41: 200 | AL41: 5 | AM41: 18.2569 | AN41: 0.78 | AO41: 115 | AP41: 535.9795542
A42: ENSILADO Maíz Lechoso | B42: 28.5 | C42: 0.9421569565 | D42: 0.8895769703 | E42: 78.1 | F42: 13.6675 | G42: 49.99866751 | H42: -39.59697674 | I42: 1.080663836 | J42: 1.19129726 | K42: 1.345532831 | L42: 1.4 | M42: 0.69 | N42: 651.222 | O42: 33.3 | P42: 232.6 | Q42: 488.2 | R42: 278.4 | S42: 30.4 | T42: 56.2 | U42: 1.44 | V42: 1.61 | AM42: 24 | AN42: 0.75 | AO42: 100 | AP42: 588.3446
A43: ENSILADO Maíz Lechoso-pastoso | B43: 28.5 | C43: 0.9787464011 | D43: 0.9339294308 | E43: 78.1 | F43: 13.6675 | G43: 51.60752582 | H43: -41.05332562 | I43: 1.042209484 | J43: 1.152562936 | K43: 1.284686536 | L43: 1.4 | M43: 0.71 | N43: 670.098 | O43: 33.3 | P43: 232.6 | Q43: 488.2 | R43: 278.4 | S43: 30.4 | T43: 56.2 | U43: 1.44 | V43: 1.61 | AM43: 24 | AN43: 0.75 | AO43: 125 | AP43: 608.5998
A44: ENSILADO Maíz Pastoso | B44: 30 | C44: 0.9962612852 | D44: 0.9540342158 | E44: 77 | F44: 13.475 | G44: 54.02881787 | H44: -42.65449475 | I44: 1.01329589 | J44: 1.116491162 | K44: 1.278523867 | L44: 1.4 | M44: 0.717 | N44: 680.2179 | O44: 34.4 | P44: 216.5 | Q44: 450.9 | R44: 287.5 | S44: 29.3 | T44: 51.3 | U44: 1.2 | V44: 1.54 | AM44: 24 | AN44: 0.75 | AO44: 80 | AP44: 619.39492
A45: ENSILADO Maíz Pastoso-vidrioso | B45: 32 | C45: 0.9831423928 | D45: 0.9382032062 | E45: 75.9 | F45: 13.2825 | G45: 52.11647112 | H45: -42.99002243 | I45: 1.004191288 | J45: 1.098575718 | K45: 1.284420211 | L45: 1.4 | M45: 0.7101910828 | N45: 673.6872611 | O45: 32.1 | P45: 203.7 | Q45: 432.7 | R45: 244.4 | S45: 22.9 | T45: 51.4 | U45: 1.2 | V45: 1.61 | AM45: 24 | AN45: 0.75 | AO45: 100 | AP45: 612.5872382
A46: ENSILADO Maíz vidrioso | B46: 32 | C46: 0.9640116468 | D46: 0.9154634589 | E46: 76 | F46: 13.3 | G46: 51.89904202 | H46: -42.13633028 | I46: 1.020614142 | J46: 1.114790276 | K46: 1.304256824 | L46: 1.4 | M46: 0.7008046463 | N46: 663.5218391 | O46: 32 | P46: 202 | Q46: 432.4 | R46: 244.4 | S46: 26.5 | T46: 53.2 | U46: 1.24 | V46: 1.61 | AM46: 24 | AN46: 0.75 | AO46: 80 | AP46: 601.7570275
A47: ENSILADO Avena Lechoso-pastoso | B47: 31 | C47: 0.6642411484 | D47: 0.5695207363 | E47: 96.6 | F47: 18.9336 | G47: 47.97507469 | H47: -17.51123621 | I47: 1.154955419 | J47: 1.282660589 | K47: 1.791224433 | L47: 1.504435061 | M47: 0.56 | N47: 508.704 | O47: 45 | P47: 333.4 | Q47: 600.1 | R47: 385.3 | S47: 49.3 | T47: 91.6 | U47: 2.16 | V47: 1.848 | AC47: 5 | AD47: 0.13 | AG47: 30 | AJ47: 5000 | AK47: 200 | AL47: 5 | AM47: 19 | AN47: 0.72 | AO47: 80 | AP47: 433.84195
A48: ENSILADO Cebada Lechoso-pastoso | B48: 30.5 | C48: 0.721420216 | D48: 0.6340131908 | E48: 98.8 | F48: 19.3648 | G48: 51.13221978 | H48: -18.30719857 | I48: 1.147495958 | J48: 1.265287422 | K48: 1.745392764 | L48: 1.543939505 | M48: 0.5903225806 | N48: 540.1451613 | O48: 40.7 | P48: 278.4 | Q48: 533.3 | R48: 328.5 | S48: 42.9 | T48: 85 | U48: 2.12 | V48: 1.782 | AJ48: 5000 | AK48: 200 | AL48: 5 | AM48: 19 | AN48: 0.72 | AO48: 80 | AP48: 466.9429565
A49: ENSILADO Sorgo Pastoso | B49: 24 | C49: 0.8946611737 | D49: 0.8448988526 | E49: 102.3 | F49: 26.4957 | G49: 67.48794219 | H49: -32.54844063 | I49: 1.126297354 | J49: 1.216028017 | K49: 1.608406605 | L49: 1.675435074 | M49: 0.701 | N49: 644.7097 | O49: 25 | P49: 293.4 | Q49: 586.4 | R49: 346.8 | S49: 42.4 | T49: 80.3 | U49: 2.24 | V49: 1.584 | AJ49: 5000 | AK49: 200 | AL49: 5 | AM49: 19 | AN49: 0.63 | AO49: 80 | AP49: 572.00891
A50: ENSILADO Triticale lechoso | B50: 28.1 | C50: 0.7185428841 | D50: 0.6315093177 | E50: 99.8 | F50: 19.5608 | G50: 51.20239422 | H50: -17.39059614 | I50: 1.146293336 | J50: 1.262798213 | K50: 1.742230253 | L50: 1.546742077 | M50: 0.5903225806 | N50: 537.6067742 | O50: 46.6 | P50: 329.3 | Q50: 589.7 | R50: 373.5 | S50: 46.2 | T50: 89.3 | U50: 1.96 | V50: 1.914 | AJ50: 5000 | AK50: 200 | AL50: 5 | AM50: 19 | AN50: 0.72 | AO50: 80 | AP50: 464.2085694
A51: ENSILADO prehenificado Alfalfa Inicio botones florales | B51: 45 | C51: 0.980732297 | D51: 0.9375437283 | E51: 213.6 | F51: 22.3212 | G51: 62.68377642 | H51: 81.82328754 | I51: 0.9797376592 | J51: 0.954797698 | K51: 1.099990717 | L51: 2.449821438 | M51: 0.709856 | N51: 621.9758272 | O51: 20.8 | P51: 247.2 | Q51: 407.2 | R51: 320.1 | S51: 64.3 | T51: 123.8 | U51: 3.84 | V51: 1.82 | AJ51: 3000 | AK51: 200 | AL51: 5 | AM51: 26.4988 | AN51: 0.83 | AO51: 80 | AP51: 550.6914111
A52: ENSILADO prehenificado Alfalfa antes floración | B52: 43 | C52: 0.9478567903 | D52: 0.9046584391 | E52: 198.2 | F52: 21.802 | G52: 61.32585238 | H52: 64.24775046 | I52: 0.9937421911 | J52: 0.9777668498 | K52: 1.121023222 | L52: 2.403858178 | M52: 0.707306 | N52: 605.0295524 | O52: 18.7 | P52: 249.7 | Q52: 424.6 | R52: 336.1 | S52: 65.9 | T52: 144.6 | U52: 3.84 | V52: 1.82 | AJ52: 3000 | AK52: 200 | AL52: 5 | AM52: 25.2206 | AN52: 0.8 | AO52: 80 | AP52: 534.6627196
A53: ENSILADO prehenificado Alfalfa rebrotes floración | B53: 47 | C53: 1.003207297 | D53: 0.9674763745 | E53: 219.7 | F53: 27.79205 | G53: 68.85859238 | H53: 78.00981843 | I53: 0.972568435 | J53: 0.942718323 | K53: 1.084479733 | L53: 2.484860488 | M53: 0.726176 | N53: 627.779152 | O53: 17.8 | P53: 231.2 | Q53: 391.4 | R53: 298.9 | S53: 61.9 | T53: 135.5 | U53: 5.22 | V53: 2.45 | AJ53: 3000 | AK53: 200 | AL53: 5 | AM53: 27.0051 | AN53: 0.79 | AO53: 80 | AP53: 551.9218578
A54: ENSILADO Zulla Botones Florales Floracion, Bolas | B54: 27.16 | C54: 0.754603903 | D54: 0.6728644459 | E54: 140.9 | F54: 16.27395 | G54: 57.0350509 | H54: 33.42177985 | I54: 1.075441606 | J54: 1.126048654 | K54: 1.267021205 | L54: 2.126863251 | M54: 0.60143 | N54: 526.25125 | O54: 27 | P54: 353.5 | Q54: 537.2 | R54: 351.6765 | T54: 125 | U54: 3.6 | V54: 2.1 | AM54: 20.4647 | AN54: 0.79 | AO54: 150 | AP54: 306.2478463 | AQ54: 18.9901 | AR54: 2.96 | AS54: 4.2346 | AT54: 20.182 | AU54: 48.0613
A55: ENSILADO Zulla Inicio Floración en Fructificación | B55: 19.66 | C55: 0.7669925154 | D55: 0.6858718121 | E55: 135.6 | F55: 15.6618 | G55: 56.90934942 | H55: 28.47470403 | I55: 1.080492689 | J55: 1.135321292 | K55: 1.273160331 | L55: 2.116607605 | M55: 0.605612 | N55: 535.7243752 | O55: 27 | P55: 349.4 | Q55: 589.3 | R55: 349.3026 | T55: 115.4 | U55: 3.6 | V55: 2.1 | AM55: 20.0248 | AN55: 0.79 | AO55: 150 | AP55: 316.8191373 | AQ55: 19.0484 | AR55: 2.96 | AS55: 4.2664 | AT55: 20.288 | AU55: 47.7592
A56: HENO Bromo Final vegetación | B56: 85 | C56: 0.7641928518 | D56: 0.6935543947 | E56: 100 | F56: 20.3 | G56: 58.49315002 | H56: -20.42784718 | I56: 1.083509489 | J56: 1.149054212 | K56: 1.470370044 | L56: 1.832722892 | M56: 0.62749 | N56: 564.741 | O56: 34 | P56: 320 | Q56: 640 | R56: 333 | T56: 100 | U56: 1.24 | V56: 2.03 | AJ56: 50000 | AK56: 50 | AL56: 5 | AM56: 15.93 | AN56: 0.71 | AP56: 494.5458579
A57: HENO Dáctilo Floración | B57: 85 | C57: 0.6267609342 | D57: 0.5315550907 | E57: 88 | F57: 17.248 | G57: 48.36165599 | H57: -22.60508827 | I57: 1.134465219 | J57: 1.249296501 | K57: 1.633810149 | L57: 1.649384319 | M57: 0.537152 | N57: 491.49408 | O57: 27 | P57: 372 | Q57: 684.08 | R57: 404 | T57: 85 | U57: 0.92 | V57: 1.26 | AJ57: 50000 | AK57: 50 | AL57: 5 | AM57: 14.934 | AN57: 0.72 | AP57: 418.5686824
A58: HENO Festuca Floración | B58: 88.2 | C58: 0.7394322088 | D58: 0.6592885094 | E58: 116 | F58: 23.548 | G58: 59.75765181 | H58: -7.64311645 | I58: 1.079354117 | J58: 1.140751809 | K58: 1.457997654 | L58: 1.848275155 | M58: 0.6004725 | N58: 550.6332825 | O58: 27 | P58: 331 | Q58: 637.34 | R58: 354.45 | T58: 83 | U58: 0.92 | V58: 1.26 | AJ58: 50000 | AK58: 50 | AL58: 5 | AM58: 17.258 | AN58: 0.71 | AP58: 474.7304096
A59: HENO raigrás italiano Espigado | B59: 85 | C59: 0.7551388452 | D59: 0.682416558 | E59: 79 | F59: 13.825 | G59: 52.18563094 | H59: -32.77260482 | I59: 1.106265531 | J59: 1.193403103 | K59: 1.540819033 | L59: 1.74892754 | M59: 0.622116 | N59: 566.12556 | O59: 26 | P59: 307 | Q59: 609.98 | R59: 337 | T59: 90 | U59: 1.6 | V59: 1.61 | W59: 2 | Y59: 20 | Z59: 2 | AC59: 4.9 | AG59: 110 | AI59: 26.5 | AJ59: 50000 | AK59: 50 | AL59: 5 | AM59: 14.187 | AN59: 0.75 | AP59: 502.8178696
A60: HENO raigrás italiano Floración | B60: 85 | C60: 0.6767027483 | D60: 0.590716319 | E60: 52 | F60: 10.92 | G60: 45.71239642 | H60: -52.98300282 | I60: 1.155610109 | J60: 1.294411723 | K60: 1.707296002 | L60: 1.578391115 | M60: 0.574748 | N60: 528.76816 | O60: 24 | P60: 344 | Q60: 652.16 | R60: 374 | T60: 80 | U60: 1.6 | V60: 1.26 | AJ60: 50000 | AK60: 50 | AL60: 5 | AM60: 11.946 | AN60: 0.7 | AP60: 466.1057416
A61: HENO raigrás italiano rebrotes de espigado con hojas | B61: 85 | C61: 0.8845575231 | D61: 0.835550182 | E61: 107 | F61: 23.219 | G61: 65.95615613 | H61: -22.33097018 | I61: 1.050313537 | J61: 1.087684312 | K61: 1.37366381 | L61: 1.961746987 | M61: 0.69441 | N61: 629.13546 | O61: 29 | P61: 256 | Q61: 567 | R61: 291 | T61: 94 | U61: 1.6 | V61: 1.89 | W61: 2 | Y61: 20 | Z61: 2 | AJ61: 50000 | AK61: 50 | AL61: 5 | AM61: 16.511 | AN61: 0.69 | AP61: 560.3751069
A62: HENO Avena Floración | B62: 90 | C62: 0.6748031786 | D62: 0.5822746186 | E62: 140 | F62: 33.32 | G62: 65.22813994 | H62: 6.340615698 | I62: 1.074914591 | J62: 1.131741987 | K62: 1.444961085 | L62: 1.864950459 | M62: 0.55566 | N62: 509.54022 | O62: 33 | P62: 320 | Q62: 620 | R62: 390 | S62: 60 | T62: 83 | U62: 2.52 | V62: 0.66 | AJ62: 50000 | AK62: 50 | AL62: 5 | AM62: 19.25 | AN62: 0.66 | AP62: 419.8801711
A63: HENO Avena Inicio espigado | B63: 90 | C63: 0.7865238981 | D63: 0.7057522891 | E63: 175 | F63: 41.65 | G63: 77.97898436 | H63: 25.71188765 | I63: 1.023756676 | J63: 1.039063255 | K63: 1.301625956 | L63: 2.070318916 | M63: 0.60695 | N63: 567.49825 | O63: 26 | P63: 290 | Q63: 580 | R63: 350 | S63: 40 | T63: 65 | U63: 2.52 | V63: 0.66 | AJ63: 50000 | AK63: 50 | AL63: 5 | AM63: 22.155 | AN63: 0.66 | AP63: 471.7400882
A64: HENO Cebada Espigado | B64: 78.5 | C64: 0.5919301713 | D64: 0.4925934379 | E64: 112 | F64: 26.656 | G64: 55.09811221 | H64: -9.266789075 | I64: 1.11967543 | J64: 1.218703295 | K64: 1.584554034 | L64: 1.700655693 | M64: 0.514628 | N64: 464.709084 | O64: 12.5 | P64: 285 | Q64: 584.9 | R64: 422 | T64: 97 | U64: 1.18 | V64: 1.65 | W64: 1.6 | Y64: 14.15 | Z64: 1.75 | AA64: 1.7 | AB64: 0.07 | AC64: 24 | AF64: 101 | AG64: 27 | AH64: 0.16 | AI64: 48 | AM64: 16.926 | AN64: 0.66 | AP64: 379.9275254
A65: HENO Cebada Inicio espigado | B65: 83.7 | C65: 0.7873403043 | D65: 0.7263260237 | E65: 108 | F65: 25.704 | G65: 65.002965 | H65: -20.29450546 | I65: 1.065656642 | J65: 1.11556277 | K65: 1.417509819 | L65: 1.901066789 | M65: 0.653002 | N65: 570.723748 | O65: 12.5 | P65: 285 | Q65: 584.9 | R65: 313 | T65: 126 | U65: 1.18 | V65: 1.65 | W65: 1.6 | Y65: 14.15 | Z65: 1.75 | AA65: 1.7 | AB65: 0.07 | AC65: 24 | AF65: 101 | AG65: 27 | AH65: 0.16 | AI65: 48 | AJ65: 50000 | AK65: 50 | AL65: 5 | AM65: 16.594 | AN65: 0.66 | AP65: 496.5856114
A66: HENO Cebada Lechoso | B66: 90 | C66: 0.7063206172 | D66: 0.6214014901 | E66: 135 | F66: 32.13 | G66: 65.96134992 | H66: 1.60549777 | I66: 1.06938303 | J66: 1.121640879 | K66: 1.428604953 | L66: 1.886302322 | M66: 0.58099 | N66: 526.37694 | O66: 12.5 | P66: 285 | Q66: 610 | R66: 370 | T66: 94 | U66: 1.44 | V66: 1.584 | W66: 1.6 | Y66: 14.15 | Z66: 1.75 | AA66: 1.7 | AB66: 0.07 | AC66: 24 | AF66: 101 | AG66: 27 | AH66: 0.16 | AI66: 48 | AJ66: 50000 | AK66: 50 | AL66: 5 | AM66: 18.835 | AN66: 0.66 | AP66: 439.8400866
A67: HENO Cebada vidrioso | B67: 76.3 | C67: 0.7403468234 | D67: 0.6622083638 | E67: 99 | F67: 23.562 | G67: 60.20475676 | H67: -25.00432611 | I67: 1.093450987 | J67: 1.167979739 | K67: 1.500772141 | L67: 1.795596257 | M67: 0.605886 | N67: 554.38569 | O67: 12.5 | P67: 285 | Q67: 584.9 | R67: 350 | T67: 85 | U67: 1.44 | V67: 1.584 | W67: 1.8 | Y67: 11.8 | Z67: 1.4 | AA67: 1.7 | AB67: 0.07 | AC67: 24 | AF67: 101 | AG67: 27 | AH67: 0.16 | AI67: 48 | AJ67: 50000 | AK67: 50 | AL67: 5 | AM67: 15.847 | AN67: 0.66 | AP67: 479.4760238
A68: PAJA trigo | B68: 88 | C68: 0.5448944996 | D68: 0.4422046337 | E68: 35 | F68: 7.84 | G68: 35.75192835 | H68: -59.96328956 | I68: 1.215855774 | J68: 1.428129804 | K68: 1.940357448 | L68: 1.388806399 | M68: 0.49196 | N68: 452.6032 | O68: 15 | P68: 420 | Q68: 738.8 | R68: 439 | T68: 80 | U68: 0.8 | V68: 0.66 | W68: 1.4 | Y68: 16.5 | Z68: 2.1 | AM68: 10.535 | AN68: 0.68 | AP68: 387.9456129
A69: PAJA Trigo tratada amoniaco | B69: 88 | C69: 0.565316952 | D69: 0.4605385981 | E69: 100 | F69: 22.4 | G69: 49.60791438 | H69: -16.60686793 | I69: 1.141925732 | J69: 1.264114285 | K69: 1.659586355 | L69: 1.623766568 | M69: 0.49287 | N69: 453.4404 | O69: 15 | P69: 420 | Q69: 738.8 | R69: 439 | T69: 80 | U69: 0.8 | V69: 0.7 | AM69: 15.93 | AN69: 0.66 | AP69: 371.8618627
A70: PAJA Maíz rastrojo | B70: 85 | C70: 0.6529503033 | D70: 0.5611555319 | E70: 59 | F70: 14.042 | G70: 47.1604761 | H70: -49.08081739 | I70: 1.157472222 | J70: 1.298062411 | K70: 1.714069322 | L70: 1.572153941 | M70: 0.554526 | N70: 514.600128 | O70: 13 | P70: 344 | Q70: 670 | R70: 390 | S70: 110 | T70: 72 | U70: 2.28 | V70: 0.66 | W70: 1.4 | Y70: 16.5 | Z70: 2.1 | AJ70: 50000 | AK70: 50 | AL70: 5 | AM70: 12.527 | AN70: 0.66 | AP70: 447.1601862
A71: PAJA Avena | B71: 88 | C71: 0.5381272518 | D71: 0.4366356893 | E71: 32 | F71: 7.392 | G71: 35.09975274 | H71: -62.00686823 | I71: 1.219499726 | J71: 1.436733453 | K71: 1.955627715 | L71: 1.377962083 | M71: 0.491918 | N71: 447.64538 | O71: 15 | P71: 420 | Q71: 738.8 | R71: 439 | T71: 90 | U71: 1.4 | V71: 0.66 | AJ71: 50000 | AK71: 50 | AL71: 5 | AM71: 10.286 | AN71: 0.67 | AP71: 383.5447598
A72: PAJA Cebada | B72: 88 | C72: 0.54583885 | D72: 0.4430524613 | E72: 38 | F72: 8.512 | G72: 36.3914354 | H72: -57.86991626 | I72: 1.212233533 | J72: 1.419628584 | K72: 1.925323806 | L72: 1.399650714 | M72: 0.492002 | N72: 452.64184 | O72: 12.5 | P72: 420 | Q72: 738.8 | R72: 439 | T72: 80 | U72: 1.4 | V72: 0.66 | W72: 1.4 | Y72: 16.5 | Z72: 2.1 | AC72: 3.1 | AG72: 17.6 | AI72: 7.3 | AJ72: 50000 | AK72: 50 | AL72: 5 | AM72: 10.784 | AN72: 0.68 | AP72: 387.2032859
A73: PAJA Cebada tratada amoniaco | B73: 88 | C73: 0.565316952 | D73: 0.4605385981 | E73: 100 | F73: 22.4 | G73: 49.60791438 | H73: -16.60686793 | I73: 1.141925732 | J73: 1.264114285 | K73: 1.659586355 | L73: 1.623766568 | M73: 0.49287 | N73: 453.4404 | O73: 12.5 | P73: 420 | Q73: 738.8 | R73: 439 | T73: 80 | U73: 1.4 | V73: 0.66 | AM73: 15.93 | AN73: 0.66 | AP73: 371.8618627
A74: HENO Alfalfa Botones florales | B74: 85 | C74: 0.5712355805 | D74: 0.464442748 | E74: 171 | F74: 35.91 | G74: 61.68676322 | H74: 42.44499475 | I74: 1.073184795 | J74: 1.127610305 | K74: 1.440095705 | L74: 1.871251216 | M74: 0.48796 | N74: 443.06768 | O74: 26 | P74: 372 | Q74: 684.08 | R74: 436 | T74: 92 | U74: 4.2 | V74: 1.75 | AC74: 7.1 | AG74: 29 | AI74: 24.6 | AJ74: 45000 | AK74: 400 | AL74: 10 | AM74: 21.823 | AN74: 0.72 | AP74: 344.9931188
A75: HENO Alfalfa Inicio vegetación | B75: 85 | C75: 0.7631700038 | D75: 0.6873563 | E75: 168.5 | F75: 35.385 | G75: 71.39879666 | H75: 32.37218784 | I75: 1.027253066 | J75: 1.045286018 | K75: 1.31089825 | L75: 2.055675061 | M75: 0.612562 | N75: 548.9168082 | O75: 21.2 | P75: 283.4 | Q75: 483.1 | R75: 326.7 | S75: 69.3 | T75: 103.9 | U75: 3.75 | V75: 1.68 | AB75: 0.1 | AC75: 4.6 | AD75: 0.6 | AG75: 42.9 | AH75: 0.03 | AI75: 21.3 | AJ75: 45000 | AK75: 400 | AL75: 10 | AM75: 21.6155 | AN75: 0.72 | AP75: 460.0530203
A76: HENO Alfalfa Floración | B76: 85 | C76: 0.5304260801 | D76: 0.4188102854 | E76: 160 | F76: 33.6 | G76: 57.35624758 | H76: 35.98633783 | I76: 1.094986479 | J76: 1.168978414 | K76: 1.506087001 | L76: 1.789259742 | M76: 0.4606 | N76: 421.9096 | O76: 24 | P76: 395 | Q76: 710.3 | R76: 460 | T76: 84 | U76: 4.2 | V76: 1.54 | AJ76: 45000 | AK76: 400 | AL76: 10 | AM76: 20.91 | AN76: 0.72 | AP76: 324.6684585
A77: HENO Alfalfa floración (Cataluña) | B77: 89 | C77: 0.7804774848 | D77: 0.7084236384 | E77: 174.5 | F77: 36.645 | G77: 73.40253262 | H77: 36.23664732 | I77: 1.017963166 | J77: 1.029102189 | K77: 1.286335584 | L77: 2.094928316 | M77: 0.623962 | N77: 555.950142 | O77: 19.8 | P77: 271.5 | Q77: 446.6 | R77: 316.7 | S77: 69.1 | T77: 109 | U77: 5.67 | V77: 2.1 | AB77: 0.1 | AC77: 4.6 | AD77: 0.6 | AG77: 42.9 | AH77: 0.03 | AI77: 21.3 | AJ77: 45000 | AK77: 400 | AL77: 10 | AM77: 22.1135 | AN77: 0.72 | AP77: 466.3887716
A78: HENO Alfalfa rebrotes (Cataluña) | B78: 89 | C78: 0.8220547044 | D78: 0.7561386752 | E78: 179.3 | F78: 37.653 | G78: 76.25857889 | H78: 38.09099042 | I78: 1.006503009 | J78: 1.009490389 | K78: 1.256671417 | L78: 2.14437983 | M78: 0.64471 | N78: 577.982515 | O78: 19.8 | P78: 259.6 | Q78: 442.1 | R78: 298.5 | S78: 65.8 | T78: 103.5 | U78: 3.3 | V78: 1.54 | AB78: 0.1 | AC78: 4.6 | AD78: 0.6 | AG78: 42.9 | AH78: 0.03 | AI78: 21.3 | AJ78: 45000 | AK78: 400 | AL78: 10 | AM78: 22.5119 | AN78: 0.72 | AP78: 488.6649455
A79: HENO Alfalfa rebrotes de floración | B79: 85 | C79: 0.5559914214 | D79: 0.4463183361 | E79: 174 | F79: 36.54 | G79: 61.35273255 | H79: 45.33409107 | I79: 1.075441268 | J79: 1.131707149 | K79: 1.446811059 | L79: 1.86256583 | M79: 0.47542 | N79: 434.53388 | O79: 24 | P79: 382 | Q79: 695.48 | R79: 447 | T79: 86 | U79: 3.66 | V79: 1.54 | AB79: 0.1 | AC79: 4.6 | AD79: 0.6 | AG79: 42.9 | AH79: 0.03 | AI79: 21.3 | AJ79: 45000 | AK79: 400 | AL79: 10 | AM79: 22.072 | AN79: 0.72 | AP79: 334.8526972
A80: HENO Alfalfa Sin especificar (primavera) IAMZ | B80: 90 | C80: 0.8022678479 | D80: 0.7359621515 | E80: 171 | F80: 35.91 | G80: 73.93543875 | H80: 32.77416797 | I80: 1.014835798 | J80: 1.023836553 | K80: 1.278138126 | L80: 2.108364335 | M80: 0.64072 | N80: 567.0372 | O80: 25 | P80: 300 | Q80: 394 | R80: 302 | T80: 115 | U80: 4.38 | V80: 3.15 | AJ80: 45000 | AK80: 400 | AL80: 10 | AM80: 21.823 | AN80: 0.72 | AP80: 479.4969685
A81: HENO Alfalfa Sin especificar (verano) IAMZ | B81: 90 | C81: 0.8027529859 | D81: 0.732612327 | E81: 187 | F81: 39.27 | G81: 76.69014372 | H81: 44.68883486 | I81: 1.004731173 | J81: 1.006321977 | K81: 1.25219197 | L81: 2.152050886 | M81: 0.631828 | N81: 566.117888 | O81: 25 | P81: 284 | Q81: 583.76 | R81: 309.8 | T81: 104 | U81: 5.82 | V81: 2.03 | AJ81: 45000 | AK81: 400 | AL81: 10 | AM81: 23.151 | AN81: 0.72 | AP81: 474.0078601
A82: HENO Zulla Final floración | B82: 87.6 | C82: 0.7974276922 | D82: 0.7271766252 | E82: 143 | F82: 30.03 | G82: 68.40600963 | H82: 11.57181812 | I82: 1.041902847 | J82: 1.071676354 | K82: 1.350515054 | L82: 1.995372678 | M82: 0.63274 | N82: 575.16066 | O82: 13.5 | P82: 287 | Q82: 414 | R82: 309 | T82: 91 | U82: 0.36 | V82: 0.21 | AJ82: 45000 | AK82: 400 | AL82: 10 | AM82: 19.499 | AN82: 0.72 | AP82: 493.9941847
A83: HENO Trébol blanco Vegetativo | B83: 90 | C83: 0.7981872668 | D83: 0.7236613654 | E83: 220 | F83: 56.1 | G83: 91.79713043 | H83: 57.22036526 | I83: 0.9822368086 | J83: 0.9683089799 | K83: 1.196312677 | L83: 2.252572334 | M83: 0.6202 | N83: 557.5598 | O83: 27 | P83: 212 | Q83: 360 | R83: 320 | S83: 70 | T83: 101 | U83: 4.05 | V83: 2.17 | W83: 4.3 | X83: 3.2 | Y83: 16.2 | Z83: 1.9 | AA83: 1.7 | AB83: 0.16 | AC83: 11 | AF83: 184 | AG83: 73 | AI83: 17 | AJ83: 45000 | AK83: 400 | AL83: 10 | AM83: 25.89 | AN83: 0.66 | AP83: 446.5874095
A84: HENO Trébol violeta Final floración | B84: 89 | C84: 0.7112930165 | D84: 0.6233057215 | E84: 160 | F84: 40.8 | G84: 73.88731868 | H84: 18.87200844 | I84: 1.049059571 | J84: 1.083978186 | K84: 1.370545909 | L84: 1.966209831 | M84: 0.5746 | N84: 525.759 | O84: 28 | P84: 288 | Q84: 460 | R84: 360 | S84: 80 | T84: 85 | U84: 4.59 | V84: 1.75 | AJ84: 45000 | AK84: 400 | AL84: 10 | AM84: 20.91 | AN84: 0.66 | AP84: 429.1792985
A85: HENO Veza Inicio botones | B85: 91.4 | C85: 0.9721214262 | D85: 0.932227536 | E85: 196 | F85: 49.98 | G85: 94.63849626 | H85: 33.46866561 | I85: 0.9680489979 | J85: 0.9458914147 | K85: 1.16210933 | L85: 2.318870324 | M85: 0.718468 | N85: 653.80588 | O85: 25 | P85: 204 | Q85: 492.56 | R85: 233.8 | T85: 90 | U85: 5.28 | V85: 1.54 | AJ85: 45000 | AK85: 400 | AL85: 10 | AM85: 23.898 | AN85: 0.66 | AP85: 556.6249568
A86: HENO Veza Botones | B86: 92 | C86: 0.7602900998 | D86: 0.6840692248 | E86: 217 | F86: 55.335 | G86: 89.49619547 | H86: 56.93371672 | I86: 0.9884905805 | J86: 0.9786155001 | K86: 1.211628532 | L86: 2.224098202 | M86: 0.6088 | N86: 533.9176 | O86: 25 | P86: 244 | Q86: 470 | R86: 330 | T86: 123 | U86: 5.28 | V86: 1.54 | AJ86: 45000 | AK86: 400 | AL86: 10 | AM86: 25.641 | AN86: 0.66 | AP86: 423.0359288
A87: HENO Veza Inicio floración | B87: 90 | C87: 0.7518572372 | D87: 0.6734733305 | E87: 225 | F87: 57.375 | G87: 90.85954176 | H87: 62.84705998 | I87: 0.9844856593 | J87: 0.9718713426 | K87: 1.201833094 | L87: 2.242225526 | M87: 0.60196 | N87: 527.91892 | O87: 25 | P87: 244 | Q87: 538.16 | R87: 336 | T87: 123 | U87: 5.28 | V87: 1.54 | AJ87: 45000 | AK87: 400 | AL87: 10 | AM87: 26.305 | AN87: 0.66 | AP87: 414.2272603
A88: HENO Veza Final floración | B88: 85 | C88: 0.9139505759 | D88: 0.8625564777 | E88: 197 | F88: 50.235 | G88: 92.18452814 | H88: 36.48201349 | I88: 0.9773405656 | J88: 0.960845548 | K88: 1.184313609 | L88: 2.275394642 | M88: 0.688144 | N88: 623.458464 | O88: 25 | P88: 232 | Q88: 524.48 | R88: 260.4 | T88: 94 | U88: 4.41 | V88: 2.17 | AJ88: 45000 | AK88: 400 | AL88: 10 | AM88: 23.981 | AN88: 0.66 | AP88: 523.89411
A89: HENO Veza Fructificación | B89: 91 | C89: 0.8320963568 | D89: 0.7657742026 | E89: 186 | F89: 47.43 | G89: 85.84481608 | H89: 32.08838466 | I89: 1.000806021 | J89: 0.9997563541 | K89: 1.242213475 | L89: 2.169337956 | M89: 0.64528 | N89: 583.33312 | O89: 20 | P89: 236 | Q89: 453 | R89: 298 | T89: 96 | U89: 4.53 | V89: 1.19 | AJ89: 45000 | AK89: 400 | AL89: 10 | AM89: 23.068 | AN89: 0.66 | AP89: 484.0280298
A90: HENO Veza Pastoso | B90: 90.2 | C90: 0.9492342693 | D90: 0.908971077 | E90: 188 | F90: 47.94 | G90: 91.99944958 | H90: 28.96923571 | I90: 0.9750278921 | J90: 0.9572930027 | K90: 1.178699078 | L90: 2.286233093 | M90: 0.71596 | N90: 640.7842 | O90: 20 | P90: 278 | Q90: 576.92 | R90: 236 | T90: 105 | U90: 4.8 | V90: 2.1 | AJ90: 45000 | AK90: 400 | AL90: 10 | AM90: 23.234 | AN90: 0.66 | AP90: 545.7686271
A91: HENO Veza (> 50%) - Avena corte precoz INRA | B91: 84 | C91: 0.73 | D91: 0.65 | E91: 158 | F91: 42 | G91: 93 | H91: -18.58155175 | I91: 1.020408163 | J91: 1.024501769 | K91: 0.86 | L91: 3.13 | M91: 0.68 | N91: 881 | P91: 333 | Q91: 674 | R91: 378 | T91: 119 | AN91: 0.6 | AP91: 799.8825
A92: HENO Veza (20-50%) - Avena corte precoz INRA | B92: 79 | C92: 0.72 | D92: 0.65 | E92: 104 | F92: 24 | G92: 75 | H92: -50.30615175 | I92: 1.065092359 | J92: 1.108776844 | K92: 1.21 | L92: 2.23 | M92: 0.68 | N92: 897 | P92: 280 | Q92: 595 | R92: 323 | T92: 103 | AN92: 0.63 | AP92: 833.8825
A93: HENO Veza (<20%) - Avena corte precoz INRA | B93: 75 | C93: 0.66 | D93: 129 | E93: 29 | F93: 81 | G93: -31.06451623 | H93: 1.031870043 | I93: 1.053472022 | J93: 1.21 | K93: 2.23 | L93: 0.7 | M93: 870 | O93: 270 | P93: 575 | Q93: 308 | S93: 130 | AM93: 0.64 | AO93: 803.2617
A94: HENO Veza (> 50%) - Avena corte tardío INRA | B94: 65 | C94: 0.55 | D94: 123 | E94: 31 | F94: 81 | G94: -43.47657607 | H94: 1.07880684 | I94: 1.128333036 | J94: 0.89 | K94: 3.02 | L94: 0.61 | M94: 929 | O94: 268 | P94: 584 | Q94: 309 | S94: 71 | AM94: 0.6 | AO94: 854.0553
A95: HENO Veza (20-50%) - Avena corte tardío INRA | B95: 64 | C95: 0.55 | D95: 99 | E95: 23 | F95: 72 | G95: -53.56774055 | H95: 1.090181359 | I95: 1.155366373 | J95: 1.39 | K95: 1.94 | L95: 0.63 | M95: 901 | O95: 333 | P95: 675 | Q95: 385 | S95: 99 | AM95: 0.63 | AO95: 835.4345
A96: HENO Veza (<20%) - Avena corte tardío INRA | B96: 86 | C96: 0.61 | D96: 0.52 | E96: 74 | F96: 17 | G96: 66 | H96: -72.15889383 | I96: 1.124534122 | J96: 1.228533002 | K96: 1.25 | L96: 2.16 | M96: 0.6 | N96: 916 | P96: 324 | Q96: 664 | R96: 377 | T96: 84 | AN96: 0.61 | AP96: 854.3657

Sheet Tabla Concentrados
A1: Concentrados | B1: MS | C1: UFL | D1: UFV | E1: MNT_PB | F1: PDIA | G1: PDI | H1: BPR | I1: UEL | J1: UEB | K1: UEM | L1: NI ref | M1: dMO | N1: MOD_TDN | O1: EE | P1: FB | Q1: NDF | R1: ADF | S1: Lignina | T1: Cenizas | U1: Ca | V1: P | W1: Mg | X1: Cl | Y1: K | Z1: Na | AA1: S | AB1: Co | AC1: Cu | AD1: Mo | AE1: Yodo | AF1: Fe | AG1: Mn | AH1: Se | AI1: Zn | AJ1: Vit A | AK1: Vit D | AL1: Vit E | AM1: AG | AN1: DT_N | AO1: dr | AP1: MOF
A3: Cebada grano | B3: 88.8 | C3: 1.078969989 | D3: 1.067752556 | E3: 112 | F3: 27.59508246 | G3: 89.46220189 | H3: -31.34737412 | I3: 0.2046 | L3: 2 | M3: 0.837328 | N3: 816.3948 | O3: 19 | P3: 54 | Q3: 215 | R3: 65 | S3: 12 | T3: 25 | U3: 0.44 | V3: 2.964 | W3: 1.3 | Y3: 5.55 | Z3: 0.35 | AB3: 0.01 | AC3: 4.1 | AD3: 0.3 | AF3: 90 | AG3: 17.6 | AH3: 0.02 | AI3: 24.4 | AJ3: 1000 | AL3: 25 | AM3: 14.25 | AN3: 0.7349259949 | AO3: 0.9294938772 | AP3: 596.0833771
A4: Maíz grano | B4: 86 | C4: 1.24475541 | D4: 1.26 | E4: 89 | F4: 43 | G4: 94 | H4: -53 | I4: 0.3291 | L4: 2 | M4: 0.882846 | N4: 870.486156 | O4: 43 | P4: 26 | Q4: 125 | R4: 31 | S4: 60 | T4: 14 | U4: 0.275 | V4: 2.175 | W4: 1.4 | Y4: 3.6 | Z4: 0.33 | AB4: 0.02 | AC4: 2.3 | AD4: 0.3 | AF4: 80 | AG4: 10.8 | AH4: 0.02 | AI4: 21.4 | AM4: 36.55 | AN4: 0.4465708975 | AO4: 0.8730044467 | AP4: 780.9036423
A5: Trigo grano | B5: 87 | C5: 1.191513797 | D5: 1.205062577 | E5: 157 | F5: 33.00144942 | G5: 96.50582734 | H5: 5.8944095 | I5: 0.1714 | L5: 2 | M5: 0.87875 | N5: 861.175 | O5: 23 | P5: 29 | Q5: 146 | R5: 38 | S5: 12 | T5: 20 | U5: 0.275 | V5: 2.808 | AB5: 0.02 | AC5: 4.4 | AD5: 0.3 | AG5: 33.7 | AH5: 0.04 | AI5: 32.5 | AL5: 12 | AM5: 17.25 | AN5: 0.7771204339 | AO5: 0.9431116475 | AP5: 740.1774934
A6: Avena | B6: 87.4 | C6: 1.002754804 | D6: 0.9548146189 | E6: 111 | F6: 20.39754399 | G6: 75.33304787 | H6: -14.56672481 | I6: 0.3208 | L6: 2 | M6: 0.72867 | N6: 706.8099 | O6: 67 | P6: 135 | Q6: 336 | R6: 162 | S6: 27 | T6: 30 | U6: 0.55 | V6: 3 | W6: 1.75 | Y6: 4.3 | Z6: 0.5 | AB6: 0.02 | AC6: 3.5 | AD6: 0.7 | AG6: 38.4 | AH6: 0.04 | AI6: 25.2 | AL6: 15 | AM6: 60.3 | AN6: 0.7980031538 | AO6: 0.9097253799 | AP6: 747.5170565
A7: Alforfón grano | B7: 88 | C7: 1.000775785 | D7: 0.9661592102 | E7: 125 | F7: 34.09988724 | G7: 90.96989041 | H7: -20.55937996 | I7: 0.2129 | L7: 2 | M7: 0.74393 | N7: 726.81961 | O7: 28 | P7: 118 | Q7: 301 | R7: 158.9 | S7: 33.4 | T7: 23 | U7: 0.605 | V7: 2.775 | W7: 1.2 | X7: 0.5 | Y7: 5.1 | Z7: 0.6 | AA7: 1.6 | AB7: 0.06 | AC7: 11 | AF7: 50 | AG7: 38 | AI7: 10 | AM7: 21 | AN7: 0.6993867196 | AO7: 0.9074752038 | AP7: 668.2667467
A8: Mijo grano | B8: 88 | C8: 1.009546491 | D8: 0.9776763056 | E8: 131 | F8: 35.90764594 | G8: 91.77812279 | H8: -15.03762007 | I8: 0.2129 | L8: 2 | M8: 0.752754 | N8: 721.138332 | O8: 42 | P8: 106 | Q8: 284.5 | R8: 143.86 | S8: 29.7 | T8: 42 | U8: 0.22 | V8: 2.4 | W8: 1.7 | X8: 0.34 | Y8: 4.66 | Z8: 0.45 | AM8: 37.8 | AN8: 0.6997481148 | AO8: 0.9129140598 | AP8: 460.6219971
A9: Centeno grano | B9: 86.5 | C9: 1.19 | D9: 1.21 | E9: 97 | F9: 20 | G9: 81 | H9: -34.72904868 | I9: 0.2129 | L9: 2 | M9: 0.88214 | N9: 864.4972 | O9: 16.2 | P9: 26 | Q9: 132 | R9: 42 | S9: 14 | T9: 20 | U9: 0.385 | V9: 3 | W9: 1.35 | Y9: 5.25 | Z9: 0.3 | AB9: 0.03 | AC9: 4.5 | AD9: 0.2 | AG9: 55 | AH9: 0.03 | AI9: 30 | AL9: 17 | AM9: 12.15 | AN9: 0.7769651377 | AO9: 0.9244544324 | AP9: 415.4862894
A10: Sorgo grano | B10: 86 | C10: 1.21 | D10: 1.23 | E10: 105 | F10: 47 | G10: 97.13096315 | H10: -48 | I10: 0.2129 | L10: 2 | M10: 0.884686 | N10: 869.646338 | O10: 37 | P10: 25 | Q10: 107 | R10: 49 | S10: 4 | T10: 17 | U10: 0.165 | V10: 2.4 | W10: 1.75 | Y10: 3.6 | Z10: 0.4 | AC10: 10 | AF10: 160 | AG10: 14 | AI10: 14 | AJ10: 14000 | AL10: 12 | AM10: 33.3 | AN10: 0.5226342292 | AO10: 0.9376856804 | AP10: 581.7628756
A11: Triticale grano | B11: 87.1 | C11: 1.191793332 | D11: 1.210362141 | E11: 130 | F11: 38.225488 | G11: 101.2965379 | H11: -26.94851539 | I11: 0.2129 | L11: 2 | M11: 0.87145 | N11: 852.2781 | O11: 17 | P11: 33 | Q11: 148 | R11: 40 | S11: 13 | T11: 22 | U11: 0.275 | V11: 3.45 | AM11: 12.75 | AN11: 0.6853862298 | AO11: 0.9346133045 | AP11: 618.0604347
A12: Trigo salvado trigo duro | B12: 87.7 | C12: 1.017694369 | D12: 0.9779078471 | E12: 167 | F12: 34.63114108 | G12: 88.47767853 | H12: 25.24478524 | I12: 0.3057772 | L12: 2 | M12: 0.731538 | N12: 692.034948 | O12: 58 | P12: 118 | Q12: 481 | R12: 148 | S12: 38 | T12: 54 | U12: 0.935 | V12: 7.8 | AC12: 10 | AF12: 200 | AG12: 90 | AI12: 80 | AJ12: 1000 | AL12: 21 | AM12: 46.4 | AN12: 0.7727450842 | AO12: 0.9125087639 | AP12: 677.3417032
A13: Maíz copos | B13: 89 | C13: 1.285459442 | D13: 1.315633547 | E13: 100 | F13: 41.4985065 | G13: 103.9464693 | H13: -59.77494194 | I13: 0.231567 | L13: 2 | M13: 0.88266 | N13: 868.53744 | O13: 43 | P13: 26 | Q13: 90 | R13: 30 | S13: 10 | T13: 16 | U13: 0.165 | V13: 2.175 | W13: 1.4 | X13: 0.5 | Y13: 3.7 | Z13: 0.3 | AA13: 1.2 | AB13: 0.05 | AC13: 4 | AF13: 30 | AG13: 5 | AH13: 0.08 | AI13: 14 | AJ13: 1000 | AL13: 25 | AM13: 36.55 | AN13: 0.5536620228 | AO13: 0.9297552219 | AP13: 841.6236618
A14: Maíz bagazo | B14: 88.1 | C14: 1.203463873 | D14: 1.20550115 | E14: 151 | F14: 56.28378672 | G14: 116.7748185 | H14: -22.64723712 | I14: 0.2876 | L14: 2 | M14: 0.850092 | N14: 833.940252 | O14: 34 | P14: 68 | Q14: 272 | R14: 78 | S14: 11 | T14: 19 | U14: 0.5 | V14: 3.7 | W14: 1.8 | Y14: 3.5 | Z14: 9.5 | AM14: 25.5 | AN14: 0.6042201418 | AO14: 0.9417869599 | AP14: 567.5727337
A15: Maíz hominyfeed (mezcla salvado, germen y almidón) | B15: 90 | C15: 1.153355136 | D15: 1.157966805 | E15: 114 | F15: 46.52415979 | G15: 107.3745235 | H15: -49.99869329 | I15: 0.2535785 | L15: 2 | M15: 0.837476 | N15: 816.5391 | O15: 19 | P15: 54 | Q15: 215 | R15: 65 | S15: 12 | T15: 25 | U15: 0.275 | V15: 4.275 | W15: 2.6 | X15: 0.6 | Y15: 6.5 | Z15: 0.9 | AA15: 0.3 | AB15: 0.06 | AC15: 15 | AF15: 75 | AG15: 16 | AH15: 0.11 | AI15: 3 | AM15: 16.15 | AN15: 0.5612101445 | AO15: 0.9300731538 | AP15: 380.3273066
A16: Maíz gluten feed | B16: 87.7 | C16: 1.056307439 | D16: 1.029893853 | E16: 216 | F16: 53.8646516 | G16: 111.0030461 | H16: 49.88125855 | I16: 0.3125 | L16: 2 | M16: 0.825072 | N16: 769.792176 | O16: 45 | P16: 88 | Q16: 343 | R16: 100 | S16: 13 | T16: 67 | U16: 1.65 | V16: 5.304 | W16: 3.5 | Y16: 10.25 | Z16: 7 | AJ16: 3000 | AL16: 14 | AM16: 40.5 | AN16: 0.7383081976 | AO16: 0.9529277751 | AP16: 400.0063135
A17: Maíz gluten meal | B17: 89.3 | C17: 1.647747782 | D17: 1.703959302 | E17: 661 | F17: 427.8502116 | G17: 474.6927582 | H17: 117.5185209 | I17: 0.4868 | L17: 2 | M17: 0.943652 | N17: 929.49722 | O17: 35 | P17: 21 | Q17: 107 | R17: 28 | S17: 6 | T17: 15 | U17: 0.11 | V17: 2.72 | AJ17: 14000 | AL17: 26 | AM17: 28 | AN17: 0.3436078323 | AO17: 0.986113493 | AP17: 749.4135605
A18: Maíz carozo | B18: 90 | C18: 0.5231913971 | D18: 0.4115298955 | E18: 44 | F18: 14.39853914 | G18: 59.97738242 | H18: -62.53694262 | I18: 0.4692912 | L18: 2 | M18: 0.455276 | N18: 437.06496 | O18: 5 | P18: 302 | Q18: 822 | R18: 408 | S18: 38 | T18: 40 | U18: 0.66 | V18: 0.525 | AM18: 2 | AN18: 0.6232120323 | AO18: 0.8684978132 | AP18: 521.7862692
A19: Maíz salvado | B19: 88.3 | C19: 1.112973677 | D19: 1.10078662 | E19: 101 | F19: 43.23835933 | G19: 96.34428969 | H19: -50.71801618 | I19: 0.3706 | L19: 2 | M19: 0.707252 | N19: 669.060392 | O19: 40 | P19: 150 | Q19: 557 | R19: 164 | S19: 19 | T19: 54 | U19: 0.165 | V19: 1.875 | AM19: 34 | AN19: 0.5317077588 | AO19: 0.9141782203 | AP19: 556.4050738
A20: Maíz torta de gérmenes a presión | B20: 88.1 | C20: 1.17895975 | D20: 1.171602179 | E20: 146 | F20: 59.1015472 | G20: 113.8847817 | H20: -23.87880397 | I20: 0.2642698 | L20: 2 | M20: 0.801524 | N20: 763.050848 | O20: 82 | P20: 72 | Q20: 285 | R20: 82 | S20: 11 | T20: 48 | U20: 0.33 | V20: 3.525 | W20: 4.5 | Y20: 1.8 | Z20: 8.5 | AM20: 65.6 | AN20: 0.5685588128 | AO20: 0.9382625715 | AP20: 625.9611681
A21: Maíz torta de gérmenes con disolvente | B21: 87.9 | C21: 1.041990023 | D21: 1.023538393 | E21: 135 | F21: 54.17190727 | G21: 111.6965778 | H21: -33.88229766 | I21: 0.2686721 | L21: 2 | M21: 0.79028 | N21: 752.34656 | O21: 17 | P21: 79 | Q21: 310 | R21: 89 | S21: 12 | T21: 48 | U21: 0.495 | V21: 3.75 | W21: 4.5 | Y21: 1.8 | Z21: 8.5 | AJ21: 1000 | AL21: 94 | AM21: 12.75 | AN21: 0.5703343944 | AO21: 0.9339201973 | AP21: 543.5361192
A22: Maíz extrusionado | B22: 90.3 | C22: 1.26592428 | D22: 1.305945141 | E22: 96.35 | F22: 55.42277845 | G22: 120.6512297 | H22: -82.39695502 | I22: 0.21464959 | L22: 2 | M22: 0.9181304 | N22: 904.9093222 | O22: 4.32 | P22: 2.55 | Q22: 12.18 | R22: 3.1 | S22: 0.55 | T22: 14.4 | U22: 0.165 | V22: 2.175 | W22: 1.4 | X22: 0.5 | Y22: 3.7 | Z22: 0.3 | AA22: 1.2 | AB22: 0.05 | AC22: 4 | AF22: 30 | AG22: 5 | AH22: 0.08 | AI22: 14 | AJ22: 1000 | AL22: 25 | AM22: 3.672 | AN22: 0.3880056001 | AO22: 0.9399161825 | AP22: 296.3737151
A23: Alforfón segundas | B23: 89 | C23: 1.185521315 | D23: 1.168586189 | E23: 335 | F23: 98.39838218 | G23: 150.650279 | H23: 125.2564113 | I23: 0.2129 | L23: 2 | M23: 0.79562 | N23: 751.8609 | O23: 82 | P23: 83 | Q23: 251.39 | R23: 114.99 | S23: 22.61 | T23: 55 | U23: 0.275 | V23: 2.925 | AM23: 65.6 | AN23: 0.6946621902 | AO23: 0.9619722962 | AP23: 273.3737151
A24: Cebada bagazo cervecería fresco | B24: 20.5 | C24: 0.8640921799 | D24: 0.7703702942 | E24: 300 | F24: 129.9487159 | G24: 172.9796551 | H24: 53.5641575 | I24: 0.4951 | L24: 2 | M24: 0.6385 | N24: 606.575 | O24: 86 | P24: 150 | Q24: 525 | R24: 206 | S24: 47 | T24: 50 | U24: 1.815 | V24: 4.446 | W24: 1.6 | Y24: 0.7 | Z24: 1.6 | AB24: 0.08 | AC24: 22.2 | AD24: 0.5 | AG24: 38.5 | AH24: 0.06 | AI24: 85 | AL24: 29 | AM24: 38.7 | AN24: 0.5325076887 | AO24: 0.9265657975 | AP24: 565.2052521
A25: Cebada bagazo cervecería seco | B25: 91.9 | C25: 0.871193565 | D25: 0.7805426295 | E25: 262.4 | F25: 107.6156328 | G25: 151.6383987 | H25: 35.09442835 | I25: 0.4951 | L25: 2 | M25: 0.62732 | N25: 601.348952 | O25: 79.9 | P25: 161.6 | Q25: 643.3 | R25: 236.4 | S25: 78.9 | T25: 41.4 | U25: 1.265 | V25: 4.914 | AB25: 0.08 | AC25: 22.2 | AD25: 0.5 | AG25: 38.5 | AH25: 0.06 | AI25: 85 | AL25: 29 | AM25: 35.955 | AN25: 0.5371850665 | AO25: 0.886143731 | AP25: 529.6572154
A26: Cebada malta, grano germinado y secado | B26: 89.6 | C26: 0.8231856487 | D26: 0.7581965961 | E26: 255 | F26: 66.35502136 | G26: 127.2527654 | H26: 71.69727487 | I26: 0.2959 | L26: 2 | M26: 0.89925 | N26: 840.79875 | O26: 23 | P26: 10 | Q26: 94 | R26: 10 | S26: 6 | T26: 65 | U26: 1.485 | V26: 5.625 | AL26: 16 | AM26: 10.35 | AN26: 0.7318227862 | AO26: 0.9703127509 | AP26: 363.3900279
A27: Cebada salvado | B27: 89 | C27: 0.7604950037 | D27: 0.683000715 | E27: 118 | F27: 25.13276462 | G27: 75.56717545 | H27: -8.043766921 | I27: 0.3630071 | L27: 2 | M27: 0.620602 | N27: 581.504074 | O27: 32 | P27: 187 | Q27: 539 | R27: 239 | S27: 28 | T27: 63 | U27: 0.44 | V27: 2.925 | AB27: 0.03 | AC27: 11.7 | AD27: 0.6 | AG27: 123 | AH27: 0.05 | AI27: 59 | AM27: 25.6 | AN27: 0.7651033494 | AO27: 0.9067371975 | AP27: 563.5193635
A28: Cacao torta | B28: 86.6 | C28: 0.9215256292 | D28: 0.8794694618 | E28: 232 | F28: 88.67087909 | G28: 140.270913 | H28: 25.81494705 | I28: 0.34659281 | L28: 2 | M28: 0.745465 | N28: 673.154895 | O28: 20 | P28: 161 | Q28: 363.86 | R28: 212.9 | S28: 47.29 | T28: 97 | U28: 1.43 | V28: 0.884 | AM28: 15 | AN28: 0.5829749087 | AO28: 0.9164965682 | AP28: 268.232459
A29: Cacahuete, torta 48 | B29: 88.6 | C29: 1.194433583 | D29: 1.186516039 | E29: 524 | F29: 143.3022223 | G29: 198.101494 | H29: 261.736138 | I29: 0.2876 | L29: 2 | M29: 0.84376 | N29: 789.75936 | O29: 16 | P29: 77 | Q29: 150 | R29: 101 | S29: 26 | T29: 64 | U29: 0.99 | V29: 4.29 | W29: 3 | AB29: 0.3 | AC29: 14.5 | AD29: 1.7 | AF29: 450 | AG29: 47.5 | AH29: 0.11 | AI29: 61.5 | AM29: 12 | AN29: 0.7179423819 | AO29: 0.969580348 | AP29: 807.1947924
A30: Coco torta | B30: 90 | C30: 0.9709595673 | D30: 0.9339995141 | E30: 239 | F30: 87.26903545 | G30: 138.2098434 | H30: 30.48498753 | I30: 0.2876 | L30: 2 | M30: 0.71604 | N30: 660.18888 | O30: 18 | P30: 178 | Q30: 580 | R30: 316 | S30: 78 | T30: 78 | U30: 1.1 | V30: 4.488 | W30: 4 | Z30: 0.6 | AC30: 20 | AF30: 500 | AG30: 60 | AI30: 70 | AM30: 16.2 | AN30: 0.5872269422 | AO30: 0.8846081419 | AP30: 201.6193367
A31: Colza, grano | B31: 89.9 | C31: 1.96875359 | D31: 2.026164505 | E31: 217 | F31: 41.88482236 | G31: 81.98060891 | H31: 90.24033351 | I31: 0.2959 | L31: 2 | M31: 0.84608 | N31: 798.69952 | O31: 457 | P31: 68 | Q31: 199 | R31: 116 | S31: 41 | T31: 56 | U31: 1.815 | V31: 3.763 | AM31: 388.45 | AN31: 0.7911253228 | AO31: 0.924083365 | AP31: 581.9454468
A32: Colza, grano semidescascarillado | B32: 90 | C32: 2.006824385 | D32: 2.066056386 | E32: 217 | F32: 41.88482236 | G32: 80.92224091 | H32: 91.89403351 | I32: 0.2959 | L32: 2 | M32: 0.84608 | N32: 798.69952 | O32: 480 | P32: 68 | Q32: 115 | R32: 84 | S32: 41 | T32: 56 | U32: 1.815 | V32: 3.763 | AM32: 379.2 | AN32: 0.7911253228 | AO32: 0.924083365 | AP32: 817.1113866
A33: Colza, turtó | B33: 90 | C33: 0.958005025 | D33: 0.9098593603 | E33: 418 | F33: 103.9119909 | G33: 155.8627084 | H33: 193.047004 | I33: 0.3125 | L33: 2 | M33: 0.7842 | N33: 704.9958 | O33: 26 | P33: 120 | Q33: 287 | R33: 182 | S33: 74 | T33: 101 | U33: 4.62 | V33: 8.804 | W33: 5.15 | Y33: 12.4 | Z33: 0.75 | AB33: 0.1 | AC33: 5.5 | AD33: 0.5 | AF33: 300 | AG33: 63.5 | AH33: 0.07 | AI33: 64.5 | AL33: 20 | AM33: 20.8 | AN33: 0.7277738088 | AO33: 0.9131864885 | AP33: 325.121416
A34: Colza, turtó tanne, curtido | B34: 89 | C34: 1.240309081 | D34: 1.253284486 | E34: 391 | F34: 143.4249536 | G34: 193.4731611 | H34: 118.7396757 | I34: 0.3374 | L34: 2 | M34: 0.77349 | N34: 713.93127 | O34: 26 | P34: 129 | Q34: 302 | R34: 193 | S34: 79 | T34: 77 | U34: 4.62 | V34: 8.804 | Y34: 12.4 | Z34: 0.75 | AB34: 0.1 | AC34: 5.5 | AD34: 0.5 | AF34: 300 | AG34: 63.5 | AH34: 0.07 | AI34: 64.5 | AM34: 17.94 | AN34: 0.5952070214 | AO34: 0.9061810788 | AP34: 550.0468057
A35: Algodón, grano | B35: 92 | C35: 1.105745464 | D35: 1.027155353 | E35: 220 | F35: 48.76444907 | G35: 91.65479282 | H35: 70.58383788 | I35: 0.5034 | L35: 2 | M35: 0.64652 | N35: 618.71964 | O35: 198 | P35: 276 | Q35: 456 | R35: 354 | S35: 105 | T35: 43 | U35: 1.155 | V35: 4.736 | AM35: 188.1 | AN35: 0.7394108541 | AO35: 0.8505979247 | AP35: 581.8575174
A36: Algodón torta sin aceite | B36: 89 | C36: 1.150192028 | D36: 1.125943813 | E36: 466 | F36: 160.9221094 | G36: 212.6445717 | H36: 184.5836527 | I36: 0.2994882 | L36: 2 | M36: 0.802196 | N36: 750.855456 | O36: 20 | P36: 127 | Q36: 232 | R36: 138 | S36: 32 | T36: 64 | U36: 2.585 | V36: 5.922 | W36: 5.2 | Y36: 15.2 | Z36: 0.4 | AM36: 15 | AN36: 0.6409096727 | AO36: 0.9616700558 | AP36: 814.2065213
A37: Algodón cáscara | B37: 91 | C37: 0.3662081422 | D37: 0.2380788633 | E37: 81 | F37: 16.10308659 | G37: 54.6536023 | H37: -25.8351808 | I37: 0.65129486 | L37: 2 | M37: 0.323182 | N37: 309.608356 | O37: 19 | P37: 547 | Q37: 900 | R37: 697.4 | S37: 184.6 | T37: 42 | U37: 0.77 | V37: 0.693 | AM37: 14.25 | AN37: 0.7237543586 | AO37: 0.7196621715 | AP37: 816.2571164
A38: Habón grano | B38: 86.9 | C38: 1.286607118 | D38: 1.320957789 | E38: 302 | F38: 51.43027974 | G38: 115.0698849 | H38: 130.983117 | I38: 0.1714 | L38: 2 | M38: 0.9143 | N38: 876.8137 | O38: 16 | P38: 90 | Q38: 171 | R38: 108 | S38: 24.7 | T38: 41 | U38: 0.715 | V38: 3.264 | W38: 1.6 | X38: 0.8 | Y38: 12 | Z38: 0.25 | AB38: 0.4 | AC38: 13.8 | AD38: 1 | AF38: 100 | AG38: 12.7 | AH38: 0.02 | AI38: 43.7 | AM38: 12.8 | AN38: 0.8224539482 | AO38: 0.9591817888 | AP38: 509.2308572
A39: Girasol, grano | B39: 93 | C39: 1.708471184 | D39: 1.695156001 | E39: 174 | F39: 24.64749869 | G39: 60.41910651 | H39: 72.58686279 | I39: 0.2627 | L39: 2 | M39: 0.74312 | N39: 714.13832 | O39: 485 | P39: 164 | Q39: 294 | R39: 200 | S39: 56 | T39: 39 | U39: 0.99 | V39: 3.12 | AM39: 460.75 | AN39: 0.8418449238 | AO39: 0.8956544094 | AP39: 566.2107452
A40: Girasol torta descascarillado | B40: 91 | C40: 0.9910764189 | D40: 0.9439708695 | E40: 417 | F40: 80.25381508 | G40: 133.123438 | H40: 220.1112143 | I40: 0.3208 | L40: 2 | M40: 0.745917 | N40: 691.465059 | O40: 22 | P40: 176 | Q40: 299 | R40: 220 | S40: 70 | T40: 73 | U40: 2.09 | V40: 6.435 | W40: 5.5 | X40: 1.2 | Y40: 12 | Z40: 0.33 | AM40: 16.5 | AN40: 0.790120834 | AO40: 0.9169809263 | AP40: 601.9494415
A41: Lenteja grano | B41: 88 | C41: 1.292742572 | D41: 1.330655343 | E41: 281 | F41: 49.08181296 | G41: 113.199967 | H41: 113.2253843 | I41: 0.1714 | L41: 2 | M41: 0.91963 | N41: 886.52332 | O41: 19.3 | P41: 49 | Q41: 160 | R41: 72 | S41: 3 | T41: 36 | U41: 0.605 | V41: 3.06 | AM41: 14.475 | AN41: 0.8216657174 | AO41: 0.9794436099 | AP41: 617.4800936
A42: Lino, grano | B42: 90.3 | C42: 1.657583747 | D42: 1.660671498 | E42: 253 | F42: 51.01194867 | G42: 92.3191443 | H42: 111.0075068 | I42: 0.3208 | L42: 2 | M42: 0.780518 | N42: 743.3653432 | O42: 362 | P42: 101.9 | Q42: 244.7 | R42: 148.4 | S42: 62 | T42: 47.6 | U42: 2.314507198 | V42: 4.526024363 | W42: 3.986710963 | X42: 0.6644518272 | Y42: 7.973421927 | Z42: 0.7751937984 | AA42: 2.990033223 | AC42: 13.28903654 | AD42: 0.2214839424 | AF42: 163.8981174 | AG42: 32.11517165 | AI42: 49.83388704 | AM42: 343.9 | AN42: 0.7776919873 | AO42: 0.9069770052 | AP42: 614.3463707
A43: Linaza torta sin aceite | B43: 89 | C43: 1.151871054 | D43: 1.134141167 | E43: 377 | F43: 129.4671117 | G43: 180.6322598 | H43: 120.744456 | I43: 0.3064061 | L43: 2 | M43: 0.803904 | N43: 752.454144 | O43: 58 | P43: 118 | Q43: 236 | R43: 149 | S43: 88 | T43: 64 | U43: 2.585 | V43: 6.298 | W43: 6.1 | Y43: 14 | Z43: 1.3 | AB43: 0.6 | AC43: 21 | AD43: 0.6 | AF43: 250 | AG43: 59 | AH43: 0.5 | AI43: 73 | AL43: 9 | AM43: 43.5 | AN43: 0.6169566624 | AO43: 0.8965410847 | AP43: 595.3582566
A44: Palmito torta (palmiste) | B44: 90 | C44: 0.8319475036 | D44: 0.7632996493 | E44: 206 | F44: 83.76805509 | G44: 136.5208369 | H44: -3.926221648 | I44: 0.4287 | L44: 2 | M44: 0.73056 | N44: 699.14592 | O44: 19 | P44: 167 | Q44: 632 | R44: 241 | S44: 103 | T44: 43 | U44: 1.705 | V44: 4.556 | AM44: 17.1 | AN44: 0.5228718322 | AO44: 0.8522679473 | AP44: 614.3463707
A45: Judía grano | B45: 88 | C45: 1.269417567 | D45: 1.306008103 | E45: 257 | F45: 44.57202968 | G45: 108.5638422 | H45: 93.98279293 | I45: 0.1714 | L45: 2 | M45: 0.91937 | N45: 878.91772 | O45: 19 | P45: 51 | Q45: 162 | R45: 74 | S45: 3 | T45: 44 | U45: 0.715 | V45: 3.468 | W45: 1.6 | Y45: 14 | Z45: 0.4 | AM45: 15.2 | AN45: 0.8221354136 | AO45: 0.9750789946 | AP45: 689.6784425
A46: Guisante grano | B46: 85.7 | C46: 1.262578618 | D46: 1.297789954 | E46: 259 | F46: 44.91173193 | G46: 108.9957771 | H46: 95.45867945 | I46: 0.1714 | L46: 2 | M46: 0.91768 | N46: 877.30208 | O46: 15 | P46: 64 | Q46: 162 | R46: 74 | S46: 3 | T46: 44 | U46: 0.495 | V46: 3.128 | W46: 1.45 | Y46: 11 | Z46: 0.3 | AB46: 0.07 | AC46: 7.2 | AD46: 1.1 | AG46: 8 | AH46: 0.2 | AI46: 37 | AM46: 12 | AN46: 0.8222202176 | AO46: 0.9753885851 | AP46: 696.3958697
A47: Soja, grano extrusionado | B47: 88 | C47: 1.485485602 | D47: 1.497390722 | E47: 402 | F47: 188.4323551 | G47: 238.0406285 | H47: 109.2870728 | I47: 0.3208 | L47: 2 | M47: 0.97179 | N47: 912.51081 | O47: 213 | P47: 74 | Q47: 146 | R47: 92 | S47: 7 | T47: 61 | U47: 1.54 | V47: 4.48 | AM47: 202.35 | AN47: 0.526666784 | AO47: 0.9902901084 | AP47: 704.0018085
A48: Soja, grano tostado | B48: 88.6 | C48: 1.490185728 | D48: 1.502445871 | E48: 397.3 | F48: 133.307895 | G48: 185.6891829 | H48: 158.2262376 | I48: 0.2959 | L48: 2 | M48: 0.975779 | N48: 918.5007727 | O48: 216.7 | P48: 63.2 | Q48: 132 | R48: 77.78 | S48: 13.5 | T48: 58.7 | U48: 1.986455982 | V48: 4.187358916 | W48: 2.595936795 | X48: 0.5643340858 | Y48: 20.76749436 | Z48: 0.9029345372 | AA48: 3.16027088 | AC48: 38.37471783 | AD48: 4.514672686 | AF48: 161.3995485 | AG48: 31.6027088 | AH48: 0.316027088 | AI48: 45.14672686 | AM48: 205.865 | AN48: 0.6587213001 | AO48: 0.9831688769 | AP48: 771.7510797
A49: Soja torta 44 | B49: 87.2 | C49: 1.165625863 | D49: 1.159793832 | E49: 488 | F49: 153.419998 | G49: 207.0695265 | H49: 219.1726116 | I49: 0.2781056 | L49: 2 | M49: 0.849655 | N49: 779.133635 | O49: 22 | P49: 84 | Q49: 163 | R49: 104 | S49: 8 | T49: 83 | U49: 1.87 | V49: 4.9 | W49: 2.7 | Y49: 20 | Z49: 1.95 | AB49: 0.3 | AC49: 17.1 | AD49: 2.3 | AF49: 200 | AG49: 43.7 | AH49: 0.2 | AI49: 54.6 | AL49: 7 | AM49: 16.5 | AN49: 0.6819996035 | AO49: 0.9886316028 | AP49: 737.9075552
A50: Soja torta 46 | B50: 87.2 | C50: 1.204239972 | D50: 1.205333606 | E50: 505 | F50: 160.0692099 | G50: 214.4558798 | H50: 229.0708283 | I50: 0.2686721 | L50: 2 | M50: 0.863895 | N50: 799.102875 | O50: 20 | P50: 72 | Q50: 143 | R50: 89 | S50: 7 | T50: 75 | U50: 1.87 | V50: 5.18 | W50: 2.7 | Y50: 20 | Z50: 1.95 | AB50: 0.3 | AC50: 17.1 | AD50: 2.3 | AF50: 200 | AG50: 43.7 | AH50: 0.2 | AI50: 54.6 | AM50: 15 | AN50: 0.6799548883 | AO50: 0.99038767 | AP50: 751.5420857
A51: Soja torta 48 | B51: 88.3 | C51: 1.223810674 | D51: 1.22687166 | E51: 520 | F51: 165.0816182 | G51: 219.3151576 | H51: 239.0600948 | I51: 0.2674143 | L51: 2 | M51: 0.867341 | N51: 804.025107 | O51: 23 | P51: 70 | Q51: 140 | R51: 87 | S51: 7 | T51: 73 | U51: 1.87 | V51: 5.46 | W51: 2.7 | Y51: 19.7 | Z51: 1.95 | AB51: 0.3 | AC51: 17.1 | AD51: 2.3 | AF51: 200 | AG51: 43.7 | AH51: 0.2 | AI51: 54.6 | AM51: 17.25 | AN51: 0.6794639687 | AO51: 0.9904179858 | AP51: 186.2528251
A52: Soja torta 50 | B52: 87.8 | C52: 1.225744301 | D52: 1.225565004 | E52: 544 | F52: 172.4045434 | G52: 225.7154558 | H52: 256.1016993 | I52: 0.2498051 | L52: 2 | M52: 0.862027 | N52: 797.374975 | O52: 28 | P52: 77 | Q52: 102 | R52: 59 | S52: 6 | T52: 75 | U52: 1.65 | V52: 5.46 | W52: 2.7 | Y52: 19.7 | Z52: 1.95 | AB52: 0.3 | AC52: 17.1 | AD52: 2.3 | AF52: 200 | AG52: 43.7 | AH52: 0.2 | AI52: 54.6 | AM52: 21 | AN52: 0.6801163265 | AO52: 0.9907355167 | AP52: 299.4175209
A53: Soja torta 48 curtido "Tanne" | B53: 88.8 | C53: 1.223810674 | D53: 1.22687166 | E53: 520 | F53: 165.0816182 | G53: 219.3151576 | H53: 239.0600948 | I53: 0.2674143 | L53: 2 | M53: 0.867341 | N53: 804.025107 | O53: 23 | P53: 70 | Q53: 140 | R53: 87 | S53: 7 | T53: 73 | U53: 1.87 | V53: 5.46 | AB53: 0.3 | AC53: 17.1 | AD53: 2.3 | AF53: 200 | AG53: 43.7 | AH53: 0.2 | AI53: 54.6 | AM53: 15.18 | AN53: 0.6794639687 | AO53: 0.9904179858 | AP53: 152.5275173
A54: Altramuz grano | B54: 86.7 | C54: 1.49857485 | D54: 1.544346092 | E54: 399 | F54: 69.09881582 | G54: 127.2670334 | H54: 218.10216 | I54: 0.1714 | L54: 2 | M54: 0.90507 | N54: 864.34185 | O54: 104 | P54: 161 | Q54: 229 | R54: 172 | S54: 17 | T54: 45 | U54: 1.1 | V54: 3.128 | W54: 2.5 | Y54: 9.5 | Z54: 0.55 | AM54: 93.6 | AN54: 0.822898728 | AO54: 0.9778585299 | AP54: 864.527247
A55: Altramuz extrusionado | B55: 88 | C55: 1.52751288 | D55: 1.578192665 | E55: 406 | F55: 69.23209069 | G55: 127.7145253 | H55: 223.2811959 | I55: 0.1714 | L55: 2 | M55: 0.91027 | N55: 877.50028 | O55: 109 | P55: 121 | Q55: 214 | R55: 175 | S55: 34.4 | T55: 36 | U55: 1.1 | V55: 3.06 | W55: 1.7 | X55: 0.23 | Y55: 10 | Z55: 0.11 | AM55: 83.93 | AN55: 0.8224029302 | AO55: 0.9601644388 | AP55: 769.7935828
A56: Pulpas (cítricos) ensitjades | B56: 21 | C56: 1.224764853 | D56: 1.238763409 | E56: 73 | F56: 20.57651646 | G56: 79.53725613 | H56: -58.87615574 | I56: 0.2212 | L56: 2 | M56: 0.87228 | N56: 824.3046 | O56: 97 | P56: 156 | Q56: 356.65 | R56: 206.62 | S56: 44.65 | T56: 55 | U56: 11.22 | V56: 1.35 | W56: 1.6 | Y56: 6.2 | Z56: 0.9 | AA56: 0.2 | AB56: 0.16 | AC56: 6 | AF56: 160 | AG56: 7 | AI56: 16 | AM56: 58.2 | AN56: 0.6807836781 | AO56: 0.883006504 | AP56: 785.4935134
A57: Pulpas (cítricos) | B57: 90 | C57: 1.09457765 | D57: 1.103551588 | E57: 70 | F57: 20.49453097 | G57: 82.57976854 | H57: -65.70818372 | I57: 0.2212 | L57: 2 | M57: 0.87931 | N57: 822.15485 | O57: 28 | P57: 137 | Q57: 223 | R57: 158 | S57: 14 | T57: 65 | U57: 4.6 | V57: 1.17 | AM57: 16.8 | AN57: 0.6799461392 | AO57: 0.9147804468 | AP57: 367.9099184
A58: Algarrobo (algarroba) | B58: 87 | C58: 0.843494905 | D58: 0.8273952756 | E58: 58 | F58: 20.57803675 | G58: 81.08159627 | H58: -76.25681175 | I58: 0.288174289 | L58: 2 | M58: 0.8014563863 | N58: 771.8025 | O58: 11 | P58: 87 | Q58: 257.16 | R58: 120.01 | S58: 23.83 | T58: 37 | U58: 0.825 | V58: 0.408 | AM58: 9.9 | AN58: 0.6052595731 | AO58: 0.8988026382 | AP58: 645.9087874
A59: Algarrobo pulpa deshidratada sin semilla, IAMZ | B59: 86 | C59: 0.8175571336 | D59: 0.8010099087 | E59: 56 | F59: 19.88740459 | G59: 81.02326077 | H59: -78.36477527 | I59: 0.286199543 | L59: 2 | M59: 0.8034925234 | N59: 773.7633 | O59: 0.1 | P59: 84.5 | Q59: 253.55 | R59: 116.87 | S59: 23.07 | T59: 37 | U59: 0.825 | V59: 0.408 | AM59: 0.08 | AN59: 0.6049783161 | AO59: 0.8990195713 | AP59: 332.8963114
A60: Oliva molienda "orujo" | B60: 89 | C60: 0.3555684594 | D60: 0.2315284959 | E60: 111 | F60: 37.77367179 | G60: 72.19608588 | H60: -21.36502202 | I60: 0.5864 | L60: 2 | M60: 0.33429 | N60: 306.87822 | O60: 74 | P60: 339 | Q60: 620.51 | R60: 456.32 | S60: 108.36 | T60: 82 | U60: 7.7 | V60: 2.312 | AM60: 54.76 | AN60: 0.5799513971 | AO60: 0.8101523183 | AP60: 255.9763332
A61: Oliva pulpa sin extracción, IAMZ | B61: 68.5 | C61: 0.5285256608 | D61: 0.4118821932 | E61: 114 | F61: 44.70328847 | G61: 84.48223093 | H61: -28.4745976 | I61: 0.5864 | L61: 2 | M61: 0.458 | N61: 425.024 | O61: 74 | P61: 200 | Q61: 341 | R61: 295 | S61: 60.21 | T61: 72 | U61: 6.545 | V61: 1.088 | AM61: 54.76 | AN61: 0.5473115864 | AO61: 0.8662340312 | AP61: 172.2609194
A62: Oliva pulpa de extracción ( "orujo"), IAMZ | B62: 87.6 | C62: 0.2835820822 | D62: 0.1630785602 | E62: 66 | F62: 20.21048157 | G62: 53.34965943 | H62: -38.25996541 | I62: 0.5864 | L62: 2 | M62: 0.26932 | N62: 252.89148 | O62: 74 | P62: 412 | Q62: 725.77 | R62: 527.95 | S62: 134.64 | T62: 61 | U62: 3.08 | V62: 0.612 | AM62: 54.76 | AN62: 0.6005460193 | AO62: 0.7665949833 | AP62: 731.0116457
A63: Patata-ITEB | B63: 13 | C63: 1.224039877 | D63: 1.270348111 | E63: 100 | F63: 34.23948908 | G63: 100.5831692 | H63: -56.86200025 | I63: 0.1216 | L63: 2 | M63: 0.9445 | N63: 901.9975 | O63: 0.8 | P63: 30 | Q63: 174.97 | R63: 48.46 | S63: 7.28 | T63: 45 | U63: 0.55 | V63: 1.36 | W63: 1 | X63: 22 | AM63: 0.64 | AN63: 0.6332974699 | AO63: 0.9337129217 | AP63: 746.3181739
A64: Patata pulpa-ITEB | B64: 17 | C64: 1.047562058 | D64: 1.040325904 | E64: 50 | F64: 15.36772122 | G64: 77.36979178 | H64: -80.57823525 | I64: 0.1216 | L64: 2 | M64: 0.8101 | N64: 789.8475 | O64: 2.5 | P64: 150 | Q64: 348 | R64: 199.09 | S64: 43.7 | T64: 25 | U64: 2.75 | V64: 0.34 | W64: 0.8 | X64: 6 | AM64: 2 | AN64: 0.6489216562 | AO64: 0.8754582267 | AP64: 866.032
A65: Manzana desechos | B65: 22 | C65: 1.10018865 | D65: 1.102760433 | E65: 23 | F65: 8.795543217 | G65: 71.56469958 | H65: -100.0868068 | I65: 0.4868 | L65: 2 | M65: 0.82908 | N65: 813.32748 | O65: 18 | P65: 68 | Q65: 229.76 | R65: 96.16 | S65: 18 | T65: 19 | U65: 0.33 | V65: 0.408 | AM65: 16.2 | AN65: 0.5724362337 | AO65: 0.8944044201 | AP65: 695.25
A66: Manzana molienda ( "marco") deshidratada | B66: 94.1 | C66: 0.5535459391 | D66: 0.4298652377 | E66: 79 | F66: 22.41772409 | G66: 65.61179369 | H66: -39.82073375 | I66: 0.4868 | L66: 2 | M66: 0.44368 | N66: 435.25008 | O66: 39 | P66: 478 | Q66: 354 | R66: 610.79 | S66: 121 | T66: 19 | U66: 1.045 | V66: 1.088 | AM66: 35.1 | AN66: 0.6412637776 | AO66: 0.7910231575 | AP66: 0
A67: Manzana residuo deshidratado, NRC | B67: 89 | C67: 1.017592193 | D67: 0.9832011689 | E67: 49 | F67: 17.45620144 | G67: 73.71511167 | H67: -76.13454724 | I67: 0.4868 | L67: 2 | M67: 0.7332 | N67: 717.0696 | O67: 51 | P67: 170 | Q67: 376.83 | R67: 260 | S67: 50.24 | T67: 22 | U67: 0.715 | V67: 0.748 | W67: 0.7 | Y67: 4.6 | Z67: 1.2 | AA67: 0.2 | AC67: 10 | AF67: 300 | AG67: 7 | AM67: 45.9 | AN67: 0.5885548453 | AO67: 0.8658481085 | AP67: 628.0150685
A68: Uva vinaza sin pepitas | B68: 67 | C68: 0.6608050597 | D68: 0.5617156148 | E68: 172 | F68: 20.01576435 | G68: 59.87298187 | H68: -4.236902376 | I68: 0.5864 | L68: 2 | M68: 0.54433 | N68: 483.36504 | O68: 97 | P68: 103 | Q68: 777 | R68: 685 | S68: 536 | T68: 112 | U68: 3.3 | V68: 1.7 | AM68: 72.75 | AN68: 0.6891352988 | AO68: 0.3743452458 | AP68: 0
A69: Uva pulpa | B69: 90 | C69: 0.3048901197 | D69: 0.1865548158 | E69: 120 | F69: 11.60850895 | G69: 48.20840292 | H69: -20.98733433 | I69: 0.5864 | L69: 2 | M69: 0.30492 | N69: 292.41828 | O69: 7 | P69: 372 | Q69: 754 | R69: 653 | S69: 499 | T69: 41 | U69: 4.4 | V69: 2.72 | AM69: 5.25 | AN69: 0.754650443 | AO69: 0.3942846922 | AP69: 477.3495771
A70: Uva torta de huesos | B70: 89 | C70: 0.1623041941 | D70: 0.0678723051 | E70: 112 | F70: -1.654010677 | G70: 29.6262119 | H70: -16.03534777 | I70: 0.5864 | L70: 2 | M70: 0.18833 | N70: 181.17346 | O70: 16 | P70: 503 | Q70: 847 | R70: 751 | S70: 644 | T70: 38 | U70: 3.63 | V70: 0.884 | AM70: 12 | AN70: 1.063280888 | AO70: 0.2333714493 | AP70: 842.2541643
A71: Remolacha pulpas ensitjades | B71: 22 | C71: 1.00766597 | D71: 1.00149028 | E71: 98 | F71: 33.63126047 | G71: 93.73194347 | H71: -53.22731718 | I71: 0.2876 | L71: 2 | M71: 0.85378 | N71: 778.64736 | O71: 9 | P71: 206 | Q71: 428.74 | R71: 269.38 | S71: 62.22 | T71: 88 | U71: 2.6 | V71: 0.68 | AB71: 0.1 | AC71: 4.6 | AD71: 0.3 | AG71: 52.4 | AH71: 0.03 | AI71: 9.6 | AM71: 4.5 | AN71: 0.6057580172 | AO71: 0.8704707824 | AP71: 468.1746973
A72: Remolacha pulpas deshidratadas | B72: 90 | C72: 1.025471629 | D72: 1.019108024 | E72: 98 | F72: 34.16981377 | G72: 94.98664694 | H72: -54.34630184 | I72: 0.2876 | L72: 2 | M72: 0.855001 | N72: 794.2104289 | O72: 9 | P72: 202.7 | Q72: 507.9 | R72: 302.1 | S72: 55.1 | T72: 71.1 | U72: 2.12 | V72: 0.68 | W72: 2.233333333 | X72: 0.4 | Y72: 4 | Z72: 2.233333333 | AA72: 2.2 | AB72: 0.09333333333 | AC72: 7.733333333 | AD72: 0.3 | AF72: 243 | AG72: 47.6 | AH72: 0.03 | AI72: 9.733333333 | AK72: 0.6 | AM72: 4 | AN72: 0.6031402548 | AO72: 0.8785763064 | AP72: 592.8381002
A73: Melaza Remolacha | B73: 76 | C73: 1.184004733 | D73: 1.207089514 | E73: 146 | F73: 10.22 | G73: 76.74012851 | H73: 17.6422992 | I73: -0.7084 | L73: 3 | M73: 0.89 | N73: 878.252 | O73: 2 | P73: 0 | Q73: 0 | R73: 0 | S73: 0 | T73: 13.2 | U73: 1.925 | V73: 0.34 | W73: 16.5 | Y73: 55 | Z73: 12.5 | AM73: 2 | AN73: 0.93 | AO73: 1
A74: Melaza caña | B74: 75 | C74: 0.8610639099 | D74: 0.8391616233 | E74: 45 | F74: 3.15 | G74: 61.811424 | H74: -64.008475 | I74: -1.5384 | L74: 4 | M74: 0.8 | N74: 710.4 | O74: 12 | P74: 0 | Q74: 0 | R74: 0 | S74: 0 | T74: 112 | U74: 5.115 | V74: 0.748 | W74: 4.7 | X74: 27 | Y74: 33 | Z74: 1.7 | AM74: 12 | AN74: 0.93 | AO74: 1
A75: Grasa vegetal, manteca de cerdo (todos los tipos) | B75: 99.9 | C75: 3.61 | D75: 3.94 | E75: 1e-07 | F75: 1e-07 | G75: 1e-07 | H75: -14 | I75: 0.25 | L75: 2 | M75: 0.9 | N75: 1e-07 | O75: 999 | P75: 1e-07 | Q75: 1e-07 | R75: 1e-07 | S75: 1e-07 | T75: 1e-07 | U75: 5.5e-08 | V75: 6.8e-08 | W75: 1e-07 | X75: 1e-07 | Y75: 1e-07 | Z75: 1e-07 | AA75: 1e-07 | AB75: 1e-07 | AC75: 1e-07 | AD75: 1e-07 | AF75: 1e-07 | AG75: 1e-07 | AH75: 1e-07 | AI75: 1e-07 | AJ75: 1300 | AK75: 1e-07 | AL75: 95 | AM75: 999 | AN75: 0 | AO75: 0
A76: Levadura cervecería | B76: 93.3 | C76: 1.18 | D76: 1.17 | E76: 476 | F76: 87 | G76: 143 | H76: 278 | I76: 0.15 | L76: 2 | M76: 0.84 | N76: 756 | O76: 40 | P76: 21 | Q76: 88 | R76: 25 | S76: 7 | T76: 32 | U76: 1.65 | V76: 9.18 | W76: 2.4 | AM76: 32 | AN76: 0.815157707 | AO76: 0.98880568
A77: Urea | B77: 99 | C77: 0.26 | D77: 0.2 | E77: 2870 | F77: 1e-06 | G77: 71 | H77: 2557 | I77: 0.23 | L77: 2 | M77: 0.99 | N77: 1e-06 | O77: 1e-06 | P77: 1e-06 | Q77: 1e-06 | R77: 1e-06 | S77: 1e-06 | T77: 1e-06 | W77: 1e-06 | X77: 1e-06 | Y77: 1e-06 | Z77: 1e-06 | AA77: 1e-06 | AB77: 1e-06 | AC77: 1e-06 | AD77: 1e-06 | AF77: 1e-06 | AG77: 1e-06 | AH77: 1e-06 | AI77: 1e-06 | AJ77: 1e-06 | AK77: 1e-06 | AL77: 1e-06 | AM77: 0 | AN77: 0 | AO77: 0
A78: Residuo pan deshidratado, NRC | B78: 92 | C78: 1.096141567 | D78: 1.054875419 | E78: 107 | F78: 22.01612961 | G78: 70.4665579 | H78: -10.7237942 | I78: 0.294457 | L78: 2 | M78: 0.714218 | N78: 628.1690154 | O78: 127 | P78: 130 | Q78: 180 | R78: 130 | S78: 10 | T78: 44 | U78: 0.77 | V78: 1.768 | W78: 2.6 | X78: 16.1 | Y78: 5.3 | Z78: 12.4 | AA78: 0.2 | AB78: 1.05 | AC78: 5 | AF78: 31 | AG78: 71 | AI78: 16 | AJ78: 2000 | AL78: 45 | AN78: 0.7773884271 | AO78: 0.9242925602
A79: Mandioca | B79: 85 | C79: 1.142097463 | D79: 1.174454355 | E79: 31 | F79: 10.10542253 | G79: 75.49002249 | H79: -97.45343744 | I79: 0.1216 | L79: 2 | M79: 0.91762 | N79: 861.64518 | O79: 8.2 | P79: 54 | Q79: 118 | R79: 59 | S79: 14.01 | T79: 61 | U79: 1.375 | V79: 0.68 | W79: 0.9 | Y79: 7.5 | Z79: 0.35 | AC79: 2 | AF79: 50 | AG79: 5 | AI79: 30 | AM79: 6.56 | AN79: 0.638999494 | AO79: 0.9029942241
A80: Alfalfa deshidratada y aglomerados | B80: 90.2 | C80: 0.7398701174 | D80: 0.6738447078 | E80: 233 | F80: 68.64631679 | G80: 116.147103 | H80: 51.38002158 | I80: 0.3789 | L80: 2 | M80: 0.6658 | N80: 579.9118 | O80: 34 | P80: 237 | Q80: 405 | R80: 280 | S80: 76 | T80: 129 | U80: 3.84 | V80: 1.768 | AM80: 17 | AN80: 0.6663643659 | AO80: 0.8830573093
A81: Gramíneas deshidratadas y aglomeradas | B81: 91 | C81: 0.8289959418 | D81: 0.7851460594 | E81: 105 | F81: 26.82240135 | G81: 80.52058238 | H81: -29.85340787 | I81: 0.3818741 | L81: 2 | M81: 0.72207 | N81: 649.14093 | O81: 25 | P81: 238 | Q81: 508 | R81: 269 | S81: 73.08 | T81: 101 | U81: 2.365 | V81: 1.836 | AM81: 12.5 | AN81: 0.7018778114 | AO81: 0.8568682611

Sheet Tabla Minerales-aa
A1: INGREDIENTES | B1: MS | C1: UFL | D1: UFV | E1: MNT_PB | F1: PDIA | G1: PDI | H1: BPR | I1: UEL | J1: UEB | K1: UEM | L1: NI ref | M1: dMO | N1: MOD_TDN | O1: EE | P1: FB | Q1: NDF | R1: ADF | S1: Lignina | T1: Cenizas | U1: Ca | V1: P | W1: Mg | X1: Cl | Y1: K | Z1: Na | AA1: S | AB1: Co | AC1: Cu | AD1: Mo | AE1: Yodo | AF1: Fe | AG1: Mn | AH1: Se | AI1: Zn | AJ1: Vit A | AK1: Vit D | AL1: Vit E | AM1: AG | AN1: DT_N | AO1: dr | AP1: MOF
A3: Carbonato cálcico | B3: 98 | T3: 955 | U3: 145.54 | W3: 14 | X3: 0.2 | Y3: 0.7 | Z3: 0.7 | AA3: 0.7 | AC3: 12 | AF3: 620
A4: Fosfato bicálcico | B4: 98.8 | T4: 836 | U4: 244 | V4: 122.4 | W4: 5 | X4: 0.4 | Y4: 1.2 | Z4: 0.8 | AA4: 11 | AC4: 15 | AF4: 7800
A5: Fosfato monocálcico | B5: 98.8 | U5: 88.2 | V5: 155.04
A6: Óxido magnésico | B6: 100 | U6: 30 | W6: 510
A7: Harina de huesos | B7: 100 | U7: 11.8 | V7: 10.2
A8: Fosfato sódico | B8: 100 | V8: 13.6 | Z8: 19
A9: Fosfórico | B9: 100 | V9: 21.488
A10: Bicarbonato sódico | B10: 99.7 | Z10: 270
A11: Carbonato de cobalto | B11: 100 | AB11: 49
A12: Carbonato de manganeso | B12: 100 | AG12: 47
A13: Carbonato de zinc | B13: 100 | AI13: 52
A14: Cloruro potásico | B14: 100 | Y14: 52
A15: Cloruro sódico | B15: 98 | X15: 570 | Z15: 360
A16: Yoduro potásico | B16: 100 | AE16: 76
A17: Óxido de cobre | B17: 100 | AC17: 80
A18: Óxido de manganeso | B18: 100 | AG18: 77
A19: Óxido de zinc | B19: 100 | AI19: 80
A20: Sulfato de cobalto | B20: 100 | AB20: 22
A21: Sulfato de cobre | B21: 100 | AC21: 25
A22: Sulfato de zinc | B22: 100 | AI22: 23
A23: Sulfato magnésico | B23: 100 | W23: 10 | AA23: 13
A24: Sulfato sódico | B24: 100 | Z24: 32 | AA24: 22

Sheet I_Necesidades
B1: Racionamiento alimenticio de vacas de cría. Cálculo de necesidades
B3: Datos de la explotación | G3: Datos de una vaca de la explotación
B4: Raza | C4: 1 | D4: =IF(C4=1,1.15,IF(C4=2,0.95,1)) -> 1.15 | E4: Índex raça (Ingestió) | G4: Peso vivo Kg | H4: 625
B5: Estabulación | C5: 1 | D5: =IF(C5=1,1,IF(C5=2,1.1,1.2)) -> 1 | E5: Índex activitat (Energia) | G5: Producción anual leche, kg | H5: 1800
B6: 1.- Entrada estabulación | C6: 1 | G6: Tasa media de grasa, % | H6: 4.4
B7: 2.- Salida a prado | C7: 1 | G7: Tasa media de proteína, % | H7: 3.4
B8: Intervalo entre partos, meses | C8: 14 | G8: Peso ternero al nacer | H8: 45
B9: Tiemp secado, meses | C9: 3 | G9: Paridad | H9: 2
B10: SemL anuals lactación | C10: =INT((C8-C9)*4.34) -> 47 | G10: Pico | H10: =IF(H9=1,H5*(1+(0.0055*(H6*10-44)+0.0033*(H7*10-34)))/259,H5*(1+(0.0055*(H6*10-44)+0.0033*(H7*10-34)))/224) -> 8.035714286
B11: Tiempo estabulación, meses | C11: =IF(C6=1,3,IF(C6=2,2,1))+IF(C7=1,3,IF(C7=2,4,5)) -> 6 | G11: 3.- Mes del part | H11: 3
B12: Tiempo pastoreo, meses | C12: =12-C11 -> 6 | G12: Mes del parto | H12: =H11 -> 3
B13: Número de vacas | C13: 130 | G13: Tiempo desde la entrada al parto, meses | H13: =IF(C6=1,3,IF(C6=2,2,1))+H11 -> 6
B14: Porcentaje primíparas | C14: 0.3 | G14: =IF(H11<IF(C7=1,4,IF(C7=2,5,6)),"Parto en estabulación",IF(H11>=IF(C6=1,10,IF(C6=2,11,12)),"Parto en estabulación","Parto en el prado")) -> Parto en estabulación
B15: Producción anual media de leche | C15: 2500 | G15: Condición corporal media a la entrada | H15: 3.5 | I15: =D21 -> Octubre | J15: Mes entrada
B16: Tasa media de grasa, % | C16: 4.4 | G16: Condición corporal media a la salida | H16: 2.5 | I16: =D22 -> Abril | J16: Mes salida
B17: Tasa media de proteína, % | C17: 3.4 | G17: "Aportaciones" por pérdida CC UFL/día | H17: =IF(H15-H16<1,0,(H15-H16)*180/(C11*30)) -> 1
B18: Producción anual media de leche estandar | C18: =C15*(1+(0.0055*(C16*10-44)+0.0033*(C17*10-34))) -> 2500 | G18: "Aportaciones" per pérdida CC g PDI/día | H18: =IF(H15-H16<1,0,15000/(C11*30)) -> 83.33333333
B19: Peso medio vacas | C19: 620
B20: Peso ternero al nacer | C20: 50
B21: Condición corporal media a la entrada | C21: 3.5 | D21: =IF(C6=1,"Octubre",IF(C6=2,"Novembre","Desembre")) -> Octubre | E21: Mes entrada
B22: Condición corporal media a la salida | C22: 2.5 | D22: =IF(C7=1,"Abril",IF(C7=2,"Maig","Juny")) -> Abril | E22: Mes salida
B23: "Aportaciones" por pérdida CC UFL/día | C23: =IF(C21-C22<1,0,(C21-C22)*180/(C11*30)) -> 1 | G23: Seleccionar mes de estabulación | H23: La guía de distribución meses estabulación en hoja Índices en A378
B24: "Aportaciones" per pérdida CC g PDI/día | C24: =IF(C21-C22<1,0,15000/(C11*30)) -> 83.33333333 | G24: 6
B25: Distribución anual de los partos por meses | G25: Características y necesidades para el racionamiento
G26: Mes de estabulación | H26: =IF(I_Necesidades!$G$24=1,IF(Índices!$C$33="","","Octubre"),IF(I_Necesidades!$G$24=2,IF(Índices!$C$34="","","Noviembre"),IF(I_Necesidades!$G$24=3,"Diciembre",IF(I_Necesidades!$G$24=4,"Enero",IF(I_Necesidades!$G$24=5,"Febrero",IF(I_Necesidades!$G$24=6,"Marzo",IF(I_Necesidades!$G$24=7,IF(Índices!$C$39="","","Abril"),IF(I_Necesidades!$G$24=8,IF(Índices!$C$40="","","Mayo"),"")))))))) -> Marzo
B27: Meses partos | C27: % partos | G27: Estado fisiológico | H27: =IF(H26=Índices!B382,Índices!B380,IF(H26=Índices!C382,Índices!C380,IF(H26=Índices!D382,Índices!D380,IF(H26=Índices!E382,Índices!E380,IF(H26=Índices!F382,Índices!F380,IF(H26=Índices!G382,Índices!G380,IF(H26=Índices!H382,Índices!H380,IF(H26=Índices!I382,Índices!I380,IF(H26=Índices!J382,Índices!J380,IF(H26=Índices!K382,Índices!K380,IF(H26=Índices!L382,Índices!L380,IF(H26=Índices!M382,Índices!M380,"")))))))))))) -> Mes parto/1º L
B28: Enero | C28: 10 | G28: Producción media diaria kg/día | H28: =IF(H26=Índices!B382,Índices!B387,IF(H26=Índices!C382,Índices!C387,IF(H26=Índices!D382,Índices!D387,IF(H26=Índices!E382,Índices!E387,IF(H26=Índices!F382,Índices!F387,IF(H26=Índices!G382,Índices!G387,IF(H26=Índices!H382,Índices!H387,IF(H26=Índices!I382,Índices!I387,IF(H26=Índices!J382,Índices!J387,IF(H26=Índices!K382,Índices!K387,IF(H26=Índices!L382,Índices!L387,IF(H26=Índices!M382,Índices!M387,"")))))))))))) -> 7.419720337
B29: Febrero | C29: 10 | G29: CI UE | H29: =IF(H26=Índices!B382,Índices!B392,IF(H26=Índices!C382,Índices!C392,IF(H26=Índices!D382,Índices!D392,IF(H26=Índices!E382,Índices!E392,IF(H26=Índices!F382,Índices!F392,IF(H26=Índices!G382,Índices!G392,IF(H26=Índices!H382,Índices!H392,IF(H26=Índices!I382,Índices!I392,IF(H26=Índices!J382,Índices!J392,IF(H26=Índices!K382,Índices!K392,IF(H26=Índices!L382,Índices!L392,IF(H26=Índices!M382,Índices!M392,"")))))))))))) -> 15.76469862
B30: Marzo | C30: 18 | G30: CI MS | H30: =IF(H26=Índices!B382,Índices!B391,IF(H26=Índices!C382,Índices!C391,IF(H26=Índices!D382,Índices!D391,IF(H26=Índices!E382,Índices!E391,IF(H26=Índices!F382,Índices!F391,IF(H26=Índices!G382,Índices!G391,IF(H26=Índices!H382,Índices!H391,IF(H26=Índices!I382,Índices!I391,IF(H26=Índices!J382,Índices!J391,IF(H26=Índices!K382,Índices!K391,IF(H26=Índices!L382,Índices!L391,IF(H26=Índices!M382,Índices!M391,"")))))))))))) -> 11.00472922
B31: Abril | C31: 0 | G31: NecUFL_NP | H31: =IF(H28=0,0.043*H4^0.75*D5,0.049*H4^0.75*D5) -> 6.125
B32: Mayo | C32: 0 | G32: NecPDI_PEF | H32: =IF(H26=Índices!B382,19.8*Índices!B391,IF(H26=Índices!C382,19.8*Índices!C391,IF(H26=Índices!D382,19.8*Índices!D391,IF(H26=Índices!E382,19.8*Índices!E391,IF(H26=Índices!F382,19.8*Índices!F391,IF(H26=Índices!G382,19.8*Índices!G391,IF(H26=Índices!H382,19.8*Índices!H391,IF(H26=Índices!I382,19.8*Índices!I391,IF(H26=Índices!J382,19.8*Índices!J391,IF(H26=Índices!K382,19.8*Índices!K391,IF(H26=Índices!L382,19.8*Índices!L391,IF(H26=Índices!M382,19.8*Índices!M391,"")))))))))))) -> 217.8936385
B33: Junio | C33: 0 | G33: NecPDI_PU endo | H33: =0.312*H4 -> 195
B34: Julio | C34: 0 | G34: NecPDI_Pepidérmicas | H34: =0.2*H4^0.6/H35 -> 14.20637268
B35: Agosto | C35: 0 | G35: EfPDI | H35: 0.67
B36: Setiembre | C36: 0 | G36: NecUFL_gest | H36: =IF(H27="7º mes G",Índices!E397,IF(H27="8º mes G",Índices!D397,IF(H27="9º mes G",Índices!D397,0))) -> 0
B37: Octubre | C37: 27 | G37: NecPDI_gest | H37: =IF(H27="7º mes G",Índices!E400,IF(H27="8º mes G",Índices!D400,IF(H27="9º mes G",Índices!D400,0))) -> 0
B38: Noviembre | C38: 17 | G38: NecUFL_Pl | H38: =IF(H26=Índices!B382,0.44*Índices!B387,IF(H26=Índices!C382,0.44*Índices!C387,IF(H26=Índices!D382,0.44*Índices!D387,IF(H26=Índices!E382,0.44*Índices!E387,IF(H26=Índices!F382,0.44*Índices!F387,IF(H26=Índices!G382,0.44*Índices!G387,IF(H26=Índices!H382,0.44*Índices!H387,IF(H26=Índices!I382,0.44*Índices!I387,IF(H26=Índices!J382,0.44*Índices!J387,IF(H26=Índices!K382,0.44*Índices!K387,IF(H26=Índices!L382,0.44*Índices!L387,IF(H26=Índices!M382,0.44*Índices!M387,"")))))))))))) -> 3.264676948
B39: Diciembre | C39: 18 | G39: NecPDI_Pl | H39: =IF(H26=Índices!B382,34*Índices!B387,IF(H26=Índices!C382,34*Índices!C387,IF(H26=Índices!D382,34*Índices!D387,IF(H26=Índices!E382,34*Índices!E387,IF(H26=Índices!F382,34*Índices!F387,IF(H26=Índices!G382,34*Índices!G387,IF(H26=Índices!H382,34*Índices!H387,IF(H26=Índices!I382,34*Índices!I387,IF(H26=Índices!J382,34*Índices!J387,IF(H26=Índices!K382,34*Índices!K387,IF(H26=Índices!L382,34*Índices!L387,IF(H26=Índices!M382,34*Índices!M387,""))))))))))))/H35 -> 376.5231216
C40: =SUM(C28:C39) -> 100 | G40: Nec_UFL | H40: =H31+H36+H38-H17 -> 8.389676948
G41: Nec_PDI | H41: =H32+H33+H34+H37+H39-H18 -> 720.2897994
B42: Seleccionar mes de estabulación | G42: Nec_Ca g/día | H42: =IF(H36>0,-1.5+2.3*H40,-3.35+2.9*H40) -> 20.98006315
B43: 9 | G43: Nec_P g/día | H43: =IF(H36>1,7.03+0.82*H40,-1.71+2.22*H40)/0.65 -> 26.02320435
B44: Elegir lote para el racionamiento | G44: Mg | H44: =IF(H26=Índices!B382,Índices!B401,IF(H26=Índices!C382,Índices!C401,IF(H26=Índices!D382,Índices!D401,IF(H26=Índices!E382,Índices!E401,IF(H26=Índices!F382,Índices!F401,IF(H26=Índices!G382,Índices!G401,IF(H26=Índices!H382,Índices!H401,IF(H26=Índices!I382,Índices!I401,IF(H26=Índices!J382,Índices!J401,IF(H26=Índices!K382,Índices!K401,IF(H26=Índices!L382,Índices!L401,IF(H26=Índices!M382,Índices!M401,"")))))))))))) -> 48.98473946
B45: 1 | G45: K | H45: =IF(H26=Índices!B382,Índices!B402,IF(H26=Índices!C382,Índices!C402,IF(H26=Índices!D382,Índices!D402,IF(H26=Índices!E382,Índices!E402,IF(H26=Índices!F382,Índices!F402,IF(H26=Índices!G382,Índices!G402,IF(H26=Índices!H382,Índices!H402,IF(H26=Índices!I382,Índices!I402,IF(H26=Índices!J382,Índices!J402,IF(H26=Índices!K382,Índices!K402,IF(H26=Índices!L382,Índices!L402,IF(H26=Índices!M382,Índices!M402,"")))))))))))) -> 83.00458051
B46: Características y necesidades para el racionamiento | G46: Na | H46: =IF(H26=Índices!B382,Índices!B403,IF(H26=Índices!C382,Índices!C403,IF(H26=Índices!D382,Índices!D403,IF(H26=Índices!E382,Índices!E403,IF(H26=Índices!F382,Índices!F403,IF(H26=Índices!G382,Índices!G403,IF(H26=Índices!H382,Índices!H403,IF(H26=Índices!I382,Índices!I403,IF(H26=Índices!J382,Índices!J403,IF(H26=Índices!K382,Índices!K403,IF(H26=Índices!L382,Índices!L403,IF(H26=Índices!M382,Índices!M403,"")))))))))))) -> 17.71387415
B47: =IF($B$45=1,Índices!A366,IF($B$45=2,Índices!A367,IF($B$45=3,Índices!A368,IF($B$45=4,Índices!A369,Índices!A370)))) -> Lote 5 primeros meses lactación | C47: =Índices!A365 -> Enero segundo año | G47: S | H47: =IF(H26=Índices!B382,Índices!B404,IF(H26=Índices!C382,Índices!C404,IF(H26=Índices!D382,Índices!D404,IF(H26=Índices!E382,Índices!E404,IF(H26=Índices!F382,Índices!F404,IF(H26=Índices!G382,Índices!G404,IF(H26=Índices!H382,Índices!H404,IF(H26=Índices!I382,Índices!I404,IF(H26=Índices!J382,Índices!J404,IF(H26=Índices!K382,Índices!K404,IF(H26=Índices!L382,Índices!L404,IF(H26=Índices!M382,Índices!M404,"")))))))))))) -> 22.00945843
B48: Número de vacas | C48: =IF($B$45=1,Índices!B366,IF($B$45=2,Índices!B367,IF($B$45=3,Índices!B368,IF($B$45=4,Índices!B369,Índices!B370)))) -> 80.6 | G48: Cl | H48: =IF(H26=Índices!B382,Índices!B405,IF(H26=Índices!C382,Índices!C405,IF(H26=Índices!D382,Índices!D405,IF(H26=Índices!E382,Índices!E405,IF(H26=Índices!F382,Índices!F405,IF(H26=Índices!G382,Índices!G405,IF(H26=Índices!H382,Índices!H405,IF(H26=Índices!I382,Índices!I405,IF(H26=Índices!J382,Índices!J405,IF(H26=Índices!K382,Índices!K405,IF(H26=Índices!L382,Índices!L405,IF(H26=Índices!M382,Índices!M405,"")))))))))))) -> 22.98795805
B49: Producción leche/día | C49: =IF(C48>0,IF($B$45=1,Índices!C366,IF($B$45=2,Índices!C367,IF($B$45=3,Índices!C368,IF($B$45=4,Índices!C369,Índices!C370)))),0) -> 10.49044819 | G49: Co mg/día | H49: =IF(H26=Índices!B382,Índices!B406,IF(H26=Índices!C382,Índices!C406,IF(H26=Índices!D382,Índices!D406,IF(H26=Índices!E382,Índices!E406,IF(H26=Índices!F382,Índices!F406,IF(H26=Índices!G382,Índices!G406,IF(H26=Índices!H382,Índices!H406,IF(H26=Índices!I382,Índices!I406,IF(H26=Índices!J382,Índices!J406,IF(H26=Índices!K382,Índices!K406,IF(H26=Índices!L382,Índices!L406,IF(H26=Índices!M382,Índices!M406,"")))))))))))) -> 3.301418765
B50: CI UE | C50: =IF(C48>0,IF($B$45=1,Índices!D366,IF($B$45=2,Índices!D367,IF($B$45=3,Índices!D368,IF($B$45=4,Índices!D369,Índices!D370)))),0) -> 16.55223283 | G50: Cu mg/día | H50: =IF(H26=Índices!B382,Índices!B407,IF(H26=Índices!C382,Índices!C407,IF(H26=Índices!D382,Índices!D407,IF(H26=Índices!E382,Índices!E407,IF(H26=Índices!F382,Índices!F407,IF(H26=Índices!G382,Índices!G407,IF(H26=Índices!H382,Índices!H407,IF(H26=Índices!I382,Índices!I407,IF(H26=Índices!J382,Índices!J407,IF(H26=Índices!K382,Índices!K407,IF(H26=Índices!L382,Índices!L407,IF(H26=Índices!M382,Índices!M407,"")))))))))))) -> 110.0472922
B51: CI MS | C51: =IF(C48>0,IF($B$45=1,Índices!E366,IF($B$45=2,Índices!E367,IF($B$45=3,Índices!E368,IF($B$45=4,Índices!E369,Índices!E370)))),0) -> 15.15761045 | G51: Mn mg/día | H51: =IF(H26=Índices!B382,Índices!B408,IF(H26=Índices!C382,Índices!C408,IF(H26=Índices!D382,Índices!D408,IF(H26=Índices!E382,Índices!E408,IF(H26=Índices!F382,Índices!F408,IF(H26=Índices!G382,Índices!G408,IF(H26=Índices!H382,Índices!H408,IF(H26=Índices!I382,Índices!I408,IF(H26=Índices!J382,Índices!J408,IF(H26=Índices!K382,Índices!K408,IF(H26=Índices!L382,Índices!L408,IF(H26=Índices!M382,Índices!M408,"")))))))))))) -> 550.2364608
B52: NecUFL_NP | C52: =IF(C48>0,IF(B45=4,0.043*C19^0.75*D5,0.049*C19^0.75*D5),0) -> 6.088213127 | G52: Zn mg/día | H52: =IF(H26=Índices!B382,Índices!B409,IF(H26=Índices!C382,Índices!C409,IF(H26=Índices!D382,Índices!D409,IF(H26=Índices!E382,Índices!E409,IF(H26=Índices!F382,Índices!F409,IF(H26=Índices!G382,Índices!G409,IF(H26=Índices!H382,Índices!H409,IF(H26=Índices!I382,Índices!I409,IF(H26=Índices!J382,Índices!J409,IF(H26=Índices!K382,Índices!K409,IF(H26=Índices!L382,Índices!L409,IF(H26=Índices!M382,Índices!M409,"")))))))))))) -> 550.2364608
B53: NecPDI_PEF | C53: =IF(C48>0,19.8*C51,0) -> 300.1206869 | G53: I mg/día | H53: =IF(H26=Índices!B382,Índices!B410,IF(H26=Índices!C382,Índices!C410,IF(H26=Índices!D382,Índices!D410,IF(H26=Índices!E382,Índices!E410,IF(H26=Índices!F382,Índices!F410,IF(H26=Índices!G382,Índices!G410,IF(H26=Índices!H382,Índices!H410,IF(H26=Índices!I382,Índices!I410,IF(H26=Índices!J382,Índices!J410,IF(H26=Índices!K382,Índices!K410,IF(H26=Índices!L382,Índices!L410,IF(H26=Índices!M382,Índices!M410,"")))))))))))) -> 7.153073991
B54: NecPDI_PU endo | C54: =IF(C48>0,0.312*C19,0) -> 193.44 | G54: Se mg/día | H54: =IF(H26=Índices!B382,Índices!B411,IF(H26=Índices!C382,Índices!C411,IF(H26=Índices!D382,Índices!D411,IF(H26=Índices!E382,Índices!E411,IF(H26=Índices!F382,Índices!F411,IF(H26=Índices!G382,Índices!G411,IF(H26=Índices!H382,Índices!H411,IF(H26=Índices!I382,Índices!I411,IF(H26=Índices!J382,Índices!J411,IF(H26=Índices!K382,Índices!K411,IF(H26=Índices!L382,Índices!L411,IF(H26=Índices!M382,Índices!M411,"")))))))))))) -> 0.15
B55: NecPDI_Pepidérmicas | C55: =IF(C48>0,0.2*C19^0.6/C56,0) -> 14.13807257 | G55: Vit A
B56: EfPDI | C56: 0.67 | G56: Vit D
B57: NecUFL_gest | C57: =IF(C48>0,IF($B$45=4,Índices!Q369,0),0) -> 0 | G57: Vit E
B58: NecPDI_gest | C58: =IF(C48>0,IF($B$45=4,Índices!R369,0),0) -> 0
B59: NecUFL_Pl | C59: =IF(C48>0,IF(B45=1,0.44*Índices!C366,IF($B$45=2,0.44*Índices!C367,IF(B45=5,0.44*Índices!C370,0))),0) -> 4.615797203
B60: NecPDI_Pl | C60: =IF(C48>0,IF(B45=1,34*Índices!C366/C56,IF(B45=2,34*Índices!C367/C56,IF(B45=5,34*Índices!C370/C56,0))),0) -> 532.3511021
B61: Nec_UFL | C61: =IF(C48>0,C52+C57+C59-C23,0) -> 9.70401033
B62: Nec_PDI | C62: =IF(C48>0,C53+C54+C55+C58+C60-C24,0) -> 956.7165283
B63: Nec_Ca g/día | C63: =IF(C48>0,IF(B45=4,-1.5+2.3*C61,-3.35+2.9*C61),0) -> 24.79162996
B64: Nec_P g/día | C64: =IF(C48>0,IF(B45=4,7.03+0.82*C61,-1.71+2.22*C61)) -> 19.83290293
B65: Mg | C65: =IF(C48>0,IF($B$45=1,Índices!F366,IF($B$45=2,Índices!F367,IF($B$45=3,Índices!F368,IF($B$45=4,Índices!F369,Índices!F370)))),0) -> 52.45979518
B66: K | C66: =IF(C48>0,IF($B$45=1,Índices!G366,IF($B$45=2,Índices!G367,IF($B$45=3,Índices!G368,IF($B$45=4,Índices!G369,Índices!G370)))),0) -> 87.65567228
B67: Na | C67: =IF(C48>0,IF($B$45=1,Índices!H366,IF($B$45=2,Índices!H367,IF($B$45=3,Índices!H368,IF($B$45=4,Índices!H369,Índices!H370)))),0) -> 18.98070169
B68: S | C68: =IF(C48>0,IF($B$45=1,Índices!I366,IF($B$45=2,Índices!I367,IF($B$45=3,Índices!I368,IF($B$45=4,Índices!I369,Índices!I370)))),0) -> 30.3152209
B69: Cl | C69: =IF(C48>0,IF($B$45=1,Índices!J366,IF($B$45=2,Índices!J367,IF($B$45=3,Índices!J368,IF($B$45=4,Índices!J369,Índices!J370)))),0) -> 23.27356723
B70: Co mg/día | C70: =IF(C48>0,IF($B$45=1,Índices!K366,IF($B$45=2,Índices!K367,IF($B$45=3,Índices!K368,IF($B$45=4,Índices!K369,Índices!K370)))),0) -> 4.547283136
B71: Cu mg/día | C71: =IF(C48>0,IF($B$45=1,Índices!L366,IF($B$45=2,Índices!L367,IF($B$45=3,Índices!L368,IF($B$45=4,Índices!L369,Índices!L370)))),0) -> 151.5761045
B72: Mn mg/día | C72: =IF(C48>0,IF($B$45=1,Índices!M366,IF($B$45=2,Índices!M367,IF($B$45=3,Índices!M368,IF($B$45=4,Índices!M369,Índices!M370)))),0) -> 757.8805226
B73: Zn mg/día | C73: =IF(C48>0,IF($B$45=1,Índices!N366,IF($B$45=2,Índices!N367,IF($B$45=3,Índices!N368,IF($B$45=4,Índices!N369,Índices!N370)))),0) -> 9.852446794
B74: I mg/día | C74: =IF(C48>0,IF($B$45=1,Índices!O366,IF($B$45=2,Índices!O367,IF($B$45=3,Índices!O368,IF($B$45=4,Índices!O369,Índices!O370)))),0) -> 9.852446794
B75: Se mg/día | C75: =IF(C48>0,IF($B$45=1,Índices!P366,IF($B$45=2,Índices!P367,IF($B$45=3,Índices!P368,IF($B$45=4,Índices!P369,Índices!P370)))),0) -> 0
B76: Vit A
B77: Vit D
B78: Vit E
B79: Elegir plantejament racionament
B80: 1
B81: =IF($B$80=1,"Necesidades para el racionamiento de la explotación","Necesidades para el racionamiento individual") -> Necesidades para el racionamiento de la explotación
B82: =IF($B$80=1,B47,G26) -> Lote 5 primeros meses lactación | C82: Enero segundo año
B83: =IF($B$80=1,B48,G27) -> Número de vacas | C83: 80.6
B84: Producción leche/día | C84: 10.49044819
B85: CI UE | C85: 16.55223283
B86: CI MS | C86: 15.15761045
B87: NecUFL_NP | C87: 6.088213127
B88: NecPDI_PEF | C88: 300.1206869
B89: NecPDI_PU endo | C89: 193.44
B90: NecPDI_Pepidérmicas | C90: 14.13807257
B91: EfPDI | C91: 0.67
B92: NecUFL_gest | C92: 0
B93: NecPDI_gest | C93: 0
B94: NecUFL_Pl | C94: 4.615797203
B95: NecPDI_Pl | C95: 532.3511021
B96: Nec_UFL | C96: 9.70401033
B97: Nec_PDI | C97: 956.7165283
B98: =IF($B$80=1,B63,G42) -> Nec_Ca g/día | C98: 24.79162996
B99: Nec_P g/día | C99: 19.83290293
B100: Mg | C100: 52.45979518
B101: K | C101: 87.65567228
B102: Na | C102: 18.98070169
B103: S | C103: 30.3152209
B104: Cl | C104: 23.27356723
B105: Co mg/día | C105: 4.547283136
B106: Cu mg/día | C106: 151.5761045
B107: Mn mg/día | C107: 757.8805226
B108: Zn mg/día | C108: 9.852446794
B109: I mg/día | C109: 9.852446794
B110: Se mg/día | C110: 0
B111: Vit A | C111: 0
B112: Vit D | C112: 0
B113: Vit E | C113: 0
B114: Pes viu vaca | C114: =IF($B$80=1,C19,H4) -> 620
B115: MP | C115: =34*C84 -> 356.6752384
B117: Dades complementàries per al racionament
B118: Límite tolerancia cálculo (%) | C118: 10
B119: MS forrajera (%) mínima | C119: 50
B120: Autor: Antoni Seguí Parpal

Sheet II_Plantear Ración
A1: Selección de ingredientes, límites de incorporación y precio | H1: hoja no protegida
B2: Límites incorporación | D2: Cálculos | G2: Precio Ingrediente
B3: kg mín | C3: kg màx | D3: kg fresco | E3: kg MS | F3: % fresco ración | G3: €/kg fresco | H3: kg fresco total
B4: 0 | C4: 100 | D4: 1 | E4: =D4*CalculosEV!D3/100 -> 0.32 | F4: =(D4*100)/$K$4 -> 100 | G4: 0.04 | K4: =SUM(D4:D26) -> 1 | L4: =K22 -> 32 | M4: %MS
A5: 0 | B5: 0 | C5: 6 | D5: 0 | E5: =D5*CalculosEV!D4/100 -> 0 | F5: 0 | G5: 0.03 | H5: kg forraje fresco total | K5: =SUM(D4:D8) -> 1
A6: 0 | B6: 0 | C6: 0 | D6: 0 | E6: =D6*CalculosEV!D5/100 -> 0 | F6: 0 | G6: 0.03 | H6: kg concentrado fresco total | K6: =K4-K5 -> 0
A7: 0 | B7: 0 | C7: 0 | D7: 0 | E7: =D7*CalculosEV!D6/100 -> 0 | F7: 0 | G7: 0.01 | H7: Aportaciones totales UE | K7: =SUMPRODUCT($E$4:$E$8,CalculosEV!E3:E7) -> 0.3567328884 | L7: =L23 -> 1.825756293 | M7: UE/kg MS
A8: 0 | B8: 0 | C8: 0 | D8: 0 | E8: =D8*CalculosEV!D7/100 -> 0 | F8: 0 | G8: 0.03 | H8: kg MS total | K8: =SUM(E4:E26) -> 0.32 | L8: =I_Necesidades!C86 -> 15.15761045 | M8: =K8-L8 -> -14.83761045 | N8: <--- Diferencia MSI real y calculada
A9: 0 | B9: 0 | C9: 4 | D9: 0 | E9: =D9*CalculosEV!D8/100 -> 0 | F9: 0 | G9: 0.21 | H9: kg MS total forraje | K9: =SUM(E4:E8) -> 0.32 | M9: =I_Necesidades!B118 -> Límite tolerancia cálculo (%) | O9: =I_Necesidades!C118 -> 10
A10: 0 | B10: 0 | C10: 4.5 | D10: 0 | E10: =D10*CalculosEV!D9/100 -> 0 | F10: 0 | G10: 0.21 | H10: kg MS total concentrado | K10: =K8-K9 -> 0 | L10: =K7/K9 -> 1.114790276 | M10: =I_Necesidades!B119 -> MS forrajera (%) mínima | O10: =I_Necesidades!C119 -> 50
A11: 0 | B11: 0 | C11: 6 | D11: 0 | E11: =D11*CalculosEV!D10/100 -> 0 | F11: 0 | G11: 0.3 | H11: % MS forraje en la ración | K11: =(K9*100)/K8 -> 100
A12: 0 | B12: 0 | C12: 1 | D12: 0 | E12: =D12*CalculosEV!D11/100 -> 0 | F12: 0 | G12: 0.643 | H12: PCO | K12: =K10/K8 -> 0 | L12: Auxiliar cálculo Sg | M12: A | N12: =IF(N17-0.85<0,1,1-(1.26*(N17-0.85)^0.84)) -> 0.5873249119
A13: 0 | B13: 0 | C13: 2.5 | D13: 0 | E13: =D13*CalculosEV!D12/100 -> 0 | F13: 0 | G13: 0.15 | H13: Relación UF/UEB forraje | K13: =SUMPRODUCT($E$4:$E$8,CalculosEV!$F$3:$F$7)/SUMPRODUCT($E$4:$E$8,CalculosEV!$E$3:$E$7) -> 0.8647470895 | M13: D | N13: =(1/N17)-N12 -> 0.3097047996
A14: 0 | B14: 0 | C14: 0 | D14: 0 | E14: =D14*CalculosEV!D13/100 -> 0 | F14: 0 | G14: 0.12 | H14: Tasa de sustitución global | K14: =(0.86/N17)*(1-N15*EXP(-N14/(1-K12))) -> 0.2040824451 | M14: B | N14: =N17/(2.04*N13) -> 1.764473209
A15: 0 | B15: 0 | C15: 0 | D15: 0 | E15: =D15*CalculosEV!D14/100 -> 0 | F15: 0 | G15: 0.312 | M15: K | N15: =N17*N13*EXP(N14/0.7) -> 4.293948101
A16: 0 | B16: 0 | C16: 0 | D16: 0 | E16: =D16*CalculosEV!D15/100 -> 0 | F16: 0 | G16: 0.215 | H16: VALOR FUNCIÓN OBJETIVO €/ración | K16: =SUMPRODUCT(D4:D26,G4:G26) -> 0.04 | M16: UEc | N16: =0.86*(1-N15*EXP(-N14/(1-K12))) -> 0.2275091254 | O16: =N16/N17 -> 0.2040824451
A17: 0 | B17: 0 | C17: 0.5 | D17: 0 | E17: =D17*CalculosEV!D16/100 -> 0 | F17: 0 | G17: 0.146 | H17: COSTE PARTE FORRAJERA | K17: =SUMPRODUCT(D4:D8,G4:G8) -> 0.04 | M17: UEf | N17: =K7/K9 -> 1.114790276
B18: 0 | C18: 0.2 | D18: 0 | E18: =D18*CalculosEV!D17/100 -> 0 | F18: 0 | G18: 0.136 | H18: COSTE PARTE CONCENTRADA | K18: =K16-K17 -> 0
A19: 0 | B19: 0 | C19: 0.3 | D19: 0 | E19: =D19*CalculosEV!D18/100 -> 0 | F19: 0 | G19: 0.438 | H19: Paràmetres nutritius, límits, valors finals
A20: 0 | B20: 0 | C20: 0 | D20: 0 | E20: =D20*CalculosEV!D19/100 -> 0 | F20: 0 | G20: 0.6 | H20: Parámetros | I20: Mínimo | J20: Máximo | K20: Valor | L20: Valor/kg MS o % | M20: En algunos ingredientes de la ración no constan los nutrientes ...
A21: 0 | B21: 0 | C21: 1 | D21: 0 | E21: =D21*CalculosEV!D20/100 -> 0 | F21: 0 | G21: 0.29 | H21: MSI (kg/día) | I21: 0 | J21: 999 | K21: =K8 -> 0.32
A22: 0 | B22: 0 | C22: 1 | D22: 0 | E22: =D22*CalculosEV!D21/100 -> 0 | F22: 0 | G22: 0.067 | H22: %MS ración | I22: 0 | J22: 999 | K22: =SUMPRODUCT(F4:F26,CalculosEV!D3:D25)/100 -> 32
B23: 0 | C23: 0 | D23: 0 | E23: =D23*CalculosEV!D22/100 -> 0 | F23: 0 | G23: 0.285 | H23: UEB | I23: =((100-$O$9)/100)*G29 -> 14.89700955 | J23: =((100+$O$9)/100)*G29 -> 18.20745611 | K23: =CalculosEV!E26+0.86*(1-'II_Plantear Ración'!N15*EXP(-'II_Plantear Ración'!N14/(1-'II_Plantear Ración'!K12))) -> 0.5842420138 | L23: =K23/$K$8 -> 1.825756293 | M23: =CalculosEV!AN$21 -> 
B24: 0 | C24: 0 | D24: 0 | E24: =D24*CalculosEV!D23/100 -> 0 | F24: 0 | G24: 0.01 | H24: UFL | I24: =((100-$O$9)/100)*G30*B47/B48 -> 8.29644128 | J24: =((100+$O$9)/100)*G30*B47/B48 -> 10.1400949 | K24: =CalculosEV!F26 -> 0.308483727 | L24: =K24/$K$8 -> 0.9640116468 | M24: =CalculosEV!AO$21 -> 
B25: 0 | C25: 0 | D25: 0 | E25: =D25*CalculosEV!D24/100 -> 0 | F25: 0 | G25: 0.01 | H25: PDI | I25: =((100-$O$9)/100)*(G32+(G33+M8*0.5*(5.7+0.074*B57)/B79)*G34/B79) -> 639.8614085 | J25: =(100+$O$9)/100*(G32+(G33+M8*0.5*(5.7+0.074*B57)/B79)*G34/B79) -> 782.0528326 | K25: =CalculosEV!G26 -> 16.60769345 | L25: =K25/$K$8 -> 51.89904202 | M25: =CalculosEV!AP$21 -> 
B26: 0 | C26: 0 | D26: 0 | E26: =D26*CalculosEV!D25/100 -> 0 | F26: 0 | G26: 0.01 | H26: BPR | I26: 15 | J26: 8 | K26: =CalculosEV!H26 -> -13.48362569 | L26: =ABS(K26/K21) -> 42.13633028 | M26: =CalculosEV!AQ$21 -> 
F27: =SUM(F4:F26) -> 100 | H27: NI | I27: =CalculosEV!I26 -> 1.4 | J27: =CalculosEV!I26 -> 1.4 | K27: =K21*100/I_Necesidades!C114 -> 0.05161290323 | L27: =K27 -> 0.05161290323 | M27: =CalculosEV!AR$21 -> 
A28: Efecto NI | E28: Datos orientativos | H28: Ca | I28: =((100-$O$9)/100)*I_Necesidades!C98 -> 22.31246696 | J28: =(100+$O$9)/100*I_Necesidades!C98 -> 27.27079295 | K28: =CalculosEV!J26 -> 0.3968 | L28: =K28/$K$8 -> 1.24 | M28: =CalculosEV!AS$21 -> 
A29: NIref | B29: =J27 -> 1.4 | F29: CI | G29: =I_Necesidades!C85 -> 16.55223283 | H29: P | I29: =((100-$O$9)/100)*I_Necesidades!C99 -> 17.84961264 | J29: =(100+$O$9)/100*I_Necesidades!C99 -> 21.81619323 | K29: =CalculosEV!K26 -> 0.5152 | L29: 1.61 | M29: =CalculosEV!AT21 -> 
A30: NI % PV | B30: =K27 -> 0.05161290323 | F30: UFL | G30: =I_Necesidades!C96 -> 9.70401033 | H30: Mg | I30: =((100-$O$9)/100)*I_Necesidades!C100 -> 47.21381566 | J30: =(100+$O$9)/100*I_Necesidades!C100 -> 57.7057747 | K30: =CalculosEV!L26 -> 0 | L30: 0 | M30: =CalculosEV!AU21 -> Mg
A31: dMOm | B31: =76-2.74*B30 -> 75.85858065 | F31: PDI | G31: =I_Necesidades!C97 -> 956.7165283 | H31: K | I31: =((100-$O$9)/100)*I_Necesidades!C101 -> 78.89010506 | J31: =(100+$O$9)/100*I_Necesidades!C101 -> 96.42123951 | K31: =CalculosEV!M26 -> 0 | L31: 0 | M31: =CalculosEV!AV21 -> K
A32: Δ dMO_NI | B32: =-2.74*(B30-B29)/100 -> 0.03694580645 | F32: NecPDI_PUendo | G32: =I_Necesidades!C89 -> 193.44 | H32: Na | I32: =((100-$O$9)/100)*I_Necesidades!C102 -> 17.08263152 | J32: =(100+$O$9)/100*I_Necesidades!C102 -> 20.87877185 | K32: =CalculosEV!N26 -> 0 | L32: 0 | M32: =CalculosEV!AW21 -> Na
A33: Efecto %Co (PCO) | E33: PDI - NecPDI_PUendo | G33: =G31-G32 -> 763.2765283 | H33: S | I33: =((100-$O$9)/100)*(I_Necesidades!C103+2*M8) -> 0.576 | J33: =(100+$O$9)/100*(I_Necesidades!C103+2*M8) -> 0.704 | K33: =CalculosEV!O26 -> 0 | L33: 0 | M33: =CalculosEV!AX21 -> S
A34: PCO | B34: =K12 -> 0 | F34: EfPDI | G34: 0.67 | H34: Cl | I34: =((100-$O$9)/100)*I_Necesidades!C104 -> 20.94621051 | J34: =(100+$O$9)/100*I_Necesidades!C104 -> 25.60092395 | K34: =CalculosEV!P26 -> 0 | L34: 0 | M34: =CalculosEV!AY21 -> Cl
A35: Δ dMO_CO | B35: =IF(B34=0,0,(-6.5/(1+(0.35/B34)^3))/100) -> 0 | H35: Co | I35: =((100-$O$9)/100)*(I_Necesidades!C105+0.3*M8) -> 0.0864 | J35: =(100+$O$9)/100*(I_Necesidades!C105+0.3*M8) -> 0.1056 | K35: =CalculosEV!Q26 -> 0 | L35: 0 | M35: =CalculosEV!AZ21 -> Co
A36: Efecto balance proteico rumen | H36: Cu | I36: =((100-$O$9)/100)*(I_Necesidades!C106+10*M8) -> 2.88 | J36: =(100+$O$9)/100*(I_Necesidades!C106+10*M8) -> 3.52 | K36: =CalculosEV!R26 -> 0 | L36: 0 | M36: =CalculosEV!AN$21 -> 
A37: MNT ingerida | B37: =L45 -> 76 | H37: Mn | I37: =((100-$O$9)/100)*(I_Necesidades!C107+50*M8) -> 14.4 | J37: =(100+$O$9)/100*(I_Necesidades!C107+50*M8) -> 17.6 | K37: =CalculosEV!S26 -> 0 | L37: 0 | M37: =CalculosEV!BB21 -> Mn
A38: MOrD o MOF | B38: =L57 -> 601.7570275 | H38: Zn | I38: =((100-$O$9)/100)*(I_Necesidades!C108+50*M8) -> -658.8252682 | J38: =(100+$O$9)/100*(I_Necesidades!C108+50*M8) -> -805.2308834 | K38: =CalculosEV!T26 -> 0 | L38: 0 | M38: =CalculosEV!BC21 -> Zn
A39: MNrD_rumen (MNF) fermentadas rumen | B39: =B37*L56 -> 57 | H39: Yodo | I39: =((100-$O$9)/100)*(I_Necesidades!C109+0.65*M8) -> 0.1872 | J39: =(100+$O$9)/100*(I_Necesidades!C109+0.65*M8) -> 0.2288 | K39: =CalculosEV!U26 -> 0 | L39: 0 | M39: =CalculosEV!BD21 -> Yodo
A40: MN alim_duodeno (PIA) no ferm en rumen | B40: =B37*(1-L56) -> 19 | H40: Se | I40: =((100-$O$9)/100)*I_Necesidades!C113 -> 0 | J40: =(100+$O$9)/100*I_Necesidades!C110 -> 0 | K40: =CalculosEV!V26 -> 0 | L40: 0 | M40: =CalculosEV!BE21 -> Se
A41: MN microbiana intestino ( 41,7 + 71,9 x 10^-3 x MOrD_rumen + 8,40 x PCO) | B41: =41.7+(B38*71.9*10^-3)+6.4*B34 -> 84.96633028 | H41: Vit A | I41: =IF(K12<0.4,IF(I_Necesidades!C52=0,((100-$O$9)/100)*6000*K8,((100-$O$9)/100)*4000*K8),IF(I_Necesidades!C52=0,((100-$O$9)/100)*9000*K8,((100-$O$9)/100)*6600*K8)) -> 1152 | J41: =IF(K12<0.4,IF(I_Necesidades!C52=0,((100+$O$9)/100)*6000*K8,((100+$O$9)/100)*4000*K8),IF(I_Necesidades!C52=0,((100+$O$9)/100)*9000*K8,((100+$O$9)/100)*6600*K8)) -> 1408 | K41: =CalculosEV!W26 -> 0 | L41: 0 | M41: =CalculosEV!BF21 -> Vit A
A42: MN endógena | B42: 14.2 | H42: Vit D | I42: =((100-$O$9)/100)*1000*K8 -> 288 | J42: =(100+$O$9)/100*1000*K8 -> 352 | K42: =CalculosEV!X26 -> 0 | L42: 0 | M42: =CalculosEV!BG21 -> Vit D
A43: BPR ración | B43: =B37-(B40+B41+B42) -> -42.16633028 | H43: Vit E | I43: =IF(K12<0.4,IF(I_Necesidades!C52=0,((100-$O$9)/100)*25*K8,((100-$O$9)/100)*15*K8),40*K8) -> 4.32 | J43: =IF(K12<0.4,IF(I_Necesidades!C52=0,((100+$O$9)/100)*25*K8,((100+$O$9)/100)*15*K8),40*K8) -> 5.28 | K43: =CalculosEV!Y26 -> 0 | L43: 0 | M43: =CalculosEV!BH21 -> Vit E
A44: BPR ref | B44: =-L26 -> -42.13633028 | H44: AG | K44: =CalculosEV!Z26 -> 7.68 | L44: 24 | M44: =CalculosEV!BI21 -> 
A45: Δ dMO_BPR | B45: =(0.06*(B43-B44))/100 -> -1.8e-05 | H45: MNT_PB | K45: =CalculosEV!AA26 -> 24.32 | L45: 76 | M45: =CalculosEV!BJ21 -> 
H46: PDIA | K46: =CalculosEV!AB26 -> 4.256 | L46: 13.3 | M46: =CalculosEV!BK21 -> 
A47: ∑ dMO x PMO | B47: =K47 -> 0.7008046463 | H47: dMO | J47: =B48 -> 0.7377324527 | K47: =CalculosEV!AC26 -> 0.7008046463 | L47: =J47 -> 0.7377324527 | M47: =CalculosEV!BL21 -> 
A48: Efecto total interacciones | B48: =B47+(B32+B35+B45) -> 0.7377324527 | H48: MOD | K48: =CalculosEV!AD26 -> 212.3269885 | L48: =K48/$K$8 -> 663.5218391 | M48: =CalculosEV!BM21 -> 
H49: EE | J49: =IF(I_Necesidades!C87=0,3,IF(G29<18,4,IF(G30<20,4,IF(G30<24,6,7)))) -> 4 | K49: =CalculosEV!AE26 -> 10.24 | L49: =K49/($K$8*10) -> 3.2 | M49: =CalculosEV!BN21 -> 
A50: MODc_rumen (MOF corregida) | B50: =B38*B48/B47 -> 633.4656743 | H50: FB | K50: =CalculosEV!AF26 -> 64.64 | L50: =K50/$K$8 -> 202 | M50: =CalculosEV!BO21 -> 
A51: PANDI | B51: =0.193*B40 -> 3.667 | H51: NDF | K51: =CalculosEV!AG26 -> 138.368 | L51: 432.4 | M51: =CalculosEV!BP21 -> 
A52: dr | B52: =(B40-B51)/B40 -> 0.807 | H52: ADF | K52: =CalculosEV!AH26 -> 78.208 | L52: 244.4 | M52: =CalculosEV!BQ21 -> 
A53: PDIA | B53: =B37*(1-L56)*B52 -> 15.333 | H53: Lignina | K53: =CalculosEV!AI26 -> 8.48 | L53: 26.5 | M53: =CalculosEV!BR21 -> 
A54: MN microbianas_duodeno (corregida) | B54: =40.7+75.6*10^-3*B50+8.07*B34-0.0114*B43 -> 89.07070114 | H54: Cenizas | K54: =CalculosEV!AJ26 -> 17.024 | L54: 53.2 | M54: =CalculosEV!BS21 -> 
A55: PDI = PDIA + MN microbianas_duodeno x 0,8 x 0,8 | B55: =B53+B54*0.8*0.8 -> 72.33824873 | H55: Mo | K55: =CalculosEV!AK26 -> 0 | L55: 0 | M55: =CalculosEV!BT21 -> Mo
A56: flujo de N duodenal endógeno (Actualización) | H56: DT_N | K56: =CalculosEV!AL26 -> 0.75 | L56: =K56 -> 0.75 | M56: =CalculosEV!BU21 -> 
A57: MOND = MO - MODc_rumen | B57: =L58-B50 -> 265.9414707 | H57: MOF | K57: =CalculosEV!AM26 -> 192.5622488 | L57: =K57/K21 -> 601.7570275 | M57: =CalculosEV!BV21 -> 
A58: N duodenal endo, g MNT/kg MSI = 14,2 x MSI | B58: =14.2*K8 -> 4.544 | H58: MO | K58: =K48/L47 -> 287.8102864 | L58: =K58/K21 -> 899.407145 | M58: =CalculosEV!AN$21 -> 
A59: PÉRDIDAS FECALES ENDÓGENAS (PEF) Y (NEC_PDI Actualización) | H59: PDI/UFL | I59: =((100-$O$9)/100)*G31/G30 -> 88.73082841 | J59: =((100+$O$9)/100)*G31/G30 -> 108.4487903 | K59: =K25/K24 -> 53.83653008 | L59: =K59 -> 53.83653008
A60: MNND = 0,163 x MN alim_duodeno + 0,20 x MN mic_duodeno + 5,7 + 0,074 x MOND | B60: =0.163*B40+0.2*B54+5.7+0.074*B57 -> 46.29080906
A61: PEF (proteínas endógenas fecales) = 5,7 + 0,074 x MOND | B61: =5.7+0.074*B57 -> 25.37966883
A62: Nec PDI_PEF = MSI x [0,5 x (5,7 + 0,074 x MOND)]/EfPDI | B62: =K8*(0.5*(5.7+0.074*B57))/B79 -> 7.91636232
A63: PÉRDIDAS ENDÓGENAS URINARIAS Y (NEC_PDI ActualizacióN)
A64: log10 NU (N urinariO g/dÍa) log10 NU = - 1,17 + 1,00 x log10 Pv | B64: =-1.17+LOG10(I_Necesidades!C114) -> 1.622391689
A65: NU | B65: =10^B64 -> 41.91714447
A66: NUNP microbiano/NU = 0,3325/(1 + (NU/0,203)) | B66: =0.3325/(1+(B65/0.203)) -> 0.001602499252
A67: NU endo | B67: =0.05*I_Necesidades!C114 -> 31
A68: Nec PDI_NU endo | B68: =G32 -> 193.44
A69: PÉRDIDADS NITROGENADAS POR EPIDERMIS Y (Nec_PDI ActualizacióN)
A70: P epidérmicas (0,2 g PDI/kg Pv0,60) | B70: =0.2*I_Necesidades!C114^0.6 -> 9.472508625
A71: Nec PDI_P epidérmicas = 0,2 x Pv0,60/EffPDI | B71: =B70/B79 -> 18.46650631
A72: Nec_PDI no productivas | B72: =B62+B68+B71 -> 219.8228686
A73: Eficacia de la síntesis proteica en lactación
A74: PDI disponible = PDI ingerida - Nec PDI_NU endógenas | B74: =K25-B68 -> -176.8323066
A75: EfPDI = ∑ gastos prot/PDI disponible = 0,67xEXP(-0,007x(PDI-100) | B75: =0.67*EXP(-0.007*(L25-100)) -> 0.9382199579
A76: Bal EN | B76: =K24-G30 -> -9.395526603
A77: bal Proteína | B77: =K25-G31 -> -940.1088349
A78: MP | B78: =I_Necesidades!C115 -> 356.6752384
A79: EfPDI = (PEF + P epid + MP + bal Prote)/(PDI disponible) | B79: =IF(B76>0,(B61+B70+B78+B77)/B74,(B61+B70+B78)/(B74+ABS(B77))) -> 0.5129561848
A81: NUcal=0,79xBPR/6,25 + (PDI/6,25) x (1-E·fPDI)+Nuendo + NUNPmic + 0,47X bal N | B81: =(0.79*B43/6.25+(K25/6.25)*(1-B79)+B67/6.25+(B41/6.25)+0.47*ABS(B77)/6.25)/B79 -> 166.1256137

Sheet III_Resultado Ración
A1: Explotación: | B1: Fecha | C1: =TODAY() -> 2026-02-12 | D1: Peso vaca | E1: =I_Necesidades!C117 -> 0
A2: =IF(I_Necesidades!B83=1,"Ración para el conjunto de la explotación","Ración individual") -> Ración individual | B2: Mes estabulación | C2: =I_Necesidades!C85 -> 16.55223283 | D2: Producción leche | E2: =I_Necesidades!C87 -> 6.088213127
B3: Estado fisiológico | C3: =IF(I_Necesidades!B83=1,I_Necesidades!B85,I_Necesidades!C86) -> 15.15761045
B4: =IF(I_Necesidades!B83=1,I_Necesidades!B86,"") ->  | C4: =IF(I_Necesidades!B83=1,I_Necesidades!C86,"") ->  | G4: NUTRIENTS | H4: ANALISIS
G5: MSI (kg/día) | H5: ='II_Plantear Ración'!K21 -> 0.32 | I5: Kg
A6: INGREDIENTES | B6: kg/día | C6: % MF | D6: kg/tonelada | E6: COSTE | G6: %MS ración | H6: ='II_Plantear Ración'!K22 -> 32 | I6: =IF('II_Plantear Ración'!L23=1,"g","%") -> % | J6: Mínimo | K6: Valor | L6: Máximo
A7: =IF(B7="","",CalculosEV!B3) -> ENSILADO Maíz vidrioso | B7: =IF('II_Plantear Ración'!D4=0,"",'II_Plantear Ración'!D4) -> 1 | C7: =IF('II_Plantear Ración'!D4=0,"",'II_Plantear Ración'!F4) -> 100 | D7: =IF('II_Plantear Ración'!D4=0,"",('II_Plantear Ración'!D4*1000)/('II_Plantear Ración'!$K$4)) -> 1000 | E7: =IF('II_Plantear Ración'!D4=0,"",'II_Plantear Ración'!G4*B7) -> 0.04 | G7: UEB | H7: ='II_Plantear Ración'!L23 -> 1.825756293 | I7: UEB/kg MS | J7: ='II_Plantear Ración'!I23 -> 14.89700955 | K7: ='II_Plantear Ración'!K23 -> 0.5842420138 | L7: ='II_Plantear Ración'!J23 -> 18.20745611 | M7: =IF(K7>=J7,IF(K7<=L7,"OK","Exceso"),"Deficit") -> Deficit
A8: =IF(B8="","",CalculosEV!B4) ->  | B8: =IF('II_Plantear Ración'!D5=0,"",'II_Plantear Ración'!D5) ->  | C8: =IF('II_Plantear Ración'!D5=0,"",'II_Plantear Ración'!F5) ->  | D8: =IF('II_Plantear Ración'!D5=0,"",('II_Plantear Ración'!D5*1000)/('II_Plantear Ración'!$K$4)) ->  | E8: =IF('II_Plantear Ración'!D5=0,"",'II_Plantear Ración'!G5*B8) ->  | G8: UFV | H8: ='II_Plantear Ración'!L24 -> 0.9640116468 | I8: UFV/kg MS | J8: ='II_Plantear Ración'!I24 -> 8.29644128 | K8: ='II_Plantear Ración'!K24 -> 0.308483727 | L8: ='II_Plantear Ración'!J24 -> 10.1400949 | M8: =IF(K8>=J8,IF(K8<=L8,"OK","Exceso"),"Deficit") -> Deficit
A9: =IF(B9="","",CalculosEV!B5) ->  | B9: =IF('II_Plantear Ración'!D6=0,"",'II_Plantear Ración'!D6) ->  | C9: =IF('II_Plantear Ración'!D6=0,"",'II_Plantear Ración'!F6) ->  | D9: =IF('II_Plantear Ración'!D6=0,"",('II_Plantear Ración'!D6*1000)/('II_Plantear Ración'!$K$4)) ->  | E9: =IF('II_Plantear Ración'!D6=0,"",'II_Plantear Ración'!G6*B9) ->  | G9: PDI | H9: ='II_Plantear Ración'!L25 -> 51.89904202 | I9: g/kg MS | J9: ='II_Plantear Ración'!I25 -> 639.8614085 | K9: ='II_Plantear Ración'!K25 -> 16.60769345 | L9: ='II_Plantear Ración'!J25 -> 782.0528326 | M9: Deficit | N9: ='II_Plantear Ración'!M20 -> En algunos ingredientes de la ración no constan los nutrientes ...
A10: =IF(B10="","",CalculosEV!B6) ->  | B10: =IF('II_Plantear Ración'!D7=0,"",'II_Plantear Ración'!D7) ->  | C10: =IF('II_Plantear Ración'!D7=0,"",'II_Plantear Ración'!F7) ->  | D10: =IF('II_Plantear Ración'!D7=0,"",('II_Plantear Ración'!D7*1000)/('II_Plantear Ración'!$K$4)) ->  | E10: =IF('II_Plantear Ración'!D7=0,"",'II_Plantear Ración'!G7*B10) ->  | G10: BPR | H10: ='II_Plantear Ración'!L26 -> 42.13633028 | I10: g PDI/kg MS | J10: ='II_Plantear Ración'!I26 -> 15 | K10: ='II_Plantear Ración'!L26 -> 42.13633028 | L10: ='II_Plantear Ración'!J26 -> 8 | M10: =IF(K10<=J10,IF(K10>=L10,"OK","Exceso"),"Deficit") -> Deficit
A11: =IF(B11="","",CalculosEV!B7) ->  | B11: =IF('II_Plantear Ración'!D8=0,"",'II_Plantear Ración'!D8) ->  | C11: =IF('II_Plantear Ración'!D8=0,"",'II_Plantear Ración'!F8) ->  | D11: =IF('II_Plantear Ración'!D8=0,"",('II_Plantear Ración'!D8*1000)/('II_Plantear Ración'!$K$4)) ->  | E11: =IF('II_Plantear Ración'!D8=0,"",'II_Plantear Ración'!G8*B11) ->  | G11: NI | H11: ='II_Plantear Ración'!L27 -> 0.05161290323 | I11: % Pv | J11: ='II_Plantear Ración'!I27 -> 1.4 | K11: ='II_Plantear Ración'!K27 -> 0.05161290323 | L11: ='II_Plantear Ración'!J27 -> 1.4 | M11: Deficit
A12: =IF(B12="","",CalculosEV!B8) ->  | B12: =IF('II_Plantear Ración'!D9=0,"",'II_Plantear Ración'!D9) ->  | C12: =IF('II_Plantear Ración'!D9=0,"",'II_Plantear Ración'!F9) ->  | D12: =IF('II_Plantear Ración'!D9=0,"",('II_Plantear Ración'!D9*1000)/('II_Plantear Ración'!$K$4)) ->  | E12: =IF('II_Plantear Ración'!D9=0,"",'II_Plantear Ración'!G9*B12) ->  | G12: Ca | H12: ='II_Plantear Ración'!L28 -> 1.24 | I12: g/kg MS | J12: ='II_Plantear Ración'!I28 -> 22.31246696 | K12: ='II_Plantear Ración'!K28 -> 0.3968 | L12: ='II_Plantear Ración'!J28 -> 27.27079295 | M12: Deficit | N12: ='II_Plantear Ración'!M28 -> 
A13: =IF(B13="","",CalculosEV!B9) ->  | B13: =IF('II_Plantear Ración'!D10=0,"",'II_Plantear Ración'!D10) ->  | C13: =IF('II_Plantear Ración'!D10=0,"",'II_Plantear Ración'!F10) ->  | D13: =IF('II_Plantear Ración'!D10=0,"",('II_Plantear Ración'!D10*1000)/('II_Plantear Ración'!$K$4)) ->  | E13: =IF('II_Plantear Ración'!D10=0,"",'II_Plantear Ración'!G10*B13) ->  | G13: P | H13: ='II_Plantear Ración'!L29 -> 1.61 | I13: g/kg MS | J13: ='II_Plantear Ración'!I29 -> 17.84961264 | K13: ='II_Plantear Ración'!K29 -> 0.5152 | L13: ='II_Plantear Ración'!J29 -> 21.81619323 | M13: Deficit | N13: ='II_Plantear Ración'!M29 -> 
A14: =IF(B14="","",CalculosEV!B10) ->  | B14: =IF('II_Plantear Ración'!D11=0,"",'II_Plantear Ración'!D11) ->  | C14: =IF('II_Plantear Ración'!D11=0,"",'II_Plantear Ración'!F11) ->  | D14: =IF('II_Plantear Ración'!D11=0,"",('II_Plantear Ración'!D11*1000)/('II_Plantear Ración'!$K$4)) ->  | E14: =IF('II_Plantear Ración'!D11=0,"",'II_Plantear Ración'!G11*B14) ->  | G14: Mg | H14: ='II_Plantear Ración'!L30 -> 0 | I14: g/kg MS | N14: ='II_Plantear Ración'!M30 -> Mg
A15: =IF(B15="","",CalculosEV!B11) ->  | B15: =IF('II_Plantear Ración'!D12=0,"",'II_Plantear Ración'!D12) ->  | C15: =IF('II_Plantear Ración'!D12=0,"",'II_Plantear Ración'!F12) ->  | D15: =IF('II_Plantear Ración'!D12=0,"",('II_Plantear Ración'!D12*1000)/('II_Plantear Ración'!$K$4)) ->  | E15: =IF('II_Plantear Ración'!D12=0,"",'II_Plantear Ración'!G12*B15) ->  | G15: K | H15: ='II_Plantear Ración'!L31 -> 0 | I15: g/kg MS | N15: ='II_Plantear Ración'!M31 -> K
A16: =IF(B16="","",CalculosEV!B12) ->  | B16: =IF('II_Plantear Ración'!D13=0,"",'II_Plantear Ración'!D13) ->  | C16: =IF('II_Plantear Ración'!D13=0,"",'II_Plantear Ración'!F13) ->  | D16: =IF('II_Plantear Ración'!D13=0,"",('II_Plantear Ración'!D13*1000)/('II_Plantear Ración'!$K$4)) ->  | E16: =IF('II_Plantear Ración'!D13=0,"",'II_Plantear Ración'!G13*B16) ->  | G16: Na | H16: ='II_Plantear Ración'!L32 -> 0 | I16: g/kg MS | N16: ='II_Plantear Ración'!M32 -> Na
A17: =IF(B17="","",CalculosEV!B13) ->  | B17: =IF('II_Plantear Ración'!D14=0,"",'II_Plantear Ración'!D14) ->  | C17: =IF('II_Plantear Ración'!D14=0,"",'II_Plantear Ración'!F14) ->  | D17: =IF('II_Plantear Ración'!D14=0,"",('II_Plantear Ración'!D14*1000)/('II_Plantear Ración'!$K$4)) ->  | E17: =IF('II_Plantear Ración'!D14=0,"",'II_Plantear Ración'!G14*B17) ->  | G17: S | H17: ='II_Plantear Ración'!L33 -> 0 | I17: g/kg MS | N17: ='II_Plantear Ración'!M33 -> S
A18: =IF(B18="","",CalculosEV!B14) ->  | B18: =IF('II_Plantear Ración'!D15=0,"",'II_Plantear Ración'!D15) ->  | C18: =IF('II_Plantear Ración'!D15=0,"",'II_Plantear Ración'!F15) ->  | D18: =IF('II_Plantear Ración'!D15=0,"",('II_Plantear Ración'!D15*1000)/('II_Plantear Ración'!$K$4)) ->  | E18: =IF('II_Plantear Ración'!D15=0,"",'II_Plantear Ración'!G15*B18) ->  | G18: Cl | H18: ='II_Plantear Ración'!L34 -> 0 | I18: g/kg MS | N18: ='II_Plantear Ración'!M34 -> Cl
A19: =IF(B19="","",CalculosEV!B15) ->  | B19: =IF('II_Plantear Ración'!D16=0,"",'II_Plantear Ración'!D16) ->  | C19: =IF('II_Plantear Ración'!D16=0,"",'II_Plantear Ración'!F16) ->  | D19: =IF('II_Plantear Ración'!D16=0,"",('II_Plantear Ración'!D16*1000)/('II_Plantear Ración'!$K$4)) ->  | E19: =IF('II_Plantear Ración'!D16=0,"",'II_Plantear Ración'!G16*B19) ->  | G19: Co | H19: ='II_Plantear Ración'!L35 -> 0 | I19: mg/kg MS | N19: ='II_Plantear Ración'!M35 -> Co
A20: =IF(B20="","",CalculosEV!B16) ->  | B20: =IF('II_Plantear Ración'!D17=0,"",'II_Plantear Ración'!D17) ->  | C20: =IF('II_Plantear Ración'!D17=0,"",'II_Plantear Ración'!F17) ->  | D20: =IF('II_Plantear Ración'!D17=0,"",('II_Plantear Ración'!D17*1000)/('II_Plantear Ración'!$K$4)) ->  | E20: =IF('II_Plantear Ración'!D17=0,"",'II_Plantear Ración'!G17*B20) ->  | G20: Cu | H20: ='II_Plantear Ración'!L36 -> 0 | I20: mg/kg MS | N20: ='II_Plantear Ración'!M36 -> 
A21: =IF(B21="","",CalculosEV!B17) ->  | B21: =IF('II_Plantear Ración'!D18=0,"",'II_Plantear Ración'!D18) ->  | C21: =IF('II_Plantear Ración'!D18=0,"",'II_Plantear Ración'!F18) ->  | D21: =IF('II_Plantear Ración'!D18=0,"",('II_Plantear Ración'!D18*1000)/('II_Plantear Ración'!$K$4)) ->  | E21: =IF('II_Plantear Ración'!D18=0,"",'II_Plantear Ración'!G18*B21) ->  | G21: Mn | H21: ='II_Plantear Ración'!L37 -> 0 | I21: mg/kg MS | N21: ='II_Plantear Ración'!M37 -> Mn
A22: =IF(B22="","",CalculosEV!B18) ->  | B22: =IF('II_Plantear Ración'!D19=0,"",'II_Plantear Ración'!D19) ->  | C22: =IF('II_Plantear Ración'!D19=0,"",'II_Plantear Ración'!F19) ->  | D22: =IF('II_Plantear Ración'!D19=0,"",('II_Plantear Ración'!D19*1000)/('II_Plantear Ración'!$K$4)) ->  | E22: =IF('II_Plantear Ración'!D19=0,"",'II_Plantear Ración'!G19*B22) ->  | G22: Zn | H22: ='II_Plantear Ración'!L38 -> 0 | I22: mg/kg MS | N22: ='II_Plantear Ración'!M38 -> Zn
A23: =IF(B23="","",CalculosEV!B19) ->  | B23: =IF('II_Plantear Ración'!D20=0,"",'II_Plantear Ración'!D20) ->  | C23: =IF('II_Plantear Ración'!D20=0,"",'II_Plantear Ración'!F20) ->  | D23: =IF('II_Plantear Ración'!D20=0,"",('II_Plantear Ración'!D20*1000)/('II_Plantear Ración'!$K$4)) ->  | E23: =IF('II_Plantear Ración'!D20=0,"",'II_Plantear Ración'!G20*B23) ->  | G23: Yodo | H23: ='II_Plantear Ración'!L39 -> 0 | I23: mg/kg MS | N23: ='II_Plantear Ración'!M39 -> Yodo
A24: =IF(B24="","",CalculosEV!B20) ->  | B24: =IF('II_Plantear Ración'!D21=0,"",'II_Plantear Ración'!D21) ->  | C24: =IF('II_Plantear Ración'!D21=0,"",'II_Plantear Ración'!F21) ->  | D24: =IF('II_Plantear Ración'!D21=0,"",('II_Plantear Ración'!D21*1000)/('II_Plantear Ración'!$K$4)) ->  | E24: =IF('II_Plantear Ración'!D21=0,"",'II_Plantear Ración'!G21*B24) ->  | G24: Se | H24: ='II_Plantear Ración'!L40 -> 0 | I24: mg/kg MS | N24: ='II_Plantear Ración'!M40 -> Se
A25: =IF(B25="","",CalculosEV!B21) ->  | B25: =IF('II_Plantear Ración'!D22=0,"",'II_Plantear Ración'!D22) ->  | C25: =IF('II_Plantear Ración'!D22=0,"",'II_Plantear Ración'!F22) ->  | D25: =IF('II_Plantear Ración'!D22=0,"",('II_Plantear Ración'!D22*1000)/('II_Plantear Ración'!$K$4)) ->  | E25: =IF('II_Plantear Ración'!D22=0,"",'II_Plantear Ración'!G22*B25) ->  | G25: Vit A | H25: ='II_Plantear Ración'!L41 -> 0 | I25: UI | N25: ='II_Plantear Ración'!M41 -> Vit A
A26: =IF(B26="","",CalculosEV!B22) ->  | B26: =IF('II_Plantear Ración'!D23=0,"",'II_Plantear Ración'!D23) ->  | C26: =IF('II_Plantear Ración'!D23=0,"",'II_Plantear Ración'!F23) ->  | D26: =IF('II_Plantear Ración'!D23=0,"",('II_Plantear Ración'!D23*1000)/('II_Plantear Ración'!$K$4)) ->  | E26: =IF('II_Plantear Ración'!D23=0,"",'II_Plantear Ración'!G23*B26) ->  | G26: Vit D | H26: ='II_Plantear Ración'!L42 -> 0 | I26: UI | N26: ='II_Plantear Ración'!M42 -> Vit D
A27: =IF(B27="","",CalculosEV!B23) ->  | B27: =IF('II_Plantear Ración'!D24=0,"",'II_Plantear Ración'!D24) ->  | C27: =IF('II_Plantear Ración'!D24=0,"",'II_Plantear Ración'!F24) ->  | D27: =IF('II_Plantear Ración'!D24=0,"",('II_Plantear Ración'!D24*1000)/('II_Plantear Ración'!$K$4)) ->  | E27: =IF('II_Plantear Ración'!D24=0,"",'II_Plantear Ración'!G24*B27) ->  | G27: Vit E | H27: ='II_Plantear Ración'!L43 -> 0 | I27: UI | N27: ='II_Plantear Ración'!M43 -> Vit E
A28: =IF(B28="","",CalculosEV!B24) ->  | B28: =IF('II_Plantear Ración'!D25=0,"",'II_Plantear Ración'!D25) ->  | C28: =IF('II_Plantear Ración'!D25=0,"",'II_Plantear Ración'!F25) ->  | D28: =IF('II_Plantear Ración'!D25=0,"",('II_Plantear Ración'!D25*1000)/('II_Plantear Ración'!$K$4)) ->  | E28: =IF('II_Plantear Ración'!D25=0,"",'II_Plantear Ración'!G25*B28) ->  | G28: AG | H28: ='II_Plantear Ración'!L44 -> 24 | I28: g/kg MS | N28: ='II_Plantear Ración'!M44 -> 
A29: =IF(B29="","",CalculosEV!B25) ->  | B29: =IF('II_Plantear Ración'!D26=0,"",'II_Plantear Ración'!D26) ->  | C29: =IF('II_Plantear Ración'!D26=0,"",'II_Plantear Ración'!F26) ->  | D29: =IF('II_Plantear Ración'!D26=0,"",('II_Plantear Ración'!D26*1000)/('II_Plantear Ración'!$K$4)) ->  | E29: =IF('II_Plantear Ración'!D26=0,"",'II_Plantear Ración'!G26*B29) ->  | G29: MNT_PB | H29: ='II_Plantear Ración'!L45 -> 76 | I29: g/kg MS | N29: ='II_Plantear Ración'!M45 -> 
A30: TOTAL | B30: =SUM(B7:B29) -> 1 | C30: =SUM(C7:C29) -> 100 | D30: =SUM(D7:D29) -> 1000 | E30: ='II_Plantear Ración'!K16 -> 0.04 | G30: PDIA | H30: ='II_Plantear Ración'!L46 -> 13.3 | I30: g/kg MS | N30: ='II_Plantear Ración'!M46 -> 
G31: dMO | H31: ='II_Plantear Ración'!L47 -> 0.7377324527 | N31: ='II_Plantear Ración'!M47 -> 
B32: Fo % | C32: ='II_Plantear Ración'!K11 -> 100 | D32: % grasa s/MS | E32: ='II_Plantear Ración'!L49 -> 3.2 | G32: MOD | H32: ='II_Plantear Ración'!L48 -> 663.5218391 | I32: g/kg MS | N32: ='II_Plantear Ración'!M48 -> 
B33: Co % | C33: ='II_Plantear Ración'!K12*100 -> 0 | G33: EE | H33: ='II_Plantear Ración'!L49 -> 3.2 | I33: % | N33: ='II_Plantear Ración'!M49 -> 
G34: FB | H34: ='II_Plantear Ración'!L50 -> 202 | I34: g/kg MS | N34: ='II_Plantear Ración'!M50 -> 
G35: NDF | H35: ='II_Plantear Ración'!L51 -> 432.4 | I35: g/kg MS | N35: ='II_Plantear Ración'!M51 -> 
G36: ADF | H36: ='II_Plantear Ración'!L52 -> 244.4 | I36: g/kg MS | N36: ='II_Plantear Ración'!M52 -> 
G37: Lignina | H37: ='II_Plantear Ración'!L53 -> 26.5 | I37: g/kg MS | N37: ='II_Plantear Ración'!M53 -> 
G38: Cenizas | H38: ='II_Plantear Ración'!L54 -> 53.2 | I38: g/kg MS | N38: ='II_Plantear Ración'!M54 -> 
G39: Mo | H39: ='II_Plantear Ración'!L55 -> 0 | I39: mg/kg MS | N39: ='II_Plantear Ración'!M55 -> Mo
G40: DT_N | H40: ='II_Plantear Ración'!L56 -> 0.75 | N40: ='II_Plantear Ración'!M56 -> 
G41: MOF | H41: ='II_Plantear Ración'!L57 -> 601.7570275 | I41: g/kg MS | N41: ='II_Plantear Ración'!M57 -> 
G42: MO | H42: ='II_Plantear Ración'!L58 -> 899.407145 | I42: g/kg MS | N42: ='II_Plantear Ración'!M58 -> 
G43: PDI/UFL | H43: ='II_Plantear Ración'!L59 -> 53.83653008 | I43: g | N43: ='II_Plantear Ración'!M58 -> 
A59: =IF(B59="","",CalculosEV!B26) ->  | B59: =IF('II_Plantear Ración'!D27=0,"",'II_Plantear Ración'!D27) -> 

Sheet Índices (hidden)
A1: Índice actividad
A2: Trabada
A3: Libre
A4: Pastoreo
A6: Entrada a estabulación
A7: Octubre | B7: 10
A8: Noviembre | B8: 11
A9: Diciembre | B9: 12
A11: Salida a pasto
A12: Abril | B12: 16
A13: Mayo | B13: 17
A14: Junio | B14: 18
A18: Octubre | B18: 10
A19: Noviembre | B19: 11
A20: Diciembre | B20: 12
A22: Tipos tazas
A23: Lecheras y cruzadas con lecheras
A24: Tipo Limusinas
A25: Resto razas
A27: Paridad
A28: Primípara
A29: Multípara
A32: Meses estabulación | C32: Mes estabulación vaca individual
A33: =IF(I_Necesidades!C6=1,"Octubre","") -> Octubre | C33: =IF(I_Necesidades!C6=1,"Octubre","") -> Octubre
A34: =IF(A33="",IF(I_Necesidades!C6=2,"Noviembre",""),"Noviembre") -> Noviembre | C34: =IF(C33="",IF(I_Necesidades!C6=2,"Noviembre",""),"Noviembre") -> Noviembre
A35: =IF(I_Necesidades!C6=3,"Diciembre","Diciembre") -> Diciembre | C35: =IF(I_Necesidades!C6=3,"Diciembre","Diciembre") -> Diciembre
A36: Enero | C36: Enero
A37: Febreroo | C37: Febreroo
A38: Marzo | C38: Marzo
A39: =IF(I_Necesidades!C7=1,"","Abril") ->  | C39: =IF(I_Necesidades!C7=1,"","Abril") -> 
A40: =IF(A39="","",IF(I_Necesidades!C7=3,"Mayo","")) ->  | C40: =IF(C39="","",IF(I_Necesidades!C7=3,"Mayo","")) -> 
A41: =IF(I_Necesidades!C8=12,"","Enero segundo año") -> Enero segundo año
A42: =IF(A41="","",IF(I_Necesidades!C8>13,"Febrero segundo año","")) -> Febrero segundo año
A43: =IF(A42="","",IF(I_Necesidades!C8=15,"Marzo segundo año","")) -> 
B45: Prim | C45: Multi | D45: Medía
B46: =I_Necesidades!$C$18/259 -> 9.652509653 | C46: =I_Necesidades!$C$18/224 -> 11.16071429 | D46: =$B$46*I_Necesidades!$C$14+$C$46*(1-I_Necesidades!$C$14) -> 10.7082529
A47: Producción estimada de leche | B47: sem L/semG | F47: PL díaria | G47: I_CIraza | H47: I_CIestado | I47: I_CIpar | J47: I_CI_cc | K47: CI UE | L47: CI MS1 | M47: CIMS2 | N47: CI MS | O47: NecUFL_gest1 | P47: NecUFL_gest2 | Q47: NecUFL_gest | R47: NecPDI_gest1 | S47: NecPDI_gest2 | T47: NecPDI_gest | U47: Ca | V47: P | W47: Mg | X47: K | Y47: Na | Z47: S | AA47: Cl | AB47: Co mg/día | AC47: Cu mg/día | AD47: Mn mg/día | AE47: Zn mg/día | AF47: I mg/día | AG47: Se mg/día
A48: 1 L | B48: 1 | C48: 4 | D48: =$D$46*(-0.55+(1.66*EXP(-0.0065*B48))-(0.72*EXP(-0.88*B48))) -> 8.573041138 | E48: 11.20173904 | F48: =AVERAGE(D48:E48) -> 9.887390089 | G48: =I_Necesidades!D4 -> 1.15 | H48: 0.98 | I48: 1 | J48: 0.0015 | K48: =$G$48*H48*$I$48*(3.2+(0.015*I_Necesidades!$C$19)+(0.25*F48)-J48*I_Necesidades!$C$19*(I_Necesidades!$C$21-2.5)) -> 15.82516216 | L48: =0.372*D48+0.0968*(I_Necesidades!$C$19^0.75)*(1-EXP(-0.192*(B48+3.67))) -> 10.3100943 | M48: =0.372*E48+0.0968*(I_Necesidades!$C$19^0.75)*(1-EXP(-0.192*(C48+3.67))) -> 13.43627605 | N48: =AVERAGE(L48:M48) -> 11.87318517 | W48: =(0.011*I_Necesidades!$C$19+0.15*F48)/0.16 -> 51.89442821 | X48: =0.116*I_Necesidades!$C$19+1.5*F48 -> 86.75108513 | Y48: =0.023*I_Necesidades!$C$19+0.45*F48 -> 18.70932554 | Z48: =2*N48 -> 23.74637034 | AA48: =0.035*I_Necesidades!$C$19+0.15*F48 -> 23.18310851 | AB48: =0.3*N48 -> 3.561955552 | AC48: =10*N48 -> 118.7318517 | AD48: =50*N48 -> 593.6592586 | AE48: =50*N48 -> 593.6592586 | AF48: =0.65*N48 -> 7.717570362 | AG48: =0.15 -> 0.15
A49: 2 L | B49: 5 | C49: 9 | D49: 11.2230798 | E49: 10.87331236 | F49: 11.04819608 | H49: 1 | J49: 0.0015 | K49: =$G$48*H49*$I$48*(3.2+(0.015*I_Necesidades!$C$19)+(0.25*F49)-J49*I_Necesidades!$C$19*(I_Necesidades!$C$21-2.5)) -> 16.48185637 | L49: =0.372*D49+0.0968*(I_Necesidades!$C$19^0.75)*(1-EXP(-0.192*(B49+3.67))) -> 13.92603559 | M49: =0.372*E49+0.0968*(I_Necesidades!$C$19^0.75)*(1-EXP(-0.192*(C49+3.67))) -> 15.01614324 | N49: 14.47108942 | W49: =(0.011*I_Necesidades!$C$19+0.15*F49)/0.16 -> 52.98268383 | X49: =0.116*I_Necesidades!$C$19+1.5*F49 -> 88.49229412 | Y49: =0.023*I_Necesidades!$C$19+0.45*F49 -> 19.23168824 | Z49: 28.94217883 | AA49: =0.035*I_Necesidades!$C$19+0.15*F49 -> 23.35722941 | AB49: 4.341326825 | AC49: 144.7108942 | AD49: 723.5544708 | AE49: 723.5544708 | AF49: 9.406208121 | AG49: 0.15
A50: 3 L | B50: 10 | C50: 14 | D50: 10.76632869 | E50: 10.33995526 | F50: 10.55314197 | H50: 1.02 | J50: 0.0015 | K50: =$G$48*H50*$I$48*(3.2+(0.015*I_Necesidades!$C$19)+(0.25*F50)-J50*I_Necesidades!$C$19*(I_Necesidades!$C$21-2.5)) -> 16.66631888 | L50: =0.372*D50+0.0968*(I_Necesidades!$C$19^0.75)*(1-EXP(-0.192*(B50+3.67))) -> 15.16083106 | M50: =0.372*E50+0.0968*(I_Necesidades!$C$19^0.75)*(1-EXP(-0.192*(C50+3.67))) -> 15.46943414 | N50: 15.3151326 | W50: =(0.011*I_Necesidades!$C$19+0.15*F50)/0.16 -> 52.5185706 | X50: =0.116*I_Necesidades!$C$19+1.5*F50 -> 87.74971296 | Y50: =0.023*I_Necesidades!$C$19+0.45*F50 -> 19.00891389 | Z50: 30.6302652 | AA50: =0.035*I_Necesidades!$C$19+0.15*F50 -> 23.2829713 | AB50: 4.59453978 | AC50: 153.151326 | AD50: 765.7566301 | AE50: 765.7566301 | AF50: 9.954836191 | AG50: 0.15
A51: 4 L | B51: 15 | C51: 18 | D51: 10.23482556 | E51: 9.923459236 | F51: 10.0791424 | H51: 1.02 | J51: 0.0015 | K51: =$G$48*H51*$I$48*(3.2+(0.015*I_Necesidades!$C$19)+(0.25*F51)-J51*I_Necesidades!$C$19*(I_Necesidades!$C$21-2.5)) -> 16.52731851 | L51: =0.372*D51+0.0968*(I_Necesidades!$C$19^0.75)*(1-EXP(-0.192*(B51+3.67))) -> 15.50096417 | M51: =0.372*E51+0.0968*(I_Necesidades!$C$19^0.75)*(1-EXP(-0.192*(C51+3.67))) -> 15.53125689 | N51: 15.51611053 | W51: =(0.011*I_Necesidades!$C$19+0.15*F51)/0.16 -> 52.074196 | X51: =0.116*I_Necesidades!$C$19+1.5*F51 -> 87.03871359 | Y51: =0.023*I_Necesidades!$C$19+0.45*F51 -> 18.79561408 | Z51: 31.03222106 | AA51: =0.035*I_Necesidades!$C$19+0.15*F51 -> 23.21187136 | AB51: 4.654833159 | AC51: 155.1611053 | AD51: 775.8055265 | AE51: 775.8055265 | AF51: 10.08547184 | AG51: 0.15
A52: 5 L | B52: 19 | C52: 22 | D52: 9.821008663 | E52: 9.517621012 | F52: 9.669314837 | H52: 1.02 | J52: 0.0015 | K52: =$G$48*H52*$I$48*(3.2+(0.015*I_Necesidades!$C$19)+(0.25*F52)-J52*I_Necesidades!$C$19*(I_Necesidades!$C$21-2.5)) -> 16.40713658 | L52: =0.372*D52+0.0968*(I_Necesidades!$C$19^0.75)*(1-EXP(-0.192*(B52+3.67))) -> 15.5259172 | M52: =0.372*E52+0.0968*(I_Necesidades!$C$19^0.75)*(1-EXP(-0.192*(C52+3.67))) -> 15.48084837 | N52: 15.50338278 | W52: =(0.011*I_Necesidades!$C$19+0.15*F52)/0.16 -> 51.68998266 | X52: =0.116*I_Necesidades!$C$19+1.5*F52 -> 86.42397226 | Y52: =0.023*I_Necesidades!$C$19+0.45*F52 -> 18.61119168 | Z52: 31.00676557 | AA52: =0.035*I_Necesidades!$C$19+0.15*F52 -> 23.15039723 | AB52: 4.651014835 | AC52: 155.0338278 | AD52: 775.1691392 | AE52: 775.1691392 | AF52: 10.07719881 | AG52: 0.15
A53: 6 L | B53: 23 | C53: 26 | D53: 9.417799261 | E53: 9.122197657 | F53: 9.269998459 | H53: 1.02 | J53: 0.0015 | K53: =$G$48*H53*$I$48*(3.2+(0.015*I_Necesidades!$C$19)+(0.25*F53)-J53*I_Necesidades!$C$19*(I_Necesidades!$C$21-2.5)) -> 16.29003705 | L53: =0.372*D53+0.0968*(I_Necesidades!$C$19^0.75)*(1-EXP(-0.192*(B53+3.67))) -> 15.45891889 | M53: =0.372*E53+0.0968*(I_Necesidades!$C$19^0.75)*(1-EXP(-0.192*(C53+3.67))) -> 15.38040622 | N53: 15.41966255 | W53: =(0.011*I_Necesidades!$C$19+0.15*F53)/0.16 -> 51.31562356 | X53: =0.116*I_Necesidades!$C$19+1.5*F53 -> 85.82499769 | Y53: =0.023*I_Necesidades!$C$19+0.45*F53 -> 18.43149931 | Z53: 30.83932511 | AA53: =0.035*I_Necesidades!$C$19+0.15*F53 -> 23.09049977 | AB53: 4.625898766 | AC53: 154.1966255 | AD53: 770.9831276 | AE53: 770.9831276 | AF53: 10.02278066 | AG53: 0.15
A54: 7 L | B54: 27 | C54: 30 | D54: 9.024937806 | E54: 8.73692278 | F54: 8.880930293 | H54: 1.02 | J54: 0.0015 | K54: =$G$48*H54*$I$48*(3.2+(0.015*I_Necesidades!$C$19)+(0.25*F54)-J54*I_Necesidades!$C$19*(I_Necesidades!$C$21-2.5)) -> 16.17594281 | L54: =0.372*D54+0.0968*(I_Necesidades!$C$19^0.75)*(1-EXP(-0.192*(B54+3.67))) -> 15.3512794 | M54: =0.372*E54+0.0968*(I_Necesidades!$C$19^0.75)*(1-EXP(-0.192*(C54+3.67))) -> 15.25872924 | N54: 15.30500432 | W54: =(0.011*I_Necesidades!$C$19+0.15*F54)/0.16 -> 50.95087215 | X54: =0.116*I_Necesidades!$C$19+1.5*F54 -> 85.24139544 | Y54: =0.023*I_Necesidades!$C$19+0.45*F54 -> 18.25641863 | Z54: 30.61000864 | AA54: =0.035*I_Necesidades!$C$19+0.15*F54 -> 23.03213954 | AB54: 4.591501296 | AC54: 153.0500432 | AD54: 765.250216 | AE54: 765.250216 | AF54: 9.948252808 | AG54: 0.15
A55: 8 L | B55: 21 | C55: 34 | D55: 9.618093693 | E55: 8.361535946 | F55: 8.98981482 | H55: 1.02 | J55: 0.0015 | K55: =$G$48*H55*$I$48*(3.2+(0.015*I_Necesidades!$C$19)+(0.25*F55)-J55*I_Necesidades!$C$19*(I_Necesidades!$C$21-2.5)) -> 16.2078732 | L55: =0.372*D55+0.0968*(I_Necesidades!$C$19^0.75)*(1-EXP(-0.192*(B55+3.67))) -> 15.49980172 | M55: =0.372*E55+0.0968*(I_Necesidades!$C$19^0.75)*(1-EXP(-0.192*(C55+3.67))) -> 15.12912745 | N55: 15.31446458 | W55: =(0.011*I_Necesidades!$C$19+0.15*F55)/0.16 -> 51.05295139 | X55: =0.116*I_Necesidades!$C$19+1.5*F55 -> 85.40472223 | Y55: =0.023*I_Necesidades!$C$19+0.45*F55 -> 18.30541667 | Z55: 30.62892917 | AA55: =0.035*I_Necesidades!$C$19+0.15*F55 -> 23.04847222 | AB55: 4.594339375 | AC55: 153.1446458 | AD55: 765.7232292 | AE55: 765.7232292 | AF55: 9.95440198 | AG55: 0.15
A56: 9 L | B56: 35 | C56: 38 | D56: 8.269204361 | E56: 7.995783383 | F56: 8.132493872 | H56: 1.02 | J56: 0.0015 | K56: =$G$48*H56*$I$48*(3.2+(0.015*I_Necesidades!$C$19)+(0.25*F56)-J56*I_Necesidades!$C$19*(I_Necesidades!$C$21-2.5)) -> 15.95646383 | L56: =0.372*D56+0.0968*(I_Necesidades!$C$19^0.75)*(1-EXP(-0.192*(B56+3.67))) -> 15.09629838 | M56: =0.372*E56+0.0968*(I_Necesidades!$C$19^0.75)*(1-EXP(-0.192*(C56+3.67))) -> 14.99772644 | N56: 15.04701241 | W56: =(0.011*I_Necesidades!$C$19+0.15*F56)/0.16 -> 50.249213 | X56: =0.116*I_Necesidades!$C$19+1.5*F56 -> 84.11874081 | Y56: =0.023*I_Necesidades!$C$19+0.45*F56 -> 17.91962224 | Z56: 30.09402481 | AA56: =0.035*I_Necesidades!$C$19+0.15*F56 -> 22.91987408 | AB56: 4.514103722 | AC56: 150.4701241 | AD56: 752.3506203 | AE56: 752.3506203 | AF56: 9.780558064 | AG56: 0.15
A57: G | B57: 11 | C57: 15 | H57: 1.02 | J57: 0.0015 | K57: =$G$48*H57*$I$48*(3.2+(0.015*I_Necesidades!$C$19)+(0.25*F57)-J57*I_Necesidades!$C$19*(I_Necesidades!$C$21-2.5)) -> 13.57161 | L57: =0.372*D57+0.0968*(I_Necesidades!$C$19^0.75)*(1-EXP(-0.192*(B57+3.67))) -> 11.30801415 | M57: =0.372*E57+0.0968*(I_Necesidades!$C$19^0.75)*(1-EXP(-0.192*(C57+3.67))) -> 11.69360906 | N57: 11.50081161 | W57: =(0.011*I_Necesidades!$C$19+0.15*F57)/0.16 -> 42.625 | X57: =0.116*I_Necesidades!$C$19+1.5*F57 -> 71.92 | Y57: =0.023*I_Necesidades!$C$19+0.45*F57 -> 14.26 | Z57: 23.00162321 | AA57: =0.035*I_Necesidades!$C$19+0.15*F57 -> 21.7 | AB57: 3.450243482 | AC57: 115.0081161 | AD57: 575.0405803 | AE57: 575.0405803 | AF57: 7.475527544 | AG57: 0.15
A58: G | B58: 16 | C58: 20 | H58: 1.02 | J58: 0.0015 | K58: =$G$48*H58*$I$48*(3.2+(0.015*I_Necesidades!$C$19)+(0.25*F58)-J58*I_Necesidades!$C$19*(I_Necesidades!$C$21-2.5)) -> 13.57161 | L58: =0.372*D58+0.0968*(I_Necesidades!$C$19^0.75)*(1-EXP(-0.192*(B58+3.67))) -> 11.75190732 | M58: =0.372*E58+0.0968*(I_Necesidades!$C$19^0.75)*(1-EXP(-0.192*(C58+3.67))) -> 11.89954887 | N58: 11.8257281 | W58: =(0.011*I_Necesidades!$C$19+0.15*F58)/0.16 -> 42.625 | X58: =0.116*I_Necesidades!$C$19+1.5*F58 -> 71.92 | Y58: =0.023*I_Necesidades!$C$19+0.45*F58 -> 14.26 | Z58: 23.6514562 | AA58: =0.035*I_Necesidades!$C$19+0.15*F58 -> 21.7 | AB58: 3.547718429 | AC58: 118.257281 | AD58: 591.2864049 | AE58: 591.2864049 | AF58: 7.686723264 | AG58: 0.15
A59: G | B59: 21 | C59: 25 | H59: 1.02 | J59: 0.0015 | K59: =$G$48*H59*$I$48*(3.2+(0.015*I_Necesidades!$C$19)+(0.25*F59)-J59*I_Necesidades!$C$19*(I_Necesidades!$C$21-2.5)) -> 13.57161 | L59: =0.372*D59+0.0968*(I_Necesidades!$C$19^0.75)*(1-EXP(-0.192*(B59+3.67))) -> 11.92187086 | M59: =0.372*E59+0.0968*(I_Necesidades!$C$19^0.75)*(1-EXP(-0.192*(C59+3.67))) -> 11.97840176 | N59: 11.95013631 | W59: =(0.011*I_Necesidades!$C$19+0.15*F59)/0.16 -> 42.625 | X59: =0.116*I_Necesidades!$C$19+1.5*F59 -> 71.92 | Y59: =0.023*I_Necesidades!$C$19+0.45*F59 -> 14.26 | Z59: 23.90027262 | AA59: =0.035*I_Necesidades!$C$19+0.15*F59 -> 21.7 | AB59: 3.585040893 | AC59: 119.5013631 | AD59: 597.5068156 | AE59: 597.5068156 | AF59: 7.767588602 | AG59: 0.15
A60: G7 | B60: 26 | C60: 29 | H60: 1.02 | J60: 0.002 | K60: =$G$48*H60*$I$48*(3.2+(0.015*I_Necesidades!$C$19)+(0.25*F60)-J60*I_Necesidades!$C$19*(I_Necesidades!$C$21-2.5)) -> 13.20798 | L60: =0.372*D60+0.0968*(I_Necesidades!$C$19^0.75)*(1-EXP(-0.192*(B60+3.67))) -> 11.98694869 | M60: =0.372*E60+0.0968*(I_Necesidades!$C$19^0.75)*(1-EXP(-0.192*(C60+3.67))) -> 12.00462871 | N60: 11.9957887 | O60: =0.000695*I_Necesidades!$C$20*EXP(0.116*B60) -> 0.7092297855 | P60: =0.000695*I_Necesidades!$C$20*EXP(0.116*C60) -> 1.004434095 | Q60: =AVERAGE(O60:P60) -> 0.8568319401 | R60: =0.0448*I_Necesidades!$C$20*EXP(0.111*B60) -> 40.14411546 | S60: =0.0448*I_Necesidades!$C$20*EXP(0.111*C60) -> 56.00695424 | T60: =AVERAGE(R60:S60) -> 48.07553485 | W60: =(0.011*I_Necesidades!$C$19+0.15*F60)/0.16 -> 42.625 | X60: =0.07*I_Necesidades!$C$19+1 -> 44.4 | Y60: =0.015*I_Necesidades!$C$19+1.3 -> 10.6 | Z60: 23.9915774 | AA60: =0.023*I_Necesidades!$C$19+1 -> 15.26 | AB60: 3.59873661 | AC60: 119.957887 | AD60: 599.789435 | AE60: 599.789435 | AF60: =0.45*N60 -> 5.398104915 | AG60: 0
A61: G8 | B61: 30 | C61: 34 | H61: 1.02 | J61: 0.002 | K61: =$G$48*H61*$I$48*(3.2+(0.015*I_Necesidades!$C$19)+(0.25*F61)-J61*I_Necesidades!$C$19*(I_Necesidades!$C$21-2.5)) -> 13.20798 | L61: =0.372*D61+0.0968*(I_Necesidades!$C$19^0.75)*(1-EXP(-0.192*(B61+3.67))) -> 12.00859397 | M61: =0.372*E61+0.0968*(I_Necesidades!$C$19^0.75)*(1-EXP(-0.192*(C61+3.67))) -> 12.01863608 | N61: 12.01361503 | O61: =0.000695*I_Necesidades!$C$20*EXP(0.116*B61) -> 1.127975342 | P61: =0.000695*I_Necesidades!$C$20*EXP(0.116*C61) -> 1.793957894 | Q61: =AVERAGE(O61:P61) -> 1.460966618 | R61: =0.0448*I_Necesidades!$C$20*EXP(0.111*B61) -> 62.58188542 | S61: =0.0448*I_Necesidades!$C$20*EXP(0.111*C61) -> 97.56080902 | T61: =AVERAGE(R61:S61) -> 80.07134722 | W61: =(0.011*I_Necesidades!$C$19+0.15*F61)/0.16 -> 42.625 | X61: =0.07*I_Necesidades!$C$19+1 -> 44.4 | Y61: =0.015*I_Necesidades!$C$19+1.3 -> 10.6 | Z61: 24.02723005 | AA61: =0.023*I_Necesidades!$C$19+1 -> 15.26 | AB61: 3.604084508 | AC61: 120.1361503 | AD61: 600.6807513 | AE61: 600.6807513 | AF61: =0.45*N61 -> 5.406126762 | AG61: 0
A62: G9 | B62: 35 | C62: 39 | H62: 0.95 | J62: 0.002 | K62: =$G$48*H62*$I$48*(3.2+(0.015*I_Necesidades!$C$19)+(0.25*F62)-J62*I_Necesidades!$C$19*(I_Necesidades!$C$21-2.5)) -> 12.30155 | L62: =0.372*D62+0.0968*(I_Necesidades!$C$19^0.75)*(1-EXP(-0.192*(B62+3.67))) -> 12.02015435 | M62: =0.372*E62+0.0968*(I_Necesidades!$C$19^0.75)*(1-EXP(-0.192*(C62+3.67))) -> 12.02399941 | N62: 12.02207688 | O62: =0.000695*I_Necesidades!$C$20*EXP(0.116*B62) -> 2.01460731 | P62: =0.000695*I_Necesidades!$C$20*EXP(0.116*C62) -> 3.204077742 | Q62: =AVERAGE(O62:P62) -> 2.609342526 | R62: =0.0448*I_Necesidades!$C$20*EXP(0.111*B62) -> 109.0139511 | S62: =0.0448*I_Necesidades!$C$20*EXP(0.111*C62) -> 169.9451717 | T62: =AVERAGE(R62:S62) -> 139.4795614 | W62: =(0.011*I_Necesidades!$C$19+0.15*F62)/0.16 -> 42.625 | X62: =0.07*I_Necesidades!$C$19+1 -> 44.4 | Y62: =0.015*I_Necesidades!$C$19+1.3 -> 10.6 | Z62: 24.04415376 | AA62: =0.023*I_Necesidades!$C$19+1 -> 15.26 | AB62: 3.606623064 | AC62: 120.2207688 | AD62: 601.103844 | AE62: 601.103844 | AF62: =0.45*N62 -> 5.409934596 | AG62: 0
B65: n vacas | C65: =I_Necesidades!C13 -> 130
A66: IP =15
C67: 1 | E67: 2 | G67: 3 | I67: 4 | K67: 5 | M67: 6 | O67: 7 | Q67: 8 | S67: 9 | U67: 10 | W67: 11 | Y67: 12 | AA67: 13 | AC67: 14 | AE67: 15
A68: Mes parto | B68: % partos | C68: Enero | D68: % partos | E68: Febrero | F68: % partos | G68: Marzo | H68: % partos | I68: Abril | J68: % partos | K68: Mayo | L68: % partos | M68: Junio | N68: % partos | O68: Julio | P68: % partos | Q68: Agosto | R68: % partos | S68: Setiembre | T68: % partos | U68: Octubre | V68: % partos | W68: Noviembre | X68: % partos | Y68: Diciembre | Z68: % partos | AA68: Enero_1 | AB68: % partos | AC68: Febreroo_1 | AD68: % partos | AE68: Marzo_1
A69: Enero | B69: =I_Necesidades!$C$28 -> 10 | C69: 1 | D69: =I_Necesidades!$C$29 -> 10 | E69: 1 | F69: =I_Necesidades!$C$30 -> 18 | G69: 1 | H69: =I_Necesidades!$C$31 -> 0 | I69: 1 | J69: =I_Necesidades!$C$32 -> 0 | K69: 1 | L69: =I_Necesidades!$C$33 -> 0 | M69: 1 | N69: =I_Necesidades!$C$34 -> 0 | O69: 1 | P69: =I_Necesidades!$C$35 -> 0 | Q69: 1 | R69: =I_Necesidades!$C$36 -> 0 | S69: 1 | T69: =I_Necesidades!$C$37 -> 27 | U69: 1 | V69: =I_Necesidades!$C$38 -> 17 | W69: 1 | X69: =I_Necesidades!$C$39 -> 18 | Y69: 1 | Z69: =I_Necesidades!$C$39 -> 18 | AA69: 2 | AB69: =I_Necesidades!$C$39 -> 18 | AC69: 3 | AD69: =I_Necesidades!$C$39 -> 18 | AE69: 4
A70: Febrero | B70: =I_Necesidades!$C$39 -> 18 | C70: 5 | D70: =I_Necesidades!$C$28 -> 10 | E70: 2 | F70: =I_Necesidades!$C$29 -> 10 | G70: 2 | H70: =I_Necesidades!$C$30 -> 18 | I70: 2 | J70: =I_Necesidades!$C$31 -> 0 | K70: 2 | L70: =I_Necesidades!$C$32 -> 0 | M70: 2 | N70: =I_Necesidades!$C$33 -> 0 | O70: 2 | P70: =I_Necesidades!$C$34 -> 0 | Q70: 2 | R70: =I_Necesidades!$C$35 -> 0 | S70: 2 | T70: =I_Necesidades!$C$36 -> 0 | U70: 2 | V70: =I_Necesidades!$C$37 -> 27 | W70: 2 | X70: =I_Necesidades!$C$38 -> 17 | Y70: 2 | Z70: =I_Necesidades!$C$38 -> 17 | AA70: 3 | AB70: =I_Necesidades!$C$38 -> 17 | AC70: 4 | AD70: =I_Necesidades!$C$38 -> 17 | AE70: 5
A71: Marzo | B71: =I_Necesidades!$C$38 -> 17 | C71: 6 | D71: =I_Necesidades!$C$39 -> 18 | E71: 6 | F71: =I_Necesidades!$C$28 -> 10 | G71: 3 | H71: =I_Necesidades!$C$29 -> 10 | I71: 3 | J71: =I_Necesidades!$C$30 -> 18 | K71: 3 | L71: =I_Necesidades!$C$31 -> 0 | M71: 3 | N71: =I_Necesidades!$C$32 -> 0 | O71: 3 | P71: =I_Necesidades!$C$33 -> 0 | Q71: 3 | R71: =I_Necesidades!$C$34 -> 0 | S71: 3 | T71: =I_Necesidades!$C$35 -> 0 | U71: 3 | V71: =I_Necesidades!$C$36 -> 0 | W71: 3 | X71: =I_Necesidades!$C$37 -> 27 | Y71: 3 | Z71: =I_Necesidades!$C$37 -> 27 | AA71: 4 | AB71: =I_Necesidades!$C$37 -> 27 | AC71: 5 | AD71: =I_Necesidades!$C$37 -> 27 | AE71: 6
A72: Abril | B72: =I_Necesidades!$C$37 -> 27 | C72: 7 | D72: =I_Necesidades!$C$38 -> 17 | E72: 7 | F72: =I_Necesidades!$C$39 -> 18 | G72: 7 | H72: =I_Necesidades!$C$28 -> 10 | I72: 4 | J72: =I_Necesidades!$C$29 -> 10 | K72: 4 | L72: =I_Necesidades!$C$30 -> 18 | M72: 4 | N72: =I_Necesidades!$C$31 -> 0 | O72: 4 | P72: =I_Necesidades!$C$32 -> 0 | Q72: 4 | R72: =I_Necesidades!$C$33 -> 0 | S72: 4 | T72: =I_Necesidades!$C$34 -> 0 | U72: 4 | V72: =I_Necesidades!$C$35 -> 0 | W72: 4 | X72: =I_Necesidades!$C$36 -> 0 | Y72: 4 | Z72: =I_Necesidades!$C$36 -> 0 | AA72: 5 | AB72: =I_Necesidades!$C$36 -> 0 | AC72: 6 | AD72: =I_Necesidades!$C$36 -> 0 | AE72: 7
A73: Mayo | B73: =I_Necesidades!$C$36 -> 0 | C73: 8 | D73: =I_Necesidades!$C$37 -> 27 | E73: 8 | F73: =I_Necesidades!$C$38 -> 17 | G73: 8 | H73: =I_Necesidades!$C$39 -> 18 | I73: 8 | J73: =I_Necesidades!$C$28 -> 10 | K73: 5 | L73: =I_Necesidades!$C$29 -> 10 | M73: 5 | N73: =I_Necesidades!$C$30 -> 18 | O73: 5 | P73: =I_Necesidades!$C$31 -> 0 | Q73: 5 | R73: =I_Necesidades!$C$32 -> 0 | S73: 5 | T73: =I_Necesidades!$C$33 -> 0 | U73: 5 | V73: =I_Necesidades!$C$34 -> 0 | W73: 5 | X73: =I_Necesidades!$C$35 -> 0 | Y73: 5 | Z73: =I_Necesidades!$C$35 -> 0 | AA73: 6 | AB73: =I_Necesidades!$C$35 -> 0 | AC73: 7 | AD73: =I_Necesidades!$C$35 -> 0 | AE73: 8
A74: Junio | B74: =I_Necesidades!$C$35 -> 0 | C74: 9 | D74: =I_Necesidades!$C$36 -> 0 | E74: 9 | F74: =I_Necesidades!$C$37 -> 27 | G74: 9 | H74: =I_Necesidades!$C$38 -> 17 | I74: 9 | J74: =I_Necesidades!$C$39 -> 18 | K74: 9 | L74: =I_Necesidades!$C$28 -> 10 | M74: 6 | N74: =I_Necesidades!$C$29 -> 10 | O74: 6 | P74: =I_Necesidades!$C$30 -> 18 | Q74: 6 | R74: =I_Necesidades!$C$31 -> 0 | S74: 6 | T74: =I_Necesidades!$C$32 -> 0 | U74: 6 | V74: =I_Necesidades!$C$33 -> 0 | W74: 6 | X74: =I_Necesidades!$C$34 -> 0 | Y74: 6 | Z74: =I_Necesidades!$C$34 -> 0 | AA74: 7 | AB74: =I_Necesidades!$C$34 -> 0 | AC74: 8 | AD74: =I_Necesidades!$C$34 -> 0 | AE74: 9
A75: Julio | B75: =I_Necesidades!$C$34 -> 0 | C75: 10 | D75: =I_Necesidades!$C$35 -> 0 | E75: 10 | F75: =I_Necesidades!$C$36 -> 0 | G75: 10 | H75: =I_Necesidades!$C$37 -> 27 | I75: 10 | J75: =I_Necesidades!$C$38 -> 17 | K75: 10 | L75: =I_Necesidades!$C$39 -> 18 | M75: 10 | N75: =I_Necesidades!$C$28 -> 10 | O75: 7 | P75: =I_Necesidades!$C$29 -> 10 | Q75: 7 | R75: =I_Necesidades!$C$30 -> 18 | S75: 7 | T75: =I_Necesidades!$C$31 -> 0 | U75: 7 | V75: =I_Necesidades!$C$32 -> 0 | W75: 7 | X75: =I_Necesidades!$C$33 -> 0 | Y75: 7 | Z75: =I_Necesidades!$C$33 -> 0 | AA75: 8 | AB75: =I_Necesidades!$C$33 -> 0 | AC75: 9 | AD75: =I_Necesidades!$C$33 -> 0 | AE75: 10
A76: Agosto | B76: =I_Necesidades!$C$33 -> 0 | C76: 11 | D76: =I_Necesidades!$C$34 -> 0 | E76: 11 | F76: =I_Necesidades!$C$35 -> 0 | G76: 11 | H76: =I_Necesidades!$C$36 -> 0 | I76: 11 | J76: =I_Necesidades!$C$37 -> 27 | K76: 11 | L76: =I_Necesidades!$C$38 -> 17 | M76: 11 | N76: =I_Necesidades!$C$39 -> 18 | O76: 11 | P76: =I_Necesidades!$C$28 -> 10 | Q76: 8 | R76: =I_Necesidades!$C$29 -> 10 | S76: 8 | T76: =I_Necesidades!$C$30 -> 18 | U76: 8 | V76: =I_Necesidades!$C$31 -> 0 | W76: 8 | X76: =I_Necesidades!$C$32 -> 0 | Y76: 8 | Z76: =I_Necesidades!$C$32 -> 0 | AA76: 9 | AB76: =I_Necesidades!$C$32 -> 0 | AC76: 10 | AD76: =I_Necesidades!$C$32 -> 0 | AE76: 11
A77: Setiembre | B77: =I_Necesidades!$C$32 -> 0 | C77: 12 | D77: =I_Necesidades!$C$33 -> 0 | E77: 12 | F77: =I_Necesidades!$C$34 -> 0 | G77: 12 | H77: =I_Necesidades!$C$35 -> 0 | I77: 12 | J77: =I_Necesidades!$C$36 -> 0 | K77: 12 | L77: =I_Necesidades!$C$37 -> 27 | M77: 12 | N77: =I_Necesidades!$C$38 -> 17 | O77: 12 | P77: =I_Necesidades!$C$39 -> 18 | Q77: 12 | R77: =I_Necesidades!$C$28 -> 10 | S77: 9 | T77: =I_Necesidades!$C$29 -> 10 | U77: 9 | V77: =I_Necesidades!$C$30 -> 18 | W77: 9 | X77: =I_Necesidades!$C$31 -> 0 | Y77: 9 | Z77: =I_Necesidades!$C$31 -> 0 | AA77: 10 | AB77: =I_Necesidades!$C$31 -> 0 | AC77: 11 | AD77: =I_Necesidades!$C$31 -> 0 | AE77: 12
A78: Octubre | B78: =I_Necesidades!$C$31 -> 0 | C78: 13 | D78: =I_Necesidades!$C$32 -> 0 | E78: 13 | F78: =I_Necesidades!$C$33 -> 0 | G78: 13 | H78: =I_Necesidades!$C$34 -> 0 | I78: 13 | J78: =I_Necesidades!$C$35 -> 0 | K78: 13 | L78: =I_Necesidades!$C$36 -> 0 | M78: 13 | N78: =I_Necesidades!$C$37 -> 27 | O78: 13 | P78: =I_Necesidades!$C$38 -> 17 | Q78: 13 | R78: =I_Necesidades!$C$39 -> 18 | S78: 13 | T78: =I_Necesidades!$C$28 -> 10 | U78: 10 | V78: =I_Necesidades!$C$29 -> 10 | W78: 10 | X78: =I_Necesidades!$C$30 -> 18 | Y78: 10 | Z78: =I_Necesidades!$C$30 -> 18 | AA78: 11 | AB78: =I_Necesidades!$C$30 -> 18 | AC78: 12 | AD78: =I_Necesidades!$C$30 -> 18 | AE78: 13
A79: Noviembre | B79: =I_Necesidades!$C$30 -> 18 | C79: 14 | D79: =I_Necesidades!$C$31 -> 0 | E79: 14 | F79: =I_Necesidades!$C$32 -> 0 | G79: 14 | H79: =I_Necesidades!$C$33 -> 0 | I79: 14 | J79: =I_Necesidades!$C$34 -> 0 | K79: 14 | L79: =I_Necesidades!$C$35 -> 0 | M79: 14 | N79: =I_Necesidades!$C$36 -> 0 | O79: 14 | P79: =I_Necesidades!$C$37 -> 27 | Q79: 14 | R79: =I_Necesidades!$C$38 -> 17 | S79: 14 | T79: =I_Necesidades!$C$39 -> 18 | U79: 14 | V79: =I_Necesidades!$C$28 -> 10 | W79: 11 | X79: =I_Necesidades!$C$29 -> 10 | Y79: 11 | Z79: =I_Necesidades!$C$29 -> 10 | AA79: 12 | AB79: =I_Necesidades!$C$29 -> 10 | AC79: 13 | AD79: =I_Necesidades!$C$29 -> 10 | AE79: 14
A80: Diciembre | B80: =I_Necesidades!$C$29 -> 10 | C80: 15 | D80: =I_Necesidades!$C$30 -> 18 | E80: 15 | F80: =I_Necesidades!$C$31 -> 0 | G80: 15 | H80: =I_Necesidades!$C$32 -> 0 | I80: 15 | J80: =I_Necesidades!$C$33 -> 0 | K80: 15 | L80: =I_Necesidades!$C$34 -> 0 | M80: 15 | N80: =I_Necesidades!$C$35 -> 0 | O80: 15 | P80: =I_Necesidades!$C$36 -> 0 | Q80: 15 | R80: =I_Necesidades!$C$37 -> 27 | S80: 15 | T80: =I_Necesidades!$C$38 -> 17 | U80: 15 | V80: =I_Necesidades!$C$39 -> 18 | W80: 15 | X80: =I_Necesidades!$C$28 -> 10 | Y80: 12 | Z80: =I_Necesidades!$C$28 -> 10 | AA80: 13 | AB80: =I_Necesidades!$C$28 -> 10 | AC80: 14 | AD80: =I_Necesidades!$C$28 -> 10 | AE80: 15
B81: 100
B82: Enero | D82: Febrero | F82: Marzo | H82: Abril | J82: Mayo | L82: Junio | N82: Julio | P82: Agosto | R82: Setiembre | T82: Octubre | V82: Noviembre | X82: Diciembre | Z82: Enero_1 | AB82: Febreroo_1 | AD82: Marzo_1
B83: n vacas | C83: Pl l/día | D83: n vacas | E83: Pl l/día | F83: n vacas | G83: Pl l/día | H83: n vacas | I83: Pl l/día | J83: n vacas | K83: Pl l/día | L83: n vacas | M83: Pl l/día | N83: n vacas | O83: Pl l/día | P83: n vacas | Q83: Pl l/día | R83: n vacas | S83: Pl l/día | T83: n vacas | U83: Pl l/día | V83: n vacas | W83: Pl l/día | X83: n vacas | Y83: Pl l/día | Z83: n vacas | AA83: Pl l/día | AB83: n vacas | AC83: Pl l/día | AD83: n vacas | AE83: Pl l/día
A84: Lote 5 primeros meses lactación | B84: =SUM(B69:B70)*$C$65/100 -> 36.4 | C84: =IF(B84>0,(B69*$F$48+B70*$F$52)*$C$65/(B84*100),0) -> 9.747198856 | D84: =SUM(D69:D70)*$C$65/100 -> 26 | E84: =IF(D84>0,(D69*$F$48+D70*$F$49)*$C$65/(D84*100),0) -> 10.46779309 | F84: =SUM(F69:F71)*$C$65/100 -> 49.4 | G84: =IF(F84>0,SUMPRODUCT(F69:F71,F48:F50)*$C$65/(F84*100),0) -> 10.36806322 | H84: =SUM(H69:H72)*$C$65/100 -> 49.4 | I84: =IF(H84>0,SUMPRODUCT(H69:H72,F48:F51)*$C$65/(H84*100),0) -> 10.66290456 | J84: =SUM(J69:J73)*$C$65/100 -> 49.4 | K84: =IF(J84>0,SUMPRODUCT(J69:J73,$F48:$F52)*$C$65/(J84*100),0) -> 10.19581915 | L84: =SUM(L69:L73)*$C$65/100 -> 36.4 | M84: =IF(L84>0,SUMPRODUCT(L69:L73,$F48:$F52)*$C$65/(L84*100),0) -> 9.932775411 | N84: =SUM(N69:N73)*$C$65/100 -> 23.4 | O84: =IF(N84>0,SUMPRODUCT(N69:N73,$F48:$F52)*$C$65/(N84*100),0) -> 9.669314837 | P84: =SUM(P69:P73)*$C$65/100 -> 0 | Q84: =IF(P84>0,SUMPRODUCT(P69:P73,$F48:$F52)*$C$65/(P84*100),0) -> 0 | R84: =SUM(R69:R73)*$C$65/100 -> 0 | S84: =IF(R84>0,SUMPRODUCT(R69:R73,$F48:$F52)*$C$65/(R84*100),0) -> 0 | T84: =SUM(T69:T73)*$C$65/100 -> 35.1 | U84: =IF(T84>0,SUMPRODUCT(T69:T73,$F48:$F52)*$C$65/(T84*100),0) -> 9.887390089 | V84: =SUM(V69:V73)*$C$65/100 -> 57.2 | W84: =IF(V84>0,SUMPRODUCT(V69:V73,$F48:$F52)*$C$65/(V84*100),0) -> 10.59970286 | X84: =SUM(X69:X73)*$C$65/100 -> 80.6 | Y84: =IF(X84>0,SUMPRODUCT(X69:X73,$F48:$F52)*$C$65/(X84*100),0) -> 10.49559981 | Z84: =SUM(Z69:Z72)*$C$65/100 -> 80.6 | AA84: =IF(Z84>0,SUMPRODUCT(Z69:Z72,$F49:$F52)*$C$65/(Z84*100),0) -> 10.49044819 | AB84: =SUM(AB69:AB71)*$C$65/100 -> 80.6 | AC84: =IF(AB84>0,SUMPRODUCT(AB69:AB71,$F50:$F52)*$C$65/(AB84*100),0) -> 10.03828189 | AD84: =SUM(AD69:AD70)*$C$65/100 -> 45.5 | AE84: =IF(AD84>0,SUMPRODUCT(AD69:AD70,$F51:$F52)*$C$65/(AD84*100),0) -> 9.880083296
A85: Lote últimos meses lactación | B85: =SUM(B71:B74)*$C$65/100 -> 57.2 | C85: =IF(B85>0,SUMPRODUCT(B71:B74,$F$53:$F$56)*$C$65/(B85*100),0) -> 9.031252084 | D85: =SUM(D71:D74)*$C$65/100 -> 80.6 | E85: =IF(D85>0,SUMPRODUCT(D71:D74,$F$53:$F$56)*$C$65/(D85*100),0) -> 9.041303022 | F85: =SUM(F72:F74)*$C$65/100 -> 80.6 | G85: =IF(F85>0,SUMPRODUCT(F72:F74,$F$54:$F$56)*$C$65/(F85*100),0) -> 8.584853738 | H85: =SUM(H73:H74)*$C$65/100 -> 45.5 | I85: =IF(H85>0,SUMPRODUCT(H73:H74,$F55:$F56)*$C$65/(H85*100),0) -> 8.573401788 | J85: =J74*$C$65/100 -> 23.4 | K85: =IF(J85>0,SUMPRODUCT(J74,F56)*$C$65/(J85*100),0) -> 8.132493872 | L85: =L74*$C$65/100 -> 13 | M85: =IF(L85>0,SUMPRODUCT(L74,$F53)*$C$65/(L85*100),0) -> 9.269998459 | N85: =SUM(N74:N75)*$C$65/100 -> 26 | O85: =IF(N85>0,SUMPRODUCT(N74:N75,$F53:$F54)*$C$65/(N85*100),0) -> 9.075464376 | P85: =SUM(P74:P76)*$C$65/100 -> 49.4 | Q85: =IF(P85>0,SUMPRODUCT(P74:P76,$F53:$F55)*$C$65/(P85*100),0) -> 9.093879563 | R85: =SUM(R74:R77)*$C$65/100 -> 49.4 | S85: =IF(R85>0,SUMPRODUCT(R74:R77,$F53:$F56)*$C$65/(R85*100),0) -> 8.712627163 | T85: =SUM(T74:T77)*$C$65/100 -> 36.4 | U85: =IF(T85>0,SUMPRODUCT(T74:T77,$F53:$F56)*$C$65/(T85*100),0) -> 8.683628767 | V85: =SUM(V74:V77)*$C$65/100 -> 23.4 | W85: =IF(V85>0,SUMPRODUCT(V74:V77,$F53:$F56)*$C$65/(V85*100),0) -> 8.132493872 | X85: =SUM(X74:X77)*$C$65/100 -> 0 | Y85: =IF(X85>0,SUMPRODUCT(X74:X77,$F53:$F56)*$C$65/(X85*100),0) -> 0 | Z85: =SUM(Z73:Z76)*$C$65/100 -> 0 | AA85: =IF(Z85>0,SUMPRODUCT(Z73:Z76,$F53:$F56)*$C$65/(Z85*100),0) -> 0 | AB85: =SUM(AB72:AB75)*$C$65/100 -> 0 | AC85: =IF(AB85>0,SUMPRODUCT(AB72:AB75,$F53:$F56)*$C$65/(AB85*100),0) -> 0 | AD85: =SUM(AD71:AD74)*$C$65/100 -> 35.1 | AE85: =IF(AD85>0,SUMPRODUCT(AD71:AD74,$F53:$F56)*$C$65/(AD85*100),0) -> 9.269998459
A86: Lote medio | B86: =SUM(B75:B77)*$C$65/100 -> 0 | D86: =SUM(D75:D77)*$C$65/100 -> 0 | F86: =SUM(F75:F77)*$C$65/100 -> 0 | H86: =SUM(H75:H77)*$C$65/100 -> 35.1 | J86: =SUM(J75:J77)*$C$65/100 -> 57.2 | L86: =SUM(L75:L77)*$C$65/100 -> 80.6 | N86: =SUM(N76:N77)*$C$65/100 -> 45.5 | P86: =P77*$C$65/100 -> 23.4 | R86: =0 -> 0 | T86: =T78*$C$65/100 -> 13 | V86: =SUM(V78:V79)*$C$65/100 -> 26 | X86: =SUM(X78:X80)*$C$65/100 -> 49.4 | Z86: =SUM(Z77:Z79)*$C$65/100 -> 36.4 | AB86: =SUM(AB76:AB78)*$C$65/100 -> 23.4 | AD86: =SUM(AD75:AD77)*$C$65/100 -> 0
A87: Lote gestación | B87: =SUM(B78:B80)*$C$65/100 -> 36.4 | D87: =SUM(D78:D80)*$C$65/100 -> 23.4 | F87: =SUM(F78:F80)*$C$65/100 -> 0 | H87: =SUM(H78:H80)*$C$65/100 -> 0 | J87: =SUM(J78:J80)*$C$65/100 -> 0 | L87: =SUM(L78:L80)*$C$65/100 -> 0 | N87: =SUM(N78:N80)*$C$65/100 -> 35.1 | P87: =SUM(P78:P80)*$C$65/100 -> 57.2 | R87: =SUM(R78:R80)*$C$65/100 -> 80.6 | T87: =SUM(T79:T80)*$C$65/100 -> 45.5 | V87: =V80*$C$65/100 -> 23.4 | X87: =0 -> 0 | Z87: =Z80*$C$65/100 -> 13 | AB87: =SUM(AB79:AB80)*$C$65/100 -> 26 | AD87: =SUM(AD78:AD80)*$C$65/100 -> 49.4
A88: Lote lactación | B88: =SUM(B69:B74)*$C$65/100 -> 93.6 | C88: =IF(B88>0,(B69*$F48+SUMPRODUCT(B70:B74,$F52:$F56))*$C$65/(B88*100),0) -> 9.309675829 | D88: =SUM(D69:D74)*$C$65/100 -> 106.6 | E88: =IF(D88>0,(SUMPRODUCT(D69:D70,$F$48:$F$49)+SUMPRODUCT(D71:D74,$F$53:$F$56))*$C$65/(D88*100),0) -> 9.389227428 | F88: =SUM(F69:F74)*$C$65/100 -> 130 | G88: =IF(F88>0,(SUMPRODUCT(F69:F71,$F48:$F50)+SUMPRODUCT(F72:F74,$F54:$F56))*$C$65/(F88*100),0) -> 9.262473339 | H88: =SUM(H69:H74)*$C$65/100 -> 94.9 | I88: =IF(H88>0,(SUMPRODUCT(H69:H72,$F48:$F51)+SUMPRODUCT(H73:H74,$F55:$F56))*$C$65/(H88*100),0) -> 9.661088161 | J88: =SUM(J69:J74)*$C$65/100 -> 72.8 | K88: =IF(J88>0,(SUMPRODUCT(J69:J73,$F48:$F52)+SUMPRODUCT(J74,$F56))*$C$65/(J88*100),0) -> 9.532607456 | L88: =SUM(L69:L74)*$C$65/100 -> 49.4 | M88: =IF(L88>0,SUMPRODUCT(L69:L74,$F48:$F53)*$C$65/(L88*100),0) -> 9.758360424 | N88: =SUM(N69:N75)*$C$65/100 -> 49.4 | O88: =IF(N88>0,SUMPRODUCT(N69:N75,$F48:$F54)*$C$65/(N88*100),0) -> 9.356761963 | P88: =SUM(P69:P76)*$C$65/100 -> 49.4 | Q88: =IF(P88>0,SUMPRODUCT(P69:P76,$F48:$F55)*$C$65/(P88*100),0) -> 9.093879563 | R88: =SUM(R69:R77)*$C$65/100 -> 49.4 | S88: =IF(R88>0,SUMPRODUCT(R69:R77,$F48:$F56)*$C$65/(R88*100),0) -> 8.712627163 | T88: =SUM(T69:T77)*$C$65/100 -> 71.5 | U88: =IF(T88>0,SUMPRODUCT(T69:T77,$F48:$F56)*$C$65/(T88*100),0) -> 9.274566143 | V88: =SUM(V69:V77)*$C$65/100 -> 80.6 | W88: =IF(V88>0,SUMPRODUCT(V69:V77,$F48:$F56)*$C$65/(V88*100),0) -> 9.883416378 | X88: =SUM(X69:X77)*$C$65/100 -> 80.6 | Y88: =IF(X88>0,SUMPRODUCT(X69:X77,$F48:$F56)*$C$65/(X88*100),0) -> 10.49559981 | Z88: =SUM(Z69:Z76)*$C$65/100 -> 80.6 | AA88: =IF(Z88>0,SUMPRODUCT(Z69:Z76,$F49:$F56)*$C$65/(Z88*100),0) -> 10.49044819 | AB88: =SUM(AB69:AB75)*$C$65/100 -> 80.6 | AC88: =IF(AB88>0,SUMPRODUCT(AB69:AB75,$F50:$F56)*$C$65/(AB88*100),0) -> 10.03828189 | AD88: =SUM(AD69:AD74)*$C$65/100 -> 80.6 | AE88: =IF(AD88>0,SUMPRODUCT(AD69:AD74,$F51:$F56)*$C$65/(AD88*100),0) -> 9.61440119
B89: CI UE | C89: CI MS | D89: CI UE | E89: CI MS | F89: CI UE | G89: CI MS | H89: CI UE | I89: CI MS | J89: CI UE | K89: CI MS | L89: CI UE | M89: CI MS | N89: CI UE | O89: CI MS | P89: CI UE | Q89: CI MS | R89: CI UE | S89: CI MS | T89: CI UE | U89: CI MS | V89: CI UE | W89: CI MS | X89: CI UE | Y89: CI MS | Z89: CI UE | AA89: CI MS | AB89: CI UE | AC89: CI MS | AD89: CI UE | AE89: CI MS
A90: Lote 5 primeros meses lactación | B90: =IF(B84>0,(B69*K48+B70*K52)*$C$65/(B84*100),0) -> 16.19928857 | C90: =IF(B84>0,(B69*N48+B70*N52)*$C$65/(B84*100),0) -> 14.20688364 | D90: =IF($D$84>0,($D$69*K48+$D$70*K49)*$C$65/($D$84*100),0) -> 16.15350927 | E90: =IF($D$84>0,($D$69*N48+$D$70*N49)*$C$65/($D$84*100),0) -> 13.17213729 | F90: =IF(F84>0,SUMPRODUCT(F69:F71,K48:K50)*$C$65/(F84*100),0) -> 16.21933346 | G90: =IF(F84>0,SUMPRODUCT(F69:F71,N48:N50)*$C$65/(F84*100),0) -> 13.46261982 | H90: =IF(H84>0,SUMPRODUCT(H69:H72,K48:K51)*$C$65/(H84*100),0) -> 16.54236286 | I90: =IF(H84>0,SUMPRODUCT(H69:H72,N48:N51)*$C$65/(H84*100),0) -> 14.9682116 | J90: =IF(J84>0,SUMPRODUCT(J69:J73,$K48:$K52)*$C$65/(J84*100),0) -> 16.56153397 | K90: =IF(J84>0,SUMPRODUCT(J69:J73,$N48:$N52)*$C$65/(J84*100),0) -> 15.41756105 | L90: =IF(L84>0,SUMPRODUCT(L69:L73,$K48:$K52)*$C$65/(L84*100),0) -> 16.48439639 | M90: =IF(L84>0,SUMPRODUCT(L69:L73,$N48:$N52)*$C$65/(L84*100),0) -> 15.51156491 | N90: =IF(N84>0,SUMPRODUCT(N69:N73,$K48:$K52)*$C$65/(N84*100),0) -> 16.40713658 | O90: =IF(N84>0,SUMPRODUCT(N69:N73,$N48:$N52)*$C$65/(N84*100),0) -> 15.50338278 | P90: =IF(P84>0,SUMPRODUCT(P69:P73,$K48:$K52)*$C$65/(P84*100),0) -> 0 | Q90: =IF(P84>0,SUMPRODUCT(P69:P73,$N48:$N52)*$C$65/(P84*100),0) -> 0 | R90: =IF(R84>0,SUMPRODUCT(R69:R73,$K48:$K52)*$C$65/(R84*100),0) -> 0 | S90: =IF(R84>0,SUMPRODUCT(R69:R73,$N48:$N52)*$C$65/(R84*100),0) -> 0 | T90: =IF(T84>0,SUMPRODUCT(T69:T73,$K48:$K52)*$C$65/(T84*100),0) -> 15.82516216 | U90: =IF(T84>0,SUMPRODUCT(T69:T73,$N48:$N52)*$C$65/(T84*100),0) -> 11.87318517 | V90: =IF(V84>0,SUMPRODUCT(V69:V73,$K48:$K52)*$C$65/(V84*100),0) -> 16.22813361 | W90: =IF(V84>0,SUMPRODUCT(V69:V73,$N48:$N52)*$C$65/(V84*100),0) -> 13.46735369 | X90: =IF(X84>0,SUMPRODUCT(X69:X73,$K48:$K52)*$C$65/(X84*100),0) -> 16.37153366 | Y90: =IF(X84>0,SUMPRODUCT(X69:X73,$N48:$N52)*$C$65/(X84*100),0) -> 14.08442635 | Z90: =IF(Z84>0,SUMPRODUCT(Z69:Z72,$K49:$K52)*$C$65/(Z84*100),0) -> 16.55223283 | AA90: =IF(Z84>0,SUMPRODUCT(Z69:Z72,$N49:$N52)*$C$65/(Z84*100),0) -> 15.15761045 | AB90: =IF(AB84>0,SUMPRODUCT(AB69:AB71,$K50:$K52)*$C$65/(AB84*100),0) -> 16.51533616 | AC90: =IF(AB84>0,SUMPRODUCT(AB69:AB71,$N50:$N52)*$C$65/(AB84*100),0) -> 15.45221937 | AD90: =IF(AD84>0,SUMPRODUCT(AD69:AD70,$K51:$K52)*$C$65/(AD84*100),0) -> 16.46894443 | AE90: =IF(AD84>0,SUMPRODUCT(AD69:AD70,$N51:$N52)*$C$65/(AD84*100),0) -> 15.50992848
A91: Lote últimos meses lactación | B91: =IF(B84>0,(B69*K48+B70*K52)*$C$65/(B84*100),0) -> 16.19928857 | C91: =IF(B84>0,(B69*N48+B70*N52)*$C$65/(B84*100),0) -> 14.20688364 | D91: =IF(D85>0,SUMPRODUCT(D71:D74,$K$53:$K$56)*$C$65/(D85*100),0) -> 16.22297211 | E91: =IF(D85>0,SUMPRODUCT(D71:D74,$N$53:$N$56)*$C$65/(D85*100),0) -> 15.34241199 | F91: =IF(K85>0,SUMPRODUCT(K72:K74,$K$54:$K$56)*$C$65/(K85*100),0) -> 46.25354917 | G91: =IF(N85>0,SUMPRODUCT(N72:N74,$N$54:$N$56)*$C$65/(N85*100),0) -> 21.30652433 | H91: =IF(H85>0,SUMPRODUCT(H73:H74,$K55:$K56)*$C$65/(H85*100),0) -> 16.08576007 | I91: =IF(H85>0,SUMPRODUCT(H73:H74,$N55:$N56)*$C$65/(H85*100),0) -> 15.18455924 | J91: =IF(J85>0,SUMPRODUCT(J74,K56)*$C$65/(J85*100),0) -> 15.95646383 | K91: =IF(J85>0,SUMPRODUCT(J74,N56)*$C$65/(J85*100),0) -> 15.04701241 | L91: =IF(L85>0,SUMPRODUCT(L74,$K53)*$C$65/(L85*100),0) -> 16.29003705 | M91: =IF(L85>0,SUMPRODUCT(L74,$N53)*$C$65/(L85*100),0) -> 15.41966255 | N91: =IF(N85>0,SUMPRODUCT(N74:N75,$K53:$K54)*$C$65/(N85*100),0) -> 16.23298993 | O91: =IF(N85>0,SUMPRODUCT(N74:N75,$N53:$N54)*$C$65/(N85*100),0) -> 15.36233344 | P91: =IF(P85>0,SUMPRODUCT(P74:P76,$K53:$K55)*$C$65/(P85*100),0) -> 16.23839018 | Q91: =IF(P85>0,SUMPRODUCT(P74:P76,$N53:$N55)*$C$65/(P85*100),0) -> 15.36180566 | R91: =IF(R85>0,SUMPRODUCT(R74:R77,$K53:$K56)*$C$65/(R85*100),0) -> 16.12658792 | S91: =IF(R85>0,SUMPRODUCT(R74:R77,$N53:$N56)*$C$65/(R85*100),0) -> 15.23960125 | T91: =IF(T85>0,SUMPRODUCT(T74:T77,$K53:$K56)*$C$65/(T85*100),0) -> 16.11808414 | U91: =IF(T85>0,SUMPRODUCT(T74:T77,$N53:$N56)*$C$65/(T85*100),0) -> 15.21894595 | V91: =IF(V85>0,SUMPRODUCT(V74:V77,$K53:$K56)*$C$65/(V85*100),0) -> 15.95646383 | W91: =IF(V85>0,SUMPRODUCT(V74:V77,$N53:$N56)*$C$65/(V85*100),0) -> 15.04701241 | X91: =IF(X85>0,SUMPRODUCT(X74:X77,$K53:$K56)*$C$65/(X85*100),0) -> 0 | Y91: =IF(X85>0,SUMPRODUCT(X74:X77,$N53:$N56)*$C$65/(X85*100),0) -> 0 | Z91: =IF(Z85>0,SUMPRODUCT(Z73:Z76,$K53:$K56)*$C$65/(Z85*100),0) -> 0 | AA91: =IF(Z85>0,SUMPRODUCT(Z73:Z76,$N53:$N56)*$C$65/(Z85*100),0) -> 0 | AB91: =IF(AB85>0,SUMPRODUCT(AB72:AB75,$K53:$K56)*$C$65/(AB85*100),0) -> 0 | AC91: =IF(AB85>0,SUMPRODUCT(AB72:AB75,$N53:$N56)*$C$65/(AB85*100),0) -> 0 | AD91: =IF(AD85>0,SUMPRODUCT(AD71:AD74,$K53:$K56)*$C$65/(AD85*100),0) -> 16.29003705 | AE91: =IF(AD85>0,SUMPRODUCT(AD71:AD74,$N53:$N56)*$C$65/(AD85*100),0) -> 15.41966255
A92: Lote medio | B92: =IF(B86>0,SUMPRODUCT(B75:B77,K57:K59)*$C$65/(B86*100),0) -> 0 | C92: =IF(B86>0,SUMPRODUCT(B75:B77,N57:N59)*$C$65/(B86*100),0) -> 0 | D92: =IF(D86>0,SUMPRODUCT(D75:D77,K57:K59)*$C$65/(D86*100),0) -> 0 | E92: =IF(D86>0,SUMPRODUCT(D75:D77,N57:N59)*$C$65/(D86*100),0) -> 0 | F92: =IF(F86>0,SUMPRODUCT(F75:F77,K57:K59)*$C$65/(F86*100),0) -> 0 | G92: =IF(F86>0,SUMPRODUCT(F75:F77,N57:N59)*$C$65/(F86*100),0) -> 0 | H92: =IF(H86>0,SUMPRODUCT(H75:H77,K57:K59)*$C$65/(H86*100)) -> 13.57161 | I92: =IF(H86>0,SUMPRODUCT(H75:H77,N57:N59)*$C$65/(H86*100)) -> 11.50081161 | J92: =IF(J86>0,SUMPRODUCT(J75:J77,K57:K59)*$C$65/(J86*100),0) -> 13.57161 | K92: =IF(J86>0,SUMPRODUCT(J75:J77,N57:N59)*$C$65/(J86*100),0) -> 11.70019218 | L92: =IF(L86>0,SUMPRODUCT(L75:L77,K57:K59)*$C$65/(L86*100),0) -> 13.57161 | M92: =IF(L86>0,SUMPRODUCT(L75:L77,N57:N59)*$C$65/(L86*100),0) -> 11.78557527 | N92: =IF(N86>0,SUMPRODUCT(N76:N77,K58:K59)*$C$65/(N86*100),0) -> 13.57161 | O92: =IF(N86>0,SUMPRODUCT(N76:N77,N58:N59)*$C$65/(N86*100),0) -> 11.88615494 | P92: =IF(P86>0,P77*K59*$C$65/(P86*100),0) -> 13.57161 | Q92: =IF(P86>0,P77*N59*$C$65/(P86*100),0) -> 11.95013631 | T92: =IF(T86>0,T78*K57*$C$65/(T86*100),0) -> 13.57161 | U92: =IF(T86>0,T78*N57*$C$65/(T86*100),0) -> 11.50081161 | V92: =IF(V86>0,SUMPRODUCT(V78:V79,K58:K59)*$C$65/(V86*100),0) -> 13.57161 | W92: =IF(V86>0,SUMPRODUCT(V78:V79,N58:N59)*$C$65/(V86*100),0) -> 11.8879322 | X92: =IF(X86>0,SUMPRODUCT(X78:X80,K57:K59)*$C$65/(X86*100),0) -> 13.57161 | Y92: =IF(X86>0,SUMPRODUCT(X78:X80,N57:N59)*$C$65/(X86*100),0) -> 11.70455929 | Z92: =IF(Z86>0,SUMPRODUCT(Z77:Z79,K57:K59)*$C$65/(Z86*100),0) -> 13.57161 | AA92: =IF(Z86>0,SUMPRODUCT(Z77:Z79,N57:N59)*$C$65/(Z86*100),0) -> 11.8701596 | AB92: =IF(AB86>0,SUMPRODUCT(AB76:AB78,K57:K59)*$C$65/(AB86*100),0) -> 13.57161 | AC92: =IF(AB86>0,SUMPRODUCT(AB76:AB78,N57:N59)*$C$65/(AB86*100),0) -> 11.95013631 | AD92: =IF(AD86>0,SUMPRODUCT(AD75:AD77,K57:K59)*$C$65/(AD86*100),0) -> 0 | AE92: =IF(AD86>0,SUMPRODUCT(AD75:AD77,N57:N59)*$C$65/(AD86*100),0) -> 0
A93: Lote gestación | B93: =IF(B87>0,SUMPRODUCT(B78:B80,K60:K62)*$C$65/(B87*100),0) -> 12.884255 | C93: =IF(B87>0,SUMPRODUCT(B78:B80,N60:N62)*$C$65/(B87*100),0) -> 12.01663712 | D93: =IF(D87>0,SUMPRODUCT(D78:D80,$K$60:$K$62)*$C$65/(D87*100),0) -> 12.30155 | E93: =IF(D87>0,SUMPRODUCT(D78:D80,$N$60:$N$62)*$C$65/(D87*100),0) -> 12.02207688 | F93: =IF(F87>0,SUMPRODUCT(F78:F80,$K$60:$K$62)*$C$65/(F87*100),0) -> 0 | G93: =IF(F87>0,SUMPRODUCT(F78:F80,$N$60:$N$62)*$C$65/(F87*100),0) -> 0 | H93: =IF(H87>0,SUMPRODUCT(H78:H80,$K$60:$K$62)*$C$65/(H87*100),0) -> 0 | I93: =IF(H87>0,SUMPRODUCT(H78:H80,$N$60:$N$62)*$C$65/(H87*100),0) -> 0 | J93: =IF(J87>0,SUMPRODUCT(J78:J80,$K$60:$K$62)*$C$65/(J87*100),0) -> 0 | K93: =IF(J87>0,SUMPRODUCT(J78:J80,$N$60:$N$62)*$C$65/(J87*100),0) -> 0 | L93: =IF(L87>0,SUMPRODUCT(L78:L80,$K$60:$K$62)*$C$65/(L87*100),0) -> 0 | M93: =IF(L87>0,SUMPRODUCT(L78:L80,$N$60:$N$62)*$C$65/(L87*100),0) -> 0 | N93: =IF(N87>0,SUMPRODUCT(N78:N80,$K$60:$K$62)*$C$65/(N87*100),0) -> 13.20798 | O93: =IF(N87>0,SUMPRODUCT(N78:N80,$N$60:$N$62)*$C$65/(N87*100),0) -> 11.9957887 | P93: =IF(P87>0,SUMPRODUCT(P78:P80,$K$60:$K$62)*$C$65/(P87*100),0) -> 13.20798 | Q93: =IF(P87>0,SUMPRODUCT(P78:P80,$N$60:$N$62)*$C$65/(P87*100),0) -> 12.00672758 | R93: =IF(R87>0,SUMPRODUCT(R78:R80,$K$60:$K$62)*$C$65/(R87*100),0) -> 12.81324435 | S93: =IF(R87>0,SUMPRODUCT(R78:R80,$N$60:$N$62)*$C$65/(R87*100),0) -> 12.01212464 | T93: =IF(T87>0,SUMPRODUCT(T79:T80,$K$61:$K$62)*$C$65/(T87*100),0) -> 12.767714 | U93: =IF(T87>0,SUMPRODUCT(T79:T80,$N$61:$N$62)*$C$65/(T87*100),0) -> 12.01772507 | V93: =IF(V87>0,SUMPRODUCT(V80,$K$62)*$C$65/(V87*100),0) -> 12.30155 | W93: =IF(V87>0,SUMPRODUCT(V80,$N$62)*$C$65/(V87*100),0) -> 12.02207688 | Z93: =IF(Z87>0,SUMPRODUCT(Z80,$K$60)*$C$65/(Z87*100),0) -> 13.20798 | AA93: =IF(Z87>0,SUMPRODUCT(Z80,$N$60)*$C$65/(Z87*100),0) -> 11.9957887 | AB93: =IF(AB87>0,SUMPRODUCT(AB79:AB80,$K$60:$K$61)*$C$65/(AB87*100),0) -> 13.20798 | AC93: =IF(AB87>0,SUMPRODUCT(AB79:AB80,$N$60:$N$61)*$C$65/(AB87*100),0) -> 12.00470186 | AD93: =IF(AD87>0,SUMPRODUCT(AD78:AD80,$K$60:$K$62)*$C$65/(AD87*100),0) -> 12.96944579 | AE93: =IF(AD87>0,SUMPRODUCT(AD78:AD80,$N$60:$N$62)*$C$65/(AD87*100),0) -> 12.00739778
A94: Lote lactación | B94: =IF(B88>0,(B69*$K48+SUMPRODUCT(B70:B74,$K52:$K56))*$C$65/(B88*100),0) -> 16.21196063 | C94: =IF(B88>0,(B69*$N48+SUMPRODUCT(B70:B74,$N52:$N56))*$C$65/(B88*100),0) -> 14.90502947 | D94: =IF(D88>0,(SUMPRODUCT(D69:D70,$K48:$K49)+SUMPRODUCT(D71:D74,$K53:$K56))*$C$65/(D88*100),0) -> 16.20602995 | E94: =IF(D88>0,(SUMPRODUCT(D69:D70,$N48:$N49)+SUMPRODUCT(D71:D74,$N53:$N56))*$C$65/(D88*100),0) -> 14.8130767 | F94: =IF(F88>0,(SUMPRODUCT(F69:F71,$K48:$K50)+SUMPRODUCT(F72:F74,$K54:$K56))*$C$65/(F88*100),0) -> 16.1386001 | G94: =IF(F88>0,(SUMPRODUCT(F69:F71,$N48:$N50)+SUMPRODUCT(F72:F74,$N54:$N56))*$C$65/(F88*100),0) -> 14.53684864 | H94: =IF(H88>0,(SUMPRODUCT(H69:H72,$K48:$K51)+SUMPRODUCT(H73:H74,$K55:$K56))*$C$65/(H88*100),0) -> 16.32344372 | I94: =IF(H88>0,(SUMPRODUCT(H69:H72,$N48:$N51)+SUMPRODUCT(H73:H74,$N55:$N56))*$C$65/(H88*100),0) -> 15.07193992 | J94: =IF(J88>0,(SUMPRODUCT(J69:J73,$K48:$K52)+SUMPRODUCT(J74,$K56))*$C$65/(J88*100),0) -> 16.36704714 | K94: =IF(J88>0,(SUMPRODUCT(J69:J73,$N48:$N52)+SUMPRODUCT(J74,$N56))*$C$65/(J88*100),0) -> 15.29845613 | L94: =IF(L88>0,SUMPRODUCT(L69:L74,$K48:$K53)*$C$65/(L88*100),0) -> 16.43324919 | M94: =IF(L88>0,SUMPRODUCT(L69:L74,$N48:$N53)*$C$65/(L88*100),0) -> 15.48738008 | N94: =IF(N88>0,SUMPRODUCT(N69:N75,$K48:$K54)*$C$65/(N88*100),0) -> 16.31548045 | O94: =IF(N88>0,SUMPRODUCT(N69:N75,$N48:$N54)*$C$65/(N88*100),0) -> 15.42914629 | P94: =IF(P88>0,SUMPRODUCT(P69:P76,$K48:$K55)*$C$65/(P88*100),0) -> 16.23839018 | Q94: =IF(P88>0,SUMPRODUCT(P69:P76,$N48:$N55)*$C$65/(P88*100),0) -> 15.36180566 | R94: =IF(R88>0,SUMPRODUCT(R69:R77,$K48:$K56)*$C$65/(R88*100),0) -> 16.12658792 | S94: =IF(R88>0,SUMPRODUCT(R69:R77,$N48:$N56)*$C$65/(R88*100),0) -> 15.23960125 | T94: =IF(T88>0,SUMPRODUCT(T69:T77,$K48:$K56)*$C$65/(T88*100),0) -> 15.97428607 | U94: =IF(T88>0,SUMPRODUCT(T69:T77,$N48:$N56)*$C$65/(T88*100),0) -> 13.57648157 | V94: =IF(V88>0,SUMPRODUCT(V69:V77,$K48:$K56)*$C$65/(V88*100),0) -> 16.14926174 | W94: =IF(V88>0,SUMPRODUCT(V69:V77,$N48:$N56)*$C$65/(V88*100),0) -> 13.92596428 | X94: =IF(X88>0,SUMPRODUCT(X69:X77,$K48:$K56)*$C$65/(X88*100),0) -> 16.37153366 | Y94: =IF(X88>0,SUMPRODUCT(X69:X77,$N48:$N56)*$C$65/(X88*100),0) -> 14.08442635 | Z94: =IF(Z88>0,SUMPRODUCT(Z69:Z76,$K49:$K56)*$C$65/(Z88*100),0) -> 16.55223283 | AA94: =IF(Z88>0,SUMPRODUCT(Z69:Z76,$N49:$N56)*$C$65/(Z88*100),0) -> 15.15761045 | AB94: =IF(AB88>0,SUMPRODUCT(AB69:AB75,$K50:$K56)*$C$65/(AB88*100),0) -> 16.51533616 | AC94: =IF(AB88>0,SUMPRODUCT(AB69:AB75,$N50:$N56)*$C$65/(AB88*100),0) -> 15.45221937 | AD94: =IF(AD88>0,SUMPRODUCT(AD69:AD74,$K51:$K56)*$C$65/(AD88*100),0) -> 16.39103315 | AE94: =IF(AD88>0,SUMPRODUCT(AD69:AD74,$N51:$N56)*$C$65/(AD88*100),0) -> 15.47061913
B95: NecUFL_gest | C95: NecPDI_gest | D95: NecUFL_gest | E95: NecPDI_gest | F95: NecUFL_gest | G95: NecPDI_gest | H95: NecUFL_gest | I95: NecPDI_gest | J95: NecUFL_gest | K95: NecPDI_gest | L95: NecUFL_gest | M95: NecPDI_gest | N95: NecUFL_gest | O95: NecPDI_gest | P95: NecUFL_gest | Q95: NecPDI_gest | R95: NecUFL_gest | S95: NecPDI_gest | T95: NecUFL_gest | U95: NecPDI_gest | V95: NecUFL_gest | W95: NecPDI_gest | X95: NecUFL_gest | Y95: NecPDI_gest | Z95: NecUFL_gest | AA95: NecPDI_gest | AB95: NecUFL_gest | AC95: NecPDI_gest | AD95: NecUFL_gest | AE95: NecPDI_gest
A96: Lote gestación | B96: =IF(B87>0,SUMPRODUCT(B78:B80,$Q$60:$Q$62)*$C$65/(B87*100),0) -> 1.871100871 | C96: =IF(B87>0,SUMPRODUCT(B78:B80,$T$60:$T$62)*$C$65/(B87*100),0) -> 101.2885666 | D96: =IF(D87>0,SUMPRODUCT(D78:D80,$Q$60:$Q$62)*$C$65/(D87*100),0) -> 2.609342526 | E96: =IF(D87>0,SUMPRODUCT(D78:D80,$T$60:$T$62)*$C$65/(D87*100),0) -> 139.4795614 | F96: =IF(F87>0,SUMPRODUCT(F78:F80,$Q$60:$Q$62)*$C$65/(F87*100),0) -> 0 | G96: =IF(F87>0,SUMPRODUCT(F78:F80,$T$60:$T$62)*$C$65/(F87*100),0) -> 0 | H96: =IF(H87>0,SUMPRODUCT(H78:H80,$Q$60:$Q$62)*$C$65/(H87*100),0) -> 0 | I96: =IF(H87>0,SUMPRODUCT(H78:H80,$T$60:$T$62)*$C$65/(H87*100),0) -> 0 | J96: =IF(J87>0,SUMPRODUCT(J78:J80,$Q$60:$Q$62)*$C$65/(J87*100),0) -> 0 | K96: =IF(J87>0,SUMPRODUCT(J78:J80,$T$60:$T$62)*$C$65/(J87*100),0) -> 0 | L96: =IF(L87>0,SUMPRODUCT(L78:L80,$Q$60:$Q$62)*$C$65/(L87*100),0) -> 0 | M96: =IF(L87>0,SUMPRODUCT(L78:L80,$T$60:$T$62)*$C$65/(L87*100),0) -> 0 | N96: =IF(N87>0,SUMPRODUCT(N78:N80,$Q$60:$Q$62)*$C$65/(N87*100),0) -> 0.8568319401 | O96: =IF(N87>0,SUMPRODUCT(N78:N80,$T$60:$T$62)*$C$65/(N87*100),0) -> 48.07553485 | P96: =IF(P87>0,SUMPRODUCT(P78:P80,$Q$60:$Q$62)*$C$65/(P87*100),0) -> 1.227550947 | Q96: =IF(P87>0,SUMPRODUCT(P78:P80,$T$60:$T$62)*$C$65/(P87*100),0) -> 67.7093288 | R96: =IF(R87>0,SUMPRODUCT(R78:R80,$Q$60:$Q$62)*$C$65/(R87*100),0) -> 1.785671865 | S96: =IF(R87>0,SUMPRODUCT(R78:R80,$T$60:$T$62)*$C$65/(R87*100),0) -> 96.65355949 | T96: =IF(T87>0,SUMPRODUCT(T79:T80,$Q$61:$Q$62)*$C$65/(T87*100),0) -> 2.018749202 | U96: =IF(T87>0,SUMPRODUCT(T79:T80,$T$61:$T$62)*$C$65/(T87*100),0) -> 108.9267655 | V96: =IF(V87>0,SUMPRODUCT(V80,$Q$62)*$C$65/(V87*100),0) -> 2.609342526 | W96: =IF(V87>0,SUMPRODUCT(V80,$T$62)*$C$65/(V87*100),0) -> 139.4795614 | X96: =IF(X87>0,SUMPRODUCT(X80,$Q$62)*$C$65/(X87*100),0) -> 0 | Y96: =IF(X87>0,SUMPRODUCT(X80,$T$62)*$C$65/(X87*100),0) -> 0 | Z96: =IF(Z87>0,SUMPRODUCT(Z80,$Q$60)*$C$65/(Z87*100),0) -> 0.8568319401 | AA96: =IF(Z87>0,SUMPRODUCT(Z80,$T$60)*$C$65/(Z87*100),0) -> 48.07553485 | AB96: =IF(AB87>0,SUMPRODUCT(AB79:AB80,$Q$60:$Q$61)*$C$65/(AB87*100),0) -> 1.158899279 | AC96: =IF(AB87>0,SUMPRODUCT(AB79:AB80,$T$60:$T$61)*$C$65/(AB87*100),0) -> 64.07344103 | AD96: =IF(AD87>0,SUMPRODUCT(AD78:AD80,$Q$60:$Q$62)*$C$65/(AD87*100),0) -> 1.477001746 | AE96: =IF(AD87>0,SUMPRODUCT(AD78:AD80,$T$60:$T$62)*$C$65/(AD87*100),0) -> 80.54917668
B97: Mg | C97: K | D97: Mg | E97: K | F97: Mg | G97: K | H97: Mg | I97: K | J97: Mg | K97: K | L97: Mg | M97: K | N97: Mg | O97: K | P97: Mg | Q97: K | R97: Mg | S97: K | T97: Mg | U97: K | V97: Mg | W97: K | X97: Mg | Y97: K | Z97: Mg | AA97: K | AB97: Mg | AC97: K | AD97: Mg | AE97: K
A98: Lote 5 primeros meses lactación | B98: =IF($B$84>0,($B$69*$W$48+$B$70*$W$52)*$C$65/($B$84*100),0) -> 51.76299893 | C98: =IF($B$84>0,($B$69*$X$48+$B$70*$X$52)*$C$65/($B$84*100),0) -> 86.54079828 | D98: =IF($D$84>0,SUMPRODUCT($D$69:$D$70,$W$48:$W$49)*$C$65/($D$84*100),0) -> 52.43855602 | E98: =IF($D$84>0,SUMPRODUCT($D$69:$D$70,$X$48:$X$49)*$C$65/($D$84*100),0) -> 87.62168963 | F98: =IF($F$84>0,SUMPRODUCT($F$69:$F$71,$W$48:$W$50)*$C$65/($F$84*100),0) -> 52.34505926 | G98: =IF($F$84>0,SUMPRODUCT($F$69:$F$71,$X$48:$X$50)*$C$65/($F$84*100),0) -> 87.47209482 | H98: =IF($H$84>0,SUMPRODUCT($H$69:$H$72,$W$48:$W$51)*$C$65/($H$84*100),0) -> 52.62147302 | I98: =IF($H$84>0,SUMPRODUCT($H$69:$H$72,$X$48:$X$51)*$C$65/($H$84*100),0) -> 87.91435684 | J98: =IF($J$84>0,SUMPRODUCT($J$69:$J$73,$W$48:$W$52)*$C$65/($J$84*100),0) -> 52.18358046 | K98: =IF($J$84>0,SUMPRODUCT($J$69:$J$73,$X$48:$X$52)*$C$65/($J$84*100),0) -> 87.21372873 | L98: =IF($L$84>0,SUMPRODUCT($L$69:$L$73,$W$48:$W$52)*$C$65/($L$84*100),0) -> 51.93697695 | M98: =IF($L$84>0,SUMPRODUCT($L$69:$L$73,$X$48:$X$52)*$C$65/($L$84*100),0) -> 86.81916312 | N98: =IF($N$84>0,SUMPRODUCT($N$69:$N$73,$W$48:$W$52)*$C$65/($N$84*100),0) -> 51.68998266 | O98: =IF($N$84>0,SUMPRODUCT($N$69:$N$73,$X$48:$X$52)*$C$65/($N$84*100),0) -> 86.42397226 | P98: =IF($P$84>0,SUMPRODUCT($P$69:$P$73,$W$48:$W$52)*$C$65/($P$84*100),0) -> 0 | Q98: =IF($P$84>0,SUMPRODUCT($P$69:$P$73,$X$48:$X$52)*$C$65/($P$84*100),0) -> 0 | R98: =IF($R$84>0,SUMPRODUCT($R$69:$R$73,$W$48:$W$52)*$C$65/($R$84*100),0) -> 0 | S98: =IF($R$84>0,SUMPRODUCT($R$69:$R$73,$X$48:$X$52)*$C$65/($R$84*100),0) -> 0 | T98: =IF($T$84>0,SUMPRODUCT($T$69:$T$73,$W$48:$W$52)*$C$65/($T$84*100),0) -> 51.89442821 | U98: =IF($T$84>0,SUMPRODUCT($T$69:$T$73,$X$48:$X$52)*$C$65/($T$84*100),0) -> 86.75108513 | V98: =IF($V$84>0,SUMPRODUCT($V$69:$V$73,$W$48:$W$52)*$C$65/($V$84*100),0) -> 52.56222143 | W98: =IF($V$84>0,SUMPRODUCT($V$69:$V$73,$X$48:$X$52)*$C$65/($V$84*100),0) -> 87.81955429 | X98: =IF($X$84>0,SUMPRODUCT($X$69:$X$73,$W$48:$W$52)*$C$65/($X$84*100),0) -> 52.46462482 | Y98: =IF($X$84>0,SUMPRODUCT($X$69:$X$73,$X$48:$X$52)*$C$65/($X$84*100),0) -> 87.66339972 | Z98: =IF($Z$84>0,SUMPRODUCT($Z$69:$Z$72,$W$49:$W$52)*$C$65/($Z$84*100),0) -> 52.45979518 | AA98: =IF($Z$84>0,SUMPRODUCT($Z$69:$Z$72,$X$49:$X$52)*$C$65/($Z$84*100),0) -> 87.65567228 | AB98: =IF($AB$84>0,SUMPRODUCT($AB$69:$AB$71,$W$50:$W$52)*$C$65/($AB$84*100),0) -> 52.03588927 | AC98: =IF($AB$84>0,SUMPRODUCT($AB$69:$AB$71,$X$50:$X$52)*$C$65/($AB$84*100),0) -> 86.97742283 | AD98: =IF($AD$84>0,SUMPRODUCT($AD$69:$AD$70,$W$51:$W$52)*$C$65/($AD$84*100),0) -> 51.88757809 | AE98: =IF($AD$84>0,SUMPRODUCT($AD$69:$AD$70,$X$51:$X$52)*$C$65/($AD$84*100),0) -> 86.74012494
A99: Lote últimos meses lactación | B99: =IF($B$85>0,SUMPRODUCT($B$71:$B$74,$W$53:$W$56)*$C$65/($B$85*100),0) -> 51.09179883 | C99: =IF($B$85>0,SUMPRODUCT($B$71:$B$74,$X$53:$X$56)*$C$65/($B$85*100),0) -> 85.46687813 | D99: =IF($D$85>0,SUMPRODUCT($D$71:$D$74,$W$53:$W$56)*$C$65/($D$85*100),0) -> 51.10122158 | E99: =IF($D$85>0,SUMPRODUCT($D$71:$D$74,$X$53:$X$56)*$C$65/($D$85*100),0) -> 85.48195453 | F99: =IF($F$85>0,SUMPRODUCT($F$72:$F$74,$W$54:$W$56)*$C$65/($F$85*100),0) -> 50.67330038 | G99: =IF($F$85>0,SUMPRODUCT($F$72:$F$74,$X$54:$X$56)*$C$65/($F$85*100),0) -> 84.79728061 | H99: =IF($H$85>0,SUMPRODUCT($H$73:$H$74,$W$55:$W$56)*$C$65/($H$85*100),0) -> 50.66256418 | I99: =IF($H$85>0,SUMPRODUCT($H$73:$H$74,$X$55:$X$56)*$C$65/($H$85*100),0) -> 84.78010268 | J99: =IF($J$85>0,SUMPRODUCT($J$74,$W$56)*$C$65/($J$85*100),0) -> 50.249213 | K99: =IF($J$85>0,SUMPRODUCT($J$74,$X$56)*$C$65/($J$85*100),0) -> 84.11874081 | L99: =IF($L$85>0,SUMPRODUCT($L$74,$W$53)*$C$65/($L$85*100),0) -> 51.31562356 | M99: =IF($L$85>0,SUMPRODUCT($L$74,$X$53)*$C$65/($L$85*100),0) -> 85.82499769 | N99: =IF($N$85>0,SUMPRODUCT($N$74:$N$75,$W$53:$W$54)*$C$65/($N$85*100),0) -> 51.13324785 | O99: =IF($N$85>0,SUMPRODUCT($N$74:$N$75,$X$53:$X$54)*$C$65/($N$85*100),0) -> 85.53319656 | P99: =IF($P$85>0,SUMPRODUCT($P$74:$P$76,$W$53:$W$55)*$C$65/($P$85*100),0) -> 51.15051209 | Q99: =IF($P$85>0,SUMPRODUCT($P$74:$P$76,$X$53:$X$55)*$C$65/($P$85*100),0) -> 85.56081934 | R99: =IF($R$85>0,SUMPRODUCT($R$74:$R$77,$W$53:$W$56)*$C$65/($R$85*100),0) -> 50.79308797 | S99: =IF($R$85>0,SUMPRODUCT($R$74:$R$77,$X$53:$X$56)*$C$65/($R$85*100),0) -> 84.98894074 | T99: =IF($T$85>0,SUMPRODUCT($T$74:$T$77,$W$53:$W$56)*$C$65/($T$85*100),0) -> 50.76590197 | U99: =IF($T$85>0,SUMPRODUCT($T$74:$T$77,$X$53:$X$56)*$C$65/($T$85*100),0) -> 84.94544315 | V99: =IF($V$85>0,SUMPRODUCT($V$74:$V$77,$W$53:$W$56)*$C$65/($V$85*100),0) -> 50.249213 | W99: =IF($V$85>0,SUMPRODUCT($V$74:$V$77,$X$53:$X$56)*$C$65/($V$85*100),0) -> 84.11874081 | X99: =IF($X$85>0,SUMPRODUCT($X$74:$X$77,$W$53:$W$56)*$C$65/($X$85*100),0) -> 0 | Y99: =IF($X$85>0,SUMPRODUCT($X$74:$X$77,$X$53:$X$56)*$C$65/($X$85*100),0) -> 0 | Z99: =IF($Z$85>0,SUMPRODUCT($Z$73:$Z$76,$W$53:$W$56)*$C$65/($Z$85*100),0) -> 0 | AA99: =IF($Z$85>0,SUMPRODUCT($Z$73:$Z$76,$X$53:$X$56)*$C$65/($Z$85*100),0) -> 0 | AB99: =IF($AB$85>0,SUMPRODUCT($AB$72:$AB$75,$W$53:$W$56)*$C$65/($AB$85*100),0) -> 0 | AC99: =IF($AB$85>0,SUMPRODUCT($AB$72:$AB$75,$X$53:$X$56)*$C$65/($AB$85*100),0) -> 0 | AD99: =IF($AD$85>0,SUMPRODUCT($AD$71:$AD$74,$W$53:$W$56)*$C$65/($AD$85*100),0) -> 51.31562356 | AE99: =IF($AD$85>0,SUMPRODUCT($AD$71:$AD$74,$X$53:$X$56)*$C$65/($AD$85*100),0) -> 85.82499769
A100: Lote medio | B100: =IF($B$86>0,SUMPRODUCT($B$75:$B$77,$W$57:$W$59)*$C$65/($B$86*100),0) -> 0 | C100: =IF($B$86>0,SUMPRODUCT($B$75:$B$77,$X$57:$X$59)*$C$65/($B$86*100),0) -> 0 | D100: =IF($D$86>0,SUMPRODUCT($D$75:$D$77,$W$57:$W$59)*$C$65/($D$86*100),0) -> 0 | E100: =IF($D$86>0,SUMPRODUCT($D$75:$D$77,$X$57:$X$59)*$C$65/($D$86*100),0) -> 0 | F100: =IF($F$86>0,SUMPRODUCT($F$75:$F$77,$W$57:$W$59)*$C$65/($F$86*100),0) -> 0 | G100: =IF($F$86>0,SUMPRODUCT($F$75:$F$77,$X$57:$X$59)*$C$65/($F$86*100),0) -> 0 | H100: =IF($H$86>0,SUMPRODUCT($H$75:$H$77,$W$57:$W$59)*$C$65/($H$86*100)) -> 42.625 | I100: =IF($H$86>0,SUMPRODUCT($H$75:$H$77,$X$57:$X$59)*$C$65/($H$86*100)) -> 71.92 | J100: =IF($J$86>0,SUMPRODUCT($J$75:$J$77,$W$57:$W$59)*$C$65/($J$86*100),0) -> 42.625 | K100: =IF($J$86>0,SUMPRODUCT($J$75:$J$77,$X$57:$X$59)*$C$65/($J$86*100),0) -> 71.92 | L100: =IF($L$86>0,SUMPRODUCT($L$75:$L$77,$W$57:$W$59)*$C$65/($L$86*100),0) -> 42.625 | M100: =IF($L$86>0,SUMPRODUCT($L$75:$L$77,$X$57:$X$59)*$C$65/($L$86*100),0) -> 71.92 | N100: =IF($N$86>0,SUMPRODUCT($N$76:$N$77,$W$58:$W$59)*$C$65/($N$86*100),0) -> 42.625 | O100: =IF($N$86>0,SUMPRODUCT($N$76:$N$77,$X$58:$X$59)*$C$65/($N$86*100),0) -> 71.92 | P100: =IF($P$86>0,$P$77*$W$59*$C$65/($P$86*100),0) -> 42.625 | Q100: =IF($P$86>0,$P$77*$X$59*$C$65/($P$86*100),0) -> 71.92 | R100: =IF($R$86>0,$R$77*$Y$59*$C$65/($R$86*100),0) -> 0 | S100: =IF($R$86>0,$R$77*$X$59*$C$65/($R$86*100),0) -> 0 | T100: =IF($T$86>0,$T$78*$W$57*$C$65/($T$86*100),0) -> 42.625 | U100: =IF($T$86>0,$T$78*$X$57*$C$65/($T$86*100),0) -> 71.92 | V100: =IF($V$86>0,SUMPRODUCT($V$78:$V$79,$W$58:$W$59)*$C$65/($V$86*100),0) -> 42.625 | W100: =IF($V$86>0,SUMPRODUCT($V$78:$V$79,$X$58:$X$59)*$C$65/($V$86*100),0) -> 71.92 | X100: =IF($X$86>0,SUMPRODUCT($X$78:$X$80,$W$57:$W$59)*$C$65/($X$86*100),0) -> 42.625 | Y100: =IF($X$86>0,SUMPRODUCT($X$78:$X$80,$X$57:$X$59)*$C$65/($X$86*100),0) -> 71.92 | Z100: =IF($Z$86>0,SUMPRODUCT($Z$77:$Z$79,$W$57:$W$59)*$C$65/($Z$86*100),0) -> 42.625 | AA100: =IF($Z$86>0,SUMPRODUCT($Z$77:$Z$79,$X$57:$X$59)*$C$65/($Z$86*100),0) -> 71.92 | AB100: =IF($AB$86>0,SUMPRODUCT($AB$76:$AB$78,$W$57:$W$59)*$C$65/($AB$86*100),0) -> 42.625 | AC100: =IF($AB$86>0,SUMPRODUCT($AB$76:$AB$78,$X$57:$X$59)*$C$65/($AB$86*100),0) -> 71.92 | AD100: =IF($AD$86>0,SUMPRODUCT($AD$75:$AD$77,$W$57:$W$59)*$C$65/($AD$86*100),0) -> 0 | AE100: =IF($AD$86>0,SUMPRODUCT($AD$75:$AD$77,$X$57:$X$59)*$C$65/($AD$86*100),0) -> 0
A101: Lote gestación | B101: =IF($B$87>0,SUMPRODUCT($B$78:$B$80,$W$60:$W$62)*$C$65/($B$87*100),0) -> 42.625 | C101: =IF($B$87>0,SUMPRODUCT($B$78:$B$80,$X$60:$X$62)*$C$65/($B$87*100),0) -> 44.4 | D101: =IF($D$87>0,SUMPRODUCT($D$78:$D$80,$W$60:$W$62)*$C$65/($D$87*100),0) -> 42.625 | E101: =IF($D$87>0,SUMPRODUCT($D$78:$D$80,$X$60:$X$62)*$C$65/($D$87*100),0) -> 44.4 | F101: =IF($F$87>0,SUMPRODUCT($F$78:$F$80,$W$60:$W$62)*$C$65/($F$87*100),0) -> 0 | G101: =IF($F$87>0,SUMPRODUCT($F$78:$F$80,$X$60:$X$62)*$C$65/($F$87*100),0) -> 0 | H101: =IF($H$87>0,SUMPRODUCT($H$78:$H$80,$W$60:$W$62)*$C$65/($H$87*100),0) -> 0 | I101: =IF($H$87>0,SUMPRODUCT($H$78:$H$80,$X$60:$X$62)*$C$65/($H$87*100),0) -> 0 | J101: =IF($J$87>0,SUMPRODUCT($J$78:$J$80,$W$60:$W$62)*$C$65/($J$87*100),0) -> 0 | K101: =IF($J$87>0,SUMPRODUCT($J$78:$J$80,$X$60:$X$62)*$C$65/($J$87*100),0) -> 0 | L101: =IF($L$87>0,SUMPRODUCT($L$78:$L$80,$W$60:$W$62)*$C$65/($L$87*100),0) -> 0 | M101: =IF($L$87>0,SUMPRODUCT($L$78:$L$80,$X$60:$X$62)*$C$65/($L$87*100),0) -> 0 | N101: =IF($N$87>0,SUMPRODUCT($N$78:$N$80,$W$60:$W$62)*$C$65/($N$87*100),0) -> 42.625 | O101: =IF($N$87>0,SUMPRODUCT($N$78:$N$80,$X$60:$X$62)*$C$65/($N$87*100),0) -> 44.4 | P101: =IF($P$87>0,SUMPRODUCT($P$78:$P$80,$W$60:$W$62)*$C$65/($P$87*100),0) -> 42.625 | Q101: =IF($P$87>0,SUMPRODUCT($P$78:$P$80,$X$60:$X$62)*$C$65/($P$87*100),0) -> 44.4 | R101: =IF($R$87>0,SUMPRODUCT($R$78:$R$80,$W$60:$W$62)*$C$65/($R$87*100),0) -> 42.625 | S101: =IF($R$87>0,SUMPRODUCT($R$78:$R$80,$X$60:$X$62)*$C$65/($R$87*100),0) -> 44.4 | T101: =IF($T$87>0,SUMPRODUCT($T$79:$T$80,$W$61:$W$62)*$C$65/($T$87*100),0) -> 42.625 | U101: =IF($T$87>0,SUMPRODUCT($T$79:$T$80,$X$61:$X$62)*$C$65/($T$87*100),0) -> 44.4 | V101: =IF($V$87>0,SUMPRODUCT($V$80,$W$62)*$C$65/($V$87*100),0) -> 42.625 | W101: =IF($V$87>0,SUMPRODUCT($V$80,$X$62)*$C$65/($V$87*100),0) -> 44.4 | X101: =IF($X$87>0,SUMPRODUCT($X$80,$W$62)*$C$65/($X$87*100),0) -> 0 | Y101: =IF($X$87>0,SUMPRODUCT($X$80,$X$62)*$C$65/($X$87*100),0) -> 0 | Z101: =IF($Z$87>0,SUMPRODUCT($Z$80,$W$61)*$C$65/($Z$87*100),0) -> 42.625 | AA101: =IF($Z$87>0,SUMPRODUCT($Z$80,$X$61)*$C$65/($Z$87*100),0) -> 44.4 | AB101: =IF($AB$87>0,SUMPRODUCT($AB$79:$AB$80,$W$60:$W$61)*$C$65/($AB$87*100),0) -> 42.625 | AC101: =IF($AB$87>0,SUMPRODUCT($AB$79:$AB$80,$X$60:$X$61)*$C$65/($AB$87*100),0) -> 44.4 | AD101: =IF($AD$87>0,SUMPRODUCT($AD$78:$AD$80,$W$60:$W$62)*$C$65/($AD$87*100),0) -> 42.625 | AE101: =IF($AD$87>0,SUMPRODUCT($AD$78:$AD$80,$X$60:$X$62)*$C$65/($AD$87*100),0) -> 44.4
A102: Lote lactación | B102: =IF($B$88>0,($B$69*$W$48+SUMPRODUCT($B$70:$B$74,$W$52:$W$56))*$C$65/($B$88*100),0) -> 51.35282109 | C102: =IF($B$88>0,($B$69*$X$48+SUMPRODUCT($B$70:$B$74,$X$52:$X$56))*$C$65/($B$88*100),0) -> 85.88451374 | D102: =IF($D$88>0,(SUMPRODUCT($D$69:$D$70,$W$48:$W$49)+SUMPRODUCT($D$71:$D$74,$W$53:$W$56))*$C$65/($D$88*100),0) -> 51.42740071 | E102: =IF($D$88>0,(SUMPRODUCT($D$69:$D$70,$X$48:$X$49)+SUMPRODUCT($D$71:$D$74,$X$53:$X$56))*$C$65/($D$88*100),0) -> 86.00384114 | F102: =IF($F$88>0,(SUMPRODUCT($F$69:$F$71,$W$48:$W$50)+SUMPRODUCT($F$72:$F$74,$W$54:$W$56))*$C$65/($F$88*100),0) -> 51.30856876 | G102: =IF($F$88>0,(SUMPRODUCT($F$69:$F$71,$X$48:$X$50)+SUMPRODUCT($F$72:$F$74,$X$54:$X$56))*$C$65/($F$88*100),0) -> 85.81371001 | H102: =IF($H$88>0,(SUMPRODUCT($H$69:$H$72,$W$48:$W$51)+SUMPRODUCT($H$73:$H$74,$W$55:$W$56))*$C$65/($H$88*100),0) -> 51.68227015 | I102: =IF($H$88>0,(SUMPRODUCT($H$69:$H$72,$X$48:$X$51)+SUMPRODUCT($H$73:$H$74,$X$55:$X$56))*$C$65/($H$88*100),0) -> 86.41163224 | J102: =IF($J$88>0,(SUMPRODUCT($J$69:$J$73,$W$48:$W$52)+SUMPRODUCT($J$74,$W$56))*$C$65/($J$88*100),0) -> 51.56181949 | K102: =IF($J$88>0,(SUMPRODUCT($J$69:$J$73,$X$48:$X$52)+SUMPRODUCT($J$74,$X$56))*$C$65/($J$88*100),0) -> 86.21891118 | L102: =IF($L$88>0,SUMPRODUCT($L$69:$L$74,$W$48:$W$53)*$C$65/($L$88*100),0) -> 51.7734629 | M102: =IF($L$88>0,SUMPRODUCT($L$69:$L$74,$X$48:$X$53)*$C$65/($L$88*100),0) -> 86.55754064 | N102: =IF($N$88>0,SUMPRODUCT($N$69:$N$75,$W$48:$W$54)*$C$65/($N$88*100),0) -> 51.39696434 | O102: =IF($N$88>0,SUMPRODUCT($N$69:$N$75,$X$48:$X$54)*$C$65/($N$88*100),0) -> 85.95514294 | P102: =IF($P$88>0,SUMPRODUCT($P$69:$P$76,$W$48:$W$55)*$C$65/($P$88*100),0) -> 51.15051209 | Q102: =IF($P$88>0,SUMPRODUCT($P$69:$P$76,$X$48:$X$55)*$C$65/($P$88*100),0) -> 85.56081934 | R102: =IF($R$88>0,SUMPRODUCT($R$69:$R$77,$W$48:$W$56)*$C$65/($R$88*100),0) -> 50.79308797 | S102: =IF($R$88>0,SUMPRODUCT($R$69:$R$77,$X$48:$X$56)*$C$65/($R$88*100),0) -> 84.98894074 | T102: =IF($T$88>0,SUMPRODUCT($T$69:$T$77,$W$48:$W$56)*$C$65/($T$88*100),0) -> 51.31990576 | U102: =IF($T$88>0,SUMPRODUCT($T$69:$T$77,$X$48:$X$56)*$C$65/($T$88*100),0) -> 85.83184922 | V102: =IF($V$88>0,SUMPRODUCT($V$69:$V$77,$W$48:$W$56)*$C$65/($V$88*100),0) -> 51.89070285 | W102: =IF($V$88>0,SUMPRODUCT($V$69:$V$77,$X$48:$X$56)*$C$65/($V$88*100),0) -> 86.74512457 | X102: =IF($X$88>0,SUMPRODUCT($X$69:$X$77,$W$48:$W$56)*$C$65/($X$88*100),0) -> 52.46462482 | Y102: =IF($X$88>0,SUMPRODUCT($X$69:$X$77,$X$48:$X$56)*$C$65/($X$88*100),0) -> 87.66339972 | Z102: =IF($Z$88>0,SUMPRODUCT($Z$69:$Z$76,$W$49:$W$56)*$C$65/($Z$88*100),0) -> 52.45979518 | AA102: =IF($Z$88>0,SUMPRODUCT($Z$69:$Z$76,$X$49:$X$56)*$C$65/($Z$88*100),0) -> 87.65567228 | AB102: =IF($AB$88>0,SUMPRODUCT($AB$69:$AB$75,$W$50:$W$56)*$C$65/($AB$88*100),0) -> 52.03588927 | AC102: =IF($AB$88>0,SUMPRODUCT($AB$69:$AB$75,$X$50:$X$56)*$C$65/($AB$88*100),0) -> 86.97742283 | AD102: =IF($AD$88>0,SUMPRODUCT($AD$69:$AD$74,$W$51:$W$56)*$C$65/($AD$88*100),0) -> 51.63850112 | AE102: =IF($AD$88>0,SUMPRODUCT($AD$69:$AD$74,$X$51:$X$56)*$C$65/($AD$88*100),0) -> 86.34160178
B103: Na | C103: S | D103: Na | E103: S | F103: Na | G103: S | H103: Na | I103: S | J103: Na | K103: S | L103: Na | M103: S | N103: Na | O103: S | P103: Na | Q103: S | R103: Na | S103: S | T103: Na | U103: S | V103: Na | W103: S | X103: Na | Y103: S | Z103: Na | AA103: S | AB103: Na | AC103: S | AD103: Na | AE103: S
A104: Lote 5 primeros meses lactación | B104: =IF($B$84>0,($B$69*$Y$48+$B$70*$Y$52)*$C$65/($B$84*100),0) -> 18.64623949 | C104: =IF($B$84>0,($B$69*$Z$48+$B$70*$Z$52)*$C$65/($B$84*100),0) -> 28.41376727 | D104: =IF($D$84>0,SUMPRODUCT($D$69:$D$70,$Y$48:$Y$49)*$C$65/($D$84*100),0) -> 18.97050689 | E104: =IF($D$84>0,SUMPRODUCT($D$69:$D$70,$Z$48:$Z$49)*$C$65/($D$84*100),0) -> 26.34427459 | F104: =IF($F$84>0,SUMPRODUCT($F$69:$F$71,$Y$48:$Y$50)*$C$65/($F$84*100),0) -> 18.92562845 | G104: =IF($F$84>0,SUMPRODUCT($F$69:$F$71,$Z$48:$Z$50)*$C$65/($F$84*100),0) -> 26.92523965 | H104: =IF($H$84>0,SUMPRODUCT($H$69:$H$72,$Y$48:$Y$51)*$C$65/($H$84*100),0) -> 19.05830705 | I104: =IF($H$84>0,SUMPRODUCT($H$69:$H$72,$Z$48:$Z$51)*$C$65/($H$84*100),0) -> 29.9364232 | J104: =IF($J$84>0,SUMPRODUCT($J$69:$J$73,$Y$48:$Y$52)*$C$65/($J$84*100),0) -> 18.84811862 | K104: =IF($J$84>0,SUMPRODUCT($J$69:$J$73,$Z$48:$Z$52)*$C$65/($J$84*100),0) -> 30.8351221 | L104: =IF($L$84>0,SUMPRODUCT($L$69:$L$73,$Y$48:$Y$52)*$C$65/($L$84*100),0) -> 18.72974893 | M104: =IF($L$84>0,SUMPRODUCT($L$69:$L$73,$Z$48:$Z$52)*$C$65/($L$84*100),0) -> 31.02312981 | N104: =IF($N$84>0,SUMPRODUCT($N$69:$N$73,$Y$48:$Y$52)*$C$65/($N$84*100),0) -> 18.61119168 | O104: =IF($N$84>0,SUMPRODUCT($N$69:$N$73,$Z$48:$Z$52)*$C$65/($N$84*100),0) -> 31.00676557 | P104: =IF($P$84>0,SUMPRODUCT($P$69:$P$73,$Y$48:$Y$52)*$C$65/($P$84*100),0) -> 0 | Q104: =IF($P$84>0,SUMPRODUCT($P$69:$P$73,$Z$48:$Z$52)*$C$65/($P$84*100),0) -> 0 | R104: =IF($R$84>0,SUMPRODUCT($R$69:$R$73,$Y$48:$Y$52)*$C$65/($R$84*100),0) -> 0 | S104: =IF($R$84>0,SUMPRODUCT($R$69:$R$73,$Z$48:$Z$52)*$C$65/($R$84*100),0) -> 0 | T104: =IF($T$84>0,SUMPRODUCT($T$69:$T$73,$Y$48:$Y$52)*$C$65/($T$84*100),0) -> 18.70932554 | U104: =IF($T$84>0,SUMPRODUCT($T$69:$T$73,$Z$48:$Z$52)*$C$65/($T$84*100),0) -> 23.74637034 | V104: =IF($V$84>0,SUMPRODUCT($V$69:$V$73,$Y$48:$Y$52)*$C$65/($V$84*100),0) -> 19.02986629 | W104: =IF($V$84>0,SUMPRODUCT($V$69:$V$73,$Z$48:$Z$52)*$C$65/($V$84*100),0) -> 26.93470737 | X104: =IF($X$84>0,SUMPRODUCT($X$69:$X$73,$Y$48:$Y$52)*$C$65/($X$84*100),0) -> 18.98301992 | Y104: =IF($X$84>0,SUMPRODUCT($X$69:$X$73,$Z$48:$Z$52)*$C$65/($X$84*100),0) -> 28.16885269 | Z104: =IF($Z$84>0,SUMPRODUCT($Z$69:$Z$72,$Y$49:$Y$52)*$C$65/($Z$84*100),0) -> 18.98070169 | AA104: =IF($Z$84>0,SUMPRODUCT($Z$69:$Z$72,$Z$49:$Z$52)*$C$65/($Z$84*100),0) -> 30.3152209 | AB104: =IF($AB$84>0,SUMPRODUCT($AB$69:$AB$71,$Y$50:$Y$52)*$C$65/($AB$84*100),0) -> 18.77722685 | AC104: =IF($AB$84>0,SUMPRODUCT($AB$69:$AB$71,$Z$50:$Z$52)*$C$65/($AB$84*100),0) -> 30.90443874 | AD104: =IF($AD$84>0,SUMPRODUCT($AD$69:$AD$70,$Y$51:$Y$52)*$C$65/($AD$84*100),0) -> 18.70603748 | AE104: =IF($AD$84>0,SUMPRODUCT($AD$69:$AD$70,$Z$51:$Z$52)*$C$65/($AD$84*100),0) -> 31.01985696
A105: Lote últimos meses lactación | B105: =IF($B$85>0,SUMPRODUCT($B$71:$B$74,$Y$53:$Y$56)*$C$65/($B$85*100),0) -> 18.32406344 | C105: =IF($B$85>0,SUMPRODUCT($B$71:$B$74,$Z$53:$Z$56)*$C$65/($B$85*100),0) -> 30.69860818 | D105: =IF($D$85>0,SUMPRODUCT($D$71:$D$74,$Y$53:$Y$56)*$C$65/($D$85*100),0) -> 18.32858636 | E105: =IF($D$85>0,SUMPRODUCT($D$71:$D$74,$Z$53:$Z$56)*$C$65/($D$85*100),0) -> 30.68482397 | F105: =IF($F$85>0,SUMPRODUCT($F$72:$F$74,$Y$54:$Y$56)*$C$65/($F$85*100),0) -> 18.12318418 | G105: =IF($F$85>0,SUMPRODUCT($F$72:$F$74,$Z$54:$Z$56)*$C$65/($F$85*100),0) -> 30.39049389 | H105: =IF($H$85>0,SUMPRODUCT($H$73:$H$74,$Y$55:$Y$56)*$C$65/($H$85*100),0) -> 18.1180308 | I105: =IF($H$85>0,SUMPRODUCT($H$73:$H$74,$Z$55:$Z$56)*$C$65/($H$85*100),0) -> 30.36911848 | J105: =IF($J$85>0,SUMPRODUCT($J$74,$Y$56)*$C$65/($J$85*100),0) -> 17.91962224 | K105: =IF($J$85>0,SUMPRODUCT($J$74,$Z$56)*$C$65/($J$85*100),0) -> 30.09402481 | L105: =IF($L$85>0,SUMPRODUCT($L$74,$Y$53)*$C$65/($L$85*100),0) -> 18.43149931 | M105: =IF($L$85>0,SUMPRODUCT($L$74,$Z$53)*$C$65/($L$85*100),0) -> 30.83932511 | N105: =IF($N$85>0,SUMPRODUCT($N$74:$N$75,$Y$53:$Y$54)*$C$65/($N$85*100),0) -> 18.34395897 | O105: =IF($N$85>0,SUMPRODUCT($N$74:$N$75,$Z$53:$Z$54)*$C$65/($N$85*100),0) -> 30.72466687 | P105: =IF($P$85>0,SUMPRODUCT($P$74:$P$76,$Y$53:$Y$55)*$C$65/($P$85*100),0) -> 18.3522458 | Q105: =IF($P$85>0,SUMPRODUCT($P$74:$P$76,$Z$53:$Z$55)*$C$65/($P$85*100),0) -> 30.72361132 | R105: =IF($R$85>0,SUMPRODUCT($R$74:$R$77,$Y$53:$Y$56)*$C$65/($R$85*100),0) -> 18.18068222 | S105: =IF($R$85>0,SUMPRODUCT($R$74:$R$77,$Z$53:$Z$56)*$C$65/($R$85*100),0) -> 30.47920251 | T105: =IF($T$85>0,SUMPRODUCT($T$74:$T$77,$Y$53:$Y$56)*$C$65/($T$85*100),0) -> 18.16763295 | U105: =IF($T$85>0,SUMPRODUCT($T$74:$T$77,$Z$53:$Z$56)*$C$65/($T$85*100),0) -> 30.4378919 | V105: =IF($V$85>0,SUMPRODUCT($V$74:$V$77,$Y$53:$Y$56)*$C$65/($V$85*100),0) -> 17.91962224 | W105: =IF($V$85>0,SUMPRODUCT($V$74:$V$77,$Z$53:$Z$56)*$C$65/($V$85*100),0) -> 30.09402481 | X105: =IF($X$85>0,SUMPRODUCT($X$74:$X$77,$Y$53:$Y$56)*$C$65/($X$85*100),0) -> 0 | Y105: =IF($X$85>0,SUMPRODUCT($X$74:$X$77,$Z$53:$Z$56)*$C$65/($X$85*100),0) -> 0 | Z105: =IF($Z$85>0,SUMPRODUCT($Z$73:$Z$76,$Y$53:$Y$56)*$C$65/($Z$85*100),0) -> 0 | AA105: =IF($Z$85>0,SUMPRODUCT($Z$73:$Z$76,$Z$53:$Z$56)*$C$65/($Z$85*100),0) -> 0 | AB105: =IF($AB$85>0,SUMPRODUCT($AB$72:$AB$75,$Y$53:$Y$56)*$C$65/($AB$85*100),0) -> 0 | AC105: =IF($AB$85>0,SUMPRODUCT($AB$72:$AB$75,$Z$53:$Z$56)*$C$65/($AB$85*100),0) -> 0 | AD105: =IF($AD$85>0,SUMPRODUCT($AD$71:$AD$74,$Y$53:$Y$56)*$C$65/($AD$85*100),0) -> 18.43149931 | AE105: =IF($AD$85>0,SUMPRODUCT($AD$71:$AD$74,$Z$53:$Z$56)*$C$65/($AD$85*100),0) -> 30.83932511
A106: Lote medio | B106: =IF($B$86>0,SUMPRODUCT($B$75:$B$77,$Y$57:$Y$59)*$C$65/($B$86*100),0) -> 0 | C106: =IF($B$86>0,SUMPRODUCT($B$75:$B$77,$Z$57:$Z$59)*$C$65/($B$86*100),0) -> 0 | D106: =IF($D$86>0,SUMPRODUCT($D$75:$D$77,$Y$57:$Y$59)*$C$65/($D$86*100),0) -> 0 | E106: =IF($D$86>0,SUMPRODUCT($D$75:$D$77,$Z$57:$Z$59)*$C$65/($D$86*100),0) -> 0 | F106: =IF($F$86>0,SUMPRODUCT($F$75:$F$77,$Y$57:$Y$59)*$C$65/($F$86*100),0) -> 0 | G106: =IF($F$86>0,SUMPRODUCT($F$75:$F$77,$Z$57:$Z$59)*$C$65/($F$86*100),0) -> 0 | H106: =IF($H$86>0,SUMPRODUCT($H$75:$H$77,$Y$57:$Y$59)*$C$65/($H$86*100)) -> 14.26 | I106: =IF($H$86>0,SUMPRODUCT($H$75:$H$77,$Z$57:$Z$59)*$C$65/($H$86*100)) -> 23.00162321 | J106: =IF($J$86>0,SUMPRODUCT($J$75:$J$77,$Y$57:$Y$59)*$C$65/($J$86*100),0) -> 14.26 | K106: =IF($J$86>0,SUMPRODUCT($J$75:$J$77,$Z$57:$Z$59)*$C$65/($J$86*100),0) -> 23.40038436 | L106: =IF($L$86>0,SUMPRODUCT($L$75:$L$77,$Y$57:$Y$59)*$C$65/($L$86*100),0) -> 14.26 | M106: =IF($L$86>0,SUMPRODUCT($L$75:$L$77,$Z$57:$Z$59)*$C$65/($L$86*100),0) -> 23.57115055 | N106: =IF($N$86>0,SUMPRODUCT($N$76:$N$77,$Y$58:$Y$59)*$C$65/($N$86*100),0) -> 14.26 | O106: =IF($N$86>0,SUMPRODUCT($N$76:$N$77,$Z$58:$Z$59)*$C$65/($N$86*100),0) -> 23.77230989 | P106: =IF($P$86>0,$P$77*$Y$59*$C$65/($P$86*100),0) -> 14.26 | Q106: =IF($P$86>0,$P$77*$Z$59*$C$65/($P$86*100),0) -> 23.90027262 | R106: =IF($R$86>0,$R$77*$Y$59*$C$65/($R$86*100),0) -> 0 | S106: =IF($R$86>0,$R$77*$Z$59*$C$65/($R$86*100),0) -> 0 | T106: =IF($T$86>0,$T$78*$Y$57*$C$65/($T$86*100),0) -> 14.26 | U106: =IF($T$86>0,$T$78*$Z$57*$C$65/($T$86*100),0) -> 23.00162321 | V106: =IF($V$86>0,SUMPRODUCT($V$78:$V$79,$Y$58:$Y$59)*$C$65/($V$86*100),0) -> 14.26 | W106: =IF($V$86>0,SUMPRODUCT($V$78:$V$79,$Z$58:$Z$59)*$C$65/($V$86*100),0) -> 23.77586441 | X106: =IF($X$86>0,SUMPRODUCT($X$78:$X$80,$Y$57:$Y$59)*$C$65/($X$86*100),0) -> 14.26 | Y106: =IF($X$86>0,SUMPRODUCT($X$78:$X$80,$Z$57:$Z$59)*$C$65/($X$86*100),0) -> 23.40911858 | Z106: =IF($Z$86>0,SUMPRODUCT($Z$77:$Z$79,$Y$57:$Y$59)*$C$65/($Z$86*100),0) -> 14.26 | AA106: =IF($Z$86>0,SUMPRODUCT($Z$77:$Z$79,$Z$57:$Z$59)*$C$65/($Z$86*100),0) -> 23.74031921 | AB106: =IF($AB$86>0,SUMPRODUCT($AB$76:$AB$78,$Y$57:$Y$59)*$C$65/($AB$86*100),0) -> 14.26 | AC106: =IF($AB$86>0,SUMPRODUCT($AB$76:$AB$78,$Z$57:$Z$59)*$C$65/($AB$86*100),0) -> 23.90027262 | AD106: =IF($AD$86>0,SUMPRODUCT($AD$75:$AD$77,$Y$57:$Y$59)*$C$65/($AD$86*100),0) -> 0 | AE106: =IF($AD$86>0,SUMPRODUCT($AD$75:$AD$77,$Z$57:$Z$59)*$C$65/($AD$86*100),0) -> 0
A107: Lote gestación | B107: =IF($B$87>0,SUMPRODUCT($B$78:$B$80,$Y$60:$Y$62)*$C$65/($B$87*100),0) -> 10.6 | C107: =IF($B$87>0,SUMPRODUCT($B$78:$B$80,$Z$60:$Z$62)*$C$65/($B$87*100),0) -> 24.03327423 | D107: =IF($D$87>0,SUMPRODUCT($D$78:$D$80,$Y$60:$Y$62)*$C$65/($D$87*100),0) -> 10.6 | E107: =IF($D$87>0,SUMPRODUCT($D$78:$D$80,$Z$60:$Z$62)*$C$65/($D$87*100),0) -> 24.04415376 | F107: =IF($F$87>0,SUMPRODUCT($F$78:$F$80,$Y$60:$Y$62)*$C$65/($F$87*100),0) -> 0 | G107: =IF($F$87>0,SUMPRODUCT($F$78:$F$80,$Z$60:$Z$62)*$C$65/($F$87*100),0) -> 0 | H107: =IF($H$87>0,SUMPRODUCT($H$78:$H$80,$Y$60:$Y$62)*$C$65/($H$87*100),0) -> 0 | I107: =IF($H$87>0,SUMPRODUCT($H$78:$H$80,$Z$60:$Z$62)*$C$65/($H$87*100),0) -> 0 | J107: =IF($J$87>0,SUMPRODUCT($J$78:$J$80,$Y$60:$Y$62)*$C$65/($J$87*100),0) -> 0 | K107: =IF($J$87>0,SUMPRODUCT($J$78:$J$80,$Z$60:$Z$62)*$C$65/($J$87*100),0) -> 0 | L107: =IF($L$87>0,SUMPRODUCT($L$78:$L$80,$Y$60:$Y$62)*$C$65/($L$87*100),0) -> 0 | M107: =IF($L$87>0,SUMPRODUCT($L$78:$L$80,$Z$60:$Z$62)*$C$65/($L$87*100),0) -> 0 | N107: =IF($N$87>0,SUMPRODUCT($N$78:$N$80,$Y$60:$Y$62)*$C$65/($N$87*100),0) -> 10.6 | O107: =IF($N$87>0,SUMPRODUCT($N$78:$N$80,$Z$60:$Z$62)*$C$65/($N$87*100),0) -> 23.9915774 | P107: =IF($P$87>0,SUMPRODUCT($P$78:$P$80,$Y$60:$Y$62)*$C$65/($P$87*100),0) -> 10.6 | Q107: =IF($P$87>0,SUMPRODUCT($P$78:$P$80,$Z$60:$Z$62)*$C$65/($P$87*100),0) -> 24.01345516 | R107: =IF($R$87>0,SUMPRODUCT($R$78:$R$80,$Y$60:$Y$62)*$C$65/($R$87*100),0) -> 10.6 | S107: =IF($R$87>0,SUMPRODUCT($R$78:$R$80,$Z$60:$Z$62)*$C$65/($R$87*100),0) -> 24.02424928 | T107: =IF($T$87>0,SUMPRODUCT($T$79:$T$80,$Y$61:$Y$62)*$C$65/($T$87*100),0) -> 10.6 | U107: =IF($T$87>0,SUMPRODUCT($T$79:$T$80,$Z$61:$Z$62)*$C$65/($T$87*100),0) -> 24.03545014 | V107: =IF($V$87>0,SUMPRODUCT($V$80,$Y$62)*$C$65/($V$87*100),0) -> 10.6 | W107: =IF($V$87>0,SUMPRODUCT($V$80,$Z$62)*$C$65/($V$87*100),0) -> 24.04415376 | X107: =IF($X$87>0,SUMPRODUCT($X$80,$Y$62)*$C$65/($X$87*100),0) -> 0 | Y107: =IF($X$87>0,SUMPRODUCT($X$80,$Z$62)*$C$65/($X$87*100),0) -> 0 | Z107: =IF($Z$87>0,SUMPRODUCT($Z$80,$Y$61)*$C$65/($Z$87*100),0) -> 10.6 | AA107: =IF($Z$87>0,SUMPRODUCT($Z$80,$Z$61)*$C$65/($Z$87*100),0) -> 24.02723005 | AB107: =IF($AB$87>0,SUMPRODUCT($AB$79:$AB$80,$Y$60:$Y$61)*$C$65/($AB$87*100),0) -> 10.6 | AC107: =IF($AB$87>0,SUMPRODUCT($AB$79:$AB$80,$Z$60:$Z$61)*$C$65/($AB$87*100),0) -> 24.00940373 | AD107: =IF($AD$87>0,SUMPRODUCT($AD$78:$AD$80,$Y$60:$Y$62)*$C$65/($AD$87*100),0) -> 10.6 | AE107: =IF($AD$87>0,SUMPRODUCT($AD$78:$AD$80,$Z$60:$Z$62)*$C$65/($AD$87*100),0) -> 24.01479556
A108: Lote lactación | B108: =IF($B$88>0,($B$69*$Y$48+SUMPRODUCT($B$70:$B$74,$Y$52:$Y$56))*$C$65/($B$88*100),0) -> 18.44935412 | C108: =IF($B$88>0,($B$69*$Z$48+SUMPRODUCT($B$70:$B$74,$Z$52:$Z$56))*$C$65/($B$88*100),0) -> 29.81005894 | D108: =IF($D$88>0,(SUMPRODUCT($D$69:$D$70,$Y$48:$Y$49)+SUMPRODUCT($D$71:$D$74,$Y$53:$Y$56))*$C$65/($D$88*100),0) -> 18.48515234 | E108: =IF($D$88>0,(SUMPRODUCT($D$69:$D$70,$Z$48:$Z$49)+SUMPRODUCT($D$71:$D$74,$Z$53:$Z$56))*$C$65/($D$88*100),0) -> 29.62615339 | F108: =IF($F$88>0,(SUMPRODUCT($F$69:$F$71,$Y$48:$Y$50)+SUMPRODUCT($F$72:$F$74,$Y$54:$Y$56))*$C$65/($F$88*100),0) -> 18.428113 | G108: =IF($F$88>0,(SUMPRODUCT($F$69:$F$71,$Z$48:$Z$50)+SUMPRODUCT($F$72:$F$74,$Z$54:$Z$56))*$C$65/($F$88*100),0) -> 29.07369728 | H108: =IF($H$88>0,(SUMPRODUCT($H$69:$H$72,$Y$48:$Y$51)+SUMPRODUCT($H$73:$H$74,$Y$55:$Y$56))*$C$65/($H$88*100),0) -> 18.60748967 | I108: =IF($H$88>0,(SUMPRODUCT($H$69:$H$72,$Z$48:$Z$51)+SUMPRODUCT($H$73:$H$74,$Z$55:$Z$56))*$C$65/($H$88*100),0) -> 30.14387984 | J108: =IF($J$88>0,(SUMPRODUCT($J$69:$J$73,$Y$48:$Y$52)+SUMPRODUCT($J$74,$Y$56))*$C$65/($J$88*100),0) -> 18.54967336 | K108: =IF($J$88>0,(SUMPRODUCT($J$69:$J$73,$Z$48:$Z$52)+SUMPRODUCT($J$74,$Z$56))*$C$65/($J$88*100),0) -> 30.59691226 | L108: =IF($L$88>0,SUMPRODUCT($L$69:$L$74,$Y$48:$Y$53)*$C$65/($L$88*100),0) -> 18.65126219 | M108: =IF($L$88>0,SUMPRODUCT($L$69:$L$74,$Z$48:$Z$53)*$C$65/($L$88*100),0) -> 30.97476015 | N108: =IF($N$88>0,SUMPRODUCT($N$69:$N$75,$Y$48:$Y$54)*$C$65/($N$88*100),0) -> 18.47054288 | O108: =IF($N$88>0,SUMPRODUCT($N$69:$N$75,$Z$48:$Z$54)*$C$65/($N$88*100),0) -> 30.85829257 | P108: =IF($P$88>0,SUMPRODUCT($P$69:$P$76,$Y$48:$Y$55)*$C$65/($P$88*100),0) -> 18.3522458 | Q108: =IF($P$88>0,SUMPRODUCT($P$69:$P$76,$Z$48:$Z$55)*$C$65/($P$88*100),0) -> 30.72361132 | R108: =IF($R$88>0,SUMPRODUCT($R$69:$R$77,$Y$48:$Y$56)*$C$65/($R$88*100),0) -> 18.18068222 | S108: =IF($R$88>0,SUMPRODUCT($R$69:$R$77,$Z$48:$Z$56)*$C$65/($R$88*100),0) -> 30.47920251 | T108: =IF($T$88>0,SUMPRODUCT($T$69:$T$77,$Y$48:$Y$56)*$C$65/($T$88*100),0) -> 18.43355476 | U108: =IF($T$88>0,SUMPRODUCT($T$69:$T$77,$Z$48:$Z$56)*$C$65/($T$88*100),0) -> 27.15296314 | V108: =IF($V$88>0,SUMPRODUCT($V$69:$V$77,$Y$48:$Y$56)*$C$65/($V$88*100),0) -> 18.70753737 | W108: =IF($V$88>0,SUMPRODUCT($V$69:$V$77,$Z$48:$Z$56)*$C$65/($V$88*100),0) -> 27.85192856 | X108: =IF($X$88>0,SUMPRODUCT($X$69:$X$77,$Y$48:$Y$56)*$C$65/($X$88*100),0) -> 18.98301992 | Y108: =IF($X$88>0,SUMPRODUCT($X$69:$X$77,$Z$48:$Z$56)*$C$65/($X$88*100),0) -> 28.16885269 | Z108: =IF($Z$88>0,SUMPRODUCT($Z$69:$Z$76,$Y$49:$Y$56)*$C$65/($Z$88*100),0) -> 18.98070169 | AA108: =IF($Z$88>0,SUMPRODUCT($Z$69:$Z$76,$Z$49:$Z$56)*$C$65/($Z$88*100),0) -> 30.3152209 | AB108: =IF($AB$88>0,SUMPRODUCT($AB$69:$AB$75,$Y$50:$Y$56)*$C$65/($AB$88*100),0) -> 18.77722685 | AC108: =IF($AB$88>0,SUMPRODUCT($AB$69:$AB$75,$Z$50:$Z$56)*$C$65/($AB$88*100),0) -> 30.90443874 | AD108: =IF($AD$88>0,SUMPRODUCT($AD$69:$AD$74,$Y$51:$Y$56)*$C$65/($AD$88*100),0) -> 18.58648054 | AE108: =IF($AD$88>0,SUMPRODUCT($AD$69:$AD$74,$Z$51:$Z$56)*$C$65/($AD$88*100),0) -> 30.94123825
B109: Cl | C109: Co mg/día | D109: Cl | E109: Co mg/día | F109: Cl | G109: Co mg/día | H109: Cl | I109: Co mg/día | J109: Cl | K109: Co mg/día | L109: Cl | M109: Co mg/día | N109: Cl | O109: Co mg/día | P109: Cl | Q109: Co mg/día | R109: Cl | S109: Co mg/día | T109: Cl | U109: Co mg/día | V109: Cl | W109: Co mg/día | X109: Cl | Y109: Co mg/día | Z109: Cl | AA109: Co mg/día | AB109: Cl | AC109: Co mg/día | AD109: Cl | AE109: Co mg/día
A110: Lote 5 primeros meses lactación | B110: =IF($B$84>0,($B$69*$AA$48+$B$70*$AA$52)*$C$65/($B$84*100),0) -> 23.16207983 | C110: =IF($B$84>0,($B$69*$AB$48+$B$70*$AB$52)*$C$65/($B$84*100),0) -> 4.262065091 | D110: =IF($D$84>0,SUMPRODUCT($D$69:$D$70,$AA$48:$AA$49)*$C$65/($D$84*100),0) -> 23.27016896 | E110: =IF($D$84>0,SUMPRODUCT($D$69:$D$70,$AB$48:$AB$49)*$C$65/($D$84*100),0) -> 3.951641188 | F110: =IF($F$84>0,SUMPRODUCT($F$69:$F$71,$AA$48:$AA$50)*$C$65/($F$84*100),0) -> 23.25520948 | G110: =IF($F$84>0,SUMPRODUCT($F$69:$F$71,$AB$48:$AB$50)*$C$65/($F$84*100),0) -> 4.038785947 | H110: =IF($H$84>0,SUMPRODUCT($H$69:$H$72,$AA$48:$AA$51)*$C$65/($H$84*100),0) -> 23.29943568 | I110: =IF($H$84>0,SUMPRODUCT($H$69:$H$72,$AB$48:$AB$51)*$C$65/($H$84*100),0) -> 4.49046348 | J110: =IF($J$84>0,SUMPRODUCT($J$69:$J$73,$AA$48:$AA$52)*$C$65/($J$84*100),0) -> 23.22937287 | K110: =IF($J$84>0,SUMPRODUCT($J$69:$J$73,$AB$48:$AB$52)*$C$65/($J$84*100),0) -> 4.625268316 | L110: =IF($L$84>0,SUMPRODUCT($L$69:$L$73,$AA$48:$AA$52)*$C$65/($L$84*100),0) -> 23.18991631 | M110: =IF($L$84>0,SUMPRODUCT($L$69:$L$73,$AB$48:$AB$52)*$C$65/($L$84*100),0) -> 4.653469472 | N110: =IF($N$84>0,SUMPRODUCT($N$69:$N$73,$AA$48:$AA$52)*$C$65/($N$84*100),0) -> 23.15039723 | O110: =IF($N$84>0,SUMPRODUCT($N$69:$N$73,$AB$48:$AB$52)*$C$65/($N$84*100),0) -> 4.651014835 | P110: =IF($P$84>0,SUMPRODUCT($P$69:$P$73,$AA$48:$AA$52)*$C$65/($P$84*100),0) -> 0 | Q110: =IF($P$84>0,SUMPRODUCT($P$69:$P$73,$AB$48:$AB$52)*$C$65/($P$84*100),0) -> 0 | R110: =IF($R$84>0,SUMPRODUCT($R$69:$R$73,$AA$48:$AA$52)*$C$65/($R$84*100),0) -> 0 | S110: =IF($R$84>0,SUMPRODUCT($R$69:$R$73,$AB$48:$AB$52)*$C$65/($R$84*100),0) -> 0 | T110: =IF($T$84>0,SUMPRODUCT($T$69:$T$73,$AA$48:$AA$52)*$C$65/($T$84*100),0) -> 23.18310851 | U110: =IF($T$84>0,SUMPRODUCT($T$69:$T$73,$AB$48:$AB$52)*$C$65/($T$84*100),0) -> 3.561955552 | V110: =IF($V$84>0,SUMPRODUCT($V$69:$V$73,$AA$48:$AA$52)*$C$65/($V$84*100),0) -> 23.28995543 | W110: =IF($V$84>0,SUMPRODUCT($V$69:$V$73,$AB$48:$AB$52)*$C$65/($V$84*100),0) -> 4.040206106 | X110: =IF($X$84>0,SUMPRODUCT($X$69:$X$73,$AA$48:$AA$52)*$C$65/($X$84*100),0) -> 23.27433997 | Y110: =IF($X$84>0,SUMPRODUCT($X$69:$X$73,$AB$48:$AB$52)*$C$65/($X$84*100),0) -> 4.225327904 | Z110: =IF($Z$84>0,SUMPRODUCT($Z$69:$Z$72,$AA$49:$AA$52)*$C$65/($Z$84*100),0) -> 23.27356723 | AA110: =IF($Z$84>0,SUMPRODUCT($Z$69:$Z$72,$AB$49:$AB$52)*$C$65/($Z$84*100),0) -> 4.547283136 | AB110: =IF($AB$84>0,SUMPRODUCT($AB$69:$AB$71,$AA$50:$AA$52)*$C$65/($AB$84*100),0) -> 23.20574228 | AC110: =IF($AB$84>0,SUMPRODUCT($AB$69:$AB$71,$AB$50:$AB$52)*$C$65/($AB$84*100),0) -> 4.635665811 | AD110: =IF($AD$84>0,SUMPRODUCT($AD$69:$AD$70,$AA$51:$AA$52)*$C$65/($AD$84*100),0) -> 23.18201249 | AE110: =IF($AD$84>0,SUMPRODUCT($AD$69:$AD$70,$AB$51:$AB$52)*$C$65/($AD$84*100),0) -> 4.652978545
A111: Lote últimos meses lactación | B111: =IF($B$85>0,SUMPRODUCT($B$71:$B$74,$AA$53:$AA$56)*$C$65/($B$85*100),0) -> 23.05468781 | C111: =IF($B$85>0,SUMPRODUCT($B$71:$B$74,$AB$53:$AB$56)*$C$65/($B$85*100),0) -> 4.604791228 | D111: =IF($D$85>0,SUMPRODUCT($D$71:$D$74,$AA$53:$AA$56)*$C$65/($D$85*100),0) -> 23.05619545 | E111: =IF($D$85>0,SUMPRODUCT($D$71:$D$74,$AB$53:$AB$56)*$C$65/($D$85*100),0) -> 4.602723596 | F111: =IF($F$85>0,SUMPRODUCT($F$72:$F$74,$AA$54:$AA$56)*$C$65/($F$85*100),0) -> 22.98772806 | G111: =IF($F$85>0,SUMPRODUCT($F$72:$F$74,$AB$54:$AB$56)*$C$65/($F$85*100),0) -> 4.558574084 | H111: =IF($H$85>0,SUMPRODUCT($H$73:$H$74,$AA$55:$AA$56)*$C$65/($H$85*100),0) -> 22.98601027 | I111: =IF($H$85>0,SUMPRODUCT($H$73:$H$74,$AB$55:$AB$56)*$C$65/($H$85*100),0) -> 4.555367772 | J111: =IF($J$85>0,SUMPRODUCT($J$74,$AA$56)*$C$65/($J$85*100),0) -> 22.91987408 | K111: =IF($J$85>0,SUMPRODUCT($J$74,$AB$56)*$C$65/($J$85*100),0) -> 4.514103722 | L111: =IF($L$85>0,SUMPRODUCT($L$74,$AA$53)*$C$65/($L$85*100),0) -> 23.09049977 | M111: =IF($L$85>0,SUMPRODUCT($L$74,$AB$53)*$C$65/($L$85*100),0) -> 4.625898766 | N111: =IF($N$85>0,SUMPRODUCT($N$74:$N$75,$AA$53:$AA$54)*$C$65/($N$85*100),0) -> 23.06131966 | O111: =IF($N$85>0,SUMPRODUCT($N$74:$N$75,$AB$53:$AB$54)*$C$65/($N$85*100),0) -> 4.608700031 | P111: =IF($P$85>0,SUMPRODUCT($P$74:$P$76,$AA$53:$AA$55)*$C$65/($P$85*100),0) -> 23.06408193 | Q111: =IF($P$85>0,SUMPRODUCT($P$74:$P$76,$AB$53:$AB$55)*$C$65/($P$85*100),0) -> 4.608541697 | R111: =IF($R$85>0,SUMPRODUCT($R$74:$R$77,$AA$53:$AA$56)*$C$65/($R$85*100),0) -> 23.00689407 | S111: =IF($R$85>0,SUMPRODUCT($R$74:$R$77,$AB$53:$AB$56)*$C$65/($R$85*100),0) -> 4.571880376 | T111: =IF($T$85>0,SUMPRODUCT($T$74:$T$77,$AA$53:$AA$56)*$C$65/($T$85*100),0) -> 23.00254432 | U111: =IF($T$85>0,SUMPRODUCT($T$74:$T$77,$AB$53:$AB$56)*$C$65/($T$85*100),0) -> 4.565683785 | V111: =IF($V$85>0,SUMPRODUCT($V$74:$V$77,$AA$53:$AA$56)*$C$65/($V$85*100),0) -> 22.91987408 | W111: =IF($V$85>0,SUMPRODUCT($V$74:$V$77,$AB$53:$AB$56)*$C$65/($V$85*100),0) -> 4.514103722 | X111: =IF($X$85>0,SUMPRODUCT($X$74:$X$77,$AA$53:$AA$56)*$C$65/($X$85*100),0) -> 0 | Y111: =IF($X$85>0,SUMPRODUCT($X$74:$X$77,$AB$53:$AB$56)*$C$65/($X$85*100),0) -> 0 | Z111: =IF($Z$85>0,SUMPRODUCT($Z$73:$Z$76,$AA$53:$AA$56)*$C$65/($Z$85*100),0) -> 0 | AA111: =IF($Z$85>0,SUMPRODUCT($Z$73:$Z$76,$AB$53:$AB$56)*$C$65/($Z$85*100),0) -> 0 | AB111: =IF($AB$85>0,SUMPRODUCT($AB$72:$AB$75,$AA$53:$AA$56)*$C$65/($AB$85*100),0) -> 0 | AC111: =IF($AB$85>0,SUMPRODUCT($AB$72:$AB$75,$AB$53:$AB$56)*$C$65/($AB$85*100),0) -> 0 | AD111: =IF($AD$85>0,SUMPRODUCT($AD$71:$AD$74,$AA$53:$AA$56)*$C$65/($AD$85*100),0) -> 23.09049977 | AE111: =IF($AD$85>0,SUMPRODUCT($AD$71:$AD$74,$AB$53:$AB$56)*$C$65/($AD$85*100),0) -> 4.625898766
A112: Lote medio | B112: =IF($B$86>0,SUMPRODUCT($B$75:$B$77,$AA$57:$AA$59)*$C$65/($B$86*100),0) -> 0 | C112: =IF($B$86>0,SUMPRODUCT($B$75:$B$77,$AB$57:$AB$59)*$C$65/($B$86*100),0) -> 0 | D112: =IF($D$86>0,SUMPRODUCT($D$75:$D$77,$AA$57:$AA$59)*$C$65/($D$86*100),0) -> 0 | E112: =IF($D$86>0,SUMPRODUCT($D$75:$D$77,$AB$57:$AB$59)*$C$65/($D$86*100),0) -> 0 | F112: =IF($F$86>0,SUMPRODUCT($F$75:$F$77,$AA$57:$AA$59)*$C$65/($F$86*100),0) -> 0 | G112: =IF($F$86>0,SUMPRODUCT($F$75:$F$77,$AB$57:$AB$59)*$C$65/($F$86*100),0) -> 0 | H112: =IF($H$86>0,SUMPRODUCT($H$75:$H$77,$AA$57:$AA$59)*$C$65/($H$86*100)) -> 21.7 | I112: =IF($H$86>0,SUMPRODUCT($H$75:$H$77,$AB$57:$AB$59)*$C$65/($H$86*100)) -> 3.450243482 | J112: =IF($J$86>0,SUMPRODUCT($J$75:$J$77,$AA$57:$AA$59)*$C$65/($J$86*100),0) -> 21.7 | K112: =IF($J$86>0,SUMPRODUCT($J$75:$J$77,$AB$57:$AB$59)*$C$65/($J$86*100),0) -> 3.510057654 | L112: =IF($L$86>0,SUMPRODUCT($L$75:$L$77,$AA$57:$AA$59)*$C$65/($L$86*100),0) -> 21.7 | M112: =IF($L$86>0,SUMPRODUCT($L$75:$L$77,$AB$57:$AB$59)*$C$65/($L$86*100),0) -> 3.535672582 | N112: =IF($N$86>0,SUMPRODUCT($N$76:$N$77,$AA$58:$AA$59)*$C$65/($N$86*100),0) -> 21.7 | O112: =IF($N$86>0,SUMPRODUCT($N$76:$N$77,$AB$58:$AB$59)*$C$65/($N$86*100),0) -> 3.565846483 | P112: =IF($P$86>0,$P$77*$AA$59*$C$65/($P$86*100),0) -> 21.7 | Q112: =IF($P$86>0,$P$77*$AB$59*$C$65/($P$86*100),0) -> 3.585040893 | R112: =IF($R$86>0,$R$77*$AA$59*$C$65/($R$86*100),0) -> 0 | S112: =IF($R$86>0,$R$77*$AB$59*$C$65/($R$86*100),0) -> 0 | T112: =IF($T$86>0,$T$78*$AA$57*$C$65/($T$86*100),0) -> 21.7 | U112: =IF($T$86>0,$T$78*$AB$57*$C$65/($T$86*100),0) -> 3.450243482 | V112: =IF($V$86>0,SUMPRODUCT($V$78:$V$79,$AA$58:$AA$59)*$C$65/($V$86*100),0) -> 21.7 | W112: =IF($V$86>0,SUMPRODUCT($V$78:$V$79,$AB$58:$AB$59)*$C$65/($V$86*100),0) -> 3.566379661 | X112: =IF($X$86>0,SUMPRODUCT($X$78:$X$80,$AA$57:$AA$59)*$C$65/($X$86*100),0) -> 21.7 | Y112: =IF($X$86>0,SUMPRODUCT($X$78:$X$80,$AB$57:$AB$59)*$C$65/($X$86*100),0) -> 3.511367787 | Z112: =IF($Z$86>0,SUMPRODUCT($Z$77:$Z$79,$AA$57:$AA$59)*$C$65/($Z$86*100),0) -> 21.7 | AA112: =IF($Z$86>0,SUMPRODUCT($Z$77:$Z$79,$AB$57:$AB$59)*$C$65/($Z$86*100),0) -> 3.561047881 | AB112: =IF($AB$86>0,SUMPRODUCT($AB$76:$AB$78,$AA$57:$AA$59)*$C$65/($AB$86*100),0) -> 21.7 | AC112: =IF($AB$86>0,SUMPRODUCT($AB$76:$AB$78,$AB$57:$AB$59)*$C$65/($AB$86*100),0) -> 3.585040893 | AD112: =IF($AD$86>0,SUMPRODUCT($AD$75:$AD$77,$AA$57:$AA$59)*$C$65/($AD$86*100),0) -> 0 | AE112: =IF($AD$86>0,SUMPRODUCT($AD$75:$AD$77,$AB$57:$AB$59)*$C$65/($AD$86*100),0) -> 0
A113: Lote gestación | B113: =IF($B$87>0,SUMPRODUCT($B$78:$B$80,$AA$60:$AA$62)*$C$65/($B$87*100),0) -> 15.26 | C113: =IF($B$87>0,SUMPRODUCT($B$78:$B$80,$AB$60:$AB$62)*$C$65/($B$87*100),0) -> 3.604991135 | D113: =IF($D$87>0,SUMPRODUCT($D$78:$D$80,$AA$60:$AA$62)*$C$65/($D$87*100),0) -> 15.26 | E113: =IF($D$87>0,SUMPRODUCT($D$78:$D$80,$AB$60:$AB$62)*$C$65/($D$87*100),0) -> 3.606623064 | F113: =IF($F$87>0,SUMPRODUCT($F$78:$F$80,$AA$60:$AA$62)*$C$65/($F$87*100),0) -> 0 | G113: =IF($F$87>0,SUMPRODUCT($F$78:$F$80,$AB$60:$AB$62)*$C$65/($F$87*100),0) -> 0 | H113: =IF($H$87>0,SUMPRODUCT($H$78:$H$80,$AA$60:$AA$62)*$C$65/($H$87*100),0) -> 0 | I113: =IF($H$87>0,SUMPRODUCT($H$78:$H$80,$AB$60:$AB$62)*$C$65/($H$87*100),0) -> 0 | J113: =IF($J$87>0,SUMPRODUCT($J$78:$J$80,$AA$60:$AA$62)*$C$65/($J$87*100),0) -> 0 | K113: =IF($J$87>0,SUMPRODUCT($J$78:$J$80,$AB$60:$AB$62)*$C$65/($J$87*100),0) -> 0 | L113: =IF($L$87>0,SUMPRODUCT($L$78:$L$80,$AA$60:$AA$62)*$C$65/($L$87*100),0) -> 0 | M113: =IF($L$87>0,SUMPRODUCT($L$78:$L$80,$AB$60:$AB$62)*$C$65/($L$87*100),0) -> 0 | N113: =IF($N$87>0,SUMPRODUCT($N$78:$N$80,$AA$60:$AA$62)*$C$65/($N$87*100),0) -> 15.26 | O113: =IF($N$87>0,SUMPRODUCT($N$78:$N$80,$AB$60:$AB$62)*$C$65/($N$87*100),0) -> 3.59873661 | P113: =IF($P$87>0,SUMPRODUCT($P$78:$P$80,$AA$60:$AA$62)*$C$65/($P$87*100),0) -> 15.26 | Q113: =IF($P$87>0,SUMPRODUCT($P$78:$P$80,$AB$60:$AB$62)*$C$65/($P$87*100),0) -> 3.602018275 | R113: =IF($R$87>0,SUMPRODUCT($R$78:$R$80,$AA$60:$AA$62)*$C$65/($R$87*100),0) -> 15.26 | S113: =IF($R$87>0,SUMPRODUCT($R$78:$R$80,$AB$60:$AB$62)*$C$65/($R$87*100),0) -> 3.603637393 | T113: =IF($T$87>0,SUMPRODUCT($T$79:$T$80,$AA$61:$AA$62)*$C$65/($T$87*100),0) -> 15.26 | U113: =IF($T$87>0,SUMPRODUCT($T$79:$T$80,$AB$61:$AB$62)*$C$65/($T$87*100),0) -> 3.605317521 | V113: =IF($V$87>0,SUMPRODUCT($V$80,$AA$62)*$C$65/($V$87*100),0) -> 15.26 | W113: =IF($V$87>0,SUMPRODUCT($V$80,$AB$62)*$C$65/($V$87*100),0) -> 3.606623064 | X113: =IF($X$87>0,SUMPRODUCT($X$80,$AA$62)*$C$65/($X$87*100),0) -> 0 | Y113: =IF($X$87>0,SUMPRODUCT($X$80,$AB$62)*$C$65/($X$87*100),0) -> 0 | Z113: =IF($Z$87>0,SUMPRODUCT($Z$80,$AA$61)*$C$65/($Z$87*100),0) -> 15.26 | AA113: =IF($Z$87>0,SUMPRODUCT($Z$80,$AB$61)*$C$65/($Z$87*100),0) -> 3.604084508 | AB113: =IF($AB$87>0,SUMPRODUCT($AB$79:$AB$80,$AA$60:$AA$61)*$C$65/($AB$87*100),0) -> 15.26 | AC113: =IF($AB$87>0,SUMPRODUCT($AB$79:$AB$80,$AB$60:$AB$61)*$C$65/($AB$87*100),0) -> 3.601410559 | AD113: =IF($AD$87>0,SUMPRODUCT($AD$78:$AD$80,$AA$60:$AA$62)*$C$65/($AD$87*100),0) -> 15.26 | AE113: =IF($AD$87>0,SUMPRODUCT($AD$78:$AD$80,$AB$60:$AB$62)*$C$65/($AD$87*100),0) -> 3.602219334
A114: Lote lactación | B114: =IF($B$88>0,($B$69*$AA$48+SUMPRODUCT($B$70:$B$74,$AA$52:$AA$56))*$C$65/($B$88*100),0) -> 23.09645137 | C114: =IF($B$88>0,($B$69*$AB$48+SUMPRODUCT($B$70:$B$74,$AB$52:$AB$56))*$C$65/($B$88*100),0) -> 4.471508841 | D114: =IF($D$88>0,(SUMPRODUCT($D$69:$D$70,$AA$48:$AA$49)+SUMPRODUCT($D$71:$D$74,$AA$53:$AA$56))*$C$65/($D$88*100),0) -> 23.10838411 | E114: =IF($D$88>0,(SUMPRODUCT($D$69:$D$70,$AB$48:$AB$49)+SUMPRODUCT($D$71:$D$74,$AB$53:$AB$56))*$C$65/($D$88*100),0) -> 4.443923009 | F114: =IF($F$88>0,(SUMPRODUCT($F$69:$F$71,$AA$48:$AA$50)+SUMPRODUCT($F$72:$F$74,$AA$54:$AA$56))*$C$65/($F$88*100),0) -> 23.089371 | G114: =IF($F$88>0,(SUMPRODUCT($F$69:$F$71,$AB$48:$AB$50)+SUMPRODUCT($F$72:$F$74,$AB$54:$AB$56))*$C$65/($F$88*100),0) -> 4.361054592 | H114: =IF($H$88>0,(SUMPRODUCT($H$69:$H$72,$AA$48:$AA$51)+SUMPRODUCT($H$73:$H$74,$AA$55:$AA$56))*$C$65/($H$88*100),0) -> 23.14916322 | I114: =IF($H$88>0,(SUMPRODUCT($H$69:$H$72,$AB$48:$AB$51)+SUMPRODUCT($H$73:$H$74,$AB$55:$AB$56))*$C$65/($H$88*100),0) -> 4.521581976 | J114: =IF($J$88>0,(SUMPRODUCT($J$69:$J$73,$AA$48:$AA$52)+SUMPRODUCT($J$74,$AA$56))*$C$65/($J$88*100),0) -> 23.12989112 | K114: =IF($J$88>0,(SUMPRODUCT($J$69:$J$73,$AB$48:$AB$52)+SUMPRODUCT($J$74,$AB$56))*$C$65/($J$88*100),0) -> 4.589536839 | L114: =IF($L$88>0,SUMPRODUCT($L$69:$L$74,$AA$48:$AA$53)*$C$65/($L$88*100),0) -> 23.16375406 | M114: =IF($L$88>0,SUMPRODUCT($L$69:$L$74,$AB$48:$AB$53)*$C$65/($L$88*100),0) -> 4.646214023 | N114: =IF($N$88>0,SUMPRODUCT($N$69:$N$75,$AA$48:$AA$54)*$C$65/($N$88*100),0) -> 23.10351429 | O114: =IF($N$88>0,SUMPRODUCT($N$69:$N$75,$AB$48:$AB$54)*$C$65/($N$88*100),0) -> 4.628743886 | P114: =IF($P$88>0,SUMPRODUCT($P$69:$P$76,$AA$48:$AA$55)*$C$65/($P$88*100),0) -> 23.06408193 | Q114: =IF($P$88>0,SUMPRODUCT($P$69:$P$76,$AB$48:$AB$55)*$C$65/($P$88*100),0) -> 4.608541697 | R114: =IF($R$88>0,SUMPRODUCT($R$69:$R$77,$AA$48:$AA$56)*$C$65/($R$88*100),0) -> 23.00689407 | S114: =IF($R$88>0,SUMPRODUCT($R$69:$R$77,$AB$48:$AB$56)*$C$65/($R$88*100),0) -> 4.571880376 | T114: =IF($T$88>0,SUMPRODUCT($T$69:$T$77,$AA$48:$AA$56)*$C$65/($T$88*100),0) -> 23.09118492 | U114: =IF($T$88>0,SUMPRODUCT($T$69:$T$77,$AB$48:$AB$56)*$C$65/($T$88*100),0) -> 4.07294447 | V114: =IF($V$88>0,SUMPRODUCT($V$69:$V$77,$AA$48:$AA$56)*$C$65/($V$88*100),0) -> 23.18251246 | W114: =IF($V$88>0,SUMPRODUCT($V$69:$V$77,$AB$48:$AB$56)*$C$65/($V$88*100),0) -> 4.177789285 | X114: =IF($X$88>0,SUMPRODUCT($X$69:$X$77,$AA$48:$AA$56)*$C$65/($X$88*100),0) -> 23.27433997 | Y114: =IF($X$88>0,SUMPRODUCT($X$69:$X$77,$AB$48:$AB$56)*$C$65/($X$88*100),0) -> 4.225327904 | Z114: =IF($Z$88>0,SUMPRODUCT($Z$69:$Z$76,$AA$49:$AA$56)*$C$65/($Z$88*100),0) -> 23.27356723 | AA114: =IF($Z$88>0,SUMPRODUCT($Z$69:$Z$76,$AB$49:$AB$56)*$C$65/($Z$88*100),0) -> 4.547283136 | AB114: =IF($AB$88>0,SUMPRODUCT($AB$69:$AB$75,$AA$50:$AA$56)*$C$65/($AB$88*100),0) -> 23.20574228 | AC114: =IF($AB$88>0,SUMPRODUCT($AB$69:$AB$75,$AB$50:$AB$56)*$C$65/($AB$88*100),0) -> 4.635665811 | AD114: =IF($AD$88>0,SUMPRODUCT($AD$69:$AD$74,$AA$51:$AA$56)*$C$65/($AD$88*100),0) -> 23.14216018 | AE114: =IF($AD$88>0,SUMPRODUCT($AD$69:$AD$74,$AB$51:$AB$56)*$C$65/($AD$88*100),0) -> 4.641185738
B115: Cu mg/día | C115: Mn mg/día | D115: Cu mg/día | E115: Mn mg/día | F115: Cu mg/día | G115: Mn mg/día | H115: Cu mg/día | I115: Mn mg/día | J115: Cu mg/día | K115: Mn mg/día | L115: Cu mg/día | M115: Mn mg/día | N115: Cu mg/día | O115: Mn mg/día | P115: Cu mg/día | Q115: Mn mg/día | R115: Cu mg/día | S115: Mn mg/día | T115: Cu mg/día | U115: Mn mg/día | V115: Cu mg/día | W115: Mn mg/día | X115: Cu mg/día | Y115: Mn mg/día | Z115: Cu mg/día | AA115: Mn mg/día | AB115: Cu mg/día | AC115: Mn mg/día | AD115: Cu mg/día | AE115: Mn mg/día
A116: Lote 5 primeros meses lactación | B116: =IF($B$84>0,($B$69*$AC$48+$B$70*$AC$52)*$C$65/($B$84*100),0) -> 142.0688364 | C116: =IF($B$84>0,($B$69*$AD$48+$B$70*$AD$52)*$C$65/($B$84*100),0) -> 710.3441819 | D116: =IF($D$84>0,SUMPRODUCT($D$69:$D$70,$AC$48:$AC$49)*$C$65/($D$84*100),0) -> 131.7213729 | E116: =IF($D$84>0,SUMPRODUCT($D$69:$D$70,$AD$48:$AD$49)*$C$65/($D$84*100),0) -> 658.6068647 | F116: =IF($F$84>0,SUMPRODUCT($F$69:$F$71,$AC$48:$AC$50)*$C$65/($F$84*100),0) -> 134.6261982 | G116: =IF($F$84>0,SUMPRODUCT($F$69:$F$71,$AD$48:$AD$50)*$C$65/($F$84*100),0) -> 673.1309911 | H116: =IF($H$84>0,SUMPRODUCT($H$69:$H$72,$AC$48:$AC$51)*$C$65/($H$84*100),0) -> 149.682116 | I116: =IF($H$84>0,SUMPRODUCT($H$69:$H$72,$AD$48:$AD$51)*$C$65/($H$84*100),0) -> 748.41058 | J116: =IF($J$84>0,SUMPRODUCT($J$69:$J$73,$AC$48:$AC$52)*$C$65/($J$84*100),0) -> 154.1756105 | K116: =IF($J$84>0,SUMPRODUCT($J$69:$J$73,$AD$48:$AD$52)*$C$65/($J$84*100),0) -> 770.8780526 | L116: =IF($L$84>0,SUMPRODUCT($L$69:$L$73,$AC$48:$AC$52)*$C$65/($L$84*100),0) -> 155.1156491 | M116: =IF($L$84>0,SUMPRODUCT($L$69:$L$73,$AD$48:$AD$52)*$C$65/($L$84*100),0) -> 775.5782453 | N116: =IF($N$84>0,SUMPRODUCT($N$69:$N$73,$AC$48:$AC$52)*$C$65/($N$84*100),0) -> 155.0338278 | O116: =IF($N$84>0,SUMPRODUCT($N$69:$N$73,$AD$48:$AD$52)*$C$65/($N$84*100),0) -> 775.1691392 | P116: =IF($P$84>0,SUMPRODUCT($P$69:$P$73,$AC$48:$AC$52)*$C$65/($P$84*100),0) -> 0 | Q116: =IF($P$84>0,SUMPRODUCT($P$69:$P$73,$AD$48:$AD$52)*$C$65/($P$84*100),0) -> 0 | R116: =IF($R$84>0,SUMPRODUCT($R$69:$R$73,$AC$48:$AC$52)*$C$65/($R$84*100),0) -> 0 | S116: =IF($R$84>0,SUMPRODUCT($R$69:$R$73,$AD$48:$AD$52)*$C$65/($R$84*100),0) -> 0 | T116: =IF($T$84>0,SUMPRODUCT($T$69:$T$73,$AC$48:$AC$52)*$C$65/($T$84*100),0) -> 118.7318517 | U116: =IF($T$84>0,SUMPRODUCT($T$69:$T$73,$AD$48:$AD$52)*$C$65/($T$84*100),0) -> 593.6592586 | V116: =IF($V$84>0,SUMPRODUCT($V$69:$V$73,$AC$48:$AC$52)*$C$65/($V$84*100),0) -> 134.6735369 | W116: =IF($V$84>0,SUMPRODUCT($V$69:$V$73,$AD$48:$AD$52)*$C$65/($V$84*100),0) -> 673.3676843 | X116: =IF($X$84>0,SUMPRODUCT($X$69:$X$73,$AC$48:$AC$52)*$C$65/($X$84*100),0) -> 140.8442635 | Y116: =IF($X$84>0,SUMPRODUCT($X$69:$X$73,$AD$48:$AD$52)*$C$65/($X$84*100),0) -> 704.2213173 | Z116: =IF($Z$84>0,SUMPRODUCT($Z$69:$Z$72,$AC$49:$AC$52)*$C$65/($Z$84*100),0) -> 151.5761045 | AA116: =IF($Z$84>0,SUMPRODUCT($Z$69:$Z$72,$AD$49:$AD$52)*$C$65/($Z$84*100),0) -> 757.8805226 | AB116: =IF($AB$84>0,SUMPRODUCT($AB$69:$AB$71,$AC$50:$AC$52)*$C$65/($AB$84*100),0) -> 154.5221937 | AC116: =IF($AB$84>0,SUMPRODUCT($AB$69:$AB$71,$AD$50:$AD$52)*$C$65/($AB$84*100),0) -> 772.6109686 | AD116: =IF($AD$84>0,SUMPRODUCT($AD$69:$AD$70,$AC$51:$AC$52)*$C$65/($AD$84*100),0) -> 155.0992848 | AE116: =IF($AD$84>0,SUMPRODUCT($AD$69:$AD$70,$AD$51:$AD$52)*$C$65/($AD$84*100),0) -> 775.4964241
A117: Lote últimos meses lactación | B117: =IF($B$85>0,SUMPRODUCT($B$71:$B$74,$AC$53:$AC$56)*$C$65/($B$85*100),0) -> 153.4930409 | C117: =IF($B$85>0,SUMPRODUCT($B$71:$B$74,$AD$53:$AD$56)*$C$65/($B$85*100),0) -> 767.4652046 | D117: =IF($D$85>0,SUMPRODUCT($D$71:$D$74,$AC$53:$AC$56)*$C$65/($D$85*100),0) -> 153.4241199 | E117: =IF($D$85>0,SUMPRODUCT($D$71:$D$74,$AD$53:$AD$56)*$C$65/($D$85*100),0) -> 767.1205993 | F117: =IF($F$85>0,SUMPRODUCT($F$72:$F$74,$AC$54:$AC$56)*$C$65/($F$85*100),0) -> 151.9524695 | G117: =IF($F$85>0,SUMPRODUCT($F$72:$F$74,$AD$54:$AD$56)*$C$65/($F$85*100),0) -> 759.7623473 | H117: =IF($H$85>0,SUMPRODUCT($H$73:$H$74,$AC$55:$AC$56)*$C$65/($H$85*100),0) -> 151.8455924 | I117: =IF($H$85>0,SUMPRODUCT($H$73:$H$74,$AD$55:$AD$56)*$C$65/($H$85*100),0) -> 759.2279621 | J117: =IF($J$85>0,SUMPRODUCT($J$74,$AC$56)*$C$65/($J$85*100),0) -> 150.4701241 | K117: =IF($J$85>0,SUMPRODUCT($J$74,$AD$56)*$C$65/($J$85*100),0) -> 752.3506203 | L117: =IF($L$85>0,SUMPRODUCT($L$74,$AC$53)*$C$65/($L$85*100),0) -> 154.1966255 | M117: =IF($L$85>0,SUMPRODUCT($L$74,$AD$53)*$C$65/($L$85*100),0) -> 770.9831276 | N117: =IF($N$85>0,SUMPRODUCT($N$74:$N$75,$AC$53:$AC$54)*$C$65/($N$85*100),0) -> 153.6233344 | O117: =IF($N$85>0,SUMPRODUCT($N$74:$N$75,$AD$53:$AD$54)*$C$65/($N$85*100),0) -> 768.1166718 | P117: =IF($P$85>0,SUMPRODUCT($P$74:$P$76,$AC$53:$AC$55)*$C$65/($P$85*100),0) -> 153.6180566 | Q117: =IF($P$85>0,SUMPRODUCT($P$74:$P$76,$AD$53:$AD$55)*$C$65/($P$85*100),0) -> 768.0902829 | R117: =IF($R$85>0,SUMPRODUCT($R$74:$R$77,$AC$53:$AC$56)*$C$65/($R$85*100),0) -> 152.3960125 | S117: =IF($R$85>0,SUMPRODUCT($R$74:$R$77,$AD$53:$AD$56)*$C$65/($R$85*100),0) -> 761.9800627 | T117: =IF($T$85>0,SUMPRODUCT($T$74:$T$77,$AC$53:$AC$56)*$C$65/($T$85*100),0) -> 152.1894595 | U117: =IF($T$85>0,SUMPRODUCT($T$74:$T$77,$AD$53:$AD$56)*$C$65/($T$85*100),0) -> 760.9472975 | V117: =IF($V$85>0,SUMPRODUCT($V$74:$V$77,$AC$53:$AC$56)*$C$65/($V$85*100),0) -> 150.4701241 | W117: =IF($V$85>0,SUMPRODUCT($V$74:$V$77,$AD$53:$AD$56)*$C$65/($V$85*100),0) -> 752.3506203 | X117: =IF($X$85>0,SUMPRODUCT($X$74:$X$77,$AC$53:$AC$56)*$C$65/($X$85*100),0) -> 0 | Y117: =IF($X$85>0,SUMPRODUCT($X$74:$X$77,$AD$53:$AD$56)*$C$65/($X$85*100),0) -> 0 | Z117: =IF($Z$85>0,SUMPRODUCT($Z$73:$Z$76,$AC$53:$AC$56)*$C$65/($Z$85*100),0) -> 0 | AA117: =IF($Z$85>0,SUMPRODUCT($Z$73:$Z$76,$AD$53:$AD$56)*$C$65/($Z$85*100),0) -> 0 | AB117: =IF($AB$85>0,SUMPRODUCT($AB$72:$AB$75,$AC$53:$AC$56)*$C$65/($AB$85*100),0) -> 0 | AC117: =IF($AB$85>0,SUMPRODUCT($AB$72:$AB$75,$AD$53:$AD$56)*$C$65/($AB$85*100),0) -> 0 | AD117: =IF($AD$85>0,SUMPRODUCT($AD$71:$AD$74,$AC$53:$AC$56)*$C$65/($AD$85*100),0) -> 154.1966255 | AE117: =IF($AD$85>0,SUMPRODUCT($AD$71:$AD$74,$AD$53:$AD$56)*$C$65/($AD$85*100),0) -> 770.9831276
A118: Lote medio | B118: =IF($B$86>0,SUMPRODUCT($B$75:$B$77,$AC$57:$AC$59)*$C$65/($B$86*100),0) -> 0 | C118: =IF($B$86>0,SUMPRODUCT($B$75:$B$77,$AD$57:$AD$59)*$C$65/($B$86*100),0) -> 0 | D118: =IF($D$86>0,SUMPRODUCT($D$75:$D$77,$AC$57:$AC$59)*$C$65/($D$86*100),0) -> 0 | E118: =IF($D$86>0,SUMPRODUCT($D$75:$D$77,$AD$57:$AD$59)*$C$65/($D$86*100),0) -> 0 | F118: =IF($F$86>0,SUMPRODUCT($F$75:$F$77,$AC$57:$AC$59)*$C$65/($F$86*100),0) -> 0 | G118: =IF($F$86>0,SUMPRODUCT($F$75:$F$77,$AD$57:$AD$59)*$C$65/($F$86*100),0) -> 0 | H118: =IF($H$86>0,SUMPRODUCT($H$75:$H$77,$AC$57:$AC$59)*$C$65/($H$86*100)) -> 115.0081161 | I118: =IF($H$86>0,SUMPRODUCT($H$75:$H$77,$AD$57:$AD$59)*$C$65/($H$86*100)) -> 575.0405803 | J118: =IF($J$86>0,SUMPRODUCT($J$75:$J$77,$AC$57:$AC$59)*$C$65/($J$86*100),0) -> 117.0019218 | K118: =IF($J$86>0,SUMPRODUCT($J$75:$J$77,$AD$57:$AD$59)*$C$65/($J$86*100),0) -> 585.009609 | L118: =IF($L$86>0,SUMPRODUCT($L$75:$L$77,$AC$57:$AC$59)*$C$65/($L$86*100),0) -> 117.8557527 | M118: =IF($L$86>0,SUMPRODUCT($L$75:$L$77,$AD$57:$AD$59)*$C$65/($L$86*100),0) -> 589.2787637 | N118: =IF($N$86>0,SUMPRODUCT($N$76:$N$77,$AC$58:$AC$59)*$C$65/($N$86*100),0) -> 118.8615494 | O118: =IF($N$86>0,SUMPRODUCT($N$76:$N$77,$AD$58:$AD$59)*$C$65/($N$86*100),0) -> 594.3077472 | P118: =IF($P$86>0,$P$77*$AC$59*$C$65/($P$86*100),0) -> 119.5013631 | Q118: =IF($P$86>0,$P$77*$AD$59*$C$65/($P$86*100),0) -> 597.5068156 | R118: =IF($R$86>0,$R$77*$AC$59*$C$65/($R$86*100),0) -> 0 | S118: =IF($R$86>0,$R$77*$AD$59*$C$65/($R$86*100),0) -> 0 | T118: =IF($T$86>0,$T$78*$AC$57*$C$65/($T$86*100),0) -> 115.0081161 | U118: =IF($T$86>0,$T$78*$AD$57*$C$65/($T$86*100),0) -> 575.0405803 | V118: =IF($V$86>0,SUMPRODUCT($V$78:$V$79,$AC$58:$AC$59)*$C$65/($V$86*100),0) -> 118.879322 | W118: =IF($V$86>0,SUMPRODUCT($V$78:$V$79,$AD$58:$AD$59)*$C$65/($V$86*100),0) -> 594.3966102 | X118: =IF($X$86>0,SUMPRODUCT($X$78:$X$80,$AC$57:$AC$59)*$C$65/($X$86*100),0) -> 117.0455929 | Y118: =IF($X$86>0,SUMPRODUCT($X$78:$X$80,$AD$57:$AD$59)*$C$65/($X$86*100),0) -> 585.2279645 | Z118: =IF($Z$86>0,SUMPRODUCT($Z$77:$Z$79,$AC$57:$AC$59)*$C$65/($Z$86*100),0) -> 118.701596 | AA118: =IF($Z$86>0,SUMPRODUCT($Z$77:$Z$79,$AD$57:$AD$59)*$C$65/($Z$86*100),0) -> 593.5079801 | AB118: =IF($AB$86>0,SUMPRODUCT($AB$76:$AB$78,$AC$57:$AC$59)*$C$65/($AB$86*100),0) -> 119.5013631 | AC118: =IF($AB$86>0,SUMPRODUCT($AB$76:$AB$78,$AD$57:$AD$59)*$C$65/($AB$86*100),0) -> 597.5068156 | AD118: =IF($AD$86>0,SUMPRODUCT($AD$75:$AD$77,$AC$57:$AC$59)*$C$65/($AD$86*100),0) -> 0 | AE118: =IF($AD$86>0,SUMPRODUCT($AD$75:$AD$77,$AD$57:$AD$59)*$C$65/($AD$86*100),0) -> 0
A119: Lote gestación | B119: =IF($B$87>0,SUMPRODUCT($B$78:$B$80,$AC$60:$AC$62)*$C$65/($B$87*100),0) -> 120.1663712 | C119: =IF($B$87>0,SUMPRODUCT($B$78:$B$80,$AD$60:$AD$62)*$C$65/($B$87*100),0) -> 600.8318558 | D119: =IF($D$87>0,SUMPRODUCT($D$78:$D$80,$AC$60:$AC$62)*$C$65/($D$87*100),0) -> 120.2207688 | E119: =IF($D$87>0,SUMPRODUCT($D$78:$D$80,$AD$60:$AD$62)*$C$65/($D$87*100),0) -> 601.103844 | F119: =IF($F$87>0,SUMPRODUCT($F$78:$F$80,$AC$60:$AC$62)*$C$65/($F$87*100),0) -> 0 | G119: =IF($F$87>0,SUMPRODUCT($F$78:$F$80,$AD$60:$AD$62)*$C$65/($F$87*100),0) -> 0 | H119: =IF($H$87>0,SUMPRODUCT($H$78:$H$80,$AC$60:$AC$62)*$C$65/($H$87*100),0) -> 0 | I119: =IF($H$87>0,SUMPRODUCT($H$78:$H$80,$AD$60:$AD$62)*$C$65/($H$87*100),0) -> 0 | J119: =IF($J$87>0,SUMPRODUCT($J$78:$J$80,$AC$60:$AC$62)*$C$65/($J$87*100),0) -> 0 | K119: =IF($J$87>0,SUMPRODUCT($J$78:$J$80,$AD$60:$AD$62)*$C$65/($J$87*100),0) -> 0 | L119: =IF($L$87>0,SUMPRODUCT($L$78:$L$80,$AC$60:$AC$62)*$C$65/($L$87*100),0) -> 0 | M119: =IF($L$87>0,SUMPRODUCT($L$78:$L$80,$AD$60:$AD$62)*$C$65/($L$87*100),0) -> 0 | N119: =IF($N$87>0,SUMPRODUCT($N$78:$N$80,$AC$60:$AC$62)*$C$65/($N$87*100),0) -> 119.957887 | O119: =IF($N$87>0,SUMPRODUCT($N$78:$N$80,$AD$60:$AD$62)*$C$65/($N$87*100),0) -> 599.789435 | P119: =IF($P$87>0,SUMPRODUCT($P$78:$P$80,$AC$60:$AC$62)*$C$65/($P$87*100),0) -> 120.0672758 | Q119: =IF($P$87>0,SUMPRODUCT($P$78:$P$80,$AD$60:$AD$62)*$C$65/($P$87*100),0) -> 600.3363791 | R119: =IF($R$87>0,SUMPRODUCT($R$78:$R$80,$AC$60:$AC$62)*$C$65/($R$87*100),0) -> 120.1212464 | S119: =IF($R$87>0,SUMPRODUCT($R$78:$R$80,$AD$60:$AD$62)*$C$65/($R$87*100),0) -> 600.6062321 | T119: =IF($T$87>0,SUMPRODUCT($T$79:$T$80,$AC$61:$AC$62)*$C$65/($T$87*100),0) -> 120.1772507 | U119: =IF($T$87>0,SUMPRODUCT($T$79:$T$80,$AD$61:$AD$62)*$C$65/($T$87*100),0) -> 600.8862535 | V119: =IF($V$87>0,SUMPRODUCT($V$80,$AC$62)*$C$65/($V$87*100),0) -> 120.2207688 | W119: =IF($V$87>0,SUMPRODUCT($V$80,$AD$62)*$C$65/($V$87*100),0) -> 601.103844 | X119: =IF($X$87>0,SUMPRODUCT($X$80,$AC$62)*$C$65/($X$87*100),0) -> 0 | Y119: =IF($X$87>0,SUMPRODUCT($X$80,$AD$62)*$C$65/($X$87*100),0) -> 0 | Z119: =IF($Z$87>0,SUMPRODUCT($Z$80,$AC$61)*$C$65/($Z$87*100),0) -> 120.1361503 | AA119: =IF($Z$87>0,SUMPRODUCT($Z$80,$AD$61)*$C$65/($Z$87*100),0) -> 600.6807513 | AB119: =IF($AB$87>0,SUMPRODUCT($AB$79:$AB$80,$AC$60:$AC$61)*$C$65/($AB$87*100),0) -> 120.0470186 | AC119: =IF($AB$87>0,SUMPRODUCT($AB$79:$AB$80,$AD$60:$AD$61)*$C$65/($AB$87*100),0) -> 600.2350932 | AD119: =IF($AD$87>0,SUMPRODUCT($AD$78:$AD$80,$AC$60:$AC$62)*$C$65/($AD$87*100),0) -> 120.0739778 | AE119: =IF($AD$87>0,SUMPRODUCT($AD$78:$AD$80,$AD$60:$AD$62)*$C$65/($AD$87*100),0) -> 600.369889
A120: Lote lactación | B120: =IF($B$88>0,($B$69*$AC$48+SUMPRODUCT($B$70:$B$74,$AC$52:$AC$56))*$C$65/($B$88*100),0) -> 149.0502947 | C120: =IF($B$88>0,($B$69*$AD$48+SUMPRODUCT($B$70:$B$74,$AD$52:$AD$56))*$C$65/($B$88*100),0) -> 745.2514735 | D120: =IF($D$88>0,(SUMPRODUCT($D$69:$D$70,$AC$48:$AC$49)+SUMPRODUCT($D$71:$D$74,$AC$53:$AC$56))*$C$65/($D$88*100),0) -> 148.130767 | E120: =IF($D$88>0,(SUMPRODUCT($D$69:$D$70,$AD$48:$AD$49)+SUMPRODUCT($D$71:$D$74,$AD$53:$AD$56))*$C$65/($D$88*100),0) -> 740.6538348 | F120: =IF($F$88>0,(SUMPRODUCT($F$69:$F$71,$AC$48:$AC$50)+SUMPRODUCT($F$72:$F$74,$AC$54:$AC$56))*$C$65/($F$88*100),0) -> 145.3684864 | G120: =IF($F$88>0,(SUMPRODUCT($F$69:$F$71,$AD$48:$AD$50)+SUMPRODUCT($F$72:$F$74,$AD$54:$AD$56))*$C$65/($F$88*100),0) -> 726.842432 | H120: =IF($H$88>0,(SUMPRODUCT($H$69:$H$72,$AC$48:$AC$51)+SUMPRODUCT($H$73:$H$74,$AC$55:$AC$56))*$C$65/($H$88*100),0) -> 150.7193992 | I120: =IF($H$88>0,(SUMPRODUCT($H$69:$H$72,$AD$48:$AD$51)+SUMPRODUCT($H$73:$H$74,$AD$55:$AD$56))*$C$65/($H$88*100),0) -> 753.5969961 | J120: =IF($J$88>0,(SUMPRODUCT($J$69:$J$73,$AC$48:$AC$52)+SUMPRODUCT($J$74,$AC$56))*$C$65/($J$88*100),0) -> 152.9845613 | K120: =IF($J$88>0,(SUMPRODUCT($J$69:$J$73,$AD$48:$AD$52)+SUMPRODUCT($J$74,$AD$56))*$C$65/($J$88*100),0) -> 764.9228065 | L120: =IF($L$88>0,SUMPRODUCT($L$69:$L$74,$AC$48:$AC$53)*$C$65/($L$88*100),0) -> 154.8738008 | M120: =IF($L$88>0,SUMPRODUCT($L$69:$L$74,$AD$48:$AD$53)*$C$65/($L$88*100),0) -> 774.3690038 | N120: =IF($N$88>0,SUMPRODUCT($N$69:$N$75,$AC$48:$AC$54)*$C$65/($N$88*100),0) -> 154.2914629 | O120: =IF($N$88>0,SUMPRODUCT($N$69:$N$75,$AD$48:$AD$54)*$C$65/($N$88*100),0) -> 771.4573143 | P120: =IF($P$88>0,SUMPRODUCT($P$69:$P$76,$AC$48:$AC$55)*$C$65/($P$88*100),0) -> 153.6180566 | Q120: =IF($P$88>0,SUMPRODUCT($P$69:$P$76,$AD$48:$AD$55)*$C$65/($P$88*100),0) -> 768.0902829 | R120: =IF($R$88>0,SUMPRODUCT($R$69:$R$77,$AC$48:$AC$56)*$C$65/($R$88*100),0) -> 152.3960125 | S120: =IF($R$88>0,SUMPRODUCT($R$69:$R$77,$AD$48:$AD$56)*$C$65/($R$88*100),0) -> 761.9800627 | T120: =IF($T$88>0,SUMPRODUCT($T$69:$T$77,$AC$48:$AC$56)*$C$65/($T$88*100),0) -> 135.7648157 | U120: =IF($T$88>0,SUMPRODUCT($T$69:$T$77,$AD$48:$AD$56)*$C$65/($T$88*100),0) -> 678.8240784 | V120: =IF($V$88>0,SUMPRODUCT($V$69:$V$77,$AC$48:$AC$56)*$C$65/($V$88*100),0) -> 139.2596428 | W120: =IF($V$88>0,SUMPRODUCT($V$69:$V$77,$AD$48:$AD$56)*$C$65/($V$88*100),0) -> 696.2982141 | X120: =IF($X$88>0,SUMPRODUCT($X$69:$X$77,$AC$48:$AC$56)*$C$65/($X$88*100),0) -> 140.8442635 | Y120: =IF($X$88>0,SUMPRODUCT($X$69:$X$77,$AD$48:$AD$56)*$C$65/($X$88*100),0) -> 704.2213173 | Z120: =IF($Z$88>0,SUMPRODUCT($Z$69:$Z$76,$AC$49:$AC$56)*$C$65/($Z$88*100),0) -> 151.5761045 | AA120: =IF($Z$88>0,SUMPRODUCT($Z$69:$Z$76,$AD$49:$AD$56)*$C$65/($Z$88*100),0) -> 757.8805226 | AB120: =IF($AB$88>0,SUMPRODUCT($AB$69:$AB$75,$AC$50:$AC$56)*$C$65/($AB$88*100),0) -> 154.5221937 | AC120: =IF($AB$88>0,SUMPRODUCT($AB$69:$AB$75,$AD$50:$AD$56)*$C$65/($AB$88*100),0) -> 772.6109686 | AD120: =IF($AD$88>0,SUMPRODUCT($AD$69:$AD$74,$AC$51:$AC$56)*$C$65/($AD$88*100),0) -> 154.7061913 | AE120: =IF($AD$88>0,SUMPRODUCT($AD$69:$AD$74,$AD$51:$AD$56)*$C$65/($AD$88*100),0) -> 773.5309563
B121: Zn mg/día | C121: I mg/día | D121: Zn mg/día | E121: I mg/día | F121: Zn mg/día | G121: I mg/día | H121: Zn mg/día | I121: I mg/día | J121: Zn mg/día | K121: I mg/día | L121: Zn mg/día | M121: I mg/día | N121: Zn mg/día | O121: I mg/día | P121: Zn mg/día | Q121: I mg/día | R121: Zn mg/día | S121: I mg/día | T121: Zn mg/día | U121: I mg/día | V121: Zn mg/día | W121: I mg/día | X121: Zn mg/día | Y121: I mg/día | Z121: Zn mg/día | AA121: I mg/día | AB121: Zn mg/día | AC121: I mg/día | AD121: Zn mg/día | AE121: I mg/día
A122: Lote 5 primeros meses lactación | B122: =IF($B$84>0,($B$69*$AE$48+$B$70*$AE$52)*$C$65/($B$84*100),0) -> 710.3441819 | C122: =IF($B$84>0,($B$69*$AF$48+$B$70*$AF$52)*$C$65/($B$84*100),0) -> 9.234474364 | D122: =IF($D$84>0,SUMPRODUCT($D$69:$D$70,$AE$48:$AE$49)*$C$65/($D$84*100),0) -> 658.6068647 | E122: =IF($D$84>0,SUMPRODUCT($D$69:$D$70,$AF$48:$AF$49)*$C$65/($D$84*100),0) -> 8.561889241 | F122: =IF($F$84>0,SUMPRODUCT($F$69:$F$71,$AE$48:$AE$50)*$C$65/($F$84*100),0) -> 673.1309911 | G122: =IF($F$84>0,SUMPRODUCT($F$69:$F$71,$AF$48:$AF$50)*$C$65/($F$84*100),0) -> 8.750702885 | H122: =IF($H$84>0,SUMPRODUCT($H$69:$H$72,$AE$48:$AE$51)*$C$65/($H$84*100),0) -> 748.41058 | I122: =IF($H$84>0,SUMPRODUCT($H$69:$H$72,$AF$48:$AF$51)*$C$65/($H$84*100),0) -> 9.72933754 | J122: =IF($J$84>0,SUMPRODUCT($J$69:$J$73,$AE$48:$AE$52)*$C$65/($J$84*100),0) -> 770.8780526 | K122: =IF($J$84>0,SUMPRODUCT($J$69:$J$73,$AF$48:$AF$52)*$C$65/($J$84*100),0) -> 10.02141468 | L122: =IF($L$84>0,SUMPRODUCT($L$69:$L$73,$AE$48:$AE$52)*$C$65/($L$84*100),0) -> 775.5782453 | M122: =IF($L$84>0,SUMPRODUCT($L$69:$L$73,$AF$48:$AF$52)*$C$65/($L$84*100),0) -> 10.08251719 | N122: =IF($N$84>0,SUMPRODUCT($N$69:$N$73,$AE$48:$AE$52)*$C$65/($N$84*100),0) -> 775.1691392 | O122: =IF($N$84>0,SUMPRODUCT($N$69:$N$73,$AF$48:$AF$52)*$C$65/($N$84*100),0) -> 10.07719881 | P122: =IF($P$84>0,SUMPRODUCT($P$69:$P$73,$AE$48:$AE$52)*$C$65/($P$84*100),0) -> 0 | Q122: =IF($P$84>0,SUMPRODUCT($P$69:$P$73,$AF$48:$AF$52)*$C$65/($P$84*100),0) -> 0 | R122: =IF($R$84>0,SUMPRODUCT($R$69:$R$73,$AE$48:$AE$52)*$C$65/($R$84*100),0) -> 0 | S122: =IF($R$84>0,SUMPRODUCT($R$69:$R$73,$AF$48:$AF$52)*$C$65/($R$84*100),0) -> 0 | T122: =IF($T$84>0,SUMPRODUCT($T$69:$T$73,$AE$48:$AE$52)*$C$65/($T$84*100),0) -> 593.6592586 | U122: =IF($T$84>0,SUMPRODUCT($T$69:$T$73,$AF$48:$AF$52)*$C$65/($T$84*100),0) -> 7.717570362 | V122: =IF($V$84>0,SUMPRODUCT($V$69:$V$73,$AE$48:$AE$52)*$C$65/($V$84*100),0) -> 673.3676843 | W122: =IF($V$84>0,SUMPRODUCT($V$69:$V$73,$AF$48:$AF$52)*$C$65/($V$84*100),0) -> 8.753779896 | X122: =IF($X$84>0,SUMPRODUCT($X$69:$X$73,$AE$48:$AE$52)*$C$65/($X$84*100),0) -> 704.2213173 | Y122: =IF($X$84>0,SUMPRODUCT($X$69:$X$73,$AF$48:$AF$52)*$C$65/($X$84*100),0) -> 9.154877124 | Z122: =IF($Z$84>0,SUMPRODUCT($Z$69:$Z$72,$AE$49:$AE$52)*$C$65/($Z$84*100),0) -> 757.8805226 | AA122: =IF($Z$84>0,SUMPRODUCT($Z$69:$Z$72,$AF$49:$AF$52)*$C$65/($Z$84*100),0) -> 9.852446794 | AB122: =IF($AB$84>0,SUMPRODUCT($AB$69:$AB$71,$AE$50:$AE$52)*$C$65/($AB$84*100),0) -> 772.6109686 | AC122: =IF($AB$84>0,SUMPRODUCT($AB$69:$AB$71,$AF$50:$AF$52)*$C$65/($AB$84*100),0) -> 10.04394259 | AD122: =IF($AD$84>0,SUMPRODUCT($AD$69:$AD$70,$AE$51:$AE$52)*$C$65/($AD$84*100),0) -> 775.4964241 | AE122: =IF($AD$84>0,SUMPRODUCT($AD$69:$AD$70,$AF$51:$AF$52)*$C$65/($AD$84*100),0) -> 10.08145351
A123: Lote últimos meses lactación | B123: =IF($B$85>0,SUMPRODUCT($B$71:$B$74,$AE$53:$AE$56)*$C$65/($B$85*100),0) -> 767.4652046 | C123: =IF($B$85>0,SUMPRODUCT($B$71:$B$74,$AF$53:$AF$56)*$C$65/($B$85*100),0) -> 9.97704766 | D123: =IF($D$85>0,SUMPRODUCT($D$71:$D$74,$AE$53:$AE$56)*$C$65/($D$85*100),0) -> 767.1205993 | E123: =IF($D$85>0,SUMPRODUCT($D$71:$D$74,$AF$53:$AF$56)*$C$65/($D$85*100),0) -> 9.972567792 | F123: =IF($F$85>0,SUMPRODUCT($F$72:$F$74,$AE$54:$AE$56)*$C$65/($F$85*100),0) -> 759.7623473 | G123: =IF($F$85>0,SUMPRODUCT($F$72:$F$74,$AF$54:$AF$56)*$C$65/($F$85*100),0) -> 9.876910515 | H123: =IF($H$85>0,SUMPRODUCT($H$73:$H$74,$AE$55:$AE$56)*$C$65/($H$85*100),0) -> 759.2279621 | I123: =IF($H$85>0,SUMPRODUCT($H$73:$H$74,$AF$55:$AF$56)*$C$65/($H$85*100),0) -> 9.869963507 | J123: =IF($J$85>0,SUMPRODUCT($J$74,$AE$56)*$C$65/($J$85*100),0) -> 752.3506203 | K123: =IF($J$85>0,SUMPRODUCT($J$74,$AF$56)*$C$65/($J$85*100),0) -> 9.780558064 | L123: =IF($L$85>0,SUMPRODUCT($L$74,$AE$53)*$C$65/($L$85*100),0) -> 770.9831276 | M123: =IF($L$85>0,SUMPRODUCT($L$74,$AF$53)*$C$65/($L$85*100),0) -> 10.02278066 | N123: =IF($N$85>0,SUMPRODUCT($N$74:$N$75,$AE$53:$AE$54)*$C$65/($N$85*100),0) -> 768.1166718 | O123: =IF($N$85>0,SUMPRODUCT($N$74:$N$75,$AF$53:$AF$54)*$C$65/($N$85*100),0) -> 9.985516734 | P123: =IF($P$85>0,SUMPRODUCT($P$74:$P$76,$AE$53:$AE$55)*$C$65/($P$85*100),0) -> 768.0902829 | Q123: =IF($P$85>0,SUMPRODUCT($P$74:$P$76,$AF$53:$AF$55)*$C$65/($P$85*100),0) -> 9.985173678 | R123: =IF($R$85>0,SUMPRODUCT($R$74:$R$77,$AE$53:$AE$56)*$C$65/($R$85*100),0) -> 761.9800627 | S123: =IF($R$85>0,SUMPRODUCT($R$74:$R$77,$AF$53:$AF$56)*$C$65/($R$85*100),0) -> 9.905740816 | T123: =IF($T$85>0,SUMPRODUCT($T$74:$T$77,$AE$53:$AE$56)*$C$65/($T$85*100),0) -> 760.9472975 | U123: =IF($T$85>0,SUMPRODUCT($T$74:$T$77,$AF$53:$AF$56)*$C$65/($T$85*100),0) -> 9.892314867 | V123: =IF($V$85>0,SUMPRODUCT($V$74:$V$77,$AE$53:$AE$56)*$C$65/($V$85*100),0) -> 752.3506203 | W123: =IF($V$85>0,SUMPRODUCT($V$74:$V$77,$AF$53:$AF$56)*$C$65/($V$85*100),0) -> 9.780558064 | X123: =IF($X$85>0,SUMPRODUCT($X$74:$X$77,$AE$53:$AE$56)*$C$65/($X$85*100),0) -> 0 | Y123: =IF($X$85>0,SUMPRODUCT($X$74:$X$77,$AF$53:$AF$56)*$C$65/($X$85*100),0) -> 0 | Z123: =IF($Z$85>0,SUMPRODUCT($Z$73:$Z$76,$AE$53:$AE$56)*$C$65/($Z$85*100),0) -> 0 | AA123: =IF($Z$85>0,SUMPRODUCT($Z$73:$Z$76,$AF$53:$AF$56)*$C$65/($Z$85*100),0) -> 0 | AB123: =IF($AB$85>0,SUMPRODUCT($AB$72:$AB$75,$AE$53:$AE$56)*$C$65/($AB$85*100),0) -> 0 | AC123: =IF($AB$85>0,SUMPRODUCT($AB$72:$AB$75,$AF$53:$AF$56)*$C$65/($AB$85*100),0) -> 0 | AD123: =IF($AD$85>0,SUMPRODUCT($AD$71:$AD$74,$AE$53:$AE$56)*$C$65/($AD$85*100),0) -> 770.9831276 | AE123: =IF($AD$85>0,SUMPRODUCT($AD$71:$AD$74,$AF$53:$AF$56)*$C$65/($AD$85*100),0) -> 10.02278066
A124: Lote medio | B124: =IF($B$86>0,SUMPRODUCT($B$75:$B$77,$AE$57:$AE$59)*$C$65/($B$86*100),0) -> 0 | C124: =IF($B$86>0,SUMPRODUCT($B$75:$B$77,$AF$57:$AF$59)*$C$65/($B$86*100),0) -> 0 | D124: =IF($D$86>0,SUMPRODUCT($D$75:$D$77,$AE$57:$AE$59)*$C$65/($D$86*100),0) -> 0 | E124: =IF($D$86>0,SUMPRODUCT($D$75:$D$77,$AF$57:$AF$59)*$C$65/($D$86*100),0) -> 0 | F124: =IF($F$86>0,SUMPRODUCT($F$75:$F$77,$AE$57:$AE$59)*$C$65/($F$86*100),0) -> 0 | G124: =IF($F$86>0,SUMPRODUCT($F$75:$F$77,$AF$57:$AF$59)*$C$65/($F$86*100),0) -> 0 | H124: =IF($H$86>0,SUMPRODUCT($H$75:$H$77,$AE$57:$AE$59)*$C$65/($H$86*100)) -> 575.0405803 | I124: =IF($H$86>0,SUMPRODUCT($H$75:$H$77,$AF$57:$AF$59)*$C$65/($H$86*100)) -> 7.475527544 | J124: =IF($J$86>0,SUMPRODUCT($J$75:$J$77,$AE$57:$AE$59)*$C$65/($J$86*100),0) -> 585.009609 | K124: =IF($J$86>0,SUMPRODUCT($J$75:$J$77,$AF$57:$AF$59)*$C$65/($J$86*100),0) -> 7.605124917 | L124: =IF($L$86>0,SUMPRODUCT($L$75:$L$77,$AE$57:$AE$59)*$C$65/($L$86*100),0) -> 589.2787637 | M124: =IF($L$86>0,SUMPRODUCT($L$75:$L$77,$AF$57:$AF$59)*$C$65/($L$86*100),0) -> 7.660623928 | N124: =IF($N$86>0,SUMPRODUCT($N$76:$N$77,$AE$58:$AE$59)*$C$65/($N$86*100),0) -> 594.3077472 | O124: =IF($N$86>0,SUMPRODUCT($N$76:$N$77,$AF$58:$AF$59)*$C$65/($N$86*100),0) -> 7.726000714 | P124: =IF($P$86>0,$P$77*$AE$59*$C$65/($P$86*100),0) -> 597.5068156 | Q124: =IF($P$86>0,$P$77*$AF$59*$C$65/($P$86*100),0) -> 7.767588602 | R124: =IF($R$86>0,$R$77*$AE$59*$C$65/($R$86*100),0) -> 0 | S124: =IF($R$86>0,$R$77*$AF$59*$C$65/($R$86*100),0) -> 0 | T124: =IF($T$86>0,$T$78*$AE$57*$C$65/($T$86*100),0) -> 575.0405803 | U124: =IF($T$86>0,$T$78*$AF$57*$C$65/($T$86*100),0) -> 7.475527544 | V124: =IF($V$86>0,SUMPRODUCT($V$78:$V$79,$AE$58:$AE$59)*$C$65/($V$86*100),0) -> 594.3966102 | W124: =IF($V$86>0,SUMPRODUCT($V$78:$V$79,$AF$58:$AF$59)*$C$65/($V$86*100),0) -> 7.727155933 | X124: =IF($X$86>0,SUMPRODUCT($X$78:$X$80,$AE$57:$AE$59)*$C$65/($X$86*100),0) -> 585.2279645 | Y124: =IF($X$86>0,SUMPRODUCT($X$78:$X$80,$AF$57:$AF$59)*$C$65/($X$86*100),0) -> 7.607963538 | Z124: =IF($Z$86>0,SUMPRODUCT($Z$77:$Z$79,$AE$57:$AE$59)*$C$65/($Z$86*100),0) -> 593.5079801 | AA124: =IF($Z$86>0,SUMPRODUCT($Z$77:$Z$79,$AF$57:$AF$59)*$C$65/($Z$86*100),0) -> 7.715603742 | AB124: =IF($AB$86>0,SUMPRODUCT($AB$76:$AB$78,$AE$57:$AE$59)*$C$65/($AB$86*100),0) -> 597.5068156 | AC124: =IF($AB$86>0,SUMPRODUCT($AB$76:$AB$78,$AF$57:$AF$59)*$C$65/($AB$86*100),0) -> 7.767588602 | AD124: =IF($AD$86>0,SUMPRODUCT($AD$75:$AD$77,$AE$57:$AE$59)*$C$65/($AD$86*100),0) -> 0 | AE124: =IF($AD$86>0,SUMPRODUCT($AD$75:$AD$77,$AF$57:$AF$59)*$C$65/($AD$86*100),0) -> 0
A125: Lote gestación | B125: =IF($B$87>0,SUMPRODUCT($B$78:$B$80,$AE$60:$AE$62)*$C$65/($B$87*100),0) -> 600.8318558 | C125: =IF($B$87>0,SUMPRODUCT($B$78:$B$80,$AF$60:$AF$62)*$C$65/($B$87*100),0) -> 5.407486703 | D125: =IF($D$87>0,SUMPRODUCT($D$78:$D$80,$AE$60:$AE$62)*$C$65/($D$87*100),0) -> 601.103844 | E125: =IF($D$87>0,SUMPRODUCT($D$78:$D$80,$AF$60:$AF$62)*$C$65/($D$87*100),0) -> 5.409934596 | F125: =IF($F$87>0,SUMPRODUCT($F$78:$F$80,$AE$60:$AE$62)*$C$65/($F$87*100),0) -> 0 | G125: =IF($F$87>0,SUMPRODUCT($F$78:$F$80,$AF$60:$AF$62)*$C$65/($F$87*100),0) -> 0 | H125: =IF($H$87>0,SUMPRODUCT($H$78:$H$80,$AE$60:$AE$62)*$C$65/($H$87*100),0) -> 0 | I125: =IF($H$87>0,SUMPRODUCT($H$78:$H$80,$AF$60:$AF$62)*$C$65/($H$87*100),0) -> 0 | J125: =IF($J$87>0,SUMPRODUCT($J$78:$J$80,$AE$60:$AE$62)*$C$65/($J$87*100),0) -> 0 | K125: =IF($J$87>0,SUMPRODUCT($J$78:$J$80,$AF$60:$AF$62)*$C$65/($J$87*100),0) -> 0 | L125: =IF($L$87>0,SUMPRODUCT($L$78:$L$80,$AE$60:$AE$62)*$C$65/($L$87*100),0) -> 0 | M125: =IF($L$87>0,SUMPRODUCT($L$78:$L$80,$AF$60:$AF$62)*$C$65/($L$87*100),0) -> 0 | N125: =IF($N$87>0,SUMPRODUCT($N$78:$N$80,$AE$60:$AE$62)*$C$65/($N$87*100),0) -> 599.789435 | O125: =IF($N$87>0,SUMPRODUCT($N$78:$N$80,$AF$60:$AF$62)*$C$65/($N$87*100),0) -> 5.398104915 | P125: =IF($P$87>0,SUMPRODUCT($P$78:$P$80,$AE$60:$AE$62)*$C$65/($P$87*100),0) -> 600.3363791 | Q125: =IF($P$87>0,SUMPRODUCT($P$78:$P$80,$AF$60:$AF$62)*$C$65/($P$87*100),0) -> 5.403027412 | R125: =IF($R$87>0,SUMPRODUCT($R$78:$R$80,$AE$60:$AE$62)*$C$65/($R$87*100),0) -> 600.6062321 | S125: =IF($R$87>0,SUMPRODUCT($R$78:$R$80,$AF$60:$AF$62)*$C$65/($R$87*100),0) -> 5.405456089 | T125: =IF($T$87>0,SUMPRODUCT($T$79:$T$80,$AE$61:$AE$62)*$C$65/($T$87*100),0) -> 600.8862535 | U125: =IF($T$87>0,SUMPRODUCT($T$79:$T$80,$AF$61:$AF$62)*$C$65/($T$87*100),0) -> 5.407976281 | V125: =IF($V$87>0,SUMPRODUCT($V$80,$AE$62)*$C$65/($V$87*100),0) -> 601.103844 | W125: =IF($V$87>0,SUMPRODUCT($V$80,$AF$62)*$C$65/($V$87*100),0) -> 5.409934596 | X125: =IF($X$87>0,SUMPRODUCT($X$80,$AE$62)*$C$65/($X$87*100),0) -> 0 | Y125: =IF($X$87>0,SUMPRODUCT($X$80,$AF$62)*$C$65/($X$87*100),0) -> 0 | Z125: =IF($Z$87>0,SUMPRODUCT($Z$80,$AE$61)*$C$65/($Z$87*100),0) -> 600.6807513 | AA125: =IF($Z$87>0,SUMPRODUCT($Z$80,$AF$61)*$C$65/($Z$87*100),0) -> 5.406126762 | AB125: =IF($AB$87>0,SUMPRODUCT($AB$79:$AB$80,$AE$60:$AE$61)*$C$65/($AB$87*100),0) -> 600.2350932 | AC125: =IF($AB$87>0,SUMPRODUCT($AB$79:$AB$80,$AF$60:$AF$61)*$C$65/($AB$87*100),0) -> 5.402115838 | AD125: =IF($AD$87>0,SUMPRODUCT($AD$78:$AD$80,$AE$60:$AE$62)*$C$65/($AD$87*100),0) -> 600.369889 | AE125: =IF($AD$87>0,SUMPRODUCT($AD$78:$AD$80,$AF$60:$AF$62)*$C$65/($AD$87*100),0) -> 5.403329001
A126: Lote lactación | B126: =IF($B$88>0,($B$69*$AE$48+SUMPRODUCT($B$70:$B$74,$AE$52:$AE$56))*$C$65/($B$88*100),0) -> 745.2514735 | C126: =IF($B$88>0,($B$69*$AF$48+SUMPRODUCT($B$70:$B$74,$AF$52:$AF$56))*$C$65/($B$88*100),0) -> 9.688269156 | D126: =IF($D$88>0,(SUMPRODUCT($D$69:$D$70,$AE$48:$AE$49)+SUMPRODUCT($D$71:$D$74,$AE$53:$AE$56))*$C$65/($D$88*100),0) -> 740.6538348 | E126: =IF($D$88>0,(SUMPRODUCT($D$69:$D$70,$AF$48:$AF$49)+SUMPRODUCT($D$71:$D$74,$AF$53:$AF$56))*$C$65/($D$88*100),0) -> 9.628499852 | F126: =IF($F$88>0,(SUMPRODUCT($F$69:$F$71,$AE$48:$AE$50)+SUMPRODUCT($F$72:$F$74,$AE$54:$AE$56))*$C$65/($F$88*100),0) -> 726.842432 | G126: =IF($F$88>0,(SUMPRODUCT($F$69:$F$71,$AF$48:$AF$50)+SUMPRODUCT($F$72:$F$74,$AF$54:$AF$56))*$C$65/($F$88*100),0) -> 9.448951616 | H126: =IF($H$88>0,(SUMPRODUCT($H$69:$H$72,$AE$48:$AE$51)+SUMPRODUCT($H$73:$H$74,$AE$55:$AE$56))*$C$65/($H$88*100),0) -> 753.5969961 | I126: =IF($H$88>0,(SUMPRODUCT($H$69:$H$72,$AF$48:$AF$51)+SUMPRODUCT($H$73:$H$74,$AF$55:$AF$56))*$C$65/($H$88*100),0) -> 9.796760949 | J126: =IF($J$88>0,(SUMPRODUCT($J$69:$J$73,$AE$48:$AE$52)+SUMPRODUCT($J$74,$AE$56))*$C$65/($J$88*100),0) -> 764.9228065 | K126: =IF($J$88>0,(SUMPRODUCT($J$69:$J$73,$AF$48:$AF$52)+SUMPRODUCT($J$74,$AF$56))*$C$65/($J$88*100),0) -> 9.943996485 | L126: =IF($L$88>0,SUMPRODUCT($L$69:$L$74,$AE$48:$AE$53)*$C$65/($L$88*100),0) -> 774.3690038 | M126: =IF($L$88>0,SUMPRODUCT($L$69:$L$74,$AF$48:$AF$53)*$C$65/($L$88*100),0) -> 10.06679705 | N126: =IF($N$88>0,SUMPRODUCT($N$69:$N$75,$AE$48:$AE$54)*$C$65/($N$88*100),0) -> 771.4573143 | O126: =IF($N$88>0,SUMPRODUCT($N$69:$N$75,$AF$48:$AF$54)*$C$65/($N$88*100),0) -> 10.02894509 | P126: =IF($P$88>0,SUMPRODUCT($P$69:$P$76,$AE$48:$AE$55)*$C$65/($P$88*100),0) -> 768.0902829 | Q126: =IF($P$88>0,SUMPRODUCT($P$69:$P$76,$AF$48:$AF$55)*$C$65/($P$88*100),0) -> 9.985173678 | R126: =IF($R$88>0,SUMPRODUCT($R$69:$R$77,$AE$48:$AE$56)*$C$65/($R$88*100),0) -> 761.9800627 | S126: =IF($R$88>0,SUMPRODUCT($R$69:$R$77,$AF$48:$AF$56)*$C$65/($R$88*100),0) -> 9.905740816 | T126: =IF($T$88>0,SUMPRODUCT($T$69:$T$77,$AE$48:$AE$56)*$C$65/($T$88*100),0) -> 678.8240784 | U126: =IF($T$88>0,SUMPRODUCT($T$69:$T$77,$AF$48:$AF$56)*$C$65/($T$88*100),0) -> 8.824713019 | V126: =IF($V$88>0,SUMPRODUCT($V$69:$V$77,$AE$48:$AE$56)*$C$65/($V$88*100),0) -> 696.2982141 | W126: =IF($V$88>0,SUMPRODUCT($V$69:$V$77,$AF$48:$AF$56)*$C$65/($V$88*100),0) -> 9.051876783 | X126: =IF($X$88>0,SUMPRODUCT($X$69:$X$77,$AE$48:$AE$56)*$C$65/($X$88*100),0) -> 704.2213173 | Y126: =IF($X$88>0,SUMPRODUCT($X$69:$X$77,$AF$48:$AF$56)*$C$65/($X$88*100),0) -> 9.154877124 | Z126: =IF($Z$88>0,SUMPRODUCT($Z$69:$Z$76,$AE$49:$AE$56)*$C$65/($Z$88*100),0) -> 757.8805226 | AA126: =IF($Z$88>0,SUMPRODUCT($Z$69:$Z$76,$AF$49:$AF$56)*$C$65/($Z$88*100),0) -> 9.852446794 | AB126: =IF($AB$88>0,SUMPRODUCT($AB$69:$AB$75,$AE$50:$AE$56)*$C$65/($AB$88*100),0) -> 772.6109686 | AC126: =IF($AB$88>0,SUMPRODUCT($AB$69:$AB$75,$AF$50:$AF$56)*$C$65/($AB$88*100),0) -> 10.04394259 | AD126: =IF($AD$88>0,SUMPRODUCT($AD$69:$AD$74,$AE$51:$AE$56)*$C$65/($AD$88*100),0) -> 773.5309563 | AE126: =IF($AD$88>0,SUMPRODUCT($AD$69:$AD$74,$AF$51:$AF$56)*$C$65/($AD$88*100),0) -> 10.05590243
B127: Se mg/día | D127: Se mg/día | F127: Se mg/día | H127: Se mg/día | J127: Se mg/día | L127: Se mg/día | N127: Se mg/día | P127: Se mg/día | R127: Se mg/día | T127: Se mg/día | V127: Se mg/día | X127: Se mg/día | Z127: Se mg/día | AB127: Se mg/día | AD127: Se mg/día
A128: Lote 5 primeros meses lactación | B128: =IF($B$84>0,($B$69*$AG$48+$B$70*$AG$52)*$C$65/($B$84*100),0) -> 0.15 | D128: =IF($D$84>0,SUMPRODUCT($D$69:$D$70,$AG$48:$AG$49)*$C$65/($D$84*100),0) -> 0.15 | F128: =IF($F$84>0,SUMPRODUCT($F$69:$F$71,$AG$48:$AG$50)*$C$65/($F$84*100),0) -> 0.15 | H128: =IF($H$84>0,SUMPRODUCT($H$69:$H$72,$AG$48:$AG$51)*$C$65/($H$84*100),0) -> 0.15 | J128: =IF($J$84>0,SUMPRODUCT($J$69:$J$73,$AG$48:$AG$52)*$C$65/($J$84*100),0) -> 0.15 | L128: =IF($L$84>0,SUMPRODUCT($L$69:$L$73,$AG$48:$AG$52)*$C$65/($L$84*100),0) -> 0.15 | N128: =IF($N$84>0,SUMPRODUCT($N$69:$N$73,$AG$48:$AG$52)*$C$65/($N$84*100),0) -> 0.15 | P128: =IF($P$84>0,SUMPRODUCT($P$69:$P$73,$AG$48:$AG$52)*$C$65/($P$84*100),0) -> 0 | R128: =IF($R$84>0,SUMPRODUCT($R$69:$R$73,$AG$48:$AG$52)*$C$65/($R$84*100),0) -> 0 | T128: =IF($T$84>0,SUMPRODUCT($T$69:$T$73,$AG$48:$AG$52)*$C$65/($T$84*100),0) -> 0.15 | V128: =IF($V$84>0,SUMPRODUCT($V$69:$V$73,$AG$48:$AG$52)*$C$65/($V$84*100),0) -> 0.15 | X128: =IF($X$84>0,SUMPRODUCT($X$69:$X$73,$AG$48:$AG$52)*$C$65/($X$84*100),0) -> 0.15 | Z128: =IF($Z$84>0,SUMPRODUCT($Z$69:$Z$72,$AG$49:$AG$52)*$C$65/($Z$84*100),0) -> 0.15 | AB128: =IF($AB$84>0,SUMPRODUCT($AB$69:$AB$71,$AG$50:$AG$52)*$C$65/($AB$84*100),0) -> 0.15 | AD128: =IF($AD$84>0,SUMPRODUCT($AD$69:$AD$70,$AG$51:$AG$52)*$C$65/($AD$84*100),0) -> 0.15
A129: Lote últimos meses lactación | B129: =IF($B$85>0,SUMPRODUCT($B$71:$B$74,$AG$53:$AG$56)*$C$65/($B$85*100),0) -> 0.15 | D129: =IF($D$85>0,SUMPRODUCT($D$71:$D$74,$AG$53:$AG$56)*$C$65/($D$85*100),0) -> 0.15 | F129: =IF($F$85>0,SUMPRODUCT($F$72:$F$74,$AG$54:$AG$56)*$C$65/($F$85*100),0) -> 0.15 | H129: =IF($H$85>0,SUMPRODUCT($H$73:$H$74,$AG$55:$AG$56)*$C$65/($H$85*100),0) -> 0.15 | J129: =IF($J$85>0,SUMPRODUCT($J$74,$AG$56)*$C$65/($J$85*100),0) -> 0.15 | L129: =IF($L$85>0,SUMPRODUCT($L$74,$AG$53)*$C$65/($L$85*100),0) -> 0.15 | N129: =IF($N$85>0,SUMPRODUCT($N$74:$N$75,$AG$53:$AG$54)*$C$65/($N$85*100),0) -> 0.15 | P129: =IF($P$85>0,SUMPRODUCT($P$74:$P$76,$AG$53:$AG$55)*$C$65/($P$85*100),0) -> 0.15 | R129: =IF($R$85>0,SUMPRODUCT($R$74:$R$77,$AG$53:$AG$56)*$C$65/($R$85*100),0) -> 0.15 | T129: =IF($T$85>0,SUMPRODUCT($T$74:$T$77,$AG$53:$AG$56)*$C$65/($T$85*100),0) -> 0.15 | V129: =IF($V$85>0,SUMPRODUCT($V$74:$V$77,$AG$53:$AG$56)*$C$65/($V$85*100),0) -> 0.15 | X129: =IF($X$85>0,SUMPRODUCT($X$74:$X$77,$AG$53:$AG$56)*$C$65/($X$85*100),0) -> 0 | Z129: =IF($Z$85>0,SUMPRODUCT($Z$73:$Z$76,$AG$53:$AG$56)*$C$65/($Z$85*100),0) -> 0 | AB129: =IF($AB$85>0,SUMPRODUCT($AB$72:$AB$75,$AG$53:$AG$56)*$C$65/($AB$85*100),0) -> 0 | AD129: =IF($AD$85>0,SUMPRODUCT($AD$71:$AD$74,$AG$53:$AG$56)*$C$65/($AD$85*100),0) -> 0.15
A130: Lote medio | B130: =IF($B$86>0,SUMPRODUCT($B$75:$B$77,$AG$57:$AG$59)*$C$65/($B$86*100),0) -> 0 | D130: =IF($D$86>0,SUMPRODUCT($D$75:$D$77,$AG$57:$AG$59)*$C$65/($D$86*100),0) -> 0 | F130: =IF($F$86>0,SUMPRODUCT($F$75:$F$77,$AG$57:$AG$59)*$C$65/($F$86*100),0) -> 0 | H130: =IF($H$86>0,SUMPRODUCT($H$75:$H$77,$AG$57:$AG$59)*$C$65/($H$86*100)) -> 0.15 | J130: =IF($J$86>0,SUMPRODUCT($J$75:$J$77,$AG$57:$AG$59)*$C$65/($J$86*100),0) -> 0.15 | L130: =IF($L$86>0,SUMPRODUCT($L$75:$L$77,$AG$57:$AG$59)*$C$65/($L$86*100),0) -> 0.15 | N130: =IF($N$86>0,SUMPRODUCT($N$76:$N$77,$AG$58:$AG$59)*$C$65/($N$86*100),0) -> 0.15 | P130: =IF($P$86>0,$P$77*$AG$59*$C$65/($P$86*100),0) -> 0.15 | R130: =IF($R$86>0,$R$77*$AG$59*$C$65/($R$86*100),0) -> 0 | T130: =IF($T$86>0,$T$78*$AG$57*$C$65/($T$86*100),0) -> 0.15 | V130: =IF($V$86>0,SUMPRODUCT($V$78:$V$79,$AG$58:$AG$59)*$C$65/($V$86*100),0) -> 0.15 | X130: =IF($X$86>0,SUMPRODUCT($X$78:$X$80,$AG$57:$AG$59)*$C$65/($X$86*100),0) -> 0.15 | Z130: =IF($Z$86>0,SUMPRODUCT($Z$77:$Z$79,$AG$57:$AG$59)*$C$65/($Z$86*100),0) -> 0.15 | AB130: =IF($AB$86>0,SUMPRODUCT($AB$76:$AB$78,$AG$57:$AG$59)*$C$65/($AB$86*100),0) -> 0.15 | AD130: =IF($AD$86>0,SUMPRODUCT($AD$75:$AD$77,$AG$57:$AG$59)*$C$65/($AD$86*100),0) -> 0
A131: Lote gestación | B131: =IF($B$87>0,SUMPRODUCT($B$78:$B$80,$AG$60:$AG$62)*$C$65/($B$87*100),0) -> 0 | D131: =IF($D$87>0,SUMPRODUCT($D$78:$D$80,$AG$60:$AG$62)*$C$65/($D$87*100),0) -> 0 | F131: =IF($F$87>0,SUMPRODUCT($F$78:$F$80,$AG$60:$AG$62)*$C$65/($F$87*100),0) -> 0 | H131: =IF($H$87>0,SUMPRODUCT($H$78:$H$80,$AG$60:$AG$62)*$C$65/($H$87*100),0) -> 0 | J131: =IF($J$87>0,SUMPRODUCT($J$78:$J$80,$AG$60:$AG$62)*$C$65/($J$87*100),0) -> 0 | L131: =IF($L$87>0,SUMPRODUCT($L$78:$L$80,$AG$60:$AG$62)*$C$65/($L$87*100),0) -> 0 | N131: =IF($N$87>0,SUMPRODUCT($N$78:$N$80,$AG$60:$AG$62)*$C$65/($N$87*100),0) -> 0 | P131: =IF($P$87>0,SUMPRODUCT($P$78:$P$80,$AG$60:$AG$62)*$C$65/($P$87*100),0) -> 0 | R131: =IF($R$87>0,SUMPRODUCT($R$78:$R$80,$AG$60:$AG$62)*$C$65/($R$87*100),0) -> 0 | T131: =IF($T$87>0,SUMPRODUCT($T$79:$T$80,$AG$61:$AG$62)*$C$65/($T$87*100),0) -> 0 | V131: =IF($V$87>0,SUMPRODUCT($V$80,$AG$62)*$C$65/($V$87*100),0) -> 0 | X131: =IF($X$87>0,SUMPRODUCT($X$80,$AG$62)*$C$65/($X$87*100),0) -> 0 | Z131: =IF($Z$87>0,SUMPRODUCT($Z$80,$AG$61)*$C$65/($Z$87*100),0) -> 0 | AB131: =IF($AB$87>0,SUMPRODUCT($AB$79:$AB$80,$AG$60:$AG$61)*$C$65/($AB$87*100),0) -> 0 | AD131: =IF($AD$87>0,SUMPRODUCT($AD$78:$AD$80,$AG$60:$AG$62)*$C$65/($AD$87*100),0) -> 0
A132: Lote lactación | B132: =IF($B$88>0,($B$69*$AG$48+SUMPRODUCT($B$70:$B$74,$AG$52:$AG$56))*$C$65/($B$88*100),0) -> 0.15 | D132: =IF($D$88>0,(SUMPRODUCT($D$69:$D$70,$AG$48:$AG$49)+SUMPRODUCT($D$71:$D$74,$AG$53:$AG$56))*$C$65/($D$88*100),0) -> 0.15 | F132: =IF($F$88>0,(SUMPRODUCT($F$69:$F$71,$AG$48:$AG$50)+SUMPRODUCT($F$72:$F$74,$AG$54:$AG$56))*$C$65/($F$88*100),0) -> 0.15 | H132: =IF($H$88>0,(SUMPRODUCT($H$69:$H$72,$AG$48:$AG$51)+SUMPRODUCT($H$73:$H$74,$AG$55:$AG$56))*$C$65/($H$88*100),0) -> 0.15 | J132: =IF($J$88>0,(SUMPRODUCT($J$69:$J$73,$AG$48:$AG$52)+SUMPRODUCT($J$74,$AG$56))*$C$65/($J$88*100),0) -> 0.15 | L132: =IF($L$88>0,SUMPRODUCT($L$69:$L$74,$AG$48:$AG$53)*$C$65/($L$88*100),0) -> 0.15 | N132: =IF($N$88>0,SUMPRODUCT($N$69:$N$75,$AG$48:$AG$54)*$C$65/($N$88*100),0) -> 0.15 | P132: =IF($P$88>0,SUMPRODUCT($P$69:$P$76,$AG$48:$AG$55)*$C$65/($P$88*100),0) -> 0.15 | R132: =IF($R$88>0,SUMPRODUCT($R$69:$R$77,$AG$48:$AG$56)*$C$65/($R$88*100),0) -> 0.15 | T132: =IF($T$88>0,SUMPRODUCT($T$69:$T$77,$AG$48:$AG$56)*$C$65/($T$88*100),0) -> 0.15 | V132: =IF($V$88>0,SUMPRODUCT($V$69:$V$77,$AG$48:$AG$56)*$C$65/($V$88*100),0) -> 0.15 | X132: =IF($X$88>0,SUMPRODUCT($X$69:$X$77,$AG$48:$AG$56)*$C$65/($X$88*100),0) -> 0.15 | Z132: =IF($Z$88>0,SUMPRODUCT($Z$69:$Z$76,$AG$49:$AG$56)*$C$65/($Z$88*100),0) -> 0.15 | AB132: =IF($AB$88>0,SUMPRODUCT($AB$69:$AB$75,$AG$50:$AG$56)*$C$65/($AB$88*100),0) -> 0.15 | AD132: =IF($AD$88>0,SUMPRODUCT($AD$69:$AD$74,$AG$51:$AG$56)*$C$65/($AD$88*100),0) -> 0.15
A133: IP =15 | AG133: n vacas | AH133: Pl l/día
A134: =IF(I_Necesidades!$B$43=1,IF($A$33="","","Octubre"),IF(I_Necesidades!$B$43=2,IF($A$34="","","Noviembre"),IF(I_Necesidades!$B$43=3,"Diciembre",IF(I_Necesidades!$B$43=4,"Enero",IF(I_Necesidades!$B$43=5,"Febrero",IF(I_Necesidades!$B$43=6,"Marzo",IF(I_Necesidades!$B$43=7,IF($A$39="","","Abril"),IF(I_Necesidades!$B$43=8,IF($A$40="","","Mayo"),IF(I_Necesidades!$B$43=9,IF($A$41="","","Enero segundo año"),IF(I_Necesidades!$B$43=10,IF($A$42="","","Febrero segundo año"),IF(I_Necesidades!$B$43=11,IF($A$43="","","Marzo segundo año")))))))))))) -> Enero segundo año | B134: Número de vacas | C134: Producción leche kg/día | D134: CI UE | E134: CI MS | F134: Mg | G134: K | H134: Na | I134: S | J134: Cl | K134: Co mg/día | L134: Cu mg/día | M134: Mn mg/día | N134: Zn mg/día | O134: I mg/día | P134: Se mg/día | Q134: NecUFL_gest | R134: NecPDI_gest | AG134: 78 | AH134: 10.50415838
A135: Lote 5 primeros meses lactación | B135: =IF(I_Necesidades!$B$43=1,IF($A$33="","",T84),IF(I_Necesidades!$B$43=2,IF($A$34="","",V84),IF(I_Necesidades!$B$43=3,X84,IF(I_Necesidades!$B$43=4,B84,IF(I_Necesidades!$B$43=5,D84,IF(I_Necesidades!$B$43=6,F84,IF(I_Necesidades!$B$43=7,IF($A$39="","",H84),IF(I_Necesidades!$B$43=8,IF($A$40="","",J84),IF(I_Necesidades!$B$43=9,IF($A$41="","",Z84),IF(I_Necesidades!$B$43=10,IF($A$42="","",AB84),IF(I_Necesidades!$B$43=11,IF($A$42="","",AD84)))))))))))) -> 80.6 | C135: =IF(I_Necesidades!$B$43=1,IF($A$33="","",U84),IF(I_Necesidades!$B$43=2,IF($A$34="","",W84),IF(I_Necesidades!$B$43=3,Y84,IF(I_Necesidades!$B$43=4,C84,IF(I_Necesidades!$B$43=5,E84,IF(I_Necesidades!$B$43=6,G84,IF(I_Necesidades!$B$43=7,IF($A$39="","",I84),IF(I_Necesidades!$B$43=8,IF($A$40="","",K84),IF(I_Necesidades!$B$43=9,IF($A$41="","",AA84),IF(I_Necesidades!$B$43=10,IF($A$42="","",AC84),IF(I_Necesidades!$B$43=11,IF($A$42="","",AE84)))))))))))) -> 10.49044819 | D135: =IF(I_Necesidades!$B$43=1,IF($A$33="","",T90),IF(I_Necesidades!$B$43=2,IF($A$34="","",V90),IF(I_Necesidades!$B$43=3,X90,IF(I_Necesidades!$B$43=4,B90,IF(I_Necesidades!$B$43=5,D90,IF(I_Necesidades!$B$43=6,F90,IF(I_Necesidades!$B$43=7,IF($A$39="","",H90),IF(I_Necesidades!$B$43=8,IF($A$40="","",J90),IF(I_Necesidades!$B$43=9,IF($A$41="","",Z90),IF(I_Necesidades!$B$43=10,IF($A$42="","",AB90),IF(I_Necesidades!$B$43=11,IF($A$42="","",AD90)))))))))))) -> 16.55223283 | E135: =IF(I_Necesidades!$B$43=1,IF($A$33="","",U90),IF(I_Necesidades!$B$43=2,IF($A$34="","",W90),IF(I_Necesidades!$B$43=3,Y90,IF(I_Necesidades!$B$43=4,C90,IF(I_Necesidades!$B$43=5,E90,IF(I_Necesidades!$B$43=6,G90,IF(I_Necesidades!$B$43=7,IF($A$39="","",I90),IF(I_Necesidades!$B$43=8,IF($A$40="","",K90),IF(I_Necesidades!$B$43=9,IF($A$41="","",AA90),IF(I_Necesidades!$B$43=10,IF($A$42="","",AC90),IF(I_Necesidades!$B$43=11,IF($A$42="","",AE90)))))))))))) -> 15.15761045 | F135: =IF(I_Necesidades!$B$43=1,IF($A$33="","",T98),IF(I_Necesidades!$B$43=2,IF($A$34="","",V98),IF(I_Necesidades!$B$43=3,X98,IF(I_Necesidades!$B$43=4,B98,IF(I_Necesidades!$B$43=5,D98,IF(I_Necesidades!$B$43=6,F98,IF(I_Necesidades!$B$43=7,IF($A$39="","",H98),IF(I_Necesidades!$B$43=8,IF($A$40="","",J98),IF(I_Necesidades!$B$43=9,IF($A$41="","",Z98),IF(I_Necesidades!$B$43=10,IF($A$42="","",AB98),IF(I_Necesidades!$B$43=11,IF($A$42="","",AD98)))))))))))) -> 52.45979518 | G135: =IF(I_Necesidades!$B$43=1,IF($A$33="","",U98),IF(I_Necesidades!$B$43=2,IF($A$34="","",W98),IF(I_Necesidades!$B$43=3,Y98,IF(I_Necesidades!$B$43=4,C98,IF(I_Necesidades!$B$43=5,E98,IF(I_Necesidades!$B$43=6,G98,IF(I_Necesidades!$B$43=7,IF($A$39="","",I98),IF(I_Necesidades!$B$43=8,IF($A$40="","",K98),IF(I_Necesidades!$B$43=9,IF($A$41="","",AA98),IF(I_Necesidades!$B$43=10,IF($A$42="","",AC98),IF(I_Necesidades!$B$43=11,IF($A$42="","",AE98)))))))))))) -> 87.65567228 | H135: =IF(I_Necesidades!$B$43=1,IF($A$33="","",T104),IF(I_Necesidades!$B$43=2,IF($A$34="","",V104),IF(I_Necesidades!$B$43=3,X104,IF(I_Necesidades!$B$43=4,B104,IF(I_Necesidades!$B$43=5,D104,IF(I_Necesidades!$B$43=6,F104,IF(I_Necesidades!$B$43=7,IF($A$39="","",H104),IF(I_Necesidades!$B$43=8,IF($A$40="","",J104),IF(I_Necesidades!$B$43=9,IF($A$41="","",Z104),IF(I_Necesidades!$B$43=10,IF($A$42="","",AB104),IF(I_Necesidades!$B$43=11,IF($A$42="","",AD104)))))))))))) -> 18.98070169 | I135: =IF(I_Necesidades!$B$43=1,IF($A$33="","",U104),IF(I_Necesidades!$B$43=2,IF($A$34="","",W104),IF(I_Necesidades!$B$43=3,Y104,IF(I_Necesidades!$B$43=4,C104,IF(I_Necesidades!$B$43=5,E104,IF(I_Necesidades!$B$43=6,G104,IF(I_Necesidades!$B$43=7,IF($A$39="","",I104),IF(I_Necesidades!$B$43=8,IF($A$40="","",K104),IF(I_Necesidades!$B$43=9,IF($A$41="","",AA104),IF(I_Necesidades!$B$43=10,IF($A$42="","",AC104),IF(I_Necesidades!$B$43=11,IF($A$42="","",AE104)))))))))))) -> 30.3152209 | J135: =IF(I_Necesidades!$B$43=1,IF($A$33="","",T110),IF(I_Necesidades!$B$43=2,IF($A$34="","",V110),IF(I_Necesidades!$B$43=3,X110,IF(I_Necesidades!$B$43=4,B110,IF(I_Necesidades!$B$43=5,D110,IF(I_Necesidades!$B$43=6,F110,IF(I_Necesidades!$B$43=7,IF($A$39="","",H110),IF(I_Necesidades!$B$43=8,IF($A$40="","",J110),IF(I_Necesidades!$B$43=9,IF($A$41="","",Z110),IF(I_Necesidades!$B$43=10,IF($A$42="","",AB110),IF(I_Necesidades!$B$43=11,IF($A$42="","",AD110)))))))))))) -> 23.27356723 | K135: =IF(I_Necesidades!$B$43=1,IF($A$33="","",U110),IF(I_Necesidades!$B$43=2,IF($A$34="","",W110),IF(I_Necesidades!$B$43=3,Y110,IF(I_Necesidades!$B$43=4,C110,IF(I_Necesidades!$B$43=5,E110,IF(I_Necesidades!$B$43=6,G110,IF(I_Necesidades!$B$43=7,IF($A$39="","",I110),IF(I_Necesidades!$B$43=8,IF($A$40="","",K110),IF(I_Necesidades!$B$43=9,IF($A$41="","",AA110),IF(I_Necesidades!$B$43=10,IF($A$42="","",AC110),IF(I_Necesidades!$B$43=11,IF($A$42="","",AE110)))))))))))) -> 4.547283136 | L135: =IF(I_Necesidades!$B$43=1,IF($A$33="","",T116),IF(I_Necesidades!$B$43=2,IF($A$34="","",V116),IF(I_Necesidades!$B$43=3,X116,IF(I_Necesidades!$B$43=4,B116,IF(I_Necesidades!$B$43=5,D116,IF(I_Necesidades!$B$43=6,F116,IF(I_Necesidades!$B$43=7,IF($A$39="","",H116),IF(I_Necesidades!$B$43=8,IF($A$40="","",J116),IF(I_Necesidades!$B$43=9,IF($A$41="","",Z116),IF(I_Necesidades!$B$43=10,IF($A$42="","",AB116),IF(I_Necesidades!$B$43=11,IF($A$42="","",AD116)))))))))))) -> 151.5761045 | M135: =IF(I_Necesidades!$B$43=1,IF($A$33="","",U116),IF(I_Necesidades!$B$43=2,IF($A$34="","",W116),IF(I_Necesidades!$B$43=3,Y116,IF(I_Necesidades!$B$43=4,C116,IF(I_Necesidades!$B$43=5,E116,IF(I_Necesidades!$B$43=6,G116,IF(I_Necesidades!$B$43=7,IF($A$39="","",I116),IF(I_Necesidades!$B$43=8,IF($A$40="","",K116),IF(I_Necesidades!$B$43=9,IF($A$41="","",AA116),IF(I_Necesidades!$B$43=10,IF($A$42="","",AC116),IF(I_Necesidades!$B$43=11,IF($A$42="","",AE116)))))))))))) -> 757.8805226 | N135: =IF(I_Necesidades!$B$43=1,IF($A$33="","",T122),IF(I_Necesidades!$B$43=2,IF($A$34="","",V122),IF(I_Necesidades!$B$43=3,X122,IF(I_Necesidades!$B$43=4,B122,IF(I_Necesidades!$B$43=5,D122,IF(I_Necesidades!$B$43=6,F122,IF(I_Necesidades!$B$43=7,IF($A$39="","",H122),IF(I_Necesidades!$B$43=8,IF($A$40="","",J122),IF(I_Necesidades!$B$43=9,IF($A$41="","",AA122),IF(I_Necesidades!$B$43=10,IF($A$42="","",AC122),IF(I_Necesidades!$B$43=11,IF($A$42="","",AE122)))))))))))) -> 9.852446794 | O135: =IF(I_Necesidades!$B$43=1,IF($A$33="","",U122),IF(I_Necesidades!$B$43=2,IF($A$34="","",W122),IF(I_Necesidades!$B$43=3,Y122,IF(I_Necesidades!$B$43=4,C122,IF(I_Necesidades!$B$43=5,E122,IF(I_Necesidades!$B$43=6,G122,IF(I_Necesidades!$B$43=7,IF($A$39="","",I122),IF(I_Necesidades!$B$43=8,IF($A$40="","",K122),IF(I_Necesidades!$B$43=9,IF($A$41="","",AA122),IF(I_Necesidades!$B$43=10,IF($A$42="","",AC122),IF(I_Necesidades!$B$43=11,IF($A$42="","",AE122)))))))))))) -> 9.852446794 | P135: =IF(I_Necesidades!$B$43=1,IF($A$33="","",T128),IF(I_Necesidades!$B$43=2,IF($A$34="","",V128),IF(I_Necesidades!$B$43=3,X128,IF(I_Necesidades!$B$43=4,B128,IF(I_Necesidades!$B$43=5,D128,IF(I_Necesidades!$B$43=6,F128,IF(I_Necesidades!$B$43=7,IF($A$39="","",H128),IF(I_Necesidades!$B$43=8,IF($A$40="","",J128),IF(I_Necesidades!$B$43=9,IF($A$41="","",AA128),IF(I_Necesidades!$B$43=10,IF($A$42="","",AC128),IF(I_Necesidades!$B$43=11,IF($A$42="","",AE128)))))))))))) -> 0 | Q135: 0 | R135: 0 | AG135: 6.5 | AH135: 8.132493872
A136: Lote últimos meses lactación | B136: =IF(I_Necesidades!$B$43=1,IF($A$33="","",T85),IF(I_Necesidades!$B$43=2,IF($A$34="","",V85),IF(I_Necesidades!$B$43=3,X85,IF(I_Necesidades!$B$43=4,B85,IF(I_Necesidades!$B$43=5,D85,IF(I_Necesidades!$B$43=6,F85,IF(I_Necesidades!$B$43=7,IF($A$39="","",H85),IF(I_Necesidades!$B$43=8,IF($A$40="","",J85),IF(I_Necesidades!$B$43=9,IF($A$41="","",Z85),IF(I_Necesidades!$B$43=10,IF($A$42="","",AB85),IF(I_Necesidades!$B$43=11,IF($A$42="","",AD85)))))))))))) -> 0 | C136: =IF(I_Necesidades!$B$43=1,IF($A$33="","",U85),IF(I_Necesidades!$B$43=2,IF($A$34="","",W85),IF(I_Necesidades!$B$43=3,Y85,IF(I_Necesidades!$B$43=4,C85,IF(I_Necesidades!$B$43=5,E85,IF(I_Necesidades!$B$43=6,G85,IF(I_Necesidades!$B$43=7,IF($A$39="","",I85),IF(I_Necesidades!$B$43=8,IF($A$40="","",K85),IF(I_Necesidades!$B$43=9,IF($A$41="","",AA85),IF(I_Necesidades!$B$43=10,IF($A$42="","",AC85),IF(I_Necesidades!$B$43=11,IF($A$42="","",AE85)))))))))))) -> 0 | D136: =IF(I_Necesidades!$B$43=1,IF($A$33="","",T91),IF(I_Necesidades!$B$43=2,IF($A$34="","",V91),IF(I_Necesidades!$B$43=3,X91,IF(I_Necesidades!$B$43=4,B91,IF(I_Necesidades!$B$43=5,D91,IF(I_Necesidades!$B$43=6,F91,IF(I_Necesidades!$B$43=7,IF($A$39="","",H91),IF(I_Necesidades!$B$43=8,IF($A$40="","",J91),IF(I_Necesidades!$B$43=9,IF($A$41="","",Z91),IF(I_Necesidades!$B$43=10,IF($A$42="","",AB91),IF(I_Necesidades!$B$43=11,IF($A$42="","",AD91)))))))))))) -> 0 | E136: =IF(I_Necesidades!$B$43=1,IF($A$33="","",U91),IF(I_Necesidades!$B$43=2,IF($A$34="","",W91),IF(I_Necesidades!$B$43=3,Y91,IF(I_Necesidades!$B$43=4,C91,IF(I_Necesidades!$B$43=5,E91,IF(I_Necesidades!$B$43=6,G91,IF(I_Necesidades!$B$43=7,IF($A$39="","",I91),IF(I_Necesidades!$B$43=8,IF($A$40="","",K91),IF(I_Necesidades!$B$43=9,IF($A$41="","",AA91),IF(I_Necesidades!$B$43=10,IF($A$42="","",AC91),IF(I_Necesidades!$B$43=11,IF($A$42="","",AE91)))))))))))) -> 0 | F136: =IF(I_Necesidades!$B$43=1,IF($A$33="","",T99),IF(I_Necesidades!$B$43=2,IF($A$34="","",V99),IF(I_Necesidades!$B$43=3,X99,IF(I_Necesidades!$B$43=4,B99,IF(I_Necesidades!$B$43=5,D99,IF(I_Necesidades!$B$43=6,F99,IF(I_Necesidades!$B$43=7,IF($A$39="","",H99),IF(I_Necesidades!$B$43=8,IF($A$40="","",J99),IF(I_Necesidades!$B$43=9,IF($A$41="","",Z99),IF(I_Necesidades!$B$43=10,IF($A$42="","",AB99),IF(I_Necesidades!$B$43=11,IF($A$42="","",AD99)))))))))))) -> 0 | G136: =IF(I_Necesidades!$B$43=1,IF($A$33="","",U99),IF(I_Necesidades!$B$43=2,IF($A$34="","",W99),IF(I_Necesidades!$B$43=3,Y99,IF(I_Necesidades!$B$43=4,C99,IF(I_Necesidades!$B$43=5,E99,IF(I_Necesidades!$B$43=6,G99,IF(I_Necesidades!$B$43=7,IF($A$39="","",I99),IF(I_Necesidades!$B$43=8,IF($A$40="","",K99),IF(I_Necesidades!$B$43=9,IF($A$41="","",AA99),IF(I_Necesidades!$B$43=10,IF($A$42="","",AC99),IF(I_Necesidades!$B$43=11,IF($A$42="","",AE99)))))))))))) -> 0 | H136: =IF(I_Necesidades!$B$43=1,IF($A$33="","",T105),IF(I_Necesidades!$B$43=2,IF($A$34="","",V105),IF(I_Necesidades!$B$43=3,X105,IF(I_Necesidades!$B$43=4,B105,IF(I_Necesidades!$B$43=5,D105,IF(I_Necesidades!$B$43=6,F105,IF(I_Necesidades!$B$43=7,IF($A$39="","",H105),IF(I_Necesidades!$B$43=8,IF($A$40="","",J105),IF(I_Necesidades!$B$43=9,IF($A$41="","",Z105),IF(I_Necesidades!$B$43=10,IF($A$42="","",AB105),IF(I_Necesidades!$B$43=11,IF($A$42="","",AD105)))))))))))) -> 0 | I136: =IF(I_Necesidades!$B$43=1,IF($A$33="","",U105),IF(I_Necesidades!$B$43=2,IF($A$34="","",W105),IF(I_Necesidades!$B$43=3,Y105,IF(I_Necesidades!$B$43=4,C105,IF(I_Necesidades!$B$43=5,E105,IF(I_Necesidades!$B$43=6,G105,IF(I_Necesidades!$B$43=7,IF($A$39="","",I105),IF(I_Necesidades!$B$43=8,IF($A$40="","",K105),IF(I_Necesidades!$B$43=9,IF($A$41="","",AA105),IF(I_Necesidades!$B$43=10,IF($A$42="","",AC105),IF(I_Necesidades!$B$43=11,IF($A$42="","",AE105)))))))))))) -> 0 | J136: =IF(I_Necesidades!$B$43=1,IF($A$33="","",T111),IF(I_Necesidades!$B$43=2,IF($A$34="","",V111),IF(I_Necesidades!$B$43=3,X111,IF(I_Necesidades!$B$43=4,B111,IF(I_Necesidades!$B$43=5,D111,IF(I_Necesidades!$B$43=6,F111,IF(I_Necesidades!$B$43=7,IF($A$39="","",H111),IF(I_Necesidades!$B$43=8,IF($A$40="","",J111),IF(I_Necesidades!$B$43=9,IF($A$41="","",Z111),IF(I_Necesidades!$B$43=10,IF($A$42="","",AB111),IF(I_Necesidades!$B$43=11,IF($A$42="","",AD111)))))))))))) -> 0 | K136: =IF(I_Necesidades!$B$43=1,IF($A$33="","",U111),IF(I_Necesidades!$B$43=2,IF($A$34="","",W111),IF(I_Necesidades!$B$43=3,Y111,IF(I_Necesidades!$B$43=4,C111,IF(I_Necesidades!$B$43=5,E111,IF(I_Necesidades!$B$43=6,G111,IF(I_Necesidades!$B$43=7,IF($A$39="","",I111),IF(I_Necesidades!$B$43=8,IF($A$40="","",K111),IF(I_Necesidades!$B$43=9,IF($A$41="","",AA111),IF(I_Necesidades!$B$43=10,IF($A$42="","",AC111),IF(I_Necesidades!$B$43=11,IF($A$42="","",AE111)))))))))))) -> 0 | L136: =IF(I_Necesidades!$B$43=1,IF($A$33="","",T117),IF(I_Necesidades!$B$43=2,IF($A$34="","",V117),IF(I_Necesidades!$B$43=3,X117,IF(I_Necesidades!$B$43=4,B117,IF(I_Necesidades!$B$43=5,D117,IF(I_Necesidades!$B$43=6,F117,IF(I_Necesidades!$B$43=7,IF($A$39="","",H117),IF(I_Necesidades!$B$43=8,IF($A$40="","",J117),IF(I_Necesidades!$B$43=9,IF($A$41="","",Z117),IF(I_Necesidades!$B$43=10,IF($A$42="","",AB117),IF(I_Necesidades!$B$43=11,IF($A$42="","",AD117)))))))))))) -> 0 | M136: =IF(I_Necesidades!$B$43=1,IF($A$33="","",U117),IF(I_Necesidades!$B$43=2,IF($A$34="","",W117),IF(I_Necesidades!$B$43=3,Y117,IF(I_Necesidades!$B$43=4,C117,IF(I_Necesidades!$B$43=5,E117,IF(I_Necesidades!$B$43=6,G117,IF(I_Necesidades!$B$43=7,IF($A$39="","",I117),IF(I_Necesidades!$B$43=8,IF($A$40="","",K117),IF(I_Necesidades!$B$43=9,IF($A$41="","",AA117),IF(I_Necesidades!$B$43=10,IF($A$42="","",AC117),IF(I_Necesidades!$B$43=11,IF($A$42="","",AE117)))))))))))) -> 0 | N136: =IF(I_Necesidades!$B$43=1,IF($A$33="","",T123),IF(I_Necesidades!$B$43=2,IF($A$34="","",V123),IF(I_Necesidades!$B$43=3,X123,IF(I_Necesidades!$B$43=4,B123,IF(I_Necesidades!$B$43=5,D123,IF(I_Necesidades!$B$43=6,F123,IF(I_Necesidades!$B$43=7,IF($A$39="","",H123),IF(I_Necesidades!$B$43=8,IF($A$40="","",J123),IF(I_Necesidades!$B$43=9,IF($A$41="","",AA123),IF(I_Necesidades!$B$43=10,IF($A$42="","",AC123),IF(I_Necesidades!$B$43=11,IF($A$42="","",AE123)))))))))))) -> 0 | O136: =IF(I_Necesidades!$B$43=1,IF($A$33="","",U123),IF(I_Necesidades!$B$43=2,IF($A$34="","",W123),IF(I_Necesidades!$B$43=3,Y123,IF(I_Necesidades!$B$43=4,C123,IF(I_Necesidades!$B$43=5,E123,IF(I_Necesidades!$B$43=6,G123,IF(I_Necesidades!$B$43=7,IF($A$39="","",I123),IF(I_Necesidades!$B$43=8,IF($A$40="","",K123),IF(I_Necesidades!$B$43=9,IF($A$41="","",AA123),IF(I_Necesidades!$B$43=10,IF($A$42="","",AC123),IF(I_Necesidades!$B$43=11,IF($A$42="","",AE123)))))))))))) -> 0 | P136: =IF(I_Necesidades!$B$43=1,IF($A$33="","",T129),IF(I_Necesidades!$B$43=2,IF($A$34="","",V129),IF(I_Necesidades!$B$43=3,X129,IF(I_Necesidades!$B$43=4,B129,IF(I_Necesidades!$B$43=5,D129,IF(I_Necesidades!$B$43=6,F129,IF(I_Necesidades!$B$43=7,IF($A$39="","",H129),IF(I_Necesidades!$B$43=8,IF($A$40="","",J129),IF(I_Necesidades!$B$43=9,IF($A$41="","",AA129),IF(I_Necesidades!$B$43=10,IF($A$42="","",AC129),IF(I_Necesidades!$B$43=11,IF($A$42="","",AE129)))))))))))) -> 0 | Q136: 0 | R136: 0 | AG136: 32.5
A137: Lote medio | B137: =IF(I_Necesidades!$B$43=1,IF($A$33="","",T86),IF(I_Necesidades!$B$43=2,IF($A$34="","",V86),IF(I_Necesidades!$B$43=3,X86,IF(I_Necesidades!$B$43=4,B86,IF(I_Necesidades!$B$43=5,D86,IF(I_Necesidades!$B$43=6,F86,IF(I_Necesidades!$B$43=7,IF($A$39="","",H86),IF(I_Necesidades!$B$43=8,IF($A$40="","",J86),IF(I_Necesidades!$B$43=9,IF($A$41="","",Z86),IF(I_Necesidades!$B$43=10,IF($A$42="","",AB86),IF(I_Necesidades!$B$43=11,IF($A$42="","",AD86)))))))))))) -> 36.4 | C137: =IF(I_Necesidades!$B$43=1,IF($A$33="","",U86),IF(I_Necesidades!$B$43=2,IF($A$34="","",W86),IF(I_Necesidades!$B$43=3,Y86,IF(I_Necesidades!$B$43=4,C86,IF(I_Necesidades!$B$43=5,E86,IF(I_Necesidades!$B$43=6,G86,IF(I_Necesidades!$B$43=7,IF($A$39="","",I86),IF(I_Necesidades!$B$43=8,IF($A$40="","",K86),IF(I_Necesidades!$B$43=9,IF($A$41="","",AA86),IF(I_Necesidades!$B$43=10,IF($A$42="","",AC86),IF(I_Necesidades!$B$43=11,IF($A$42="","",AE86)))))))))))) -> 0 | D137: =IF(I_Necesidades!$B$43=1,IF($A$33="","",T92),IF(I_Necesidades!$B$43=2,IF($A$34="","",V92),IF(I_Necesidades!$B$43=3,X92,IF(I_Necesidades!$B$43=4,B92,IF(I_Necesidades!$B$43=5,D92,IF(I_Necesidades!$B$43=6,F92,IF(I_Necesidades!$B$43=7,IF($A$39="","",H92),IF(I_Necesidades!$B$43=8,IF($A$40="","",J92),IF(I_Necesidades!$B$43=9,IF($A$41="","",Z92),IF(I_Necesidades!$B$43=10,IF($A$42="","",AB92),IF(I_Necesidades!$B$43=11,IF($A$42="","",AD92)))))))))))) -> 13.57161 | E137: =IF(I_Necesidades!$B$43=1,IF($A$33="","",U92),IF(I_Necesidades!$B$43=2,IF($A$34="","",W92),IF(I_Necesidades!$B$43=3,Y92,IF(I_Necesidades!$B$43=4,C92,IF(I_Necesidades!$B$43=5,E92,IF(I_Necesidades!$B$43=6,G92,IF(I_Necesidades!$B$43=7,IF($A$39="","",I92),IF(I_Necesidades!$B$43=8,IF($A$40="","",K92),IF(I_Necesidades!$B$43=9,IF($A$41="","",AA92),IF(I_Necesidades!$B$43=10,IF($A$42="","",AC92),IF(I_Necesidades!$B$43=11,IF($A$42="","",AE92)))))))))))) -> 11.8701596 | F137: =IF(I_Necesidades!$B$43=1,IF($A$33="","",T100),IF(I_Necesidades!$B$43=2,IF($A$34="","",V100),IF(I_Necesidades!$B$43=3,X100,IF(I_Necesidades!$B$43=4,B100,IF(I_Necesidades!$B$43=5,D100,IF(I_Necesidades!$B$43=6,F100,IF(I_Necesidades!$B$43=7,IF($A$39="","",H100),IF(I_Necesidades!$B$43=8,IF($A$40="","",J100),IF(I_Necesidades!$B$43=9,IF($A$41="","",Z100),IF(I_Necesidades!$B$43=10,IF($A$42="","",AB100),IF(I_Necesidades!$B$43=11,IF($A$42="","",AD100)))))))))))) -> 42.625 | G137: =IF(I_Necesidades!$B$43=1,IF($A$33="","",U100),IF(I_Necesidades!$B$43=2,IF($A$34="","",W100),IF(I_Necesidades!$B$43=3,Y100,IF(I_Necesidades!$B$43=4,C100,IF(I_Necesidades!$B$43=5,E100,IF(I_Necesidades!$B$43=6,G100,IF(I_Necesidades!$B$43=7,IF($A$39="","",I100),IF(I_Necesidades!$B$43=8,IF($A$40="","",K100),IF(I_Necesidades!$B$43=9,IF($A$41="","",AA100),IF(I_Necesidades!$B$43=10,IF($A$42="","",AC100),IF(I_Necesidades!$B$43=11,IF($A$42="","",AE100)))))))))))) -> 71.92 | H137: =IF(I_Necesidades!$B$43=1,IF($A$33="","",T106),IF(I_Necesidades!$B$43=2,IF($A$34="","",V106),IF(I_Necesidades!$B$43=3,X106,IF(I_Necesidades!$B$43=4,B106,IF(I_Necesidades!$B$43=5,D106,IF(I_Necesidades!$B$43=6,F106,IF(I_Necesidades!$B$43=7,IF($A$39="","",H106),IF(I_Necesidades!$B$43=8,IF($A$40="","",J106),IF(I_Necesidades!$B$43=9,IF($A$41="","",Z106),IF(I_Necesidades!$B$43=10,IF($A$42="","",AB106),IF(I_Necesidades!$B$43=11,IF($A$42="","",AD106)))))))))))) -> 14.26 | I137: =IF(I_Necesidades!$B$43=1,IF($A$33="","",U106),IF(I_Necesidades!$B$43=2,IF($A$34="","",W106),IF(I_Necesidades!$B$43=3,Y106,IF(I_Necesidades!$B$43=4,C106,IF(I_Necesidades!$B$43=5,E106,IF(I_Necesidades!$B$43=6,G106,IF(I_Necesidades!$B$43=7,IF($A$39="","",I106),IF(I_Necesidades!$B$43=8,IF($A$40="","",K106),IF(I_Necesidades!$B$43=9,IF($A$41="","",AA106),IF(I_Necesidades!$B$43=10,IF($A$42="","",AC106),IF(I_Necesidades!$B$43=11,IF($A$42="","",AE106)))))))))))) -> 23.74031921 | J137: =IF(I_Necesidades!$B$43=1,IF($A$33="","",T112),IF(I_Necesidades!$B$43=2,IF($A$34="","",V112),IF(I_Necesidades!$B$43=3,X112,IF(I_Necesidades!$B$43=4,B112,IF(I_Necesidades!$B$43=5,D112,IF(I_Necesidades!$B$43=6,F112,IF(I_Necesidades!$B$43=7,IF($A$39="","",H112),IF(I_Necesidades!$B$43=8,IF($A$40="","",J112),IF(I_Necesidades!$B$43=9,IF($A$41="","",Z112),IF(I_Necesidades!$B$43=10,IF($A$42="","",AB112),IF(I_Necesidades!$B$43=11,IF($A$42="","",AD112)))))))))))) -> 21.7 | K137: =IF(I_Necesidades!$B$43=1,IF($A$33="","",U112),IF(I_Necesidades!$B$43=2,IF($A$34="","",W112),IF(I_Necesidades!$B$43=3,Y112,IF(I_Necesidades!$B$43=4,C112,IF(I_Necesidades!$B$43=5,E112,IF(I_Necesidades!$B$43=6,G112,IF(I_Necesidades!$B$43=7,IF($A$39="","",I112),IF(I_Necesidades!$B$43=8,IF($A$40="","",K112),IF(I_Necesidades!$B$43=9,IF($A$41="","",AA112),IF(I_Necesidades!$B$43=10,IF($A$42="","",AC112),IF(I_Necesidades!$B$43=11,IF($A$42="","",AE112)))))))))))) -> 3.561047881 | L137: =IF(I_Necesidades!$B$43=1,IF($A$33="","",T118),IF(I_Necesidades!$B$43=2,IF($A$34="","",V118),IF(I_Necesidades!$B$43=3,X118,IF(I_Necesidades!$B$43=4,B118,IF(I_Necesidades!$B$43=5,D118,IF(I_Necesidades!$B$43=6,F118,IF(I_Necesidades!$B$43=7,IF($A$39="","",H118),IF(I_Necesidades!$B$43=8,IF($A$40="","",J118),IF(I_Necesidades!$B$43=9,IF($A$41="","",Z118),IF(I_Necesidades!$B$43=10,IF($A$42="","",AB118),IF(I_Necesidades!$B$43=11,IF($A$42="","",AD118)))))))))))) -> 118.701596 | M137: =IF(I_Necesidades!$B$43=1,IF($A$33="","",U118),IF(I_Necesidades!$B$43=2,IF($A$34="","",W118),IF(I_Necesidades!$B$43=3,Y118,IF(I_Necesidades!$B$43=4,C118,IF(I_Necesidades!$B$43=5,E118,IF(I_Necesidades!$B$43=6,G118,IF(I_Necesidades!$B$43=7,IF($A$39="","",I118),IF(I_Necesidades!$B$43=8,IF($A$40="","",K118),IF(I_Necesidades!$B$43=9,IF($A$41="","",AA118),IF(I_Necesidades!$B$43=10,IF($A$42="","",AC118),IF(I_Necesidades!$B$43=11,IF($A$42="","",AE118)))))))))))) -> 593.5079801 | N137: =IF(I_Necesidades!$B$43=1,IF($A$33="","",T124),IF(I_Necesidades!$B$43=2,IF($A$34="","",V124),IF(I_Necesidades!$B$43=3,X124,IF(I_Necesidades!$B$43=4,B124,IF(I_Necesidades!$B$43=5,D124,IF(I_Necesidades!$B$43=6,F124,IF(I_Necesidades!$B$43=7,IF($A$39="","",H124),IF(I_Necesidades!$B$43=8,IF($A$40="","",J124),IF(I_Necesidades!$B$43=9,IF($A$41="","",AA124),IF(I_Necesidades!$B$43=10,IF($A$42="","",AC124),IF(I_Necesidades!$B$43=11,IF($A$42="","",AE124)))))))))))) -> 7.715603742 | O137: =IF(I_Necesidades!$B$43=1,IF($A$33="","",U124),IF(I_Necesidades!$B$43=2,IF($A$34="","",W124),IF(I_Necesidades!$B$43=3,Y124,IF(I_Necesidades!$B$43=4,C124,IF(I_Necesidades!$B$43=5,E124,IF(I_Necesidades!$B$43=6,G124,IF(I_Necesidades!$B$43=7,IF($A$39="","",I124),IF(I_Necesidades!$B$43=8,IF($A$40="","",K124),IF(I_Necesidades!$B$43=9,IF($A$41="","",AA124),IF(I_Necesidades!$B$43=10,IF($A$42="","",AC124),IF(I_Necesidades!$B$43=11,IF($A$42="","",AE124)))))))))))) -> 7.715603742 | P137: =IF(I_Necesidades!$B$43=1,IF($A$33="","",T130),IF(I_Necesidades!$B$43=2,IF($A$34="","",V130),IF(I_Necesidades!$B$43=3,X130,IF(I_Necesidades!$B$43=4,B130,IF(I_Necesidades!$B$43=5,D130,IF(I_Necesidades!$B$43=6,F130,IF(I_Necesidades!$B$43=7,IF($A$39="","",H130),IF(I_Necesidades!$B$43=8,IF($A$40="","",J130),IF(I_Necesidades!$B$43=9,IF($A$41="","",AA130),IF(I_Necesidades!$B$43=10,IF($A$42="","",AC130),IF(I_Necesidades!$B$43=11,IF($A$42="","",AE130)))))))))))) -> 0 | Q137: 0 | R137: 0 | AG137: 13
A138: Lote gestación | B138: =IF(I_Necesidades!$B$43=1,IF($A$33="","",T87),IF(I_Necesidades!$B$43=2,IF($A$34="","",V87),IF(I_Necesidades!$B$43=3,X87,IF(I_Necesidades!$B$43=4,B87,IF(I_Necesidades!$B$43=5,D87,IF(I_Necesidades!$B$43=6,F87,IF(I_Necesidades!$B$43=7,IF($A$39="","",H87),IF(I_Necesidades!$B$43=8,IF($A$40="","",J87),IF(I_Necesidades!$B$43=9,IF($A$41="","",Z87),IF(I_Necesidades!$B$43=10,IF($A$42="","",AB87),IF(I_Necesidades!$B$43=11,IF($A$42="","",AD87)))))))))))) -> 13 | C138: =IF(I_Necesidades!$B$43=1,IF($A$33="","",U87),IF(I_Necesidades!$B$43=2,IF($A$34="","",W87),IF(I_Necesidades!$B$43=3,Y87,IF(I_Necesidades!$B$43=4,C87,IF(I_Necesidades!$B$43=5,E87,IF(I_Necesidades!$B$43=6,G87,IF(I_Necesidades!$B$43=7,IF($A$39="","",I87),IF(I_Necesidades!$B$43=8,IF($A$40="","",K87),IF(I_Necesidades!$B$43=9,IF($A$41="","",AA87),IF(I_Necesidades!$B$43=10,IF($A$42="","",AC87),IF(I_Necesidades!$B$43=11,IF($A$42="","",AE87)))))))))))) -> 0 | D138: =IF(I_Necesidades!$B$43=1,IF($A$33="","",T93),IF(I_Necesidades!$B$43=2,IF($A$34="","",V93),IF(I_Necesidades!$B$43=3,X93,IF(I_Necesidades!$B$43=4,B93,IF(I_Necesidades!$B$43=5,D93,IF(I_Necesidades!$B$43=6,F93,IF(I_Necesidades!$B$43=7,IF($A$39="","",H93),IF(I_Necesidades!$B$43=8,IF($A$40="","",J93),IF(I_Necesidades!$B$43=9,IF($A$41="","",Z93),IF(I_Necesidades!$B$43=10,IF($A$42="","",AB93),IF(I_Necesidades!$B$43=11,IF($A$42="","",AD93)))))))))))) -> 13.20798 | E138: =IF(I_Necesidades!$B$43=1,IF($A$33="","",U93),IF(I_Necesidades!$B$43=2,IF($A$34="","",W93),IF(I_Necesidades!$B$43=3,Y93,IF(I_Necesidades!$B$43=4,C93,IF(I_Necesidades!$B$43=5,E93,IF(I_Necesidades!$B$43=6,G93,IF(I_Necesidades!$B$43=7,IF($A$39="","",I93),IF(I_Necesidades!$B$43=8,IF($A$40="","",K93),IF(I_Necesidades!$B$43=9,IF($A$41="","",AA93),IF(I_Necesidades!$B$43=10,IF($A$42="","",AC93),IF(I_Necesidades!$B$43=11,IF($A$42="","",AE93)))))))))))) -> 11.9957887 | F138: =IF(I_Necesidades!$B$43=1,IF($A$33="","",T101),IF(I_Necesidades!$B$43=2,IF($A$34="","",V101),IF(I_Necesidades!$B$43=3,X101,IF(I_Necesidades!$B$43=4,B101,IF(I_Necesidades!$B$43=5,D101,IF(I_Necesidades!$B$43=6,F101,IF(I_Necesidades!$B$43=7,IF($A$39="","",H101),IF(I_Necesidades!$B$43=8,IF($A$40="","",J101),IF(I_Necesidades!$B$43=9,IF($A$41="","",Z101),IF(I_Necesidades!$B$43=10,IF($A$42="","",AB101),IF(I_Necesidades!$B$43=11,IF($A$42="","",AD101)))))))))))) -> 42.625 | G138: =IF(I_Necesidades!$B$43=1,IF($A$33="","",U101),IF(I_Necesidades!$B$43=2,IF($A$34="","",W101),IF(I_Necesidades!$B$43=3,Y101,IF(I_Necesidades!$B$43=4,C101,IF(I_Necesidades!$B$43=5,E101,IF(I_Necesidades!$B$43=6,G101,IF(I_Necesidades!$B$43=7,IF($A$39="","",I101),IF(I_Necesidades!$B$43=8,IF($A$40="","",K101),IF(I_Necesidades!$B$43=9,IF($A$41="","",AA101),IF(I_Necesidades!$B$43=10,IF($A$42="","",AC101),IF(I_Necesidades!$B$43=11,IF($A$42="","",AE101)))))))))))) -> 44.4 | H138: =IF(I_Necesidades!$B$43=1,IF($A$33="","",T107),IF(I_Necesidades!$B$43=2,IF($A$34="","",V107),IF(I_Necesidades!$B$43=3,X107,IF(I_Necesidades!$B$43=4,B107,IF(I_Necesidades!$B$43=5,D107,IF(I_Necesidades!$B$43=6,F107,IF(I_Necesidades!$B$43=7,IF($A$39="","",H107),IF(I_Necesidades!$B$43=8,IF($A$40="","",J107),IF(I_Necesidades!$B$43=9,IF($A$41="","",Z107),IF(I_Necesidades!$B$43=10,IF($A$42="","",AB107),IF(I_Necesidades!$B$43=11,IF($A$42="","",AD107)))))))))))) -> 10.6 | I138: =IF(I_Necesidades!$B$43=1,IF($A$33="","",U107),IF(I_Necesidades!$B$43=2,IF($A$34="","",W107),IF(I_Necesidades!$B$43=3,Y107,IF(I_Necesidades!$B$43=4,C107,IF(I_Necesidades!$B$43=5,E107,IF(I_Necesidades!$B$43=6,G107,IF(I_Necesidades!$B$43=7,IF($A$39="","",I107),IF(I_Necesidades!$B$43=8,IF($A$40="","",K107),IF(I_Necesidades!$B$43=9,IF($A$41="","",AA107),IF(I_Necesidades!$B$43=10,IF($A$42="","",AC107),IF(I_Necesidades!$B$43=11,IF($A$42="","",AE107)))))))))))) -> 24.02723005 | J138: =IF(I_Necesidades!$B$43=1,IF($A$33="","",T113),IF(I_Necesidades!$B$43=2,IF($A$34="","",V113),IF(I_Necesidades!$B$43=3,X113,IF(I_Necesidades!$B$43=4,B113,IF(I_Necesidades!$B$43=5,D113,IF(I_Necesidades!$B$43=6,F113,IF(I_Necesidades!$B$43=7,IF($A$39="","",H113),IF(I_Necesidades!$B$43=8,IF($A$40="","",J113),IF(I_Necesidades!$B$43=9,IF($A$41="","",Z113),IF(I_Necesidades!$B$43=10,IF($A$42="","",AB113),IF(I_Necesidades!$B$43=11,IF($A$42="","",AD113)))))))))))) -> 15.26 | K138: =IF(I_Necesidades!$B$43=1,IF($A$33="","",U113),IF(I_Necesidades!$B$43=2,IF($A$34="","",W113),IF(I_Necesidades!$B$43=3,Y113,IF(I_Necesidades!$B$43=4,C113,IF(I_Necesidades!$B$43=5,E113,IF(I_Necesidades!$B$43=6,G113,IF(I_Necesidades!$B$43=7,IF($A$39="","",I113),IF(I_Necesidades!$B$43=8,IF($A$40="","",K113),IF(I_Necesidades!$B$43=9,IF($A$41="","",AA113),IF(I_Necesidades!$B$43=10,IF($A$42="","",AC113),IF(I_Necesidades!$B$43=11,IF($A$42="","",AE113)))))))))))) -> 3.604084508 | L138: =IF(I_Necesidades!$B$43=1,IF($A$33="","",T119),IF(I_Necesidades!$B$43=2,IF($A$34="","",V119),IF(I_Necesidades!$B$43=3,X119,IF(I_Necesidades!$B$43=4,B119,IF(I_Necesidades!$B$43=5,D119,IF(I_Necesidades!$B$43=6,F119,IF(I_Necesidades!$B$43=7,IF($A$39="","",H119),IF(I_Necesidades!$B$43=8,IF($A$40="","",J119),IF(I_Necesidades!$B$43=9,IF($A$41="","",Z119),IF(I_Necesidades!$B$43=10,IF($A$42="","",AB119),IF(I_Necesidades!$B$43=11,IF($A$42="","",AD119)))))))))))) -> 120.1361503 | M138: =IF(I_Necesidades!$B$43=1,IF($A$33="","",U119),IF(I_Necesidades!$B$43=2,IF($A$34="","",W119),IF(I_Necesidades!$B$43=3,Y119,IF(I_Necesidades!$B$43=4,C119,IF(I_Necesidades!$B$43=5,E119,IF(I_Necesidades!$B$43=6,G119,IF(I_Necesidades!$B$43=7,IF($A$39="","",I119),IF(I_Necesidades!$B$43=8,IF($A$40="","",K119),IF(I_Necesidades!$B$43=9,IF($A$41="","",AA119),IF(I_Necesidades!$B$43=10,IF($A$42="","",AC119),IF(I_Necesidades!$B$43=11,IF($A$42="","",AE119)))))))))))) -> 600.6807513 | N138: =IF(I_Necesidades!$B$43=1,IF($A$33="","",T125),IF(I_Necesidades!$B$43=2,IF($A$34="","",V125),IF(I_Necesidades!$B$43=3,X125,IF(I_Necesidades!$B$43=4,B125,IF(I_Necesidades!$B$43=5,D125,IF(I_Necesidades!$B$43=6,F125,IF(I_Necesidades!$B$43=7,IF($A$39="","",H125),IF(I_Necesidades!$B$43=8,IF($A$40="","",J125),IF(I_Necesidades!$B$43=9,IF($A$41="","",AA125),IF(I_Necesidades!$B$43=10,IF($A$42="","",AC125),IF(I_Necesidades!$B$43=11,IF($A$42="","",AE125)))))))))))) -> 5.406126762 | O138: =IF(I_Necesidades!$B$43=1,IF($A$33="","",U125),IF(I_Necesidades!$B$43=2,IF($A$34="","",W125),IF(I_Necesidades!$B$43=3,Y125,IF(I_Necesidades!$B$43=4,C125,IF(I_Necesidades!$B$43=5,E125,IF(I_Necesidades!$B$43=6,G125,IF(I_Necesidades!$B$43=7,IF($A$39="","",I125),IF(I_Necesidades!$B$43=8,IF($A$40="","",K125),IF(I_Necesidades!$B$43=9,IF($A$41="","",AA125),IF(I_Necesidades!$B$43=10,IF($A$42="","",AC125),IF(I_Necesidades!$B$43=11,IF($A$42="","",AE125)))))))))))) -> 5.406126762 | P138: =IF(I_Necesidades!$B$43=1,IF($A$33="","",T131),IF(I_Necesidades!$B$43=2,IF($A$34="","",V131),IF(I_Necesidades!$B$43=3,X131,IF(I_Necesidades!$B$43=4,B131,IF(I_Necesidades!$B$43=5,D131,IF(I_Necesidades!$B$43=6,F131,IF(I_Necesidades!$B$43=7,IF($A$39="","",H131),IF(I_Necesidades!$B$43=8,IF($A$40="","",J131),IF(I_Necesidades!$B$43=9,IF($A$41="","",AA131),IF(I_Necesidades!$B$43=10,IF($A$42="","",AC131),IF(I_Necesidades!$B$43=11,IF($A$42="","",AE131)))))))))))) -> 0 | Q138: =IF(I_Necesidades!$B$43=1,IF($A$33="","",T96),IF(I_Necesidades!$B$43=2,IF($A$34="","",V96),IF(I_Necesidades!$B$43=3,X96,IF(I_Necesidades!$B$43=4,B96,IF(I_Necesidades!$B$43=5,D96,IF(I_Necesidades!$B$43=6,F96,IF(I_Necesidades!$B$43=7,IF($A$39="","",H96),IF(I_Necesidades!$B$43=8,IF($A$40="","",J96),IF(I_Necesidades!$B$43=9,IF($A$41="","",Z96),IF(I_Necesidades!$B$43=10,IF($A$42="","",AB96),IF(I_Necesidades!$B$43=11,IF($A$42="","",AD96)))))))))))) -> 0.8568319401 | R138: =IF(I_Necesidades!$B$43=1,IF($A$33="","",U96),IF(I_Necesidades!$B$43=2,IF($A$34="","",W96),IF(I_Necesidades!$B$43=3,Y96,IF(I_Necesidades!$B$43=4,C96,IF(I_Necesidades!$B$43=5,E96,IF(I_Necesidades!$B$43=6,G96,IF(I_Necesidades!$B$43=7,IF($A$39="","",I96),IF(I_Necesidades!$B$43=8,IF($A$40="","",K96),IF(I_Necesidades!$B$43=9,IF($A$41="","",AA96),IF(I_Necesidades!$B$43=10,IF($A$42="","",AC96),IF(I_Necesidades!$B$43=11,IF($A$42="","",AE96)))))))))))) -> 48.07553485 | AG138: 84.5 | AH138: 10.32172265
A139: Lote lactación | B139: =IF(I_Necesidades!$B$43=1,IF($A$33="","",T88),IF(I_Necesidades!$B$43=2,IF($A$34="","",V88),IF(I_Necesidades!$B$43=3,X88,IF(I_Necesidades!$B$43=4,B88,IF(I_Necesidades!$B$43=5,D88,IF(I_Necesidades!$B$43=6,F88,IF(I_Necesidades!$B$43=7,IF($A$39="","",H88),IF(I_Necesidades!$B$43=8,IF($A$40="","",J88),IF(I_Necesidades!$B$43=9,IF($A$41="","",Z88),IF(I_Necesidades!$B$43=10,IF($A$42="","",AB88),IF(I_Necesidades!$B$43=11,IF($A$42="","",AD88)))))))))))) -> 80.6 | C139: =IF(I_Necesidades!$B$43=1,IF($A$33="","",U88),IF(I_Necesidades!$B$43=2,IF($A$34="","",W88),IF(I_Necesidades!$B$43=3,Y88,IF(I_Necesidades!$B$43=4,C88,IF(I_Necesidades!$B$43=5,E88,IF(I_Necesidades!$B$43=6,G88,IF(I_Necesidades!$B$43=7,IF($A$39="","",I88),IF(I_Necesidades!$B$43=8,IF($A$40="","",K88),IF(I_Necesidades!$B$43=9,IF($A$41="","",AA88),IF(I_Necesidades!$B$43=10,IF($A$42="","",AC88),IF(I_Necesidades!$B$43=11,IF($A$42="","",AE88)))))))))))) -> 10.49044819 | D139: =IF(I_Necesidades!$B$43=1,IF($A$33="","",T94),IF(I_Necesidades!$B$43=2,IF($A$34="","",V94),IF(I_Necesidades!$B$43=3,X94,IF(I_Necesidades!$B$43=4,B94,IF(I_Necesidades!$B$43=5,D94,IF(I_Necesidades!$B$43=6,F94,IF(I_Necesidades!$B$43=7,IF($A$39="","",H94),IF(I_Necesidades!$B$43=8,IF($A$40="","",J94),IF(I_Necesidades!$B$43=9,IF($A$41="","",Z94),IF(I_Necesidades!$B$43=10,IF($A$42="","",AB94),IF(I_Necesidades!$B$43=11,IF($A$42="","",AD94)))))))))))) -> 16.55223283 | E139: =IF(I_Necesidades!$B$43=1,IF($A$33="","",U94),IF(I_Necesidades!$B$43=2,IF($A$34="","",W94),IF(I_Necesidades!$B$43=3,Y94,IF(I_Necesidades!$B$43=4,C94,IF(I_Necesidades!$B$43=5,E94,IF(I_Necesidades!$B$43=6,G94,IF(I_Necesidades!$B$43=7,IF($A$39="","",I94),IF(I_Necesidades!$B$43=8,IF($A$40="","",K94),IF(I_Necesidades!$B$43=9,IF($A$41="","",AA94),IF(I_Necesidades!$B$43=10,IF($A$42="","",AC94),IF(I_Necesidades!$B$43=11,IF($A$42="","",AE94)))))))))))) -> 15.15761045 | F139: =IF(I_Necesidades!$B$43=1,IF($A$33="","",T102),IF(I_Necesidades!$B$43=2,IF($A$34="","",V102),IF(I_Necesidades!$B$43=3,X102,IF(I_Necesidades!$B$43=4,B102,IF(I_Necesidades!$B$43=5,D102,IF(I_Necesidades!$B$43=6,F102,IF(I_Necesidades!$B$43=7,IF($A$39="","",H102),IF(I_Necesidades!$B$43=8,IF($A$40="","",J102),IF(I_Necesidades!$B$43=9,IF($A$41="","",Z102),IF(I_Necesidades!$B$43=10,IF($A$42="","",AB102),IF(I_Necesidades!$B$43=11,IF($A$42="","",AD102)))))))))))) -> 52.45979518 | G139: =IF(I_Necesidades!$B$43=1,IF($A$33="","",U102),IF(I_Necesidades!$B$43=2,IF($A$34="","",W102),IF(I_Necesidades!$B$43=3,Y102,IF(I_Necesidades!$B$43=4,C102,IF(I_Necesidades!$B$43=5,E102,IF(I_Necesidades!$B$43=6,G102,IF(I_Necesidades!$B$43=7,IF($A$39="","",I102),IF(I_Necesidades!$B$43=8,IF($A$40="","",K102),IF(I_Necesidades!$B$43=9,IF($A$41="","",AA102),IF(I_Necesidades!$B$43=10,IF($A$42="","",AC102),IF(I_Necesidades!$B$43=11,IF($A$42="","",AE102)))))))))))) -> 87.65567228 | H139: =IF(I_Necesidades!$B$43=1,IF($A$33="","",T108),IF(I_Necesidades!$B$43=2,IF($A$34="","",V108),IF(I_Necesidades!$B$43=3,X108,IF(I_Necesidades!$B$43=4,B108,IF(I_Necesidades!$B$43=5,D108,IF(I_Necesidades!$B$43=6,F108,IF(I_Necesidades!$B$43=7,IF($A$39="","",H108),IF(I_Necesidades!$B$43=8,IF($A$40="","",J108),IF(I_Necesidades!$B$43=9,IF($A$41="","",Z108),IF(I_Necesidades!$B$43=10,IF($A$42="","",AB108),IF(I_Necesidades!$B$43=11,IF($A$42="","",AD108)))))))))))) -> 18.98070169 | I139: =IF(I_Necesidades!$B$43=1,IF($A$33="","",U108),IF(I_Necesidades!$B$43=2,IF($A$34="","",W108),IF(I_Necesidades!$B$43=3,Y108,IF(I_Necesidades!$B$43=4,C108,IF(I_Necesidades!$B$43=5,E108,IF(I_Necesidades!$B$43=6,G108,IF(I_Necesidades!$B$43=7,IF($A$39="","",I108),IF(I_Necesidades!$B$43=8,IF($A$40="","",K108),IF(I_Necesidades!$B$43=9,IF($A$41="","",AA108),IF(I_Necesidades!$B$43=10,IF($A$42="","",AC108),IF(I_Necesidades!$B$43=11,IF($A$42="","",AE108)))))))))))) -> 30.3152209 | J139: =IF(I_Necesidades!$B$43=1,IF($A$33="","",T114),IF(I_Necesidades!$B$43=2,IF($A$34="","",V114),IF(I_Necesidades!$B$43=3,X114,IF(I_Necesidades!$B$43=4,B114,IF(I_Necesidades!$B$43=5,D114,IF(I_Necesidades!$B$43=6,F114,IF(I_Necesidades!$B$43=7,IF($A$39="","",H114),IF(I_Necesidades!$B$43=8,IF($A$40="","",J114),IF(I_Necesidades!$B$43=9,IF($A$41="","",Z114),IF(I_Necesidades!$B$43=10,IF($A$42="","",AB114),IF(I_Necesidades!$B$43=11,IF($A$42="","",AD114)))))))))))) -> 23.27356723 | K139: =IF(I_Necesidades!$B$43=1,IF($A$33="","",U114),IF(I_Necesidades!$B$43=2,IF($A$34="","",W114),IF(I_Necesidades!$B$43=3,Y114,IF(I_Necesidades!$B$43=4,C114,IF(I_Necesidades!$B$43=5,E114,IF(I_Necesidades!$B$43=6,G114,IF(I_Necesidades!$B$43=7,IF($A$39="","",I114),IF(I_Necesidades!$B$43=8,IF($A$40="","",K114),IF(I_Necesidades!$B$43=9,IF($A$41="","",AA114),IF(I_Necesidades!$B$43=10,IF($A$42="","",AC114),IF(I_Necesidades!$B$43=11,IF($A$42="","",AE114)))))))))))) -> 4.547283136 | L139: =IF(I_Necesidades!$B$43=1,IF($A$33="","",T120),IF(I_Necesidades!$B$43=2,IF($A$34="","",V120),IF(I_Necesidades!$B$43=3,X120,IF(I_Necesidades!$B$43=4,B120,IF(I_Necesidades!$B$43=5,D120,IF(I_Necesidades!$B$43=6,F120,IF(I_Necesidades!$B$43=7,IF($A$39="","",H120),IF(I_Necesidades!$B$43=8,IF($A$40="","",J120),IF(I_Necesidades!$B$43=9,IF($A$41="","",Z120),IF(I_Necesidades!$B$43=10,IF($A$42="","",AB120),IF(I_Necesidades!$B$43=11,IF($A$42="","",AD120)))))))))))) -> 151.5761045 | M139: =IF(I_Necesidades!$B$43=1,IF($A$33="","",U120),IF(I_Necesidades!$B$43=2,IF($A$34="","",W120),IF(I_Necesidades!$B$43=3,Y120,IF(I_Necesidades!$B$43=4,C120,IF(I_Necesidades!$B$43=5,E120,IF(I_Necesidades!$B$43=6,G120,IF(I_Necesidades!$B$43=7,IF($A$39="","",I120),IF(I_Necesidades!$B$43=8,IF($A$40="","",K120),IF(I_Necesidades!$B$43=9,IF($A$41="","",AA120),IF(I_Necesidades!$B$43=10,IF($A$42="","",AC120),IF(I_Necesidades!$B$43=11,IF($A$42="","",AE120)))))))))))) -> 757.8805226 | N139: =IF(I_Necesidades!$B$43=1,IF($A$33="","",T126),IF(I_Necesidades!$B$43=2,IF($A$34="","",V126),IF(I_Necesidades!$B$43=3,X126,IF(I_Necesidades!$B$43=4,B126,IF(I_Necesidades!$B$43=5,D126,IF(I_Necesidades!$B$43=6,F126,IF(I_Necesidades!$B$43=7,IF($A$39="","",H126),IF(I_Necesidades!$B$43=8,IF($A$40="","",J126),IF(I_Necesidades!$B$43=9,IF($A$41="","",AA126),IF(I_Necesidades!$B$43=10,IF($A$42="","",AC126),IF(I_Necesidades!$B$43=11,IF($A$42="","",AE126)))))))))))) -> 9.852446794 | O139: =IF(I_Necesidades!$B$43=1,IF($A$33="","",U126),IF(I_Necesidades!$B$43=2,IF($A$34="","",W126),IF(I_Necesidades!$B$43=3,Y126,IF(I_Necesidades!$B$43=4,C126,IF(I_Necesidades!$B$43=5,E126,IF(I_Necesidades!$B$43=6,G126,IF(I_Necesidades!$B$43=7,IF($A$39="","",I126),IF(I_Necesidades!$B$43=8,IF($A$40="","",K126),IF(I_Necesidades!$B$43=9,IF($A$41="","",AA126),IF(I_Necesidades!$B$43=10,IF($A$42="","",AC126),IF(I_Necesidades!$B$43=11,IF($A$42="","",AE126)))))))))))) -> 9.852446794 | P139: =IF(I_Necesidades!$B$43=1,IF($A$33="","",T132),IF(I_Necesidades!$B$43=2,IF($A$34="","",V132),IF(I_Necesidades!$B$43=3,X132,IF(I_Necesidades!$B$43=4,B132,IF(I_Necesidades!$B$43=5,D132,IF(I_Necesidades!$B$43=6,F132,IF(I_Necesidades!$B$43=7,IF($A$39="","",H132),IF(I_Necesidades!$B$43=8,IF($A$40="","",J132),IF(I_Necesidades!$B$43=9,IF($A$41="","",AA132),IF(I_Necesidades!$B$43=10,IF($A$42="","",AC132),IF(I_Necesidades!$B$43=11,IF($A$42="","",AE132)))))))))))) -> 0 | Q139: 0 | R139: 0 | AG139: CI UE | AH139: CI MS
AG140: 13.67426969 | AH140: 15.14566045
A141: IP =14 | C141: 1 | E141: 2 | G141: 3 | I141: 4 | K141: 5 | M141: 6 | O141: 7 | Q141: 8 | S141: 9 | U141: 10 | W141: 11 | Y141: 12 | AA141: 13 | AC141: 14 | AG141: 13.18142664 | AH141: 15.04701241
A142: Mes parto | B142: % partos | C142: Enero | D142: % partos | E142: Febrero | F142: % partos | G142: Marzo | H142: % partos | I142: Abril | J142: % partos | K142: Mayo | L142: % partos | M142: Junio | N142: % partos | O142: Julio | P142: % partos | Q142: Agosto | R142: % partos | S142: Setiembre | T142: % partos | U142: Octubre | V142: % partos | W142: Noviembre | X142: % partos | Y142: Diciembre | AA142: Enero_1 | AC142: Febreroo_1 | AG142: 11.21133 | AH142: 11.81050808
A143: Enero | B143: =I_Necesidades!$C$28 -> 10 | C143: 1 | D143: =I_Necesidades!$C$29 -> 10 | E143: 1 | F143: =I_Necesidades!$C$30 -> 18 | G143: 1 | H143: =I_Necesidades!$C$31 -> 0 | I143: 1 | J143: =I_Necesidades!$C$32 -> 0 | K143: 1 | L143: =I_Necesidades!$C$33 -> 0 | M143: 1 | N143: =I_Necesidades!$C$34 -> 0 | O143: 1 | P143: =I_Necesidades!$C$35 -> 0 | Q143: 1 | R143: =I_Necesidades!$C$36 -> 0 | S143: 1 | T143: =I_Necesidades!$C$37 -> 27 | U143: 1 | V143: =I_Necesidades!$C$38 -> 17 | W143: 1 | X143: =I_Necesidades!$C$39 -> 18 | Y143: 1 | Z143: =I_Necesidades!$C$39 -> 18 | AA143: 2 | AB143: =I_Necesidades!$C$39 -> 18 | AC143: 3 | AG143: 10.91094 | AH143: 11.9957887
A144: Febrero | B144: =I_Necesidades!$C$39 -> 18 | C144: 4 | D144: =I_Necesidades!$C$28 -> 10 | E144: 2 | F144: =I_Necesidades!$C$29 -> 10 | G144: 2 | H144: =I_Necesidades!$C$30 -> 18 | I144: 2 | J144: =I_Necesidades!$C$31 -> 0 | K144: 2 | L144: =I_Necesidades!$C$32 -> 0 | M144: 2 | N144: =I_Necesidades!$C$33 -> 0 | O144: 2 | P144: =I_Necesidades!$C$34 -> 0 | Q144: 2 | R144: =I_Necesidades!$C$35 -> 0 | S144: 2 | T144: =I_Necesidades!$C$36 -> 0 | U144: 2 | V144: =I_Necesidades!$C$37 -> 27 | W144: 2 | X144: =I_Necesidades!$C$38 -> 17 | Y144: 2 | Z144: =I_Necesidades!$C$38 -> 17 | AA144: 3 | AB144: =I_Necesidades!$C$38 -> 17 | AC144: 4 | AG144: 13.63635869 | AH144: 15.13807214
A145: Marzo | B145: =I_Necesidades!$C$38 -> 17 | C145: 5 | D145: =I_Necesidades!$C$39 -> 18 | E145: 5 | F145: =I_Necesidades!$C$28 -> 10 | G145: 3 | H145: =I_Necesidades!$C$29 -> 10 | I145: 3 | J145: =I_Necesidades!$C$30 -> 18 | K145: 3 | L145: =I_Necesidades!$C$31 -> 0 | M145: 3 | N145: =I_Necesidades!$C$32 -> 0 | O145: 3 | P145: =I_Necesidades!$C$33 -> 0 | Q145: 3 | R145: =I_Necesidades!$C$34 -> 0 | S145: 3 | T145: =I_Necesidades!$C$35 -> 0 | U145: 3 | V145: =I_Necesidades!$C$36 -> 0 | W145: 3 | X145: =I_Necesidades!$C$37 -> 27 | Y145: 3 | Z145: =I_Necesidades!$C$37 -> 27 | AA145: 4 | AB145: =I_Necesidades!$C$37 -> 27 | AC145: 5 | AG145: NecUFL_gest | AH145: NecPDI_gest
A146: Abril | B146: =I_Necesidades!$C$37 -> 27 | C146: 6 | D146: =I_Necesidades!$C$38 -> 17 | E146: 6 | F146: =I_Necesidades!$C$39 -> 18 | G146: 6 | H146: =I_Necesidades!$C$28 -> 10 | I146: 4 | J146: =I_Necesidades!$C$29 -> 10 | K146: 4 | L146: =I_Necesidades!$C$30 -> 18 | M146: 4 | N146: =I_Necesidades!$C$31 -> 0 | O146: 4 | P146: =I_Necesidades!$C$32 -> 0 | Q146: 4 | R146: =I_Necesidades!$C$33 -> 0 | S146: 4 | T146: =I_Necesidades!$C$34 -> 0 | U146: 4 | V146: =I_Necesidades!$C$35 -> 0 | W146: 4 | X146: =I_Necesidades!$C$36 -> 0 | Y146: 4 | Z146: =I_Necesidades!$C$36 -> 0 | AA146: 5 | AB146: =I_Necesidades!$C$36 -> 0 | AC146: 6 | AG146: 0.8568319401 | AH146: 48.07553485
A147: Mayo | B147: =I_Necesidades!$C$36 -> 0 | C147: 7 | D147: =I_Necesidades!$C$37 -> 27 | E147: 7 | F147: =I_Necesidades!$C$38 -> 17 | G147: 7 | H147: =I_Necesidades!$C$39 -> 18 | I147: 7 | J147: =I_Necesidades!$C$28 -> 10 | K147: 5 | L147: =I_Necesidades!$C$29 -> 10 | M147: 5 | N147: =I_Necesidades!$C$30 -> 18 | O147: 5 | P147: =I_Necesidades!$C$31 -> 0 | Q147: 5 | R147: =I_Necesidades!$C$32 -> 0 | S147: 5 | T147: =I_Necesidades!$C$33 -> 0 | U147: 5 | V147: =I_Necesidades!$C$34 -> 0 | W147: 5 | X147: =I_Necesidades!$C$35 -> 0 | Y147: 5 | Z147: =I_Necesidades!$C$35 -> 0 | AA147: 6 | AB147: =I_Necesidades!$C$35 -> 0 | AC147: 7
A148: Junio | B148: =I_Necesidades!$C$35 -> 0 | C148: 8 | D148: =I_Necesidades!$C$36 -> 0 | E148: 8 | F148: =I_Necesidades!$C$37 -> 27 | G148: 8 | H148: =I_Necesidades!$C$38 -> 17 | I148: 8 | J148: =I_Necesidades!$C$39 -> 18 | K148: 8 | L148: =I_Necesidades!$C$28 -> 10 | M148: 6 | N148: =I_Necesidades!$C$29 -> 10 | O148: 6 | P148: =I_Necesidades!$C$30 -> 18 | Q148: 6 | R148: =I_Necesidades!$C$31 -> 0 | S148: 6 | T148: =I_Necesidades!$C$32 -> 0 | U148: 6 | V148: =I_Necesidades!$C$33 -> 0 | W148: 6 | X148: =I_Necesidades!$C$34 -> 0 | Y148: 6 | Z148: =I_Necesidades!$C$34 -> 0 | AA148: 7 | AB148: =I_Necesidades!$C$34 -> 0 | AC148: 8
A149: Julio | B149: =I_Necesidades!$C$34 -> 0 | C149: 9 | D149: =I_Necesidades!$C$35 -> 0 | E149: 9 | F149: =I_Necesidades!$C$36 -> 0 | G149: 9 | H149: =I_Necesidades!$C$37 -> 27 | I149: 9 | J149: =I_Necesidades!$C$38 -> 17 | K149: 9 | L149: =I_Necesidades!$C$39 -> 18 | M149: 9 | N149: =I_Necesidades!$C$28 -> 10 | O149: 7 | P149: =I_Necesidades!$C$29 -> 10 | Q149: 7 | R149: =I_Necesidades!$C$30 -> 18 | S149: 7 | T149: =I_Necesidades!$C$31 -> 0 | U149: 7 | V149: =I_Necesidades!$C$32 -> 0 | W149: 7 | X149: =I_Necesidades!$C$33 -> 0 | Y149: 7 | Z149: =I_Necesidades!$C$33 -> 0 | AA149: 8 | AB149: =I_Necesidades!$C$33 -> 0 | AC149: 9
A150: Agosto | B150: =I_Necesidades!$C$33 -> 0 | C150: 10 | D150: =I_Necesidades!$C$34 -> 0 | E150: 10 | F150: =I_Necesidades!$C$35 -> 0 | G150: 10 | H150: =I_Necesidades!$C$36 -> 0 | I150: 10 | J150: =I_Necesidades!$C$37 -> 27 | K150: 10 | L150: =I_Necesidades!$C$38 -> 17 | M150: 10 | N150: =I_Necesidades!$C$39 -> 18 | O150: 10 | P150: =I_Necesidades!$C$28 -> 10 | Q150: 8 | R150: =I_Necesidades!$C$29 -> 10 | S150: 8 | T150: =I_Necesidades!$C$30 -> 18 | U150: 8 | V150: =I_Necesidades!$C$31 -> 0 | W150: 8 | X150: =I_Necesidades!$C$32 -> 0 | Y150: 8 | Z150: =I_Necesidades!$C$32 -> 0 | AA150: 9 | AB150: =I_Necesidades!$C$32 -> 0 | AC150: 10
A151: Setiembre | B151: =I_Necesidades!$C$32 -> 0 | C151: 11 | D151: =I_Necesidades!$C$33 -> 0 | E151: 11 | F151: =I_Necesidades!$C$34 -> 0 | G151: 11 | H151: =I_Necesidades!$C$35 -> 0 | I151: 11 | J151: =I_Necesidades!$C$36 -> 0 | K151: 11 | L151: =I_Necesidades!$C$37 -> 27 | M151: 11 | N151: =I_Necesidades!$C$38 -> 17 | O151: 11 | P151: =I_Necesidades!$C$39 -> 18 | Q151: 11 | R151: =I_Necesidades!$C$28 -> 10 | S151: 9 | T151: =I_Necesidades!$C$29 -> 10 | U151: 9 | V151: =I_Necesidades!$C$30 -> 18 | W151: 9 | X151: =I_Necesidades!$C$31 -> 0 | Y151: 9 | Z151: =I_Necesidades!$C$31 -> 0 | AA151: 10 | AB151: =I_Necesidades!$C$31 -> 0 | AC151: 11
A152: Octubre | B152: =I_Necesidades!$C$31 -> 0 | C152: 12 | D152: =I_Necesidades!$C$32 -> 0 | E152: 12 | F152: =I_Necesidades!$C$33 -> 0 | G152: 12 | H152: =I_Necesidades!$C$34 -> 0 | I152: 12 | J152: =I_Necesidades!$C$35 -> 0 | K152: 12 | L152: =I_Necesidades!$C$36 -> 0 | M152: 12 | N152: =I_Necesidades!$C$37 -> 27 | O152: 12 | P152: =I_Necesidades!$C$38 -> 17 | Q152: 12 | R152: =I_Necesidades!$C$39 -> 18 | S152: 12 | T152: =I_Necesidades!$C$28 -> 10 | U152: 10 | V152: =I_Necesidades!$C$29 -> 10 | W152: 10 | X152: =I_Necesidades!$C$30 -> 18 | Y152: 10 | Z152: =I_Necesidades!$C$30 -> 18 | AA152: 11 | AB152: =I_Necesidades!$C$30 -> 18 | AC152: 12
A153: Noviembre | B153: =I_Necesidades!$C$30 -> 18 | C153: 13 | D153: =I_Necesidades!$C$31 -> 0 | E153: 13 | F153: =I_Necesidades!$C$32 -> 0 | G153: 13 | H153: =I_Necesidades!$C$33 -> 0 | I153: 13 | J153: =I_Necesidades!$C$34 -> 0 | K153: 13 | L153: =I_Necesidades!$C$35 -> 0 | M153: 13 | N153: =I_Necesidades!$C$36 -> 0 | O153: 13 | P153: =I_Necesidades!$C$37 -> 27 | Q153: 13 | R153: =I_Necesidades!$C$38 -> 17 | S153: 13 | T153: =I_Necesidades!$C$39 -> 18 | U153: 13 | V153: =I_Necesidades!$C$28 -> 10 | W153: 11 | X153: =I_Necesidades!$C$29 -> 10 | Y153: 11 | Z153: =I_Necesidades!$C$29 -> 10 | AA153: 12 | AB153: =I_Necesidades!$C$29 -> 10 | AC153: 13
A154: Diciembre | B154: =I_Necesidades!$C$29 -> 10 | C154: 14 | D154: =I_Necesidades!$C$30 -> 18 | E154: 14 | F154: =I_Necesidades!$C$31 -> 0 | G154: 14 | H154: =I_Necesidades!$C$32 -> 0 | I154: 14 | J154: =I_Necesidades!$C$33 -> 0 | K154: 14 | L154: =I_Necesidades!$C$34 -> 0 | M154: 14 | N154: =I_Necesidades!$C$35 -> 0 | O154: 14 | P154: =I_Necesidades!$C$36 -> 0 | Q154: 14 | R154: =I_Necesidades!$C$37 -> 27 | S154: 14 | T154: =I_Necesidades!$C$38 -> 17 | U154: 14 | V154: =I_Necesidades!$C$39 -> 18 | W154: 14 | X154: =I_Necesidades!$C$28 -> 10 | Y154: 12 | Z154: =I_Necesidades!$C$28 -> 10 | AA154: 13 | AB154: =I_Necesidades!$C$28 -> 10 | AC154: 14
B156: Enero | D156: Febrero | F156: Marzo | H156: Abril | J156: Mayo | L156: Junio | N156: Julio | P156: Agosto | R156: Setiembre | T156: Octubre | V156: Noviembre | X156: Diciembre | Z156: Enero_1 | AB156: Febreroo_1
B157: n vacas | C157: Pl l/día | D157: n vacas | E157: Pl l/día | F157: n vacas | G157: Pl l/día | H157: n vacas | I157: Pl l/día | J157: n vacas | K157: Pl l/día | L157: n vacas | M157: Pl l/día | N157: n vacas | O157: Pl l/día | P157: n vacas | Q157: Pl l/día | R157: n vacas | S157: Pl l/día | T157: n vacas | U157: Pl l/día | V157: n vacas | W157: Pl l/día | X157: n vacas | Y157: Pl l/día | Z157: n vacas | AA157: Pl l/día | AB157: n vacas | AC157: Pl l/día
A158: Lote 5 primeros meses lactación | B158: =SUM(B143:B145)*$C$65/100 -> 58.5 | C158: =IF($B$158>0,($B$143*$F$48+$B$144*$F$51+$B$145*$F$52)*$C$65/($B$158*100),0) -> 9.881707028 | D158: =SUM(D143:D145)*$C$65/100 -> 49.4 | E158: =IF($D$158>0,($D$143*$F$48+$D$144*$F$49+$D$145*$F$52)*$C$65/($D$158*100),0) -> 10.08956655 | F158: =SUM($F$143:$F$145)*$C$65/100 -> 49.4 | G158: =IF($F$158>0,SUMPRODUCT($F$143:$F$145,$F$48:$F$50)*$C$65/($F$158*100),0) -> 10.36806322 | H158: =SUM($H$143:$H$146)*$C$65/100 -> 49.4 | I158: =IF($H$158>0,SUMPRODUCT($H$143:$H$146,$F$48:$F$51)*$C$65/($H$158*100),0) -> 10.66290456 | J158: =SUM($J$143:$J$147)*$C$65/100 -> 49.4 | K158: =IF($J$158>0,SUMPRODUCT($J$143:$J$147,$F$48:$F$52)*$C$65/($J$158*100),0) -> 10.19581915 | L158: =SUM($L$143:$L$147)*$C$65/100 -> 36.4 | M158: =IF($L$158>0,SUMPRODUCT($L$143:$L$147,$F$48:$F$52)*$C$65/($L$158*100),0) -> 9.932775411 | N158: =SUM($N$143:$N$147)*$C$65/100 -> 23.4 | O158: =IF($N$158>0,SUMPRODUCT($N$143:$N$147,$F$48:$F$52)*$C$65/($N$158*100),0) -> 9.669314837 | P158: =SUM($P$143:$P$147)*$C$65/100 -> 0 | Q158: =IF($P$158>0,SUMPRODUCT($P$143:$P$147,$F$48:$F$52)*$C$65/($P$158*100),0) -> 0 | R158: =SUM($R$143:$R$147)*$C$65/100 -> 0 | S158: =IF($R$158>0,SUMPRODUCT($R$143:$R$147,$F$48:$F$52)*$C$65/($R$158*100),0) -> 0 | T158: =SUM($T$143:$T$147)*$C$65/100 -> 35.1 | U158: =IF($T$158>0,SUMPRODUCT($T$143:$T$147,$F$48:$F$52)*$C$65/($T$158*100),0) -> 9.887390089 | V158: =SUM($V$143:$V$147)*$C$65/100 -> 57.2 | W158: =IF($V$158>0,SUMPRODUCT($V$143:$V$147,$F$48:$F$52)*$C$65/($V$158*100),0) -> 10.59970286 | X158: =SUM($X$143:$X$147)*$C$65/100 -> 80.6 | Y158: =IF($X$158>0,SUMPRODUCT($X$143:$X$147,$F$48:$F$52)*$C$65/($X$158*100),0) -> 10.49559981 | Z158: =SUM($Z$143:$Z$146)*$C$65/100 -> 80.6 | AA158: =IF($Z$158>0,SUMPRODUCT($Z$143:$Z$146,$F$49:$F$52)*$C$65/($Z$158*100),0) -> 10.49044819 | AB158: =SUM($AB$143:$AB$145)*$C$65/100 -> 80.6 | AC158: =IF($AB$158>0,SUMPRODUCT($AB$143:$AB$145,$F$50:$F$52)*$C$65/($AB$158*100),0) -> 10.03828189
